Workbook

Sheet INTRO
C1: Cette version sera utilisée par les pays endémiques à la Loase
B2: Formulaire de Rapport Commun v.3.1 (L)
B4: Le but de ce formulaire de rapport commun - disponible sous forme de fichier Excel - est de mettre à disposition des autorités sanitaires nationales et des gestionnaires de données un outil standardisé qui réponde aux défis, facilite l'intégration et par conséquent contribue à améliorer la gestion de programme. Ce formulaire tend à standardiser le rapport de résultats des programmes nationaux, améliore la disponibilité et la coordination des données de chimioprévention à travers les Bureaux des Régions de l'Organisation mondiale de la Santé. Les autorités nationales sont priées de compléter ce formulaire et de le soumettre à l'Organisation mondiale de la Santé avant le 15 août de l'année en cours pour rapporter les données des activités de chimioprévention mises en oeuvre l'année précédente.
B6: Structure de l'application (feuilles de travail) :
B8: INTRO | C8: Cette feuille contient des instructions pour compléter le formulaire de rapport commun et des informations sur le statut de la chimioprévention pour les maladies d'endémie du pays.
B9: COUNTRY_INFO | C9: Cette feuille contient des informations sur la structure administrative du pays, la population par groupe d'âge, le statut d'endémicité pour chaque maladie, la population devant être traitée par chimioprévention, les interventions prévues et les interventions mises en oeuvre.
B10: MDA1, MDA2, MDA3, T1, T2 et T3 | C10: Ces feuilles contiennent des informations sur l'endémicité des districts ciblés pour le traitement aux médicaments spécifiques pour la chimioprévention, les plans de traitement, et le nombre de personnes traitées par groupe d'âge.
B11: DISTRICT | C11: Cette feuille contient un résumé sur les personnes traitées, par maladie, au niveau de mise en oeuvre. Si les données par genre (sexe) sont disponibles, merci de les saisir.
B12: SUMMARY | C12: Cette feuille contient un résumé sur les personnes traitées, par maladie et par type d'intervention de chimioprévention. Avant de générer le rapport (exécuter macro), veuillez sélectionner la maladie pour laquelle vous souhaitez un rapport. Veuillez suivre le même processus pour générer les divers rapports. Cette feuille doit être imprimée et soumise comme formulaire de rapport commun (voir les instructions pour la soumission du formulaire sous la feuille SUMMARY).
B14: Instructions pour la saisie des données
B16: La plupart des cellules des feuilles de travail mentionnées ci-dessus contiennent des formules calculées automatiquement en fonction du protocole de traitement recommandé par l'OMS pour chaque maladie. Voir : http://www.who.int/neglected_diseases/preventive_chemotherapy/pct_manual/en/index.html
B18: Veuillez entrer vos données dans les cellules en fonction de leur code de couleur :
C20: Blanc - la cellule n'est pas protégée. Veuillez entrer la valeur de l'indicateur demandé.
C22: Jaune - la cellule est protégée et inclut le nom de l'indicateur. Aucune entrée de données requise.
C24: Orange - la cellule n'est pas protégée et contient un menu déroulant. Veuillez sélectionner la valeur dans le menu déroulant.
C27: Vert - la cellule n'est pas protégée et contient des formules. Veuillez changer la valeur indiquée uniquement si vos données sont différentes de celles calculées automatiquement.
C30: Bleu - la cellule est protégée et contient des formules. Aucune entrée de données requise.
B32: Données pays
B34: PAYS | E34: République Centrafricaine
B36: Année de rapport des données | E36: 2019
B38: Le pays est-il endémique à la filariose lymphatique (FL) ? | E38: Endémique
B40: Le pays est-il endémique à l'onchocercose (ONCHO) ? | E40: Endémique
B42: Le pays est-il endémique aux géohelminthiases (STH) ? | E42: Endémique
B44: Le pays est-il endémique à la schistosomiase (SCH) ? | E44: Endémique
B46: Combien d'unités administratives compte le pays ? | E46: 35
B47: Si les données démographiques par groupe d'âge ne sont pas disponibles au second niveau administratif, veuillez entrer la proportion (%) de population, par groupe d'âge, du pays. Si les données sont disponibles, veuillez laisser les cellules vierges.
B48: 1-4 ans | C48: Enfants d'âge pré-scolaire (EAPréS) | E48: 0.1381
B49: 5-14 ans | C49: Enfants d'âge scolaire (EAS) | E49: 0.227
B50: 15 ans et plus | C50: Adultes | E50: 0.5999

Sheet COUNTRY_INFO
A1: INFORMATIONS PAYS
A2: Structure administrative, population par groupe d'âge, statut d'endémicité, interventions planifiées et interventions mises en oeuvre
A4: TOTAL | D4: =SUM(D$9:D$1000) -> 5367621.765 | E4: =SUM(E$9:E$1000) -> 741267 | F4: =SUM(F$9:F$1000) -> 1218451 | G4: =SUM(G$9:G$1000) -> 3220037 | M4: =SUM(M$9:M$1000) -> 4442824.765 | N4: =SUM(N$9:N$1000) -> 2606166.866 | O4: =SUM(O$9:O$1000) -> 996622 | P4: =SUM(P$9:P$1000) -> 479531.5108
A6: Structure administrative du pays | D6: Population | H6: Endémicité | M6: Population nécessitant la CP | Q6: Nombre de tournées de traitement prévues pour l'année | U6: Mise en oeuvre de la chimioprévention
A7: Pays | B7: Région/Département | C7: District | D7: Total | E7: EAPréS | F7: EAS | G7: Adultes | H7: FL | I7: Oncho | J7: STH | K7: SCH | L7: Loa | M7: FL | N7: Oncho | O7: STH | P7: SCH | Q7: FL | R7: Oncho | S7: STH | T7: SCH | U7: TOURNEE 1 | V7: TOURNEE 2 | W7: IU_ID | X7: IU_NAME | Z7: Anciens districts
A9: =IF(INTRO!$E$34<>0,INTRO!$E$34,"") -> République Centrafricaine | B9: RS N° 1 | C9: BEGOUA | D9: 167960.0578 | E9: =IF(INTRO!$E$48="","",ROUND($D9*INTRO!$E$48,0)) -> 23195 | F9: =IF(INTRO!$E$49="","",ROUND($D9*INTRO!$E$49,0)) -> 38127 | G9: =IF(INTRO!$E$50="","",ROUND($D9*INTRO!$E$50,0)) -> 100759 | H9: 1 | I9: 4 | J9: 2 | K9: 1 | L9: 1 | M9: =IF(INTRO!$E$38="Endémique", IF($H9>0, IF($H9=4,"Inconnu", IF($H9=99,"Interrompu", $D9)), 0),"Non requis") -> 167960.0578 | N9: =IF(INTRO!$E$40="Endémique", IF($I9>0, IF($I9=4,"Inconnu",IF($I9=99,"Interrompu", $D9)), 0),"Non requis") -> Inconnu | O9: =IF(INTRO!$E$42="Endémique", IF(AND($J9>1,$J9<5), IF($J9=4, "Inconnu", E9+F9), 0),"Non requis") -> 61322 | P9: 38126.93312 | Q9: 1 | R9: 0 | S9: 1 | T9: 1 | U9: MDA4 (ALB/2*ALB) | V9: T2 (PZQ) | W9: 9661 | X9: BEGUA | Z9: Ombella M'Poko
A10: =IF(INTRO!$E$34<>0,INTRO!$E$34,"") -> République Centrafricaine | B10: RS N° 1 | C10: BIMBO | D10: 173405.3799 | E10: =IF(INTRO!$E$48="","",ROUND($D10*INTRO!$E$48,0)) -> 23947 | F10: =IF(INTRO!$E$49="","",ROUND($D10*INTRO!$E$49,0)) -> 39363 | G10: =IF(INTRO!$E$50="","",ROUND($D10*INTRO!$E$50,0)) -> 104026 | H10: 1 | I10: 4 | J10: 2 | K10: 1 | L10: 1 | M10: =IF(INTRO!$E$38="Endémique", IF($H10>0, IF($H10=4,"Inconnu", IF($H10=99,"Interrompu", $D10)), 0),"Non requis") -> 173405.3799 | N10: =IF(INTRO!$E$40="Endémique", IF($I10>0, IF($I10=4,"Inconnu",IF($I10=99,"Interrompu", $D10)), 0),"Non requis") -> Inconnu | O10: =IF(INTRO!$E$42="Endémique", IF(AND($J10>1,$J10<5), IF($J10=4, "Inconnu", E10+F10), 0),"Non requis") -> 63310 | P10: 39363.02124 | Q10: 1 | R10: 0 | S10: 1 | T10: 1 | U10: MDA4 (ALB/2*ALB) | V10: T2 (PZQ) | W10: 9662 | X10: BIMBO | Z10: Ombella M'Poko
A11: =IF(INTRO!$E$34<>0,INTRO!$E$34,"") -> République Centrafricaine | B11: RS N° 1 | C11: BOSSEMBELE | D11: 142088.0307 | E11: =IF(INTRO!$E$48="","",ROUND($D11*INTRO!$E$48,0)) -> 19622 | F11: =IF(INTRO!$E$49="","",ROUND($D11*INTRO!$E$49,0)) -> 32254 | G11: =IF(INTRO!$E$50="","",ROUND($D11*INTRO!$E$50,0)) -> 85239 | H11: 1 | I11: 4 | J11: 2 | K11: 1 | L11: 1 | M11: =IF(INTRO!$E$38="Endémique", IF($H11>0, IF($H11=4,"Inconnu", IF($H11=99,"Interrompu", $D11)), 0),"Non requis") -> 142088.0307 | N11: =IF(INTRO!$E$40="Endémique", IF($I11>0, IF($I11=4,"Inconnu",IF($I11=99,"Interrompu", $D11)), 0),"Non requis") -> Inconnu | O11: =IF(INTRO!$E$42="Endémique", IF(AND($J11>1,$J11<5), IF($J11=4, "Inconnu", E11+F11), 0),"Non requis") -> 51876 | P11: 32253.98298 | Q11: 1 | R11: 0 | S11: 1 | T11: 1 | U11: MDA4 (ALB/2*ALB) | V11: T2 (PZQ) | W11: 9664 | X11: BOSSEMBELE | Z11: Ombella M'Poko
A12: =IF(INTRO!$E$34<>0,INTRO!$E$34,"") -> République Centrafricaine | B12: RS N° 1 | C12: BODA | D12: 118255.1251 | E12: =IF(INTRO!$E$48="","",ROUND($D12*INTRO!$E$48,0)) -> 16331 | F12: =IF(INTRO!$E$49="","",ROUND($D12*INTRO!$E$49,0)) -> 26844 | G12: =IF(INTRO!$E$50="","",ROUND($D12*INTRO!$E$50,0)) -> 70941 | H12: 1 | I12: 4 | J12: 2 | K12: 1 | L12: 1 | M12: =IF(INTRO!$E$38="Endémique", IF($H12>0, IF($H12=4,"Inconnu", IF($H12=99,"Interrompu", $D12)), 0),"Non requis") -> 118255.1251 | N12: =IF(INTRO!$E$40="Endémique", IF($I12>0, IF($I12=4,"Inconnu",IF($I12=99,"Interrompu", $D12)), 0),"Non requis") -> Inconnu | O12: =IF(INTRO!$E$42="Endémique", IF(AND($J12>1,$J12<5), IF($J12=4, "Inconnu", E12+F12), 0),"Non requis") -> 43175 | P12: 26843.91339 | Q12: 1 | R12: 0 | S12: 1 | T12: 1 | U12: MDA4 (ALB/2*ALB) | V12: T2 (PZQ) | W12: 9663 | X12: BODA | Z12: Lobaye
A13: =IF(INTRO!$E$34<>0,INTRO!$E$34,"") -> République Centrafricaine | B13: RS N° 1 | C13: MBAIKI | D13: 216324.2749 | E13: =IF(INTRO!$E$48="","",ROUND($D13*INTRO!$E$48,0)) -> 29874 | F13: =IF(INTRO!$E$49="","",ROUND($D13*INTRO!$E$49,0)) -> 49106 | G13: =IF(INTRO!$E$50="","",ROUND($D13*INTRO!$E$50,0)) -> 129773 | H13: 1 | I13: 4 | J13: 3 | K13: 1 | L13: 1 | M13: =IF(INTRO!$E$38="Endémique", IF($H13>0, IF($H13=4,"Inconnu", IF($H13=99,"Interrompu", $D13)), 0),"Non requis") -> 216324.2749 | N13: =IF(INTRO!$E$40="Endémique", IF($I13>0, IF($I13=4,"Inconnu",IF($I13=99,"Interrompu", $D13)), 0),"Non requis") -> Inconnu | O13: =IF(INTRO!$E$42="Endémique", IF(AND($J13>1,$J13<5), IF($J13=4, "Inconnu", E13+F13), 0),"Non requis") -> 78980 | P13: 49105.6104 | Q13: 1 | R13: 0 | S13: 1 | T13: 1 | U13: MDA4 (ALB/2*ALB) | V13: T2 (PZQ) | W13: 9665 | X13: MBAIKI | Z13: Lobaye
A14: =IF(INTRO!$E$34<>0,INTRO!$E$34,"") -> République Centrafricaine | B14: RS N° 2 | C14: BERBERATI | D14: 185274.1046 | E14: =IF(INTRO!$E$48="","",ROUND($D14*INTRO!$E$48,0)) -> 25586 | F14: =IF(INTRO!$E$49="","",ROUND($D14*INTRO!$E$49,0)) -> 42057 | G14: =IF(INTRO!$E$50="","",ROUND($D14*INTRO!$E$50,0)) -> 111146 | H14: 1 | I14: 4 | J14: 2 | K14: 0 | L14: 1 | M14: =IF(INTRO!$E$38="Endémique", IF($H14>0, IF($H14=4,"Inconnu", IF($H14=99,"Interrompu", $D14)), 0),"Non requis") -> 185274.1046 | N14: =IF(INTRO!$E$40="Endémique", IF($I14>0, IF($I14=4,"Inconnu",IF($I14=99,"Interrompu", $D14)), 0),"Non requis") -> Inconnu | O14: =IF(INTRO!$E$42="Endémique", IF(AND($J14>1,$J14<5), IF($J14=4, "Inconnu", E14+F14), 0),"Non requis") -> 67643 | P14: 0 | Q14: 1 | R14: 0 | S14: 1 | T14: 0 | U14: MDA4 (ALB/2*ALB) | W14: 9667 | X14: BERBERATI | Z14: Mambéré-Kadéï
A15: =IF(INTRO!$E$34<>0,INTRO!$E$34,"") -> République Centrafricaine | B15: RS N° 2 | C15: CARNOT-GADZI | D15: 199003.6868 | E15: =IF(INTRO!$E$48="","",ROUND($D15*INTRO!$E$48,0)) -> 27482 | F15: =IF(INTRO!$E$49="","",ROUND($D15*INTRO!$E$49,0)) -> 45174 | G15: =IF(INTRO!$E$50="","",ROUND($D15*INTRO!$E$50,0)) -> 119382 | H15: 1 | I15: 4 | J15: 3 | K15: 1 | L15: 1 | M15: =IF(INTRO!$E$38="Endémique", IF($H15>0, IF($H15=4,"Inconnu", IF($H15=99,"Interrompu", $D15)), 0),"Non requis") -> 199003.6868 | N15: =IF(INTRO!$E$40="Endémique", IF($I15>0, IF($I15=4,"Inconnu",IF($I15=99,"Interrompu", $D15)), 0),"Non requis") -> Inconnu | O15: =IF(INTRO!$E$42="Endémique", IF(AND($J15>1,$J15<5), IF($J15=4, "Inconnu", E15+F15), 0),"Non requis") -> 72656 | P15: 45173.8369 | Q15: 1 | R15: 0 | S15: 1 | T15: 1 | U15: MDA4 (ALB/2*ALB) | V15: T2 (PZQ) | W15: 9669 | X15: CARNOT-GADZI | Z15: Mambéré-Kadéï
A16: =IF(INTRO!$E$34<>0,INTRO!$E$34,"") -> République Centrafricaine | B16: RS N° 2 | C16: GAMBOULA | D16: 110112.7645 | E16: =IF(INTRO!$E$48="","",ROUND($D16*INTRO!$E$48,0)) -> 15207 | F16: =IF(INTRO!$E$49="","",ROUND($D16*INTRO!$E$49,0)) -> 24996 | G16: =IF(INTRO!$E$50="","",ROUND($D16*INTRO!$E$50,0)) -> 66057 | H16: 1 | I16: 4 | J16: 3 | K16: 0 | L16: 1 | M16: =IF(INTRO!$E$38="Endémique", IF($H16>0, IF($H16=4,"Inconnu", IF($H16=99,"Interrompu", $D16)), 0),"Non requis") -> 110112.7645 | N16: =IF(INTRO!$E$40="Endémique", IF($I16>0, IF($I16=4,"Inconnu",IF($I16=99,"Interrompu", $D16)), 0),"Non requis") -> Inconnu | O16: =IF(INTRO!$E$42="Endémique", IF(AND($J16>1,$J16<5), IF($J16=4, "Inconnu", E16+F16), 0),"Non requis") -> 40203 | P16: 0 | Q16: 1 | R16: 0 | S16: 1 | T16: 0 | U16: MDA4 (ALB/2*ALB) | W16: 9670 | X16: GAMBOULA | Z16: Mambéré-Kadéï
A17: =IF(INTRO!$E$34<>0,INTRO!$E$34,"") -> République Centrafricaine | B17: RS N° 2 | C17: BABOUA-ABBA | D17: 102588 | E17: =IF(INTRO!$E$48="","",ROUND($D17*INTRO!$E$48,0)) -> 14167 | F17: =IF(INTRO!$E$49="","",ROUND($D17*INTRO!$E$49,0)) -> 23287 | G17: =IF(INTRO!$E$50="","",ROUND($D17*INTRO!$E$50,0)) -> 61543 | H17: 1 | I17: 4 | J17: 2 | K17: 2 | L17: 1 | M17: =IF(INTRO!$E$38="Endémique", IF($H17>0, IF($H17=4,"Inconnu", IF($H17=99,"Interrompu", $D17)), 0),"Non requis") -> 102588 | N17: =IF(INTRO!$E$40="Endémique", IF($I17>0, IF($I17=4,"Inconnu",IF($I17=99,"Interrompu", $D17)), 0),"Non requis") -> Inconnu | O17: =IF(INTRO!$E$42="Endémique", IF(AND($J17>1,$J17<5), IF($J17=4, "Inconnu", E17+F17), 0),"Non requis") -> 37454 | P17: 0 | Q17: 0 | R17: 0 | S17: 0 | T17: 0 | W17: 9666 | X17: BABOUA-ABBA | Z17: Nana-Mambéré
A18: =IF(INTRO!$E$34<>0,INTRO!$E$34,"") -> République Centrafricaine | B18: RS N° 2 | C18: BOUAR-BAORO | D18: 213891 | E18: =IF(INTRO!$E$48="","",ROUND($D18*INTRO!$E$48,0)) -> 29538 | F18: =IF(INTRO!$E$49="","",ROUND($D18*INTRO!$E$49,0)) -> 48553 | G18: =IF(INTRO!$E$50="","",ROUND($D18*INTRO!$E$50,0)) -> 128313 | H18: 1 | I18: 4 | J18: 1 | K18: 2 | L18: 1 | M18: =IF(INTRO!$E$38="Endémique", IF($H18>0, IF($H18=4,"Inconnu", IF($H18=99,"Interrompu", $D18)), 0),"Non requis") -> 213891 | N18: =IF(INTRO!$E$40="Endémique", IF($I18>0, IF($I18=4,"Inconnu",IF($I18=99,"Interrompu", $D18)), 0),"Non requis") -> Inconnu | O18: =IF(INTRO!$E$42="Endémique", IF(AND($J18>1,$J18<5), IF($J18=4, "Inconnu", E18+F18), 0),"Non requis") -> 0 | P18: 0 | Q18: 0 | R18: 0 | S18: 0 | T18: 0 | W18: 9668 | X18: BOUAR-BAORO | Z18: Nana-Mambéré
A19: =IF(INTRO!$E$34<>0,INTRO!$E$34,"") -> République Centrafricaine | B19: RS N° 2 | C19: SANGHA-MBAERE | D19: 136981.4741 | E19: =IF(INTRO!$E$48="","",ROUND($D19*INTRO!$E$48,0)) -> 18917 | F19: =IF(INTRO!$E$49="","",ROUND($D19*INTRO!$E$49,0)) -> 31095 | G19: =IF(INTRO!$E$50="","",ROUND($D19*INTRO!$E$50,0)) -> 82175 | H19: 1 | I19: 4 | J19: 2 | K19: 0 | L19: 1 | M19: =IF(INTRO!$E$38="Endémique", IF($H19>0, IF($H19=4,"Inconnu", IF($H19=99,"Interrompu", $D19)), 0),"Non requis") -> 136981.4741 | N19: =IF(INTRO!$E$40="Endémique", IF($I19>0, IF($I19=4,"Inconnu",IF($I19=99,"Interrompu", $D19)), 0),"Non requis") -> Inconnu | O19: =IF(INTRO!$E$42="Endémique", IF(AND($J19>1,$J19<5), IF($J19=4, "Inconnu", E19+F19), 0),"Non requis") -> 50012 | P19: 0 | Q19: 1 | R19: 0 | S19: 1 | T19: 0 | U19: MDA4 (ALB/2*ALB) | W19: 9671 | X19: SANGHA-MBAERE | Z19: Sangha-Mbaéré
A20: =IF(INTRO!$E$34<>0,INTRO!$E$34,"") -> République Centrafricaine | B20: RS N° 3 | C20: BATANGAFO | D20: 139738.1471 | E20: =IF(INTRO!$E$48="","",ROUND($D20*INTRO!$E$48,0)) -> 19298 | F20: =IF(INTRO!$E$49="","",ROUND($D20*INTRO!$E$49,0)) -> 31721 | G20: =IF(INTRO!$E$50="","",ROUND($D20*INTRO!$E$50,0)) -> 83829 | H20: 1 | I20: 1 | J20: 1 | K20: 4 | L20: 1 | M20: =IF(INTRO!$E$38="Endémique", IF($H20>0, IF($H20=4,"Inconnu", IF($H20=99,"Interrompu", $D20)), 0),"Non requis") -> 139738.1471 | N20: =IF(INTRO!$E$40="Endémique", IF($I20>0, IF($I20=4,"Inconnu",IF($I20=99,"Interrompu", $D20)), 0),"Non requis") -> 139738.1471 | O20: =IF(INTRO!$E$42="Endémique", IF(AND($J20>1,$J20<5), IF($J20=4, "Inconnu", E20+F20), 0),"Non requis") -> 0 | P20: 0 | Q20: 0 | R20: 1 | S20: 0 | T20: 0 | U20: MDA3 (IVM) | W20: 9672 | X20: BATANGAFO | Z20: Ouham
A21: =IF(INTRO!$E$34<>0,INTRO!$E$34,"") -> République Centrafricaine | B21: RS N° 3 | C21: BOUCA | D21: 75852.60196 | E21: =IF(INTRO!$E$48="","",ROUND($D21*INTRO!$E$48,0)) -> 10475 | F21: =IF(INTRO!$E$49="","",ROUND($D21*INTRO!$E$49,0)) -> 17219 | G21: =IF(INTRO!$E$50="","",ROUND($D21*INTRO!$E$50,0)) -> 45504 | H21: 1 | I21: 1 | J21: 1 | K21: 3 | L21: 1 | M21: =IF(INTRO!$E$38="Endémique", IF($H21>0, IF($H21=4,"Inconnu", IF($H21=99,"Interrompu", $D21)), 0),"Non requis") -> 75852.60196 | N21: =IF(INTRO!$E$40="Endémique", IF($I21>0, IF($I21=4,"Inconnu",IF($I21=99,"Interrompu", $D21)), 0),"Non requis") -> 75852.60196 | O21: =IF(INTRO!$E$42="Endémique", IF(AND($J21>1,$J21<5), IF($J21=4, "Inconnu", E21+F21), 0),"Non requis") -> 0 | P21: 0 | Q21: 0 | R21: 1 | S21: 0 | T21: 0 | U21: MDA3 (IVM) | W21: 9675 | X21: BOUCA | Z21: Ouham
A22: =IF(INTRO!$E$34<>0,INTRO!$E$34,"") -> République Centrafricaine | B22: RS N° 3 | C22: BOSSANGOA | D22: 169950.0611 | E22: =IF(INTRO!$E$48="","",ROUND($D22*INTRO!$E$48,0)) -> 23470 | F22: =IF(INTRO!$E$49="","",ROUND($D22*INTRO!$E$49,0)) -> 38579 | G22: =IF(INTRO!$E$50="","",ROUND($D22*INTRO!$E$50,0)) -> 101953 | H22: 1 | I22: 1 | J22: 1 | K22: 3 | L22: 1 | M22: =IF(INTRO!$E$38="Endémique", IF($H22>0, IF($H22=4,"Inconnu", IF($H22=99,"Interrompu", $D22)), 0),"Non requis") -> 169950.0611 | N22: =IF(INTRO!$E$40="Endémique", IF($I22>0, IF($I22=4,"Inconnu",IF($I22=99,"Interrompu", $D22)), 0),"Non requis") -> 169950.0611 | O22: =IF(INTRO!$E$42="Endémique", IF(AND($J22>1,$J22<5), IF($J22=4, "Inconnu", E22+F22), 0),"Non requis") -> 0 | P22: 0 | Q22: 0 | R22: 1 | S22: 0 | T22: 0 | U22: MDA3 (IVM) | W22: 9674 | X22: BOSSANGOA | Z22: Ouham
A23: =IF(INTRO!$E$34<>0,INTRO!$E$34,"") -> République Centrafricaine | B23: RS N° 3 | C23: NANGA-BOGUILA | D23: 114847.0009 | E23: =IF(INTRO!$E$48="","",ROUND($D23*INTRO!$E$48,0)) -> 15860 | F23: =IF(INTRO!$E$49="","",ROUND($D23*INTRO!$E$49,0)) -> 26070 | G23: =IF(INTRO!$E$50="","",ROUND($D23*INTRO!$E$50,0)) -> 68897 | H23: 1 | I23: 1 | J23: 0 | K23: 3 | L23: 1 | M23: =IF(INTRO!$E$38="Endémique", IF($H23>0, IF($H23=4,"Inconnu", IF($H23=99,"Interrompu", $D23)), 0),"Non requis") -> 114847.0009 | N23: =IF(INTRO!$E$40="Endémique", IF($I23>0, IF($I23=4,"Inconnu",IF($I23=99,"Interrompu", $D23)), 0),"Non requis") -> 114847.0009 | O23: =IF(INTRO!$E$42="Endémique", IF(AND($J23>1,$J23<5), IF($J23=4, "Inconnu", E23+F23), 0),"Non requis") -> 0 | P23: 0 | Q23: 0 | R23: 1 | S23: 0 | T23: 0 | U23: MDA3 (IVM) | W23: 9677 | X23: NANGA-BOGUILA | Z23: Ouham
A24: =IF(INTRO!$E$34<>0,INTRO!$E$34,"") -> République Centrafricaine | B24: RS N° 3 | C24: BOCARANGA-KOUI | D24: 148990.8228 | E24: =IF(INTRO!$E$48="","",ROUND($D24*INTRO!$E$48,0)) -> 20576 | F24: =IF(INTRO!$E$49="","",ROUND($D24*INTRO!$E$49,0)) -> 33821 | G24: =IF(INTRO!$E$50="","",ROUND($D24*INTRO!$E$50,0)) -> 89380 | H24: 1 | I24: 1 | J24: 1 | K24: 2 | L24: 1 | M24: =IF(INTRO!$E$38="Endémique", IF($H24>0, IF($H24=4,"Inconnu", IF($H24=99,"Interrompu", $D24)), 0),"Non requis") -> 148990.8228 | N24: =IF(INTRO!$E$40="Endémique", IF($I24>0, IF($I24=4,"Inconnu",IF($I24=99,"Interrompu", $D24)), 0),"Non requis") -> 148990.8228 | O24: =IF(INTRO!$E$42="Endémique", IF(AND($J24>1,$J24<5), IF($J24=4, "Inconnu", E24+F24), 0),"Non requis") -> 0 | P24: 0 | Q24: 0 | R24: 1 | S24: 0 | T24: 0 | U24: MDA3 (IVM) | W24: 9673 | X24: BOCARANGA-KOUI | Z24: Ouham Pendé
A25: =IF(INTRO!$E$34<>0,INTRO!$E$34,"") -> République Centrafricaine | B25: RS N° 3 | C25: BOZOUM-BOSSEMPTELE | D25: 97735.57789 | E25: =IF(INTRO!$E$48="","",ROUND($D25*INTRO!$E$48,0)) -> 13497 | F25: =IF(INTRO!$E$49="","",ROUND($D25*INTRO!$E$49,0)) -> 22186 | G25: =IF(INTRO!$E$50="","",ROUND($D25*INTRO!$E$50,0)) -> 58632 | H25: 1 | I25: 1 | J25: 1 | K25: 3 | L25: 1 | M25: =IF(INTRO!$E$38="Endémique", IF($H25>0, IF($H25=4,"Inconnu", IF($H25=99,"Interrompu", $D25)), 0),"Non requis") -> 97735.57789 | N25: =IF(INTRO!$E$40="Endémique", IF($I25>0, IF($I25=4,"Inconnu",IF($I25=99,"Interrompu", $D25)), 0),"Non requis") -> 97735.57789 | O25: =IF(INTRO!$E$42="Endémique", IF(AND($J25>1,$J25<5), IF($J25=4, "Inconnu", E25+F25), 0),"Non requis") -> 0 | P25: 0 | Q25: 0 | R25: 1 | S25: 0 | T25: 0 | U25: MDA3 (IVM) | W25: 9676 | X25: BOZOUM-BOSSEMPTELE | Z25: Ouham Pendé
A26: =IF(INTRO!$E$34<>0,INTRO!$E$34,"") -> République Centrafricaine | B26: RS N° 3 | C26: NGAOUNDAYE | D26: 120612.9982 | E26: =IF(INTRO!$E$48="","",ROUND($D26*INTRO!$E$48,0)) -> 16657 | F26: =IF(INTRO!$E$49="","",ROUND($D26*INTRO!$E$49,0)) -> 27379 | G26: =IF(INTRO!$E$50="","",ROUND($D26*INTRO!$E$50,0)) -> 72356 | H26: 1 | I26: 1 | J26: 1 | K26: 4 | L26: 1 | M26: =IF(INTRO!$E$38="Endémique", IF($H26>0, IF($H26=4,"Inconnu", IF($H26=99,"Interrompu", $D26)), 0),"Non requis") -> 120612.9982 | N26: =IF(INTRO!$E$40="Endémique", IF($I26>0, IF($I26=4,"Inconnu",IF($I26=99,"Interrompu", $D26)), 0),"Non requis") -> 120612.9982 | O26: =IF(INTRO!$E$42="Endémique", IF(AND($J26>1,$J26<5), IF($J26=4, "Inconnu", E26+F26), 0),"Non requis") -> 0 | P26: 0 | Q26: 0 | R26: 1 | S26: 0 | T26: 0 | U26: MDA3 (IVM) | W26: 9678 | X26: NGAOUNDAYE | Z26: Ouham Pendé
A27: =IF(INTRO!$E$34<>0,INTRO!$E$34,"") -> République Centrafricaine | B27: RS N° 3 | C27: PAOUA | D27: 216107.5438 | E27: =IF(INTRO!$E$48="","",ROUND($D27*INTRO!$E$48,0)) -> 29844 | F27: =IF(INTRO!$E$49="","",ROUND($D27*INTRO!$E$49,0)) -> 49056 | G27: =IF(INTRO!$E$50="","",ROUND($D27*INTRO!$E$50,0)) -> 129643 | H27: 1 | I27: 1 | J27: 1 | K27: 2 | L27: 1 | M27: =IF(INTRO!$E$38="Endémique", IF($H27>0, IF($H27=4,"Inconnu", IF($H27=99,"Interrompu", $D27)), 0),"Non requis") -> 216107.5438 | N27: =IF(INTRO!$E$40="Endémique", IF($I27>0, IF($I27=4,"Inconnu",IF($I27=99,"Interrompu", $D27)), 0),"Non requis") -> 216107.5438 | O27: =IF(INTRO!$E$42="Endémique", IF(AND($J27>1,$J27<5), IF($J27=4, "Inconnu", E27+F27), 0),"Non requis") -> 0 | P27: 0 | Q27: 0 | R27: 1 | S27: 0 | T27: 0 | U27: MDA3 (IVM) | W27: 9679 | X27: PAOUA | Z27: Ouham Pendé
A28: =IF(INTRO!$E$34<>0,INTRO!$E$34,"") -> République Centrafricaine | B28: RS N° 4 | C28: KEMO | D28: 160489.7018 | E28: =IF(INTRO!$E$48="","",ROUND($D28*INTRO!$E$48,0)) -> 22164 | F28: =IF(INTRO!$E$49="","",ROUND($D28*INTRO!$E$49,0)) -> 36431 | G28: =IF(INTRO!$E$50="","",ROUND($D28*INTRO!$E$50,0)) -> 96278 | H28: 1 | I28: 1 | J28: 2 | K28: 2 | L28: 0 | M28: =IF(INTRO!$E$38="Endémique", IF($H28>0, IF($H28=4,"Inconnu", IF($H28=99,"Interrompu", $D28)), 0),"Non requis") -> 160489.7018 | N28: =IF(INTRO!$E$40="Endémique", IF($I28>0, IF($I28=4,"Inconnu",IF($I28=99,"Interrompu", $D28)), 0),"Non requis") -> 160489.7018 | O28: =IF(INTRO!$E$42="Endémique", IF(AND($J28>1,$J28<5), IF($J28=4, "Inconnu", E28+F28), 0),"Non requis") -> 58595 | P28: 36431.16231 | Q28: 1 | R28: 1 | S28: 1 | T28: 1 | U28: MDA1 (IVM+ALB) | V28: T2 (PZQ) | W28: 9681 | X28: KEMO | Z28: Kémo
A29: =IF(INTRO!$E$34<>0,INTRO!$E$34,"") -> République Centrafricaine | B29: RS N° 4 | C29: NANA-GRIBIZI | D29: 159670.6292 | E29: =IF(INTRO!$E$48="","",ROUND($D29*INTRO!$E$48,0)) -> 22051 | F29: =IF(INTRO!$E$49="","",ROUND($D29*INTRO!$E$49,0)) -> 36245 | G29: =IF(INTRO!$E$50="","",ROUND($D29*INTRO!$E$50,0)) -> 95786 | H29: 1 | I29: 1 | J29: 2 | K29: 3 | L29: 0 | M29: =IF(INTRO!$E$38="Endémique", IF($H29>0, IF($H29=4,"Inconnu", IF($H29=99,"Interrompu", $D29)), 0),"Non requis") -> 159670.6292 | N29: =IF(INTRO!$E$40="Endémique", IF($I29>0, IF($I29=4,"Inconnu",IF($I29=99,"Interrompu", $D29)), 0),"Non requis") -> 159670.6292 | O29: =IF(INTRO!$E$42="Endémique", IF(AND($J29>1,$J29<5), IF($J29=4, "Inconnu", E29+F29), 0),"Non requis") -> 58296 | P29: 0 | Q29: 0 | R29: 1 | S29: 0 | T29: 0 | U29: MDA3 (IVM) | W29: 9683 | X29: NANA-GREBIZI | Z29: Nana-Gribizi
A30: =IF(INTRO!$E$34<>0,INTRO!$E$34,"") -> République Centrafricaine | B30: RS N° 4 | C30: BAMBARI | D30: 226269.8526 | E30: =IF(INTRO!$E$48="","",ROUND($D30*INTRO!$E$48,0)) -> 31248 | F30: =IF(INTRO!$E$49="","",ROUND($D30*INTRO!$E$49,0)) -> 51363 | G30: =IF(INTRO!$E$50="","",ROUND($D30*INTRO!$E$50,0)) -> 135739 | H30: 1 | I30: 1 | J30: 2 | K30: 2 | L30: 1 | M30: =IF(INTRO!$E$38="Endémique", IF($H30>0, IF($H30=4,"Inconnu", IF($H30=99,"Interrompu", $D30)), 0),"Non requis") -> 226269.8526 | N30: =IF(INTRO!$E$40="Endémique", IF($I30>0, IF($I30=4,"Inconnu",IF($I30=99,"Interrompu", $D30)), 0),"Non requis") -> 226269.8526 | O30: =IF(INTRO!$E$42="Endémique", IF(AND($J30>1,$J30<5), IF($J30=4, "Inconnu", E30+F30), 0),"Non requis") -> 82611 | P30: 51363.25654 | Q30: 1 | R30: 1 | S30: 1 | T30: 1 | U30: MDA1 (IVM+ALB) | V30: T2 (PZQ) | W30: 9680 | X30: BAMBARI | Z30: Ouaka
A31: =IF(INTRO!$E$34<>0,INTRO!$E$34,"") -> République Centrafricaine | B31: RS N° 4 | C31: KOUANGO-GRIMARI | D31: 148742.8945 | E31: =IF(INTRO!$E$48="","",ROUND($D31*INTRO!$E$48,0)) -> 20541 | F31: =IF(INTRO!$E$49="","",ROUND($D31*INTRO!$E$49,0)) -> 33765 | G31: =IF(INTRO!$E$50="","",ROUND($D31*INTRO!$E$50,0)) -> 89231 | H31: 1 | I31: 1 | J31: 2 | K31: 1 | L31: 1 | M31: =IF(INTRO!$E$38="Endémique", IF($H31>0, IF($H31=4,"Inconnu", IF($H31=99,"Interrompu", $D31)), 0),"Non requis") -> 148742.8945 | N31: =IF(INTRO!$E$40="Endémique", IF($I31>0, IF($I31=4,"Inconnu",IF($I31=99,"Interrompu", $D31)), 0),"Non requis") -> 148742.8945 | O31: =IF(INTRO!$E$42="Endémique", IF(AND($J31>1,$J31<5), IF($J31=4, "Inconnu", E31+F31), 0),"Non requis") -> 54306 | P31: 33764.63705 | Q31: 1 | R31: 1 | S31: 1 | T31: 1 | U31: MDA1 (IVM+ALB) | V31: T2 (PZQ) | W31: 9682 | X31: KOUANGO-GRIMARI | Z31: Ouaka
A32: =IF(INTRO!$E$34<>0,INTRO!$E$34,"") -> République Centrafricaine | B32: RS N° 5 | C32: BAMINGUI-BANGORAN | D32: 58586.16108 | E32: =IF(INTRO!$E$48="","",ROUND($D32*INTRO!$E$48,0)) -> 8091 | F32: =IF(INTRO!$E$49="","",ROUND($D32*INTRO!$E$49,0)) -> 13299 | G32: =IF(INTRO!$E$50="","",ROUND($D32*INTRO!$E$50,0)) -> 35146 | H32: 1 | I32: 1 | J32: 2 | K32: 3 | L32: 0 | M32: =IF(INTRO!$E$38="Endémique", IF($H32>0, IF($H32=4,"Inconnu", IF($H32=99,"Interrompu", $D32)), 0),"Non requis") -> 58586.16108 | N32: =IF(INTRO!$E$40="Endémique", IF($I32>0, IF($I32=4,"Inconnu",IF($I32=99,"Interrompu", $D32)), 0),"Non requis") -> 58586.16108 | O32: =IF(INTRO!$E$42="Endémique", IF(AND($J32>1,$J32<5), IF($J32=4, "Inconnu", E32+F32), 0),"Non requis") -> 21390 | P32: 0 | Q32: 0 | R32: 1 | S32: 0 | T32: 0 | U32: MDA3 (IVM) | W32: 9684 | X32: BAMINGUI-BANGORAN | Z32: Bamingui-Bangoran
A33: =IF(INTRO!$E$34<>0,INTRO!$E$34,"") -> République Centrafricaine | B33: RS N° 5 | C33: HAUTE-KOTTO | D33: 122324 | E33: =IF(INTRO!$E$48="","",ROUND($D33*INTRO!$E$48,0)) -> 16893 | F33: =IF(INTRO!$E$49="","",ROUND($D33*INTRO!$E$49,0)) -> 27768 | G33: =IF(INTRO!$E$50="","",ROUND($D33*INTRO!$E$50,0)) -> 73382 | H33: 1 | I33: 1 | J33: 1 | K33: 3 | L33: 0 | M33: =IF(INTRO!$E$38="Endémique", IF($H33>0, IF($H33=4,"Inconnu", IF($H33=99,"Interrompu", $D33)), 0),"Non requis") -> 122324 | N33: =IF(INTRO!$E$40="Endémique", IF($I33>0, IF($I33=4,"Inconnu",IF($I33=99,"Interrompu", $D33)), 0),"Non requis") -> 122324 | O33: =IF(INTRO!$E$42="Endémique", IF(AND($J33>1,$J33<5), IF($J33=4, "Inconnu", E33+F33), 0),"Non requis") -> 0 | P33: 0 | Q33: 0 | R33: 0 | S33: 0 | T33: 0 | W33: 9685 | X33: HAUTE-KOTTO | Z33: Haute-Kotto
A34: =IF(INTRO!$E$34<>0,INTRO!$E$34,"") -> République Centrafricaine | B34: RS N° 5 | C34: VAKAGA | D34: 70774 | E34: =IF(INTRO!$E$48="","",ROUND($D34*INTRO!$E$48,0)) -> 9774 | F34: =IF(INTRO!$E$49="","",ROUND($D34*INTRO!$E$49,0)) -> 16066 | G34: =IF(INTRO!$E$50="","",ROUND($D34*INTRO!$E$50,0)) -> 42457 | H34: 1 | I34: 4 | J34: 1 | K34: 3 | L34: 0 | M34: =IF(INTRO!$E$38="Endémique", IF($H34>0, IF($H34=4,"Inconnu", IF($H34=99,"Interrompu", $D34)), 0),"Non requis") -> 70774 | N34: =IF(INTRO!$E$40="Endémique", IF($I34>0, IF($I34=4,"Inconnu",IF($I34=99,"Interrompu", $D34)), 0),"Non requis") -> Inconnu | O34: =IF(INTRO!$E$42="Endémique", IF(AND($J34>1,$J34<5), IF($J34=4, "Inconnu", E34+F34), 0),"Non requis") -> 0 | P34: 0 | Q34: 0 | R34: 0 | S34: 0 | T34: 0 | W34: 9686 | X34: VAKAGA | Z34: Vakaga
A35: =IF(INTRO!$E$34<>0,INTRO!$E$34,"") -> République Centrafricaine | B35: RS N° 6 | C35: ALINDAO MINGALA | D35: 124563.6273 | E35: =IF(INTRO!$E$48="","",ROUND($D35*INTRO!$E$48,0)) -> 17202 | F35: =IF(INTRO!$E$49="","",ROUND($D35*INTRO!$E$49,0)) -> 28276 | G35: =IF(INTRO!$E$50="","",ROUND($D35*INTRO!$E$50,0)) -> 74726 | H35: 1 | I35: 1 | J35: 2 | K35: 1 | L35: 0 | M35: =IF(INTRO!$E$38="Endémique", IF($H35>0, IF($H35=4,"Inconnu", IF($H35=99,"Interrompu", $D35)), 0),"Non requis") -> 124563.6273 | N35: =IF(INTRO!$E$40="Endémique", IF($I35>0, IF($I35=4,"Inconnu",IF($I35=99,"Interrompu", $D35)), 0),"Non requis") -> 124563.6273 | O35: =IF(INTRO!$E$42="Endémique", IF(AND($J35>1,$J35<5), IF($J35=4, "Inconnu", E35+F35), 0),"Non requis") -> 45478 | P35: 28275.94339 | Q35: 1 | R35: 0 | S35: 1 | T35: 1 | U35: MDA1 (IVM+ALB) | V35: T2 (PZQ) | W35: 9687 | X35: ALINDAO MINGALA | Z35: Basse-Kotto
A36: =IF(INTRO!$E$34<>0,INTRO!$E$34,"") -> République Centrafricaine | B36: RS N° 6 | C36: KEMBE SATEMA | D36: 81876.05709 | E36: =IF(INTRO!$E$48="","",ROUND($D36*INTRO!$E$48,0)) -> 11307 | F36: =IF(INTRO!$E$49="","",ROUND($D36*INTRO!$E$49,0)) -> 18586 | G36: =IF(INTRO!$E$50="","",ROUND($D36*INTRO!$E$50,0)) -> 49117 | H36: 1 | I36: 1 | J36: 3 | K36: 1 | L36: 0 | M36: =IF(INTRO!$E$38="Endémique", IF($H36>0, IF($H36=4,"Inconnu", IF($H36=99,"Interrompu", $D36)), 0),"Non requis") -> 81876.05709 | N36: =IF(INTRO!$E$40="Endémique", IF($I36>0, IF($I36=4,"Inconnu",IF($I36=99,"Interrompu", $D36)), 0),"Non requis") -> 81876.05709 | O36: =IF(INTRO!$E$42="Endémique", IF(AND($J36>1,$J36<5), IF($J36=4, "Inconnu", E36+F36), 0),"Non requis") -> 29893 | P36: 18585.86496 | Q36: 1 | R36: 1 | S36: 1 | T36: 1 | U36: MDA1 (IVM+ALB) | V36: T2 (PZQ) | W36: 9690 | X36: KEMBE SATEMA | Z36: Basse-Kotto
A37: =IF(INTRO!$E$34<>0,INTRO!$E$34,"") -> République Centrafricaine | B37: RS N° 6 | C37: MOBAYE-ZANGBA | D37: 131222.3692 | E37: =IF(INTRO!$E$48="","",ROUND($D37*INTRO!$E$48,0)) -> 18122 | F37: =IF(INTRO!$E$49="","",ROUND($D37*INTRO!$E$49,0)) -> 29787 | G37: =IF(INTRO!$E$50="","",ROUND($D37*INTRO!$E$50,0)) -> 78720 | H37: 1 | I37: 1 | J37: 2 | K37: 3 | L37: 0 | M37: =IF(INTRO!$E$38="Endémique", IF($H37>0, IF($H37=4,"Inconnu", IF($H37=99,"Interrompu", $D37)), 0),"Non requis") -> 131222.3692 | N37: =IF(INTRO!$E$40="Endémique", IF($I37>0, IF($I37=4,"Inconnu",IF($I37=99,"Interrompu", $D37)), 0),"Non requis") -> 131222.3692 | O37: =IF(INTRO!$E$42="Endémique", IF(AND($J37>1,$J37<5), IF($J37=4, "Inconnu", E37+F37), 0),"Non requis") -> 47909 | P37: 29787.47781 | Q37: 1 | R37: 1 | S37: 1 | T37: 1 | U37: MDA1 (IVM+ALB) | V37: T2 (PZQ) | W37: 9691 | X37: MOBAYE-ZANGBA | Z37: Basse-Kotto
A38: =IF(INTRO!$E$34<>0,INTRO!$E$34,"") -> République Centrafricaine | B38: RS N° 6 | C38: BANGASSOU | D38: 135958.2963 | E38: =IF(INTRO!$E$48="","",ROUND($D38*INTRO!$E$48,0)) -> 18776 | F38: =IF(INTRO!$E$49="","",ROUND($D38*INTRO!$E$49,0)) -> 30863 | G38: =IF(INTRO!$E$50="","",ROUND($D38*INTRO!$E$50,0)) -> 81561 | H38: 1 | I38: 1 | J38: 1 | K38: 1 | L38: 1 | M38: =IF(INTRO!$E$38="Endémique", IF($H38>0, IF($H38=4,"Inconnu", IF($H38=99,"Interrompu", $D38)), 0),"Non requis") -> 135958.2963 | N38: =IF(INTRO!$E$40="Endémique", IF($I38>0, IF($I38=4,"Inconnu",IF($I38=99,"Interrompu", $D38)), 0),"Non requis") -> 135958.2963 | O38: =IF(INTRO!$E$42="Endémique", IF(AND($J38>1,$J38<5), IF($J38=4, "Inconnu", E38+F38), 0),"Non requis") -> 0 | P38: 30862.53325 | Q38: 1 | R38: 1 | S38: 0 | T38: 1 | U38: MDA1 (IVM+ALB) | V38: T2 (PZQ) | W38: 9688 | X38: BANGASSOU | Z38: Mbomou
A39: =IF(INTRO!$E$34<>0,INTRO!$E$34,"") -> République Centrafricaine | B39: RS N° 6 | C39: OUANGO-GAMBO | D39: 86314.26187 | E39: =IF(INTRO!$E$48="","",ROUND($D39*INTRO!$E$48,0)) -> 11920 | F39: =IF(INTRO!$E$49="","",ROUND($D39*INTRO!$E$49,0)) -> 19593 | G39: =IF(INTRO!$E$50="","",ROUND($D39*INTRO!$E$50,0)) -> 51780 | H39: 1 | I39: 1 | J39: 2 | K39: 1 | L39: 1 | M39: =IF(INTRO!$E$38="Endémique", IF($H39>0, IF($H39=4,"Inconnu", IF($H39=99,"Interrompu", $D39)), 0),"Non requis") -> 86314.26187 | N39: =IF(INTRO!$E$40="Endémique", IF($I39>0, IF($I39=4,"Inconnu",IF($I39=99,"Interrompu", $D39)), 0),"Non requis") -> 86314.26187 | O39: =IF(INTRO!$E$42="Endémique", IF(AND($J39>1,$J39<5), IF($J39=4, "Inconnu", E39+F39), 0),"Non requis") -> 31513 | P39: 19593.33744 | Q39: 1 | R39: 1 | S39: 1 | T39: 1 | U39: MDA1 (IVM+ALB) | V39: T2 (PZQ) | W39: 9692 | X39: OUANGO-GAMBO | Z39: Mbomou
A40: =IF(INTRO!$E$34<>0,INTRO!$E$34,"") -> République Centrafricaine | B40: RS N° 6 | C40: HAUT-MBOMOU | D40: 86314.26187 | E40: =IF(INTRO!$E$48="","",ROUND($D40*INTRO!$E$48,0)) -> 11920 | F40: =IF(INTRO!$E$49="","",ROUND($D40*INTRO!$E$49,0)) -> 19593 | G40: =IF(INTRO!$E$50="","",ROUND($D40*INTRO!$E$50,0)) -> 51780 | H40: 1 | I40: 1 | J40: 1 | K40: 2 | L40: 1 | M40: =IF(INTRO!$E$38="Endémique", IF($H40>0, IF($H40=4,"Inconnu", IF($H40=99,"Interrompu", $D40)), 0),"Non requis") -> 86314.26187 | N40: =IF(INTRO!$E$40="Endémique", IF($I40>0, IF($I40=4,"Inconnu",IF($I40=99,"Interrompu", $D40)), 0),"Non requis") -> 86314.26187 | O40: =IF(INTRO!$E$42="Endémique", IF(AND($J40>1,$J40<5), IF($J40=4, "Inconnu", E40+F40), 0),"Non requis") -> 0 | P40: 0 | Q40: 0 | R40: 0 | S40: 0 | T40: 0 | W40: 9689 | X40: HAUT-MBOMOU | Z40: Haut-Mbomou
A41: =IF(INTRO!$E$34<>0,INTRO!$E$34,"") -> République Centrafricaine | B41: RS N° 7 | C41: BANGUI I (lakouanga) | D41: 181590 | E41: =IF(INTRO!$E$48="","",ROUND($D41*INTRO!$E$48,0)) -> 25078 | F41: =IF(INTRO!$E$49="","",ROUND($D41*INTRO!$E$49,0)) -> 41221 | G41: =IF(INTRO!$E$50="","",ROUND($D41*INTRO!$E$50,0)) -> 108936 | H41: 4 | I41: 4 | J41: 4 | K41: 4 | L41: 0 | M41: =IF(INTRO!$E$38="Endémique", IF($H41>0, IF($H41=4,"Inconnu", IF($H41=99,"Interrompu", $D41)), 0),"Non requis") -> Inconnu | N41: =IF(INTRO!$E$40="Endémique", IF($I41>0, IF($I41=4,"Inconnu",IF($I41=99,"Interrompu", $D41)), 0),"Non requis") -> Inconnu | O41: =IF(INTRO!$E$42="Endémique", IF(AND($J41>1,$J41<5), IF($J41=4, "Inconnu", E41+F41), 0),"Non requis") -> Inconnu | P41: 0 | Q41: 0 | R41: 0 | S41: 0 | T41: 0 | W41: 9693 | X41: BANGUI I (lakouanga) | Z41: Bangui
A42: =IF(INTRO!$E$34<>0,INTRO!$E$34,"") -> République Centrafricaine | B42: RS N° 7 | C42: BANGUI II (Castors) | D42: 472150 | E42: =IF(INTRO!$E$48="","",ROUND($D42*INTRO!$E$48,0)) -> 65204 | F42: =IF(INTRO!$E$49="","",ROUND($D42*INTRO!$E$49,0)) -> 107178 | G42: =IF(INTRO!$E$50="","",ROUND($D42*INTRO!$E$50,0)) -> 283243 | H42: 4 | I42: 4 | J42: 4 | K42: 4 | L42: 0 | M42: =IF(INTRO!$E$38="Endémique", IF($H42>0, IF($H42=4,"Inconnu", IF($H42=99,"Interrompu", $D42)), 0),"Non requis") -> Inconnu | N42: =IF(INTRO!$E$40="Endémique", IF($I42>0, IF($I42=4,"Inconnu",IF($I42=99,"Interrompu", $D42)), 0),"Non requis") -> Inconnu | O42: =IF(INTRO!$E$42="Endémique", IF(AND($J42>1,$J42<5), IF($J42=4, "Inconnu", E42+F42), 0),"Non requis") -> Inconnu | P42: 0 | Q42: 0 | R42: 0 | S42: 0 | T42: 0 | W42: 9694 | X42: BANGUI II (Castors) | Z42: Bangui
A43: =IF(INTRO!$E$34<>0,INTRO!$E$34,"") -> République Centrafricaine | B43: RS N° 7 | C43: BANGUI III (Bédé-Combattant) | D43: 271057 | E43: =IF(INTRO!$E$48="","",ROUND($D43*INTRO!$E$48,0)) -> 37433 | F43: =IF(INTRO!$E$49="","",ROUND($D43*INTRO!$E$49,0)) -> 61530 | G43: =IF(INTRO!$E$50="","",ROUND($D43*INTRO!$E$50,0)) -> 162607 | H43: 4 | I43: 4 | J43: 4 | K43: 4 | L43: 0 | M43: =IF(INTRO!$E$38="Endémique", IF($H43>0, IF($H43=4,"Inconnu", IF($H43=99,"Interrompu", $D43)), 0),"Non requis") -> Inconnu | N43: =IF(INTRO!$E$40="Endémique", IF($I43>0, IF($I43=4,"Inconnu",IF($I43=99,"Interrompu", $D43)), 0),"Non requis") -> Inconnu | O43: =IF(INTRO!$E$42="Endémique", IF(AND($J43>1,$J43<5), IF($J43=4, "Inconnu", E43+F43), 0),"Non requis") -> Inconnu | P43: 0 | Q43: 0 | R43: 0 | S43: 0 | T43: 0 | W43: 9695 | X43: BANGUI III (Bédé-Combattant) | Z43: Bangui

Sheet MDA1
A1: MDA 1 - Ivermectine (IVM) et Albendazole (ALB)
A2: Structure administrative, population nécessitant une chimioprévention par groupe d'âge, population traitée par groupe d'âge et couverture
A4: TOTAL | G4: =SUM(G$9:G$1000) -> 242688.0353 | H4: =SUM(H$9:H$1000) -> 627685.4357 | I4: =SUM(I$9:I$1000) -> 870373.471 | K4: =SUM(K$9:K$1000) -> 286887 | L4: =SUM(L$9:L$1000) -> 496097 | M4: =SUM(M$9:M$1000) -> 782984 | O4: =IF(G4<>0, IF(K4/G4*100=0, "-", K4/G4*100), " ") -> 118.2122554 | P4: =IF(H4<>0, IF(L4/H4*100=0, "-", L4/H4*100), " ") -> 79.03592656 | Q4: =IF(I4<>0, IF(M4/I4*100=0, "-", M4/I4*100), " ") -> 89.95954336
A6: Structure administrative du pays | D6: Mise en oeuvre de la CP | E6: Date | F6: Population ciblée pour MDA 1 | J6: Population traitée | N6: Couverture du Programme (%)
A7: Pays | B7: Région/Département | C7: District | F7: EAPréS | G7: EAS | H7: Adultes | I7: Total | J7: EAPréS | K7: EAS | L7: Adultes | M7: Total | N7: EAPréS | O7: EAS | P7: Adultes | Q7: Total
A9: =IF(COUNTRY_INFO!A9=0," ",COUNTRY_INFO!A9) -> République Centrafricaine | B9: =IF(COUNTRY_INFO!B9=0," ",COUNTRY_INFO!B9) -> RS N° 1 | C9: =IF(COUNTRY_INFO!C9=0," ",COUNTRY_INFO!C9) -> BEGOUA | D9: =IF(COUNTRY_INFO!$U$9:$U$1000="MDA1 (IVM+ALB)", COUNTRY_INFO!$U$9:$U$1000, " ") ->  | I9: =SUM(F9:H9) -> 0 | M9: =SUM(J9:L9) -> 0 | O9: =IF(G9<>0, IF(K9/G9*100=0, "-", K9/G9*100), " ") ->  | P9: =IF(H9<>0, IF(L9/H9*100=0, "-", L9/H9*100), " ") -> 
A10: =IF(COUNTRY_INFO!A10=0," ",COUNTRY_INFO!A10) -> République Centrafricaine | B10: =IF(COUNTRY_INFO!B10=0," ",COUNTRY_INFO!B10) -> RS N° 1 | C10: =IF(COUNTRY_INFO!C10=0," ",COUNTRY_INFO!C10) -> BIMBO | D10: =IF(COUNTRY_INFO!$U$9:$U$1000="MDA1 (IVM+ALB)", COUNTRY_INFO!$U$9:$U$1000, " ") ->  | I10: =SUM(F10:H10) -> 0 | M10: =SUM(J10:L10) -> 0 | O10: =IF(G10<>0, IF(K10/G10*100=0, "-", K10/G10*100), " ") ->  | P10: =IF(H10<>0, IF(L10/H10*100=0, "-", L10/H10*100), " ") ->  | Q10: =IF(I10<>0, IF(M10/I10*100=0, "-", M10/I10*100), " ") -> 
A11: =IF(COUNTRY_INFO!A11=0," ",COUNTRY_INFO!A11) -> République Centrafricaine | B11: =IF(COUNTRY_INFO!B11=0," ",COUNTRY_INFO!B11) -> RS N° 1 | C11: =IF(COUNTRY_INFO!C11=0," ",COUNTRY_INFO!C11) -> BOSSEMBELE | D11: =IF(COUNTRY_INFO!$U$9:$U$1000="MDA1 (IVM+ALB)", COUNTRY_INFO!$U$9:$U$1000, " ") ->  | I11: 0 | M11: 0
A12: =IF(COUNTRY_INFO!A12=0," ",COUNTRY_INFO!A12) -> République Centrafricaine | B12: =IF(COUNTRY_INFO!B12=0," ",COUNTRY_INFO!B12) -> RS N° 1 | C12: =IF(COUNTRY_INFO!C12=0," ",COUNTRY_INFO!C12) -> BODA | D12: =IF(COUNTRY_INFO!$U$9:$U$1000="MDA1 (IVM+ALB)", COUNTRY_INFO!$U$9:$U$1000, " ") ->  | I12: 0 | M12: 0
A13: =IF(COUNTRY_INFO!A13=0," ",COUNTRY_INFO!A13) -> République Centrafricaine | B13: =IF(COUNTRY_INFO!B13=0," ",COUNTRY_INFO!B13) -> RS N° 1 | C13: =IF(COUNTRY_INFO!C13=0," ",COUNTRY_INFO!C13) -> MBAIKI | D13: =IF(COUNTRY_INFO!$U$9:$U$1000="MDA1 (IVM+ALB)", COUNTRY_INFO!$U$9:$U$1000, " ") ->  | I13: 0 | M13: 0
A14: =IF(COUNTRY_INFO!A14=0," ",COUNTRY_INFO!A14) -> République Centrafricaine | B14: =IF(COUNTRY_INFO!B14=0," ",COUNTRY_INFO!B14) -> RS N° 2 | C14: =IF(COUNTRY_INFO!C14=0," ",COUNTRY_INFO!C14) -> BERBERATI | D14: =IF(COUNTRY_INFO!$U$9:$U$1000="MDA1 (IVM+ALB)", COUNTRY_INFO!$U$9:$U$1000, " ") ->  | I14: 0 | M14: 0
A15: =IF(COUNTRY_INFO!A15=0," ",COUNTRY_INFO!A15) -> République Centrafricaine | B15: =IF(COUNTRY_INFO!B15=0," ",COUNTRY_INFO!B15) -> RS N° 2 | C15: =IF(COUNTRY_INFO!C15=0," ",COUNTRY_INFO!C15) -> CARNOT-GADZI | D15: =IF(COUNTRY_INFO!$U$9:$U$1000="MDA1 (IVM+ALB)", COUNTRY_INFO!$U$9:$U$1000, " ") ->  | I15: 0 | M15: 0
A16: =IF(COUNTRY_INFO!A16=0," ",COUNTRY_INFO!A16) -> République Centrafricaine | B16: =IF(COUNTRY_INFO!B16=0," ",COUNTRY_INFO!B16) -> RS N° 2 | C16: =IF(COUNTRY_INFO!C16=0," ",COUNTRY_INFO!C16) -> GAMBOULA | D16: =IF(COUNTRY_INFO!$U$9:$U$1000="MDA1 (IVM+ALB)", COUNTRY_INFO!$U$9:$U$1000, " ") ->  | I16: 0 | M16: 0
A17: =IF(COUNTRY_INFO!A17=0," ",COUNTRY_INFO!A17) -> République Centrafricaine | B17: =IF(COUNTRY_INFO!B17=0," ",COUNTRY_INFO!B17) -> RS N° 2 | C17: =IF(COUNTRY_INFO!C17=0," ",COUNTRY_INFO!C17) -> BABOUA-ABBA | D17: =IF(COUNTRY_INFO!$U$9:$U$1000="MDA1 (IVM+ALB)", COUNTRY_INFO!$U$9:$U$1000, " ") ->  | I17: 0 | M17: 0
A18: =IF(COUNTRY_INFO!A18=0," ",COUNTRY_INFO!A18) -> République Centrafricaine | B18: =IF(COUNTRY_INFO!B18=0," ",COUNTRY_INFO!B18) -> RS N° 2 | C18: =IF(COUNTRY_INFO!C18=0," ",COUNTRY_INFO!C18) -> BOUAR-BAORO | D18: =IF(COUNTRY_INFO!$U$9:$U$1000="MDA1 (IVM+ALB)", COUNTRY_INFO!$U$9:$U$1000, " ") ->  | I18: 0 | M18: 0
A19: =IF(COUNTRY_INFO!A19=0," ",COUNTRY_INFO!A19) -> République Centrafricaine | B19: =IF(COUNTRY_INFO!B19=0," ",COUNTRY_INFO!B19) -> RS N° 2 | C19: =IF(COUNTRY_INFO!C19=0," ",COUNTRY_INFO!C19) -> SANGHA-MBAERE | D19: =IF(COUNTRY_INFO!$U$9:$U$1000="MDA1 (IVM+ALB)", COUNTRY_INFO!$U$9:$U$1000, " ") ->  | I19: 0 | M19: 0
A20: =IF(COUNTRY_INFO!A20=0," ",COUNTRY_INFO!A20) -> République Centrafricaine | B20: =IF(COUNTRY_INFO!B20=0," ",COUNTRY_INFO!B20) -> RS N° 3 | C20: =IF(COUNTRY_INFO!C20=0," ",COUNTRY_INFO!C20) -> BATANGAFO | D20: =IF(COUNTRY_INFO!$U$9:$U$1000="MDA1 (IVM+ALB)", COUNTRY_INFO!$U$9:$U$1000, " ") ->  | I20: 0 | M20: 0
A21: =IF(COUNTRY_INFO!A21=0," ",COUNTRY_INFO!A21) -> République Centrafricaine | B21: =IF(COUNTRY_INFO!B21=0," ",COUNTRY_INFO!B21) -> RS N° 3 | C21: =IF(COUNTRY_INFO!C21=0," ",COUNTRY_INFO!C21) -> BOUCA | D21: =IF(COUNTRY_INFO!$U$9:$U$1000="MDA1 (IVM+ALB)", COUNTRY_INFO!$U$9:$U$1000, " ") ->  | I21: 0 | M21: 0
A22: =IF(COUNTRY_INFO!A22=0," ",COUNTRY_INFO!A22) -> République Centrafricaine | B22: =IF(COUNTRY_INFO!B22=0," ",COUNTRY_INFO!B22) -> RS N° 3 | C22: =IF(COUNTRY_INFO!C22=0," ",COUNTRY_INFO!C22) -> BOSSANGOA | D22: =IF(COUNTRY_INFO!$U$9:$U$1000="MDA1 (IVM+ALB)", COUNTRY_INFO!$U$9:$U$1000, " ") ->  | I22: 0 | M22: 0
A23: =IF(COUNTRY_INFO!A23=0," ",COUNTRY_INFO!A23) -> République Centrafricaine | B23: =IF(COUNTRY_INFO!B23=0," ",COUNTRY_INFO!B23) -> RS N° 3 | C23: =IF(COUNTRY_INFO!C23=0," ",COUNTRY_INFO!C23) -> NANGA-BOGUILA | D23: =IF(COUNTRY_INFO!$U$9:$U$1000="MDA1 (IVM+ALB)", COUNTRY_INFO!$U$9:$U$1000, " ") ->  | I23: 0 | M23: 0
A24: =IF(COUNTRY_INFO!A24=0," ",COUNTRY_INFO!A24) -> République Centrafricaine | B24: =IF(COUNTRY_INFO!B24=0," ",COUNTRY_INFO!B24) -> RS N° 3 | C24: =IF(COUNTRY_INFO!C24=0," ",COUNTRY_INFO!C24) -> BOCARANGA-KOUI | D24: =IF(COUNTRY_INFO!$U$9:$U$1000="MDA1 (IVM+ALB)", COUNTRY_INFO!$U$9:$U$1000, " ") ->  | I24: 0 | M24: 0
A25: =IF(COUNTRY_INFO!A25=0," ",COUNTRY_INFO!A25) -> République Centrafricaine | B25: =IF(COUNTRY_INFO!B25=0," ",COUNTRY_INFO!B25) -> RS N° 3 | C25: =IF(COUNTRY_INFO!C25=0," ",COUNTRY_INFO!C25) -> BOZOUM-BOSSEMPTELE | D25: =IF(COUNTRY_INFO!$U$9:$U$1000="MDA1 (IVM+ALB)", COUNTRY_INFO!$U$9:$U$1000, " ") ->  | I25: 0 | M25: 0
A26: =IF(COUNTRY_INFO!A26=0," ",COUNTRY_INFO!A26) -> République Centrafricaine | B26: =IF(COUNTRY_INFO!B26=0," ",COUNTRY_INFO!B26) -> RS N° 3 | C26: =IF(COUNTRY_INFO!C26=0," ",COUNTRY_INFO!C26) -> NGAOUNDAYE | D26: =IF(COUNTRY_INFO!$U$9:$U$1000="MDA1 (IVM+ALB)", COUNTRY_INFO!$U$9:$U$1000, " ") ->  | I26: 0 | M26: 0
A27: =IF(COUNTRY_INFO!A27=0," ",COUNTRY_INFO!A27) -> République Centrafricaine | B27: =IF(COUNTRY_INFO!B27=0," ",COUNTRY_INFO!B27) -> RS N° 3 | C27: =IF(COUNTRY_INFO!C27=0," ",COUNTRY_INFO!C27) -> PAOUA | D27: =IF(COUNTRY_INFO!$U$9:$U$1000="MDA1 (IVM+ALB)", COUNTRY_INFO!$U$9:$U$1000, " ") ->  | I27: 0 | M27: 0
A28: =IF(COUNTRY_INFO!A28=0," ",COUNTRY_INFO!A28) -> République Centrafricaine | B28: =IF(COUNTRY_INFO!B28=0," ",COUNTRY_INFO!B28) -> RS N° 4 | C28: =IF(COUNTRY_INFO!C28=0," ",COUNTRY_INFO!C28) -> KEMO | D28: =IF(COUNTRY_INFO!$U$9:$U$1000="MDA1 (IVM+ALB)", COUNTRY_INFO!$U$9:$U$1000, " ") -> MDA1 (IVM+ALB) | G28: 36431 | H28: 91960.59913 | I28: 128391.5991 | K28: 55876 | L28: 95128 | M28: 151004 | O28: =IF(G28<>0, IF(K28/G28*100=0, "-", K28/G28*100), " ") -> 153.374873 | P28: 103.4443021 | Q28: 117.6120564
A29: =IF(COUNTRY_INFO!A29=0," ",COUNTRY_INFO!A29) -> République Centrafricaine | B29: =IF(COUNTRY_INFO!B29=0," ",COUNTRY_INFO!B29) -> RS N° 4 | C29: =IF(COUNTRY_INFO!C29=0," ",COUNTRY_INFO!C29) -> NANA-GRIBIZI | D29: =IF(COUNTRY_INFO!$U$9:$U$1000="MDA1 (IVM+ALB)", COUNTRY_INFO!$U$9:$U$1000, " ") ->  | H29: 0 | I29: 0 | K29: 0 | L29: 0 | M29: 0 | O29: =IF(G29<>0, IF(K29/G29*100=0, "-", K29/G29*100), " ") -> 
A30: =IF(COUNTRY_INFO!A30=0," ",COUNTRY_INFO!A30) -> République Centrafricaine | B30: =IF(COUNTRY_INFO!B30=0," ",COUNTRY_INFO!B30) -> RS N° 4 | C30: =IF(COUNTRY_INFO!C30=0," ",COUNTRY_INFO!C30) -> BAMBARI | D30: =IF(COUNTRY_INFO!$U$9:$U$1000="MDA1 (IVM+ALB)", COUNTRY_INFO!$U$9:$U$1000, " ") -> MDA1 (IVM+ALB) | G30: 51363 | H30: 129652.6255 | I30: 181015.6255 | K30: 64969 | L30: 90001 | M30: 154970 | O30: =IF(G30<>0, IF(K30/G30*100=0, "-", K30/G30*100), " ") -> 126.4898857 | P30: 69.41702848 | Q30: 85.61139379
A31: =IF(COUNTRY_INFO!A31=0," ",COUNTRY_INFO!A31) -> République Centrafricaine | B31: =IF(COUNTRY_INFO!B31=0," ",COUNTRY_INFO!B31) -> RS N° 4 | C31: =IF(COUNTRY_INFO!C31=0," ",COUNTRY_INFO!C31) -> KOUANGO-GRIMARI | D31: =IF(COUNTRY_INFO!$U$9:$U$1000="MDA1 (IVM+ALB)", COUNTRY_INFO!$U$9:$U$1000, " ") -> MDA1 (IVM+ALB) | G31: 33764.63705 | H31: 85229.67854 | I31: 118994.3156 | K31: 17930 | L31: 76446 | M31: 94376 | O31: =IF(G31<>0, IF(K31/G31*100=0, "-", K31/G31*100), " ") -> 53.10289572 | P31: 89.6941081 | Q31: 79.31135158
A32: =IF(COUNTRY_INFO!A32=0," ",COUNTRY_INFO!A32) -> République Centrafricaine | B32: =IF(COUNTRY_INFO!B32=0," ",COUNTRY_INFO!B32) -> RS N° 5 | C32: =IF(COUNTRY_INFO!C32=0," ",COUNTRY_INFO!C32) -> BAMINGUI-BANGORAN | D32: =IF(COUNTRY_INFO!$U$9:$U$1000="MDA1 (IVM+ALB)", COUNTRY_INFO!$U$9:$U$1000, " ") ->  | I32: 0 | L32: 0 | M32: 0
A33: =IF(COUNTRY_INFO!A33=0," ",COUNTRY_INFO!A33) -> République Centrafricaine | B33: =IF(COUNTRY_INFO!B33=0," ",COUNTRY_INFO!B33) -> RS N° 5 | C33: =IF(COUNTRY_INFO!C33=0," ",COUNTRY_INFO!C33) -> HAUTE-KOTTO | D33: =IF(COUNTRY_INFO!$U$9:$U$1000="MDA1 (IVM+ALB)", COUNTRY_INFO!$U$9:$U$1000, " ") ->  | H33: 0 | I33: 0 | L33: 0 | M33: 0
A34: =IF(COUNTRY_INFO!A34=0," ",COUNTRY_INFO!A34) -> République Centrafricaine | B34: =IF(COUNTRY_INFO!B34=0," ",COUNTRY_INFO!B34) -> RS N° 5 | C34: =IF(COUNTRY_INFO!C34=0," ",COUNTRY_INFO!C34) -> VAKAGA | D34: =IF(COUNTRY_INFO!$U$9:$U$1000="MDA1 (IVM+ALB)", COUNTRY_INFO!$U$9:$U$1000, " ") ->  | H34: 0 | I34: 0 | L34: 0 | M34: 0
A35: =IF(COUNTRY_INFO!A35=0," ",COUNTRY_INFO!A35) -> République Centrafricaine | B35: =IF(COUNTRY_INFO!B35=0," ",COUNTRY_INFO!B35) -> RS N° 6 | C35: =IF(COUNTRY_INFO!C35=0," ",COUNTRY_INFO!C35) -> ALINDAO MINGALA | D35: =IF(COUNTRY_INFO!$U$9:$U$1000="MDA1 (IVM+ALB)", COUNTRY_INFO!$U$9:$U$1000, " ") -> MDA1 (IVM+ALB) | G35: 28258 | H35: 71374.95842 | I35: 99632.95842 | K35: 29971 | L35: 46088 | M35: 76059 | O35: 106.0620001 | P35: 64.57166634 | Q35: 76.33919659
A36: =IF(COUNTRY_INFO!A36=0," ",COUNTRY_INFO!A36) -> République Centrafricaine | B36: =IF(COUNTRY_INFO!B36=0," ",COUNTRY_INFO!B36) -> RS N° 6 | C36: =IF(COUNTRY_INFO!C36=0," ",COUNTRY_INFO!C36) -> KEMBE SATEMA | D36: =IF(COUNTRY_INFO!$U$9:$U$1000="MDA1 (IVM+ALB)", COUNTRY_INFO!$U$9:$U$1000, " ") -> MDA1 (IVM+ALB) | G36: 18585.86496 | H36: 46914.98071 | I36: 65500.84567 | K36: 25950 | L36: 34748 | M36: 60698 | O36: 139.6222347 | P36: 74.06589425 | Q36: 92.66750586
A37: =IF(COUNTRY_INFO!A37=0," ",COUNTRY_INFO!A37) -> République Centrafricaine | B37: =IF(COUNTRY_INFO!B37=0," ",COUNTRY_INFO!B37) -> RS N° 6 | C37: =IF(COUNTRY_INFO!C37=0," ",COUNTRY_INFO!C37) -> MOBAYE-ZANGBA | D37: =IF(COUNTRY_INFO!$U$9:$U$1000="MDA1 (IVM+ALB)", COUNTRY_INFO!$U$9:$U$1000, " ") -> MDA1 (IVM+ALB) | G37: 23830 | H37: 75190.41756 | I37: 99020.41756 | K37: 42608 | L37: 62337 | M37: 104945 | O37: 178.7998321 | P37: 82.90551113 | Q37: 105.9831927
A38: =IF(COUNTRY_INFO!A38=0," ",COUNTRY_INFO!A38) -> République Centrafricaine | B38: =IF(COUNTRY_INFO!B38=0," ",COUNTRY_INFO!B38) -> RS N° 6 | C38: =IF(COUNTRY_INFO!C38=0," ",COUNTRY_INFO!C38) -> BANGASSOU | D38: =IF(COUNTRY_INFO!$U$9:$U$1000="MDA1 (IVM+ALB)", COUNTRY_INFO!$U$9:$U$1000, " ") -> MDA1 (IVM+ALB) | G38: 30862.53325 | H38: 77904.10375 | I38: 108766.637 | K38: 27172 | L38: 50059 | M38: 77231 | O38: 88.04202747 | P38: 64.25720545 | Q38: 71.00614869
A39: =IF(COUNTRY_INFO!A39=0," ",COUNTRY_INFO!A39) -> République Centrafricaine | B39: =IF(COUNTRY_INFO!B39=0," ",COUNTRY_INFO!B39) -> RS N° 6 | C39: =IF(COUNTRY_INFO!C39=0," ",COUNTRY_INFO!C39) -> OUANGO-GAMBO | D39: =IF(COUNTRY_INFO!$U$9:$U$1000="MDA1 (IVM+ALB)", COUNTRY_INFO!$U$9:$U$1000, " ") -> MDA1 (IVM+ALB) | G39: 19593 | H39: 49458.07205 | I39: 69051.07205 | K39: 22411 | L39: 41290 | M39: 63701 | O39: 114.3826877 | P39: 83.48485553 | Q39: 92.25200726
A40: =IF(COUNTRY_INFO!A40=0," ",COUNTRY_INFO!A40) -> République Centrafricaine | B40: =IF(COUNTRY_INFO!B40=0," ",COUNTRY_INFO!B40) -> RS N° 6 | C40: =IF(COUNTRY_INFO!C40=0," ",COUNTRY_INFO!C40) -> HAUT-MBOMOU | D40: =IF(COUNTRY_INFO!$U$9:$U$1000="MDA1 (IVM+ALB)", COUNTRY_INFO!$U$9:$U$1000, " ") ->  | I40: 0 | M40: 0
A41: =IF(COUNTRY_INFO!A41=0," ",COUNTRY_INFO!A41) -> République Centrafricaine | B41: =IF(COUNTRY_INFO!B41=0," ",COUNTRY_INFO!B41) -> RS N° 7 | C41: =IF(COUNTRY_INFO!C41=0," ",COUNTRY_INFO!C41) -> BANGUI I (lakouanga) | D41: =IF(COUNTRY_INFO!$U$9:$U$1000="MDA1 (IVM+ALB)", COUNTRY_INFO!$U$9:$U$1000, " ") ->  | I41: 0 | M41: 0
A42: =IF(COUNTRY_INFO!A42=0," ",COUNTRY_INFO!A42) -> République Centrafricaine | B42: =IF(COUNTRY_INFO!B42=0," ",COUNTRY_INFO!B42) -> RS N° 7 | C42: =IF(COUNTRY_INFO!C42=0," ",COUNTRY_INFO!C42) -> BANGUI II (Castors) | D42: =IF(COUNTRY_INFO!$U$9:$U$1000="MDA1 (IVM+ALB)", COUNTRY_INFO!$U$9:$U$1000, " ") ->  | I42: 0 | M42: 0
A43: =IF(COUNTRY_INFO!A43=0," ",COUNTRY_INFO!A43) -> République Centrafricaine | B43: =IF(COUNTRY_INFO!B43=0," ",COUNTRY_INFO!B43) -> RS N° 7 | C43: =IF(COUNTRY_INFO!C43=0," ",COUNTRY_INFO!C43) -> BANGUI III (Bédé-Combattant) | D43: =IF(COUNTRY_INFO!$U$9:$U$1000="MDA1 (IVM+ALB)", COUNTRY_INFO!$U$9:$U$1000, " ") ->  | I43: 0 | M43: 0

Sheet MDA4
A1: MDA 4 - Albendazole (ALB) ou 2 x Albendazole (ALB)
A2: Structure administrative, population nécessitant une chimioprévention par groupe d'âge, population traitée par groupe d'âge et couverture
A4: TOTAL | F4: =SUM(F$9:F$1000) -> 0 | G4: =SUM(G$9:G$1000) -> 329016 | H4: 869498 | I4: 1198514 | J4: 0 | K4: 357150 | L4: 636141 | M4: 993291 | N4: 0 | O4: 0 | P4: 0 | Q4: 0 | R4: 0 | S4: 357150 | T4: 636141 | U4: 993291 | V4: =IF(F4<>0, IF(N4/F4*100=0, "-", N4/F4*100), " ") ->  | W4: =IF(G4<>0, IF(O4/G4*100=0, "-", O4/G4*100), " ") -> - | X4: =IF(H4<>0, IF(P4/H4*100=0, "-", P4/H4*100), " ") -> - | Y4: =IF(I4<>0, IF(Q4/I4*100=0, "-", Q4/I4*100), " ") -> -
A6: Structure administrative du pays | D6: Mise en oeuvre de la CP | E6: Date | F6: Population ciblée pour MDA 4 | J6: Population traitée - tournée 1 | N6: Population traitée - tournée 2 | R6: Population traitée | V6: Couverture du Programme (%)
A7: Pays | B7: Région/Département | C7: District | F7: EAPréS | G7: EAS | H7: Adultes | I7: Total | J7: EAPréS | K7: EAS | L7: Adultes | M7: Total | N7: EAPréS | O7: EAS | P7: Adultes | Q7: Total | R7: EAPréS | S7: EAS | T7: Adultes | U7: Total | V7: EAPréS | W7: EAS | X7: Adultes | Y7: Total
A9: =IF(COUNTRY_INFO!A9=0," ",COUNTRY_INFO!A9) -> République Centrafricaine | B9: =IF(COUNTRY_INFO!B9=0," ",COUNTRY_INFO!B9) -> RS N° 1 | C9: =IF(COUNTRY_INFO!C9=0," ",COUNTRY_INFO!C9) -> BEGOUA | D9: =IF(COUNTRY_INFO!$U$9:$U$1000="MDA4 (ALB/2*ALB)", COUNTRY_INFO!$U$9:$U$1000, " ") -> MDA4 (ALB/2*ALB) | G9: 38127 | H9: 100759 | I9: =SUM(F9:H9) -> 138886 | K9: 48232 | L9: 83242 | M9: =SUM(J9:L9) -> 131474 | Q9: =SUM(N9:P9) -> 0 | R9: =MAX(J9,N9) -> 0 | S9: =MAX(K9,O9) -> 48232 | T9: =MAX(L9,P9) -> 83242 | U9: =SUM(R9:T9) -> 131474 | V9: =IF(F9<>0, IF(R9/F9*100=0, "-",R9/F9*100), " ") ->  | W9: =IF(G9<>0, IF(S9/G9*100=0, "-", S9/G9*100), " ") -> 126.5035277 | X9: =IF(H9<>0, IF(T9/H9*100=0, "-", T9/H9*100), " ") -> 82.61495251 | Y9: =IF(I9<>0, IF(U9/I9*100=0, "-", U9/I9*100), " ") -> 94.663249
A10: =IF(COUNTRY_INFO!A10=0," ",COUNTRY_INFO!A10) -> République Centrafricaine | B10: =IF(COUNTRY_INFO!B10=0," ",COUNTRY_INFO!B10) -> RS N° 1 | C10: =IF(COUNTRY_INFO!C10=0," ",COUNTRY_INFO!C10) -> BIMBO | D10: =IF(COUNTRY_INFO!$U$9:$U$1000="MDA4 (ALB/2*ALB)", COUNTRY_INFO!$U$9:$U$1000, " ") -> MDA4 (ALB/2*ALB) | G10: 39363 | H10: 104026 | I10: =SUM(F10:H10) -> 143389 | K10: 72614 | L10: 63938 | M10: =SUM(J10:L10) -> 136552 | Q10: =SUM(N10:P10) -> 0 | R10: 0 | S10: 72614 | T10: 63938 | U10: 136552 | W10: 184.4727282 | X10: 61.46348028 | Y10: 95.23185182
A11: =IF(COUNTRY_INFO!A11=0," ",COUNTRY_INFO!A11) -> République Centrafricaine | B11: =IF(COUNTRY_INFO!B11=0," ",COUNTRY_INFO!B11) -> RS N° 1 | C11: =IF(COUNTRY_INFO!C11=0," ",COUNTRY_INFO!C11) -> BOSSEMBELE | D11: =IF(COUNTRY_INFO!$U$9:$U$1000="MDA4 (ALB/2*ALB)", COUNTRY_INFO!$U$9:$U$1000, " ") -> MDA4 (ALB/2*ALB) | G11: 32254 | H11: 85239 | I11: 117493 | K11: 37613 | L11: 52212 | M11: 89825 | Q11: 0 | R11: 0 | S11: 37613 | T11: 52212 | U11: 89825 | W11: 116.6149935 | X11: 61.2536515 | Y11: 76.45136306
A12: =IF(COUNTRY_INFO!A12=0," ",COUNTRY_INFO!A12) -> République Centrafricaine | B12: =IF(COUNTRY_INFO!B12=0," ",COUNTRY_INFO!B12) -> RS N° 1 | C12: =IF(COUNTRY_INFO!C12=0," ",COUNTRY_INFO!C12) -> BODA | D12: =IF(COUNTRY_INFO!$U$9:$U$1000="MDA4 (ALB/2*ALB)", COUNTRY_INFO!$U$9:$U$1000, " ") -> MDA4 (ALB/2*ALB) | G12: 26844 | H12: 70941 | I12: 97785 | K12: 26844 | L12: 31799 | M12: 58643 | Q12: 0 | R12: 0 | S12: 26844 | T12: 31799 | U12: 58643 | W12: 100 | X12: 44.82457253 | Y12: 59.97136575
A13: =IF(COUNTRY_INFO!A13=0," ",COUNTRY_INFO!A13) -> République Centrafricaine | B13: =IF(COUNTRY_INFO!B13=0," ",COUNTRY_INFO!B13) -> RS N° 1 | C13: =IF(COUNTRY_INFO!C13=0," ",COUNTRY_INFO!C13) -> MBAIKI | D13: =IF(COUNTRY_INFO!$U$9:$U$1000="MDA4 (ALB/2*ALB)", COUNTRY_INFO!$U$9:$U$1000, " ") -> MDA4 (ALB/2*ALB) | G13: 49106 | H13: 129773 | I13: 178879 | K13: 64116 | L13: 80049 | M13: 144165 | Q13: 0 | R13: 0 | S13: 64116 | T13: 80049 | U13: 144165 | W13: 130.5665295 | X13: 61.68386336 | Y13: 80.59358561
A14: =IF(COUNTRY_INFO!A14=0," ",COUNTRY_INFO!A14) -> République Centrafricaine | B14: =IF(COUNTRY_INFO!B14=0," ",COUNTRY_INFO!B14) -> RS N° 2 | C14: =IF(COUNTRY_INFO!C14=0," ",COUNTRY_INFO!C14) -> BERBERATI | D14: =IF(COUNTRY_INFO!$U$9:$U$1000="MDA4 (ALB/2*ALB)", COUNTRY_INFO!$U$9:$U$1000, " ") -> MDA4 (ALB/2*ALB) | G14: 42057 | H14: 111146 | I14: 153203 | K14: 29197 | L14: 76704 | M14: 105901 | Q14: 0 | R14: 0 | S14: 29197 | T14: 76704 | U14: 105901 | W14: 69.42245048 | X14: 69.01193025 | Y14: 69.1246255
A15: =IF(COUNTRY_INFO!A15=0," ",COUNTRY_INFO!A15) -> République Centrafricaine | B15: =IF(COUNTRY_INFO!B15=0," ",COUNTRY_INFO!B15) -> RS N° 2 | C15: =IF(COUNTRY_INFO!C15=0," ",COUNTRY_INFO!C15) -> CARNOT-GADZI | D15: =IF(COUNTRY_INFO!$U$9:$U$1000="MDA4 (ALB/2*ALB)", COUNTRY_INFO!$U$9:$U$1000, " ") -> MDA4 (ALB/2*ALB) | G15: 45174 | H15: 119382 | I15: 164556 | K15: 24010 | L15: 137409 | M15: 161419 | Q15: 0 | R15: 0 | S15: 24010 | T15: 137409 | U15: 161419 | W15: 53.15004206 | X15: 115.1002664 | Y15: 98.09365809
A16: =IF(COUNTRY_INFO!A16=0," ",COUNTRY_INFO!A16) -> République Centrafricaine | B16: =IF(COUNTRY_INFO!B16=0," ",COUNTRY_INFO!B16) -> RS N° 2 | C16: =IF(COUNTRY_INFO!C16=0," ",COUNTRY_INFO!C16) -> GAMBOULA | D16: =IF(COUNTRY_INFO!$U$9:$U$1000="MDA4 (ALB/2*ALB)", COUNTRY_INFO!$U$9:$U$1000, " ") -> MDA4 (ALB/2*ALB) | G16: 24996 | H16: 66057 | I16: 91053 | K16: 7788 | L16: 30251 | M16: 38039 | Q16: 0 | R16: 0 | S16: 7788 | T16: 30251 | U16: 38039 | W16: 31.15698512 | X16: 45.795298 | Y16: 41.77676738
A17: =IF(COUNTRY_INFO!A17=0," ",COUNTRY_INFO!A17) -> République Centrafricaine | B17: =IF(COUNTRY_INFO!B17=0," ",COUNTRY_INFO!B17) -> RS N° 2 | C17: =IF(COUNTRY_INFO!C17=0," ",COUNTRY_INFO!C17) -> BABOUA-ABBA | D17: =IF(COUNTRY_INFO!$U$9:$U$1000="MDA4 (ALB/2*ALB)", COUNTRY_INFO!$U$9:$U$1000, " ") ->  | I17: 0 | M17: 0 | Q17: 0 | R17: 0 | S17: 0 | T17: 0 | U17: 0
A18: =IF(COUNTRY_INFO!A18=0," ",COUNTRY_INFO!A18) -> République Centrafricaine | B18: =IF(COUNTRY_INFO!B18=0," ",COUNTRY_INFO!B18) -> RS N° 2 | C18: =IF(COUNTRY_INFO!C18=0," ",COUNTRY_INFO!C18) -> BOUAR-BAORO | D18: =IF(COUNTRY_INFO!$U$9:$U$1000="MDA4 (ALB/2*ALB)", COUNTRY_INFO!$U$9:$U$1000, " ") ->  | I18: 0 | M18: 0 | Q18: 0 | R18: 0 | S18: 0 | T18: 0 | U18: 0
A19: =IF(COUNTRY_INFO!A19=0," ",COUNTRY_INFO!A19) -> République Centrafricaine | B19: =IF(COUNTRY_INFO!B19=0," ",COUNTRY_INFO!B19) -> RS N° 2 | C19: =IF(COUNTRY_INFO!C19=0," ",COUNTRY_INFO!C19) -> SANGHA-MBAERE | D19: =IF(COUNTRY_INFO!$U$9:$U$1000="MDA4 (ALB/2*ALB)", COUNTRY_INFO!$U$9:$U$1000, " ") -> MDA4 (ALB/2*ALB) | G19: 31095 | H19: 82175 | I19: 113270 | K19: 46736 | L19: 80537 | M19: 127273 | Q19: 0 | R19: 0 | S19: 46736 | T19: 80537 | U19: 127273 | W19: 150.3006914 | X19: 98.00669303 | Y19: 112.3624967
A20: =IF(COUNTRY_INFO!A20=0," ",COUNTRY_INFO!A20) -> République Centrafricaine | B20: =IF(COUNTRY_INFO!B20=0," ",COUNTRY_INFO!B20) -> RS N° 3 | C20: =IF(COUNTRY_INFO!C20=0," ",COUNTRY_INFO!C20) -> BATANGAFO | D20: =IF(COUNTRY_INFO!$U$9:$U$1000="MDA4 (ALB/2*ALB)", COUNTRY_INFO!$U$9:$U$1000, " ") ->  | I20: 0 | M20: 0 | Q20: 0 | R20: 0 | S20: 0 | T20: 0 | U20: 0
A21: =IF(COUNTRY_INFO!A21=0," ",COUNTRY_INFO!A21) -> République Centrafricaine | B21: =IF(COUNTRY_INFO!B21=0," ",COUNTRY_INFO!B21) -> RS N° 3 | C21: =IF(COUNTRY_INFO!C21=0," ",COUNTRY_INFO!C21) -> BOUCA | D21: =IF(COUNTRY_INFO!$U$9:$U$1000="MDA4 (ALB/2*ALB)", COUNTRY_INFO!$U$9:$U$1000, " ") ->  | I21: 0 | M21: 0 | Q21: 0 | R21: 0 | S21: 0 | T21: 0 | U21: 0
A22: =IF(COUNTRY_INFO!A22=0," ",COUNTRY_INFO!A22) -> République Centrafricaine | B22: =IF(COUNTRY_INFO!B22=0," ",COUNTRY_INFO!B22) -> RS N° 3 | C22: =IF(COUNTRY_INFO!C22=0," ",COUNTRY_INFO!C22) -> BOSSANGOA | D22: =IF(COUNTRY_INFO!$U$9:$U$1000="MDA4 (ALB/2*ALB)", COUNTRY_INFO!$U$9:$U$1000, " ") ->  | I22: 0 | M22: 0 | Q22: 0 | R22: 0 | S22: 0 | T22: 0 | U22: 0
A23: =IF(COUNTRY_INFO!A23=0," ",COUNTRY_INFO!A23) -> République Centrafricaine | B23: =IF(COUNTRY_INFO!B23=0," ",COUNTRY_INFO!B23) -> RS N° 3 | C23: =IF(COUNTRY_INFO!C23=0," ",COUNTRY_INFO!C23) -> NANGA-BOGUILA | D23: =IF(COUNTRY_INFO!$U$9:$U$1000="MDA4 (ALB/2*ALB)", COUNTRY_INFO!$U$9:$U$1000, " ") ->  | I23: 0 | M23: 0 | Q23: 0 | R23: 0 | S23: 0 | T23: 0 | U23: 0
A24: =IF(COUNTRY_INFO!A24=0," ",COUNTRY_INFO!A24) -> République Centrafricaine | B24: =IF(COUNTRY_INFO!B24=0," ",COUNTRY_INFO!B24) -> RS N° 3 | C24: =IF(COUNTRY_INFO!C24=0," ",COUNTRY_INFO!C24) -> BOCARANGA-KOUI | D24: =IF(COUNTRY_INFO!$U$9:$U$1000="MDA4 (ALB/2*ALB)", COUNTRY_INFO!$U$9:$U$1000, " ") ->  | I24: 0 | M24: 0 | Q24: 0 | R24: 0 | S24: 0 | T24: 0 | U24: 0
A25: =IF(COUNTRY_INFO!A25=0," ",COUNTRY_INFO!A25) -> République Centrafricaine | B25: =IF(COUNTRY_INFO!B25=0," ",COUNTRY_INFO!B25) -> RS N° 3 | C25: =IF(COUNTRY_INFO!C25=0," ",COUNTRY_INFO!C25) -> BOZOUM-BOSSEMPTELE | D25: =IF(COUNTRY_INFO!$U$9:$U$1000="MDA4 (ALB/2*ALB)", COUNTRY_INFO!$U$9:$U$1000, " ") ->  | I25: 0 | M25: 0 | Q25: 0 | R25: 0 | S25: 0 | T25: 0 | U25: 0
A26: =IF(COUNTRY_INFO!A26=0," ",COUNTRY_INFO!A26) -> République Centrafricaine | B26: =IF(COUNTRY_INFO!B26=0," ",COUNTRY_INFO!B26) -> RS N° 3 | C26: =IF(COUNTRY_INFO!C26=0," ",COUNTRY_INFO!C26) -> NGAOUNDAYE | D26: =IF(COUNTRY_INFO!$U$9:$U$1000="MDA4 (ALB/2*ALB)", COUNTRY_INFO!$U$9:$U$1000, " ") ->  | I26: 0 | M26: 0 | Q26: 0 | R26: 0 | S26: 0 | T26: 0 | U26: 0
A27: =IF(COUNTRY_INFO!A27=0," ",COUNTRY_INFO!A27) -> République Centrafricaine | B27: =IF(COUNTRY_INFO!B27=0," ",COUNTRY_INFO!B27) -> RS N° 3 | C27: =IF(COUNTRY_INFO!C27=0," ",COUNTRY_INFO!C27) -> PAOUA | D27: =IF(COUNTRY_INFO!$U$9:$U$1000="MDA4 (ALB/2*ALB)", COUNTRY_INFO!$U$9:$U$1000, " ") ->  | I27: 0 | M27: 0 | Q27: 0 | R27: 0 | S27: 0 | T27: 0 | U27: 0
A28: =IF(COUNTRY_INFO!A28=0," ",COUNTRY_INFO!A28) -> République Centrafricaine | B28: =IF(COUNTRY_INFO!B28=0," ",COUNTRY_INFO!B28) -> RS N° 4 | C28: =IF(COUNTRY_INFO!C28=0," ",COUNTRY_INFO!C28) -> KEMO | D28: =IF(COUNTRY_INFO!$U$9:$U$1000="MDA4 (ALB/2*ALB)", COUNTRY_INFO!$U$9:$U$1000, " ") ->  | I28: 0 | M28: 0 | Q28: 0 | R28: 0 | S28: 0 | T28: 0 | U28: 0
A29: =IF(COUNTRY_INFO!A29=0," ",COUNTRY_INFO!A29) -> République Centrafricaine | B29: =IF(COUNTRY_INFO!B29=0," ",COUNTRY_INFO!B29) -> RS N° 4 | C29: =IF(COUNTRY_INFO!C29=0," ",COUNTRY_INFO!C29) -> NANA-GRIBIZI | D29: =IF(COUNTRY_INFO!$U$9:$U$1000="MDA4 (ALB/2*ALB)", COUNTRY_INFO!$U$9:$U$1000, " ") ->  | I29: 0 | M29: 0 | Q29: 0 | R29: 0 | S29: 0 | T29: 0 | U29: 0
A30: =IF(COUNTRY_INFO!A30=0," ",COUNTRY_INFO!A30) -> République Centrafricaine | B30: =IF(COUNTRY_INFO!B30=0," ",COUNTRY_INFO!B30) -> RS N° 4 | C30: =IF(COUNTRY_INFO!C30=0," ",COUNTRY_INFO!C30) -> BAMBARI | D30: =IF(COUNTRY_INFO!$U$9:$U$1000="MDA4 (ALB/2*ALB)", COUNTRY_INFO!$U$9:$U$1000, " ") ->  | I30: 0 | M30: 0 | Q30: 0 | R30: 0 | S30: 0 | T30: 0 | U30: 0
A31: =IF(COUNTRY_INFO!A31=0," ",COUNTRY_INFO!A31) -> République Centrafricaine | B31: =IF(COUNTRY_INFO!B31=0," ",COUNTRY_INFO!B31) -> RS N° 4 | C31: =IF(COUNTRY_INFO!C31=0," ",COUNTRY_INFO!C31) -> KOUANGO-GRIMARI | D31: =IF(COUNTRY_INFO!$U$9:$U$1000="MDA4 (ALB/2*ALB)", COUNTRY_INFO!$U$9:$U$1000, " ") ->  | I31: 0 | M31: 0 | Q31: 0 | R31: 0 | S31: 0 | T31: 0 | U31: 0
A32: =IF(COUNTRY_INFO!A32=0," ",COUNTRY_INFO!A32) -> République Centrafricaine | B32: =IF(COUNTRY_INFO!B32=0," ",COUNTRY_INFO!B32) -> RS N° 5 | C32: =IF(COUNTRY_INFO!C32=0," ",COUNTRY_INFO!C32) -> BAMINGUI-BANGORAN | D32: =IF(COUNTRY_INFO!$U$9:$U$1000="MDA4 (ALB/2*ALB)", COUNTRY_INFO!$U$9:$U$1000, " ") ->  | I32: 0 | M32: 0 | Q32: 0 | R32: 0 | S32: 0 | T32: 0 | U32: 0
A33: =IF(COUNTRY_INFO!A33=0," ",COUNTRY_INFO!A33) -> République Centrafricaine | B33: =IF(COUNTRY_INFO!B33=0," ",COUNTRY_INFO!B33) -> RS N° 5 | C33: =IF(COUNTRY_INFO!C33=0," ",COUNTRY_INFO!C33) -> HAUTE-KOTTO | D33: =IF(COUNTRY_INFO!$U$9:$U$1000="MDA4 (ALB/2*ALB)", COUNTRY_INFO!$U$9:$U$1000, " ") ->  | I33: 0 | M33: 0 | Q33: 0 | R33: 0 | S33: 0 | T33: 0 | U33: 0
A34: =IF(COUNTRY_INFO!A34=0," ",COUNTRY_INFO!A34) -> République Centrafricaine | B34: =IF(COUNTRY_INFO!B34=0," ",COUNTRY_INFO!B34) -> RS N° 5 | C34: =IF(COUNTRY_INFO!C34=0," ",COUNTRY_INFO!C34) -> VAKAGA | D34: =IF(COUNTRY_INFO!$U$9:$U$1000="MDA4 (ALB/2*ALB)", COUNTRY_INFO!$U$9:$U$1000, " ") ->  | I34: 0 | M34: 0 | Q34: 0 | R34: 0 | S34: 0 | T34: 0 | U34: 0
A35: =IF(COUNTRY_INFO!A35=0," ",COUNTRY_INFO!A35) -> République Centrafricaine | B35: =IF(COUNTRY_INFO!B35=0," ",COUNTRY_INFO!B35) -> RS N° 6 | C35: =IF(COUNTRY_INFO!C35=0," ",COUNTRY_INFO!C35) -> ALINDAO MINGALA | D35: =IF(COUNTRY_INFO!$U$9:$U$1000="MDA4 (ALB/2*ALB)", COUNTRY_INFO!$U$9:$U$1000, " ") ->  | I35: 0 | M35: 0 | Q35: 0 | R35: 0 | S35: 0 | T35: 0 | U35: 0
A36: =IF(COUNTRY_INFO!A36=0," ",COUNTRY_INFO!A36) -> République Centrafricaine | B36: =IF(COUNTRY_INFO!B36=0," ",COUNTRY_INFO!B36) -> RS N° 6 | C36: =IF(COUNTRY_INFO!C36=0," ",COUNTRY_INFO!C36) -> KEMBE SATEMA | D36: =IF(COUNTRY_INFO!$U$9:$U$1000="MDA4 (ALB/2*ALB)", COUNTRY_INFO!$U$9:$U$1000, " ") ->  | I36: 0 | M36: 0 | Q36: 0 | R36: 0 | S36: 0 | T36: 0 | U36: 0
A37: =IF(COUNTRY_INFO!A37=0," ",COUNTRY_INFO!A37) -> République Centrafricaine | B37: =IF(COUNTRY_INFO!B37=0," ",COUNTRY_INFO!B37) -> RS N° 6 | C37: =IF(COUNTRY_INFO!C37=0," ",COUNTRY_INFO!C37) -> MOBAYE-ZANGBA | D37: =IF(COUNTRY_INFO!$U$9:$U$1000="MDA4 (ALB/2*ALB)", COUNTRY_INFO!$U$9:$U$1000, " ") ->  | I37: 0 | M37: 0 | Q37: 0 | R37: 0 | S37: 0 | T37: 0 | U37: 0
A38: =IF(COUNTRY_INFO!A38=0," ",COUNTRY_INFO!A38) -> République Centrafricaine | B38: =IF(COUNTRY_INFO!B38=0," ",COUNTRY_INFO!B38) -> RS N° 6 | C38: =IF(COUNTRY_INFO!C38=0," ",COUNTRY_INFO!C38) -> BANGASSOU | D38: =IF(COUNTRY_INFO!$U$9:$U$1000="MDA4 (ALB/2*ALB)", COUNTRY_INFO!$U$9:$U$1000, " ") ->  | I38: 0 | M38: 0 | Q38: 0 | R38: 0 | S38: 0 | T38: 0 | U38: 0
A39: =IF(COUNTRY_INFO!A39=0," ",COUNTRY_INFO!A39) -> République Centrafricaine | B39: =IF(COUNTRY_INFO!B39=0," ",COUNTRY_INFO!B39) -> RS N° 6 | C39: =IF(COUNTRY_INFO!C39=0," ",COUNTRY_INFO!C39) -> OUANGO-GAMBO | D39: =IF(COUNTRY_INFO!$U$9:$U$1000="MDA4 (ALB/2*ALB)", COUNTRY_INFO!$U$9:$U$1000, " ") ->  | I39: 0 | M39: 0 | Q39: 0 | R39: 0 | S39: 0 | T39: 0 | U39: 0
A40: =IF(COUNTRY_INFO!A40=0," ",COUNTRY_INFO!A40) -> République Centrafricaine | B40: =IF(COUNTRY_INFO!B40=0," ",COUNTRY_INFO!B40) -> RS N° 6 | C40: =IF(COUNTRY_INFO!C40=0," ",COUNTRY_INFO!C40) -> HAUT-MBOMOU | D40: =IF(COUNTRY_INFO!$U$9:$U$1000="MDA4 (ALB/2*ALB)", COUNTRY_INFO!$U$9:$U$1000, " ") ->  | I40: 0 | M40: 0 | Q40: 0 | R40: 0 | S40: 0 | T40: 0 | U40: 0
A41: =IF(COUNTRY_INFO!A41=0," ",COUNTRY_INFO!A41) -> République Centrafricaine | B41: =IF(COUNTRY_INFO!B41=0," ",COUNTRY_INFO!B41) -> RS N° 7 | C41: =IF(COUNTRY_INFO!C41=0," ",COUNTRY_INFO!C41) -> BANGUI I (lakouanga) | D41: =IF(COUNTRY_INFO!$U$9:$U$1000="MDA4 (ALB/2*ALB)", COUNTRY_INFO!$U$9:$U$1000, " ") ->  | I41: 0 | M41: 0 | Q41: 0 | R41: 0 | S41: 0 | T41: 0 | U41: 0
A42: =IF(COUNTRY_INFO!A42=0," ",COUNTRY_INFO!A42) -> République Centrafricaine | B42: =IF(COUNTRY_INFO!B42=0," ",COUNTRY_INFO!B42) -> RS N° 7 | C42: =IF(COUNTRY_INFO!C42=0," ",COUNTRY_INFO!C42) -> BANGUI II (Castors) | D42: =IF(COUNTRY_INFO!$U$9:$U$1000="MDA4 (ALB/2*ALB)", COUNTRY_INFO!$U$9:$U$1000, " ") ->  | I42: 0 | M42: 0 | Q42: 0 | R42: 0 | S42: 0 | T42: 0 | U42: 0
A43: =IF(COUNTRY_INFO!A43=0," ",COUNTRY_INFO!A43) -> République Centrafricaine | B43: =IF(COUNTRY_INFO!B43=0," ",COUNTRY_INFO!B43) -> RS N° 7 | C43: =IF(COUNTRY_INFO!C43=0," ",COUNTRY_INFO!C43) -> BANGUI III (Bédé-Combattant) | D43: =IF(COUNTRY_INFO!$U$9:$U$1000="MDA4 (ALB/2*ALB)", COUNTRY_INFO!$U$9:$U$1000, " ") ->  | I43: 0 | M43: 0 | Q43: 0 | R43: 0 | S43: 0 | T43: 0 | U43: 0

Sheet MDA3
A1: MDA 3 - Ivermectine (IVM)
A2: Structure administrative, population nécessitant une chimioprévention par groupe d'âge, population traitée par groupe d'âge et couverture
A4: TOTAL | F4: =SUM(F$9:F$1000) -> 295575 | G4: 746098.2351 | H4: 1041673.235 | I4: 214358.597 | J4: 729952.403 | K4: 944311 | L4: 0 | M4: 0 | N4: 0 | O4: 214358.597 | P4: 729952.403 | Q4: 944311 | R4: =IF(F4<>0, IF(O4/F4*100=0, "-", O4/F4*100), " ") -> 72.52257363 | S4: =IF(G4<>0, IF(P4/G4*100=0, "-", P4/G4*100), " ") -> 97.8359643 | T4: =IF(H4<>0, IF(Q4/H4*100=0, "-", Q4/H4*100), " ") -> 90.65328436
A6: Structure administrative du pays | D6: Mise en oeuvre de la CP | E6: Date | F6: Population ciblée pour MDA 3 | I6: Population traitée - tournée 1 | L6: Population traitée - tournée 2 | O6: Population traitée | R6: Couverture du Programme (%)
A7: Pays | B7: Région/Département | C7: District | F7: EAS | G7: Adultes | H7: Total | I7: EAS | J7: Adultes | K7: Total | L7: EAS | M7: Adultes | N7: Total | O7: EAS | P7: Adultes | Q7: Total | R7: EAS | S7: Adultes | T7: Total
A9: =IF(COUNTRY_INFO!A9=0," ",COUNTRY_INFO!A9) -> République Centrafricaine | B9: =IF(COUNTRY_INFO!B9=0," ",COUNTRY_INFO!B9) -> RS N° 1 | C9: =IF(COUNTRY_INFO!C9=0," ",COUNTRY_INFO!C9) -> BEGOUA | D9: =IF(COUNTRY_INFO!$U$9:$U$1000="MDA3 (IVM)", COUNTRY_INFO!$U$9:$U$1000, " ") ->  | H9: =SUM(F9:G9) -> 0 | N9: =SUM(L9:M9) -> 0 | O9: =MAX(I9,L9) -> 0 | P9: 0 | Q9: =SUM(O9:P9) -> 0 | R9: =IF(F9<>0, IF(MAX(I9,L9)/F9*100=0, "-", MAX(I9,L9)/F9*100), " ") ->  | T9: =IF(H9<>0, IF((MAX(I9,L9)+MAX(J9,M9))/H9*100=0, "-",(MAX(I9,L9)+MAX(J9,M9))/H9*100), " ") -> 
A10: =IF(COUNTRY_INFO!A10=0," ",COUNTRY_INFO!A10) -> République Centrafricaine | B10: =IF(COUNTRY_INFO!B10=0," ",COUNTRY_INFO!B10) -> RS N° 1 | C10: =IF(COUNTRY_INFO!C10=0," ",COUNTRY_INFO!C10) -> BIMBO | D10: =IF(COUNTRY_INFO!$U$9:$U$1000="MDA3 (IVM)", COUNTRY_INFO!$U$9:$U$1000, " ") ->  | H10: =SUM(F10:G10) -> 0 | N10: =SUM(L10:M10) -> 0 | O10: =MAX(I10,L10) -> 0 | P10: =MAX(J10,M10) -> 0 | Q10: =SUM(O10:P10) -> 0 | R10: =IF(F10<>0, IF(MAX(I10,L10)/F10*100=0, "-", MAX(I10,L10)/F10*100), " ") ->  | S10: =IF(G10<>0, IF(MAX(J10,M10)/G10*100=0, "-", MAX(J10,M10)/G10*100), " ") ->  | T10: =IF(H10<>0, IF((MAX(I10,L10)+MAX(J10,M10))/H10*100=0, "-",(MAX(I10,L10)+MAX(J10,M10))/H10*100), " ") -> 
A11: =IF(COUNTRY_INFO!A11=0," ",COUNTRY_INFO!A11) -> République Centrafricaine | B11: =IF(COUNTRY_INFO!B11=0," ",COUNTRY_INFO!B11) -> RS N° 1 | C11: =IF(COUNTRY_INFO!C11=0," ",COUNTRY_INFO!C11) -> BOSSEMBELE | D11: =IF(COUNTRY_INFO!$U$9:$U$1000="MDA3 (IVM)", COUNTRY_INFO!$U$9:$U$1000, " ") ->  | H11: 0 | N11: 0 | O11: 0 | P11: 0 | Q11: 0
A12: =IF(COUNTRY_INFO!A12=0," ",COUNTRY_INFO!A12) -> République Centrafricaine | B12: =IF(COUNTRY_INFO!B12=0," ",COUNTRY_INFO!B12) -> RS N° 1 | C12: =IF(COUNTRY_INFO!C12=0," ",COUNTRY_INFO!C12) -> BODA | D12: =IF(COUNTRY_INFO!$U$9:$U$1000="MDA3 (IVM)", COUNTRY_INFO!$U$9:$U$1000, " ") ->  | H12: 0 | N12: 0 | O12: 0 | P12: 0 | Q12: 0
A13: =IF(COUNTRY_INFO!A13=0," ",COUNTRY_INFO!A13) -> République Centrafricaine | B13: =IF(COUNTRY_INFO!B13=0," ",COUNTRY_INFO!B13) -> RS N° 1 | C13: =IF(COUNTRY_INFO!C13=0," ",COUNTRY_INFO!C13) -> MBAIKI | D13: =IF(COUNTRY_INFO!$U$9:$U$1000="MDA3 (IVM)", COUNTRY_INFO!$U$9:$U$1000, " ") ->  | H13: 0 | N13: 0 | O13: 0 | P13: 0 | Q13: 0
A14: =IF(COUNTRY_INFO!A14=0," ",COUNTRY_INFO!A14) -> République Centrafricaine | B14: =IF(COUNTRY_INFO!B14=0," ",COUNTRY_INFO!B14) -> RS N° 2 | C14: =IF(COUNTRY_INFO!C14=0," ",COUNTRY_INFO!C14) -> BERBERATI | D14: =IF(COUNTRY_INFO!$U$9:$U$1000="MDA3 (IVM)", COUNTRY_INFO!$U$9:$U$1000, " ") ->  | H14: 0 | N14: 0 | O14: 0 | P14: 0 | Q14: 0
A15: =IF(COUNTRY_INFO!A15=0," ",COUNTRY_INFO!A15) -> République Centrafricaine | B15: =IF(COUNTRY_INFO!B15=0," ",COUNTRY_INFO!B15) -> RS N° 2 | C15: =IF(COUNTRY_INFO!C15=0," ",COUNTRY_INFO!C15) -> CARNOT-GADZI | D15: =IF(COUNTRY_INFO!$U$9:$U$1000="MDA3 (IVM)", COUNTRY_INFO!$U$9:$U$1000, " ") ->  | H15: 0 | N15: 0 | O15: 0 | P15: 0 | Q15: 0
A16: =IF(COUNTRY_INFO!A16=0," ",COUNTRY_INFO!A16) -> République Centrafricaine | B16: =IF(COUNTRY_INFO!B16=0," ",COUNTRY_INFO!B16) -> RS N° 2 | C16: =IF(COUNTRY_INFO!C16=0," ",COUNTRY_INFO!C16) -> GAMBOULA | D16: =IF(COUNTRY_INFO!$U$9:$U$1000="MDA3 (IVM)", COUNTRY_INFO!$U$9:$U$1000, " ") ->  | H16: 0 | N16: 0 | O16: 0 | P16: 0 | Q16: 0
A17: =IF(COUNTRY_INFO!A17=0," ",COUNTRY_INFO!A17) -> République Centrafricaine | B17: =IF(COUNTRY_INFO!B17=0," ",COUNTRY_INFO!B17) -> RS N° 2 | C17: =IF(COUNTRY_INFO!C17=0," ",COUNTRY_INFO!C17) -> BABOUA-ABBA | D17: =IF(COUNTRY_INFO!$U$9:$U$1000="MDA3 (IVM)", COUNTRY_INFO!$U$9:$U$1000, " ") ->  | H17: 0 | N17: 0 | O17: 0 | P17: 0 | Q17: 0
A18: =IF(COUNTRY_INFO!A18=0," ",COUNTRY_INFO!A18) -> République Centrafricaine | B18: =IF(COUNTRY_INFO!B18=0," ",COUNTRY_INFO!B18) -> RS N° 2 | C18: =IF(COUNTRY_INFO!C18=0," ",COUNTRY_INFO!C18) -> BOUAR-BAORO | D18: =IF(COUNTRY_INFO!$U$9:$U$1000="MDA3 (IVM)", COUNTRY_INFO!$U$9:$U$1000, " ") ->  | H18: 0 | N18: 0 | O18: 0 | P18: 0 | Q18: 0
A19: =IF(COUNTRY_INFO!A19=0," ",COUNTRY_INFO!A19) -> République Centrafricaine | B19: =IF(COUNTRY_INFO!B19=0," ",COUNTRY_INFO!B19) -> RS N° 2 | C19: =IF(COUNTRY_INFO!C19=0," ",COUNTRY_INFO!C19) -> SANGHA-MBAERE | D19: =IF(COUNTRY_INFO!$U$9:$U$1000="MDA3 (IVM)", COUNTRY_INFO!$U$9:$U$1000, " ") ->  | H19: 0 | N19: 0 | O19: 0 | P19: 0 | Q19: 0
A20: =IF(COUNTRY_INFO!A20=0," ",COUNTRY_INFO!A20) -> République Centrafricaine | B20: =IF(COUNTRY_INFO!B20=0," ",COUNTRY_INFO!B20) -> RS N° 3 | C20: =IF(COUNTRY_INFO!C20=0," ",COUNTRY_INFO!C20) -> BATANGAFO | D20: =IF(COUNTRY_INFO!$U$9:$U$1000="MDA3 (IVM)", COUNTRY_INFO!$U$9:$U$1000, " ") -> MDA3 (IVM) | F20: 31721 | G20: 80069.51764 | H20: 111790.5176 | I20: 34673.569 | J20: 118073.431 | K20: =I20+J20 -> 152747 | N20: 0 | O20: 34673.569 | P20: 118073.431 | Q20: 152747 | R20: 109.3079317 | S20: 147.4636472 | T20: 136.6368125
A21: =IF(COUNTRY_INFO!A21=0," ",COUNTRY_INFO!A21) -> République Centrafricaine | B21: =IF(COUNTRY_INFO!B21=0," ",COUNTRY_INFO!B21) -> RS N° 3 | C21: =IF(COUNTRY_INFO!C21=0," ",COUNTRY_INFO!C21) -> BOUCA | D21: =IF(COUNTRY_INFO!$U$9:$U$1000="MDA3 (IVM)", COUNTRY_INFO!$U$9:$U$1000, " ") -> MDA3 (IVM) | F21: 17219 | G21: 43463.08157 | H21: 60682.08157 | I21: 11166.811 | J21: 38026.189 | K21: =I21+J21 -> 49193 | N21: 0 | O21: 11166.811 | P21: 38026.189 | Q21: 49193 | R21: 64.85168128 | S21: 87.49077982 | T21: 81.06676423
A22: =IF(COUNTRY_INFO!A22=0," ",COUNTRY_INFO!A22) -> République Centrafricaine | B22: =IF(COUNTRY_INFO!B22=0," ",COUNTRY_INFO!B22) -> RS N° 3 | C22: =IF(COUNTRY_INFO!C22=0," ",COUNTRY_INFO!C22) -> BOSSANGOA | D22: =IF(COUNTRY_INFO!$U$9:$U$1000="MDA3 (IVM)", COUNTRY_INFO!$U$9:$U$1000, " ") -> MDA3 (IVM) | F22: 38579 | G22: 97381.0489 | H22: 135960.0489 | I22: 19686.121 | J22: 67036.879 | K22: 86723 | N22: 0 | O22: 19686.121 | P22: 67036.879 | Q22: 86723 | R22: 51.02807486 | S22: 68.83975861 | T22: 63.78564931
A23: =IF(COUNTRY_INFO!A23=0," ",COUNTRY_INFO!A23) -> République Centrafricaine | B23: =IF(COUNTRY_INFO!B23=0," ",COUNTRY_INFO!B23) -> RS N° 3 | C23: =IF(COUNTRY_INFO!C23=0," ",COUNTRY_INFO!C23) -> NANGA-BOGUILA | D23: =IF(COUNTRY_INFO!$U$9:$U$1000="MDA3 (IVM)", COUNTRY_INFO!$U$9:$U$1000, " ") -> MDA3 (IVM) | F23: 26070 | G23: 65807.60073 | H23: 91877.60073 | I23: 24805.425 | J23: 84469.575 | K23: 109275 | N23: 0 | O23: 24805.425 | P23: 84469.575 | Q23: 109275 | R23: 95.14930955 | S23: 128.3583873 | T23: 118.9354088
A24: =IF(COUNTRY_INFO!A24=0," ",COUNTRY_INFO!A24) -> République Centrafricaine | B24: =IF(COUNTRY_INFO!B24=0," ",COUNTRY_INFO!B24) -> RS N° 3 | C24: =IF(COUNTRY_INFO!C24=0," ",COUNTRY_INFO!C24) -> BOCARANGA-KOUI | D24: =IF(COUNTRY_INFO!$U$9:$U$1000="MDA3 (IVM)", COUNTRY_INFO!$U$9:$U$1000, " ") -> MDA3 (IVM) | F24: 33821 | G24: 85371.6582 | H24: 119192.6582 | I24: 22289.357 | J24: 75901.643 | K24: 98191 | N24: 0 | O24: 22289.357 | P24: 75901.643 | Q24: 98191 | R24: 65.90389699 | S24: 88.90730788 | T24: 82.38007397
A25: =IF(COUNTRY_INFO!A25=0," ",COUNTRY_INFO!A25) -> République Centrafricaine | B25: =IF(COUNTRY_INFO!B25=0," ",COUNTRY_INFO!B25) -> RS N° 3 | C25: =IF(COUNTRY_INFO!C25=0," ",COUNTRY_INFO!C25) -> BOZOUM-BOSSEMPTELE | D25: =IF(COUNTRY_INFO!$U$9:$U$1000="MDA3 (IVM)", COUNTRY_INFO!$U$9:$U$1000, " ") -> MDA3 (IVM) | F25: 22186 | G25: 56002.46231 | H25: 78188.46231 | I25: 7661.25 | J25: 26088.75 | K25: 33750 | N25: 0 | O25: 7661.25 | P25: 26088.75 | Q25: 33750 | R25: 34.53191202 | S25: 46.58500523 | T25: 43.16493636
A26: =IF(COUNTRY_INFO!A26=0," ",COUNTRY_INFO!A26) -> République Centrafricaine | B26: =IF(COUNTRY_INFO!B26=0," ",COUNTRY_INFO!B26) -> RS N° 3 | C26: =IF(COUNTRY_INFO!C26=0," ",COUNTRY_INFO!C26) -> NGAOUNDAYE | D26: =IF(COUNTRY_INFO!$U$9:$U$1000="MDA3 (IVM)", COUNTRY_INFO!$U$9:$U$1000, " ") -> MDA3 (IVM) | F26: 27379 | G26: 69111.39852 | H26: 96490.39852 | I26: 28354.116 | J26: 96553.884 | K26: 124908 | N26: 0 | O26: 28354.116 | P26: 96553.884 | Q26: 124908 | R26: 103.5615472 | S26: 139.7076113 | T26: 129.451222
A27: =IF(COUNTRY_INFO!A27=0," ",COUNTRY_INFO!A27) -> République Centrafricaine | B27: =IF(COUNTRY_INFO!B27=0," ",COUNTRY_INFO!B27) -> RS N° 3 | C27: =IF(COUNTRY_INFO!C27=0," ",COUNTRY_INFO!C27) -> PAOUA | D27: =IF(COUNTRY_INFO!$U$9:$U$1000="MDA3 (IVM)", COUNTRY_INFO!$U$9:$U$1000, " ") -> MDA3 (IVM) | F27: 49056 | G27: 123830.035 | H27: 172886.035 | I27: 43458.696 | J27: 147989.304 | K27: 191448 | N27: 0 | O27: 43458.696 | P27: 147989.304 | Q27: 191448 | R27: 88.58997065 | S27: 119.5100235 | T27: 110.7365323
A28: =IF(COUNTRY_INFO!A28=0," ",COUNTRY_INFO!A28) -> République Centrafricaine | B28: =IF(COUNTRY_INFO!B28=0," ",COUNTRY_INFO!B28) -> RS N° 4 | C28: =IF(COUNTRY_INFO!C28=0," ",COUNTRY_INFO!C28) -> KEMO | D28: =IF(COUNTRY_INFO!$U$9:$U$1000="MDA3 (IVM)", COUNTRY_INFO!$U$9:$U$1000, " ") ->  | F28: 0 | G28: 0 | H28: 0 | I28: 0 | J28: 0 | K28: 0 | N28: 0 | O28: 0 | P28: 0 | Q28: 0
A29: =IF(COUNTRY_INFO!A29=0," ",COUNTRY_INFO!A29) -> République Centrafricaine | B29: =IF(COUNTRY_INFO!B29=0," ",COUNTRY_INFO!B29) -> RS N° 4 | C29: =IF(COUNTRY_INFO!C29=0," ",COUNTRY_INFO!C29) -> NANA-GRIBIZI | D29: =IF(COUNTRY_INFO!$U$9:$U$1000="MDA3 (IVM)", COUNTRY_INFO!$U$9:$U$1000, " ") -> MDA3 (IVM) | F29: 36245 | G29: 91491.50335 | H29: 127736.5033 | I29: 14036.091 | J29: 47796.909 | K29: 61833 | N29: 0 | O29: 14036.091 | P29: 47796.909 | Q29: 61833 | R29: 38.7255925 | S29: 52.24191018 | T29: 48.40667967
A30: =IF(COUNTRY_INFO!A30=0," ",COUNTRY_INFO!A30) -> République Centrafricaine | B30: =IF(COUNTRY_INFO!B30=0," ",COUNTRY_INFO!B30) -> RS N° 4 | C30: =IF(COUNTRY_INFO!C30=0," ",COUNTRY_INFO!C30) -> BAMBARI | D30: =IF(COUNTRY_INFO!$U$9:$U$1000="MDA3 (IVM)", COUNTRY_INFO!$U$9:$U$1000, " ") ->  | F30: 0 | G30: 0 | H30: 0 | I30: 0 | J30: 0 | K30: 0 | N30: 0 | O30: 0 | P30: 0 | Q30: 0
A31: =IF(COUNTRY_INFO!A31=0," ",COUNTRY_INFO!A31) -> République Centrafricaine | B31: =IF(COUNTRY_INFO!B31=0," ",COUNTRY_INFO!B31) -> RS N° 4 | C31: =IF(COUNTRY_INFO!C31=0," ",COUNTRY_INFO!C31) -> KOUANGO-GRIMARI | D31: =IF(COUNTRY_INFO!$U$9:$U$1000="MDA3 (IVM)", COUNTRY_INFO!$U$9:$U$1000, " ") ->  | F31: 0 | G31: 0 | H31: 0 | I31: 0 | J31: 0 | K31: 0 | N31: 0 | O31: 0 | P31: 0 | Q31: 0
A32: =IF(COUNTRY_INFO!A32=0," ",COUNTRY_INFO!A32) -> République Centrafricaine | B32: =IF(COUNTRY_INFO!B32=0," ",COUNTRY_INFO!B32) -> RS N° 5 | C32: =IF(COUNTRY_INFO!C32=0," ",COUNTRY_INFO!C32) -> BAMINGUI-BANGORAN | D32: =IF(COUNTRY_INFO!$U$9:$U$1000="MDA3 (IVM)", COUNTRY_INFO!$U$9:$U$1000, " ") -> MDA3 (IVM) | F32: 13299 | G32: 33569.92886 | H32: 46868.92886 | I32: 8227.161 | J32: 28015.839 | K32: 36243 | N32: 0 | O32: 8227.161 | P32: 28015.839 | Q32: 36243 | R32: 61.86300474 | S32: 83.45516344 | T32: 77.32841539
A33: =IF(COUNTRY_INFO!A33=0," ",COUNTRY_INFO!A33) -> République Centrafricaine | B33: =IF(COUNTRY_INFO!B33=0," ",COUNTRY_INFO!B33) -> RS N° 5 | C33: =IF(COUNTRY_INFO!C33=0," ",COUNTRY_INFO!C33) -> HAUTE-KOTTO | D33: =IF(COUNTRY_INFO!$U$9:$U$1000="MDA3 (IVM)", COUNTRY_INFO!$U$9:$U$1000, " ") ->  | H33: 0 | N33: 0 | O33: 0 | P33: 0 | Q33: 0
A34: =IF(COUNTRY_INFO!A34=0," ",COUNTRY_INFO!A34) -> République Centrafricaine | B34: =IF(COUNTRY_INFO!B34=0," ",COUNTRY_INFO!B34) -> RS N° 5 | C34: =IF(COUNTRY_INFO!C34=0," ",COUNTRY_INFO!C34) -> VAKAGA | D34: =IF(COUNTRY_INFO!$U$9:$U$1000="MDA3 (IVM)", COUNTRY_INFO!$U$9:$U$1000, " ") ->  | G34: 0 | H34: 0 | K34: =SUM(I34:J34) -> 0 | N34: 0 | O34: 0 | P34: 0 | Q34: 0
A35: =IF(COUNTRY_INFO!A35=0," ",COUNTRY_INFO!A35) -> République Centrafricaine | B35: =IF(COUNTRY_INFO!B35=0," ",COUNTRY_INFO!B35) -> RS N° 6 | C35: =IF(COUNTRY_INFO!C35=0," ",COUNTRY_INFO!C35) -> ALINDAO MINGALA | D35: =IF(COUNTRY_INFO!$U$9:$U$1000="MDA3 (IVM)", COUNTRY_INFO!$U$9:$U$1000, " ") ->  | G35: 0 | H35: 0 | K35: 0 | N35: 0 | O35: 0 | P35: 0 | Q35: 0
A36: =IF(COUNTRY_INFO!A36=0," ",COUNTRY_INFO!A36) -> République Centrafricaine | B36: =IF(COUNTRY_INFO!B36=0," ",COUNTRY_INFO!B36) -> RS N° 6 | C36: =IF(COUNTRY_INFO!C36=0," ",COUNTRY_INFO!C36) -> KEMBE SATEMA | D36: =IF(COUNTRY_INFO!$U$9:$U$1000="MDA3 (IVM)", COUNTRY_INFO!$U$9:$U$1000, " ") ->  | G36: 0 | H36: 0 | K36: 0 | N36: 0 | O36: 0 | P36: 0 | Q36: 0
A37: =IF(COUNTRY_INFO!A37=0," ",COUNTRY_INFO!A37) -> République Centrafricaine | B37: =IF(COUNTRY_INFO!B37=0," ",COUNTRY_INFO!B37) -> RS N° 6 | C37: =IF(COUNTRY_INFO!C37=0," ",COUNTRY_INFO!C37) -> MOBAYE-ZANGBA | D37: =IF(COUNTRY_INFO!$U$9:$U$1000="MDA3 (IVM)", COUNTRY_INFO!$U$9:$U$1000, " ") ->  | G37: 0 | H37: 0 | K37: 0 | N37: 0 | O37: 0 | P37: 0 | Q37: 0
A38: =IF(COUNTRY_INFO!A38=0," ",COUNTRY_INFO!A38) -> République Centrafricaine | B38: =IF(COUNTRY_INFO!B38=0," ",COUNTRY_INFO!B38) -> RS N° 6 | C38: =IF(COUNTRY_INFO!C38=0," ",COUNTRY_INFO!C38) -> BANGASSOU | D38: =IF(COUNTRY_INFO!$U$9:$U$1000="MDA3 (IVM)", COUNTRY_INFO!$U$9:$U$1000, " ") ->  | G38: 0 | H38: 0 | K38: 0 | N38: 0 | O38: 0 | P38: 0 | Q38: 0
A39: =IF(COUNTRY_INFO!A39=0," ",COUNTRY_INFO!A39) -> République Centrafricaine | B39: =IF(COUNTRY_INFO!B39=0," ",COUNTRY_INFO!B39) -> RS N° 6 | C39: =IF(COUNTRY_INFO!C39=0," ",COUNTRY_INFO!C39) -> OUANGO-GAMBO | D39: =IF(COUNTRY_INFO!$U$9:$U$1000="MDA3 (IVM)", COUNTRY_INFO!$U$9:$U$1000, " ") ->  | G39: 0 | H39: 0 | K39: 0 | N39: 0 | O39: 0 | P39: 0 | Q39: 0
A40: =IF(COUNTRY_INFO!A40=0," ",COUNTRY_INFO!A40) -> République Centrafricaine | B40: =IF(COUNTRY_INFO!B40=0," ",COUNTRY_INFO!B40) -> RS N° 6 | C40: =IF(COUNTRY_INFO!C40=0," ",COUNTRY_INFO!C40) -> HAUT-MBOMOU | D40: =IF(COUNTRY_INFO!$U$9:$U$1000="MDA3 (IVM)", COUNTRY_INFO!$U$9:$U$1000, " ") ->  | H40: 0 | K40: 0 | N40: 0 | O40: 0 | P40: 0 | Q40: 0
A41: =IF(COUNTRY_INFO!A41=0," ",COUNTRY_INFO!A41) -> République Centrafricaine | B41: =IF(COUNTRY_INFO!B41=0," ",COUNTRY_INFO!B41) -> RS N° 7 | C41: =IF(COUNTRY_INFO!C41=0," ",COUNTRY_INFO!C41) -> BANGUI I (lakouanga) | D41: =IF(COUNTRY_INFO!$U$9:$U$1000="MDA3 (IVM)", COUNTRY_INFO!$U$9:$U$1000, " ") ->  | G41: 0 | H41: 0 | I41: =E41-F41 -> 0 | K41: 0 | N41: 0 | O41: 0 | P41: 0 | Q41: 0
A42: =IF(COUNTRY_INFO!A42=0," ",COUNTRY_INFO!A42) -> République Centrafricaine | B42: =IF(COUNTRY_INFO!B42=0," ",COUNTRY_INFO!B42) -> RS N° 7 | C42: =IF(COUNTRY_INFO!C42=0," ",COUNTRY_INFO!C42) -> BANGUI II (Castors) | D42: =IF(COUNTRY_INFO!$U$9:$U$1000="MDA3 (IVM)", COUNTRY_INFO!$U$9:$U$1000, " ") ->  | G42: 0 | H42: 0 | I42: 0 | K42: 0 | N42: 0 | O42: 0 | P42: 0 | Q42: 0
A43: =IF(COUNTRY_INFO!A43=0," ",COUNTRY_INFO!A43) -> République Centrafricaine | B43: =IF(COUNTRY_INFO!B43=0," ",COUNTRY_INFO!B43) -> RS N° 7 | C43: =IF(COUNTRY_INFO!C43=0," ",COUNTRY_INFO!C43) -> BANGUI III (Bédé-Combattant) | D43: =IF(COUNTRY_INFO!$U$9:$U$1000="MDA3 (IVM)", COUNTRY_INFO!$U$9:$U$1000, " ") ->  | H43: 0 | K43: 0 | N43: 0 | O43: 0 | P43: 0 | Q43: 0

Sheet T1
A1: T 1 - Praziquantel (PZQ) et Albendazole (ALB) ou Mebendazole (MBD)
A2: Structure administrative, population nécessitant une chimioprévention par groupe d'âge, population traitée par groupe d'âge et couverture
A4: TOTAL | G4: =SUM(G$9:G$1000) -> 0 | H4: 0 | I4: 0 | J4: 0 | K4: =SUM(K$9:K$1000) -> 0 | L4: 0 | M4: 0 | N4: 0 | O4: 0 | P4: =IF(G4<>0, IF(L4/G4*100=0, "-", L4/G4*100), " ") ->  | Q4: =IF(OR(I4<>0,H4<>0), IF(M4/MAX(H4,I4)*100=0, "-", M4/MAX(H4,I4)*100), " ") ->  | R4: =IF(J4<>0, IF(N4/J4*100=0, "-", N4/J4*100), " ") ->  | S4: =IF(K4<>0, IF(O4/K4*100=0, "-", O4/K4*100), " ") -> 
A6: Structure administrative du pays | D6: Mise en oeuvre de la CP | E6: Médica-ment | F6: Date | G6: Population ciblée pour T1 | L6: Population traitée | P6: Couverture du Programme (%)
A7: Pays | B7: Région/Département | C7: District | G7: EAPréS (ALB) | H7: EAS (ALB) | I7: EAS (PZQ) | J7: Adultes (PZQ) | K7: Total | L7: EAPréS | M7: EAS | N7: Adultes | O7: Total | P7: EAPréS | Q7: EAS | R7: Adultes | S7: Total
A9: =IF(COUNTRY_INFO!A9=0," ",COUNTRY_INFO!A9) -> République Centrafricaine | B9: =IF(COUNTRY_INFO!B9=0," ",COUNTRY_INFO!B9) -> RS N° 1 | C9: =IF(COUNTRY_INFO!C9=0," ",COUNTRY_INFO!C9) -> BEGOUA | D9: =IF(OR(COUNTRY_INFO!$U$9:$U$1000="T1 (PZQ+ALB/MBD)",COUNTRY_INFO!$V$9:$V$1000="T1 (PZQ+ALB/MBD)"), "T1 (PZQ+ALB/MBD)", " ") ->  | K9: =MAX(H9:I9)+G9+J9 -> 0 | O9: =SUM(L9:N9) -> 0 | P9: =IF(G9<>0, IF(L9/G9*100=0, "-", L9/G9*100), " ") ->  | Q9: =IF(OR(I9<>0,H9<>0), IF(M9/MAX(H9,I9)*100=0, "-", M9/MAX(H9,I9)*100), " ") ->  | R9: =IF(J9<>0, IF(N9/J9*100=0, "-", N9/J9*100), " ") -> 
A10: =IF(COUNTRY_INFO!A10=0," ",COUNTRY_INFO!A10) -> République Centrafricaine | B10: =IF(COUNTRY_INFO!B10=0," ",COUNTRY_INFO!B10) -> RS N° 1 | C10: =IF(COUNTRY_INFO!C10=0," ",COUNTRY_INFO!C10) -> BIMBO | D10: =IF(OR(COUNTRY_INFO!$U$9:$U$1000="T1 (PZQ+ALB/MBD)",COUNTRY_INFO!$V$9:$V$1000="T1 (PZQ+ALB/MBD)"), "T1 (PZQ+ALB/MBD)", " ") ->  | K10: =MAX(H10:I10)+G10+J10 -> 0 | O10: =SUM(L10:N10) -> 0 | P10: =IF(G10<>0, IF(L10/G10*100=0, "-", L10/G10*100), " ") ->  | Q10: =IF(OR(I10<>0,H10<>0), IF(M10/MAX(H10,I10)*100=0, "-", M10/MAX(H10,I10)*100), " ") ->  | R10: =IF(J10<>0, IF(N10/J10*100=0, "-", N10/J10*100), " ") ->  | S10: =IF(K10<>0, IF(O10/K10*100=0, "-", O10/K10*100), " ") -> 
A11: =IF(COUNTRY_INFO!A11=0," ",COUNTRY_INFO!A11) -> République Centrafricaine | B11: =IF(COUNTRY_INFO!B11=0," ",COUNTRY_INFO!B11) -> RS N° 1 | C11: =IF(COUNTRY_INFO!C11=0," ",COUNTRY_INFO!C11) -> BOSSEMBELE | D11: =IF(OR(COUNTRY_INFO!$U$9:$U$1000="T1 (PZQ+ALB/MBD)",COUNTRY_INFO!$V$9:$V$1000="T1 (PZQ+ALB/MBD)"), "T1 (PZQ+ALB/MBD)", " ") ->  | K11: 0 | O11: 0
A12: =IF(COUNTRY_INFO!A12=0," ",COUNTRY_INFO!A12) -> République Centrafricaine | B12: =IF(COUNTRY_INFO!B12=0," ",COUNTRY_INFO!B12) -> RS N° 1 | C12: =IF(COUNTRY_INFO!C12=0," ",COUNTRY_INFO!C12) -> BODA | D12: =IF(OR(COUNTRY_INFO!$U$9:$U$1000="T1 (PZQ+ALB/MBD)",COUNTRY_INFO!$V$9:$V$1000="T1 (PZQ+ALB/MBD)"), "T1 (PZQ+ALB/MBD)", " ") ->  | K12: 0 | O12: 0
A13: =IF(COUNTRY_INFO!A13=0," ",COUNTRY_INFO!A13) -> République Centrafricaine | B13: =IF(COUNTRY_INFO!B13=0," ",COUNTRY_INFO!B13) -> RS N° 1 | C13: =IF(COUNTRY_INFO!C13=0," ",COUNTRY_INFO!C13) -> MBAIKI | D13: =IF(OR(COUNTRY_INFO!$U$9:$U$1000="T1 (PZQ+ALB/MBD)",COUNTRY_INFO!$V$9:$V$1000="T1 (PZQ+ALB/MBD)"), "T1 (PZQ+ALB/MBD)", " ") ->  | K13: 0 | O13: 0
A14: =IF(COUNTRY_INFO!A14=0," ",COUNTRY_INFO!A14) -> République Centrafricaine | B14: =IF(COUNTRY_INFO!B14=0," ",COUNTRY_INFO!B14) -> RS N° 2 | C14: =IF(COUNTRY_INFO!C14=0," ",COUNTRY_INFO!C14) -> BERBERATI | D14: =IF(OR(COUNTRY_INFO!$U$9:$U$1000="T1 (PZQ+ALB/MBD)",COUNTRY_INFO!$V$9:$V$1000="T1 (PZQ+ALB/MBD)"), "T1 (PZQ+ALB/MBD)", " ") ->  | K14: 0 | O14: 0
A15: =IF(COUNTRY_INFO!A15=0," ",COUNTRY_INFO!A15) -> République Centrafricaine | B15: =IF(COUNTRY_INFO!B15=0," ",COUNTRY_INFO!B15) -> RS N° 2 | C15: =IF(COUNTRY_INFO!C15=0," ",COUNTRY_INFO!C15) -> CARNOT-GADZI | D15: =IF(OR(COUNTRY_INFO!$U$9:$U$1000="T1 (PZQ+ALB/MBD)",COUNTRY_INFO!$V$9:$V$1000="T1 (PZQ+ALB/MBD)"), "T1 (PZQ+ALB/MBD)", " ") ->  | K15: 0 | O15: 0
A16: =IF(COUNTRY_INFO!A16=0," ",COUNTRY_INFO!A16) -> République Centrafricaine | B16: =IF(COUNTRY_INFO!B16=0," ",COUNTRY_INFO!B16) -> RS N° 2 | C16: =IF(COUNTRY_INFO!C16=0," ",COUNTRY_INFO!C16) -> GAMBOULA | D16: =IF(OR(COUNTRY_INFO!$U$9:$U$1000="T1 (PZQ+ALB/MBD)",COUNTRY_INFO!$V$9:$V$1000="T1 (PZQ+ALB/MBD)"), "T1 (PZQ+ALB/MBD)", " ") ->  | K16: 0 | O16: 0
A17: =IF(COUNTRY_INFO!A17=0," ",COUNTRY_INFO!A17) -> République Centrafricaine | B17: =IF(COUNTRY_INFO!B17=0," ",COUNTRY_INFO!B17) -> RS N° 2 | C17: =IF(COUNTRY_INFO!C17=0," ",COUNTRY_INFO!C17) -> BABOUA-ABBA | D17: =IF(OR(COUNTRY_INFO!$U$9:$U$1000="T1 (PZQ+ALB/MBD)",COUNTRY_INFO!$V$9:$V$1000="T1 (PZQ+ALB/MBD)"), "T1 (PZQ+ALB/MBD)", " ") ->  | K17: 0 | O17: 0
A18: =IF(COUNTRY_INFO!A18=0," ",COUNTRY_INFO!A18) -> République Centrafricaine | B18: =IF(COUNTRY_INFO!B18=0," ",COUNTRY_INFO!B18) -> RS N° 2 | C18: =IF(COUNTRY_INFO!C18=0," ",COUNTRY_INFO!C18) -> BOUAR-BAORO | D18: =IF(OR(COUNTRY_INFO!$U$9:$U$1000="T1 (PZQ+ALB/MBD)",COUNTRY_INFO!$V$9:$V$1000="T1 (PZQ+ALB/MBD)"), "T1 (PZQ+ALB/MBD)", " ") ->  | K18: 0 | O18: 0
A19: =IF(COUNTRY_INFO!A19=0," ",COUNTRY_INFO!A19) -> République Centrafricaine | B19: =IF(COUNTRY_INFO!B19=0," ",COUNTRY_INFO!B19) -> RS N° 2 | C19: =IF(COUNTRY_INFO!C19=0," ",COUNTRY_INFO!C19) -> SANGHA-MBAERE | D19: =IF(OR(COUNTRY_INFO!$U$9:$U$1000="T1 (PZQ+ALB/MBD)",COUNTRY_INFO!$V$9:$V$1000="T1 (PZQ+ALB/MBD)"), "T1 (PZQ+ALB/MBD)", " ") ->  | K19: 0 | O19: 0
A20: =IF(COUNTRY_INFO!A20=0," ",COUNTRY_INFO!A20) -> République Centrafricaine | B20: =IF(COUNTRY_INFO!B20=0," ",COUNTRY_INFO!B20) -> RS N° 3 | C20: =IF(COUNTRY_INFO!C20=0," ",COUNTRY_INFO!C20) -> BATANGAFO | D20: =IF(OR(COUNTRY_INFO!$U$9:$U$1000="T1 (PZQ+ALB/MBD)",COUNTRY_INFO!$V$9:$V$1000="T1 (PZQ+ALB/MBD)"), "T1 (PZQ+ALB/MBD)", " ") ->  | K20: 0 | O20: 0
A21: =IF(COUNTRY_INFO!A21=0," ",COUNTRY_INFO!A21) -> République Centrafricaine | B21: =IF(COUNTRY_INFO!B21=0," ",COUNTRY_INFO!B21) -> RS N° 3 | C21: =IF(COUNTRY_INFO!C21=0," ",COUNTRY_INFO!C21) -> BOUCA | D21: =IF(OR(COUNTRY_INFO!$U$9:$U$1000="T1 (PZQ+ALB/MBD)",COUNTRY_INFO!$V$9:$V$1000="T1 (PZQ+ALB/MBD)"), "T1 (PZQ+ALB/MBD)", " ") ->  | K21: 0 | O21: 0
A22: =IF(COUNTRY_INFO!A22=0," ",COUNTRY_INFO!A22) -> République Centrafricaine | B22: =IF(COUNTRY_INFO!B22=0," ",COUNTRY_INFO!B22) -> RS N° 3 | C22: =IF(COUNTRY_INFO!C22=0," ",COUNTRY_INFO!C22) -> BOSSANGOA | D22: =IF(OR(COUNTRY_INFO!$U$9:$U$1000="T1 (PZQ+ALB/MBD)",COUNTRY_INFO!$V$9:$V$1000="T1 (PZQ+ALB/MBD)"), "T1 (PZQ+ALB/MBD)", " ") ->  | K22: 0 | O22: 0
A23: =IF(COUNTRY_INFO!A23=0," ",COUNTRY_INFO!A23) -> République Centrafricaine | B23: =IF(COUNTRY_INFO!B23=0," ",COUNTRY_INFO!B23) -> RS N° 3 | C23: =IF(COUNTRY_INFO!C23=0," ",COUNTRY_INFO!C23) -> NANGA-BOGUILA | D23: =IF(OR(COUNTRY_INFO!$U$9:$U$1000="T1 (PZQ+ALB/MBD)",COUNTRY_INFO!$V$9:$V$1000="T1 (PZQ+ALB/MBD)"), "T1 (PZQ+ALB/MBD)", " ") ->  | K23: 0 | O23: 0
A24: =IF(COUNTRY_INFO!A24=0," ",COUNTRY_INFO!A24) -> République Centrafricaine | B24: =IF(COUNTRY_INFO!B24=0," ",COUNTRY_INFO!B24) -> RS N° 3 | C24: =IF(COUNTRY_INFO!C24=0," ",COUNTRY_INFO!C24) -> BOCARANGA-KOUI | D24: =IF(OR(COUNTRY_INFO!$U$9:$U$1000="T1 (PZQ+ALB/MBD)",COUNTRY_INFO!$V$9:$V$1000="T1 (PZQ+ALB/MBD)"), "T1 (PZQ+ALB/MBD)", " ") ->  | K24: 0 | O24: 0
A25: =IF(COUNTRY_INFO!A25=0," ",COUNTRY_INFO!A25) -> République Centrafricaine | B25: =IF(COUNTRY_INFO!B25=0," ",COUNTRY_INFO!B25) -> RS N° 3 | C25: =IF(COUNTRY_INFO!C25=0," ",COUNTRY_INFO!C25) -> BOZOUM-BOSSEMPTELE | D25: =IF(OR(COUNTRY_INFO!$U$9:$U$1000="T1 (PZQ+ALB/MBD)",COUNTRY_INFO!$V$9:$V$1000="T1 (PZQ+ALB/MBD)"), "T1 (PZQ+ALB/MBD)", " ") ->  | K25: 0 | O25: 0
A26: =IF(COUNTRY_INFO!A26=0," ",COUNTRY_INFO!A26) -> République Centrafricaine | B26: =IF(COUNTRY_INFO!B26=0," ",COUNTRY_INFO!B26) -> RS N° 3 | C26: =IF(COUNTRY_INFO!C26=0," ",COUNTRY_INFO!C26) -> NGAOUNDAYE | D26: =IF(OR(COUNTRY_INFO!$U$9:$U$1000="T1 (PZQ+ALB/MBD)",COUNTRY_INFO!$V$9:$V$1000="T1 (PZQ+ALB/MBD)"), "T1 (PZQ+ALB/MBD)", " ") ->  | K26: 0 | O26: 0
A27: =IF(COUNTRY_INFO!A27=0," ",COUNTRY_INFO!A27) -> République Centrafricaine | B27: =IF(COUNTRY_INFO!B27=0," ",COUNTRY_INFO!B27) -> RS N° 3 | C27: =IF(COUNTRY_INFO!C27=0," ",COUNTRY_INFO!C27) -> PAOUA | D27: =IF(OR(COUNTRY_INFO!$U$9:$U$1000="T1 (PZQ+ALB/MBD)",COUNTRY_INFO!$V$9:$V$1000="T1 (PZQ+ALB/MBD)"), "T1 (PZQ+ALB/MBD)", " ") ->  | K27: 0 | O27: 0
A28: =IF(COUNTRY_INFO!A28=0," ",COUNTRY_INFO!A28) -> République Centrafricaine | B28: =IF(COUNTRY_INFO!B28=0," ",COUNTRY_INFO!B28) -> RS N° 4 | C28: =IF(COUNTRY_INFO!C28=0," ",COUNTRY_INFO!C28) -> KEMO | D28: =IF(OR(COUNTRY_INFO!$U$9:$U$1000="T1 (PZQ+ALB/MBD)",COUNTRY_INFO!$V$9:$V$1000="T1 (PZQ+ALB/MBD)"), "T1 (PZQ+ALB/MBD)", " ") ->  | K28: 0 | O28: 0
A29: =IF(COUNTRY_INFO!A29=0," ",COUNTRY_INFO!A29) -> République Centrafricaine | B29: =IF(COUNTRY_INFO!B29=0," ",COUNTRY_INFO!B29) -> RS N° 4 | C29: =IF(COUNTRY_INFO!C29=0," ",COUNTRY_INFO!C29) -> NANA-GRIBIZI | D29: =IF(OR(COUNTRY_INFO!$U$9:$U$1000="T1 (PZQ+ALB/MBD)",COUNTRY_INFO!$V$9:$V$1000="T1 (PZQ+ALB/MBD)"), "T1 (PZQ+ALB/MBD)", " ") ->  | K29: 0 | O29: 0
A30: =IF(COUNTRY_INFO!A30=0," ",COUNTRY_INFO!A30) -> République Centrafricaine | B30: =IF(COUNTRY_INFO!B30=0," ",COUNTRY_INFO!B30) -> RS N° 4 | C30: =IF(COUNTRY_INFO!C30=0," ",COUNTRY_INFO!C30) -> BAMBARI | D30: =IF(OR(COUNTRY_INFO!$U$9:$U$1000="T1 (PZQ+ALB/MBD)",COUNTRY_INFO!$V$9:$V$1000="T1 (PZQ+ALB/MBD)"), "T1 (PZQ+ALB/MBD)", " ") ->  | K30: 0 | O30: 0
A31: =IF(COUNTRY_INFO!A31=0," ",COUNTRY_INFO!A31) -> République Centrafricaine | B31: =IF(COUNTRY_INFO!B31=0," ",COUNTRY_INFO!B31) -> RS N° 4 | C31: =IF(COUNTRY_INFO!C31=0," ",COUNTRY_INFO!C31) -> KOUANGO-GRIMARI | D31: =IF(OR(COUNTRY_INFO!$U$9:$U$1000="T1 (PZQ+ALB/MBD)",COUNTRY_INFO!$V$9:$V$1000="T1 (PZQ+ALB/MBD)"), "T1 (PZQ+ALB/MBD)", " ") ->  | K31: 0 | O31: 0
A32: =IF(COUNTRY_INFO!A32=0," ",COUNTRY_INFO!A32) -> République Centrafricaine | B32: =IF(COUNTRY_INFO!B32=0," ",COUNTRY_INFO!B32) -> RS N° 5 | C32: =IF(COUNTRY_INFO!C32=0," ",COUNTRY_INFO!C32) -> BAMINGUI-BANGORAN | D32: =IF(OR(COUNTRY_INFO!$U$9:$U$1000="T1 (PZQ+ALB/MBD)",COUNTRY_INFO!$V$9:$V$1000="T1 (PZQ+ALB/MBD)"), "T1 (PZQ+ALB/MBD)", " ") ->  | K32: 0 | O32: 0
A33: =IF(COUNTRY_INFO!A33=0," ",COUNTRY_INFO!A33) -> République Centrafricaine | B33: =IF(COUNTRY_INFO!B33=0," ",COUNTRY_INFO!B33) -> RS N° 5 | C33: =IF(COUNTRY_INFO!C33=0," ",COUNTRY_INFO!C33) -> HAUTE-KOTTO | D33: =IF(OR(COUNTRY_INFO!$U$9:$U$1000="T1 (PZQ+ALB/MBD)",COUNTRY_INFO!$V$9:$V$1000="T1 (PZQ+ALB/MBD)"), "T1 (PZQ+ALB/MBD)", " ") ->  | K33: 0 | O33: 0
A34: =IF(COUNTRY_INFO!A34=0," ",COUNTRY_INFO!A34) -> République Centrafricaine | B34: =IF(COUNTRY_INFO!B34=0," ",COUNTRY_INFO!B34) -> RS N° 5 | C34: =IF(COUNTRY_INFO!C34=0," ",COUNTRY_INFO!C34) -> VAKAGA | D34: =IF(OR(COUNTRY_INFO!$U$9:$U$1000="T1 (PZQ+ALB/MBD)",COUNTRY_INFO!$V$9:$V$1000="T1 (PZQ+ALB/MBD)"), "T1 (PZQ+ALB/MBD)", " ") ->  | K34: 0 | O34: 0
A35: =IF(COUNTRY_INFO!A35=0," ",COUNTRY_INFO!A35) -> République Centrafricaine | B35: =IF(COUNTRY_INFO!B35=0," ",COUNTRY_INFO!B35) -> RS N° 6 | C35: =IF(COUNTRY_INFO!C35=0," ",COUNTRY_INFO!C35) -> ALINDAO MINGALA | D35: =IF(OR(COUNTRY_INFO!$U$9:$U$1000="T1 (PZQ+ALB/MBD)",COUNTRY_INFO!$V$9:$V$1000="T1 (PZQ+ALB/MBD)"), "T1 (PZQ+ALB/MBD)", " ") ->  | K35: 0 | O35: 0
A36: =IF(COUNTRY_INFO!A36=0," ",COUNTRY_INFO!A36) -> République Centrafricaine | B36: =IF(COUNTRY_INFO!B36=0," ",COUNTRY_INFO!B36) -> RS N° 6 | C36: =IF(COUNTRY_INFO!C36=0," ",COUNTRY_INFO!C36) -> KEMBE SATEMA | D36: =IF(OR(COUNTRY_INFO!$U$9:$U$1000="T1 (PZQ+ALB/MBD)",COUNTRY_INFO!$V$9:$V$1000="T1 (PZQ+ALB/MBD)"), "T1 (PZQ+ALB/MBD)", " ") ->  | K36: 0 | O36: 0
A37: =IF(COUNTRY_INFO!A37=0," ",COUNTRY_INFO!A37) -> République Centrafricaine | B37: =IF(COUNTRY_INFO!B37=0," ",COUNTRY_INFO!B37) -> RS N° 6 | C37: =IF(COUNTRY_INFO!C37=0," ",COUNTRY_INFO!C37) -> MOBAYE-ZANGBA | D37: =IF(OR(COUNTRY_INFO!$U$9:$U$1000="T1 (PZQ+ALB/MBD)",COUNTRY_INFO!$V$9:$V$1000="T1 (PZQ+ALB/MBD)"), "T1 (PZQ+ALB/MBD)", " ") ->  | K37: 0 | O37: 0
A38: =IF(COUNTRY_INFO!A38=0," ",COUNTRY_INFO!A38) -> République Centrafricaine | B38: =IF(COUNTRY_INFO!B38=0," ",COUNTRY_INFO!B38) -> RS N° 6 | C38: =IF(COUNTRY_INFO!C38=0," ",COUNTRY_INFO!C38) -> BANGASSOU | D38: =IF(OR(COUNTRY_INFO!$U$9:$U$1000="T1 (PZQ+ALB/MBD)",COUNTRY_INFO!$V$9:$V$1000="T1 (PZQ+ALB/MBD)"), "T1 (PZQ+ALB/MBD)", " ") ->  | K38: 0 | O38: 0
A39: =IF(COUNTRY_INFO!A39=0," ",COUNTRY_INFO!A39) -> République Centrafricaine | B39: =IF(COUNTRY_INFO!B39=0," ",COUNTRY_INFO!B39) -> RS N° 6 | C39: =IF(COUNTRY_INFO!C39=0," ",COUNTRY_INFO!C39) -> OUANGO-GAMBO | D39: =IF(OR(COUNTRY_INFO!$U$9:$U$1000="T1 (PZQ+ALB/MBD)",COUNTRY_INFO!$V$9:$V$1000="T1 (PZQ+ALB/MBD)"), "T1 (PZQ+ALB/MBD)", " ") ->  | K39: 0 | O39: 0
A40: =IF(COUNTRY_INFO!A40=0," ",COUNTRY_INFO!A40) -> République Centrafricaine | B40: =IF(COUNTRY_INFO!B40=0," ",COUNTRY_INFO!B40) -> RS N° 6 | C40: =IF(COUNTRY_INFO!C40=0," ",COUNTRY_INFO!C40) -> HAUT-MBOMOU | D40: =IF(OR(COUNTRY_INFO!$U$9:$U$1000="T1 (PZQ+ALB/MBD)",COUNTRY_INFO!$V$9:$V$1000="T1 (PZQ+ALB/MBD)"), "T1 (PZQ+ALB/MBD)", " ") ->  | K40: 0 | O40: 0
A41: =IF(COUNTRY_INFO!A41=0," ",COUNTRY_INFO!A41) -> République Centrafricaine | B41: =IF(COUNTRY_INFO!B41=0," ",COUNTRY_INFO!B41) -> RS N° 7 | C41: =IF(COUNTRY_INFO!C41=0," ",COUNTRY_INFO!C41) -> BANGUI I (lakouanga) | D41: =IF(OR(COUNTRY_INFO!$U$9:$U$1000="T1 (PZQ+ALB/MBD)",COUNTRY_INFO!$V$9:$V$1000="T1 (PZQ+ALB/MBD)"), "T1 (PZQ+ALB/MBD)", " ") ->  | K41: 0 | O41: 0
A42: =IF(COUNTRY_INFO!A42=0," ",COUNTRY_INFO!A42) -> République Centrafricaine | B42: =IF(COUNTRY_INFO!B42=0," ",COUNTRY_INFO!B42) -> RS N° 7 | C42: =IF(COUNTRY_INFO!C42=0," ",COUNTRY_INFO!C42) -> BANGUI II (Castors) | D42: =IF(OR(COUNTRY_INFO!$U$9:$U$1000="T1 (PZQ+ALB/MBD)",COUNTRY_INFO!$V$9:$V$1000="T1 (PZQ+ALB/MBD)"), "T1 (PZQ+ALB/MBD)", " ") ->  | K42: 0 | O42: 0
A43: =IF(COUNTRY_INFO!A43=0," ",COUNTRY_INFO!A43) -> République Centrafricaine | B43: =IF(COUNTRY_INFO!B43=0," ",COUNTRY_INFO!B43) -> RS N° 7 | C43: =IF(COUNTRY_INFO!C43=0," ",COUNTRY_INFO!C43) -> BANGUI III (Bédé-Combattant) | D43: =IF(OR(COUNTRY_INFO!$U$9:$U$1000="T1 (PZQ+ALB/MBD)",COUNTRY_INFO!$V$9:$V$1000="T1 (PZQ+ALB/MBD)"), "T1 (PZQ+ALB/MBD)", " ") ->  | K43: 0 | O43: 0

Sheet T2
A1: T 2 - Praziquantel (PZQ)
A2: Structure administrative, population nécessitant une chimioprévention par groupe d'âge, population traitée par groupe d'âge et couverture
A4: TOTAL | F4: =SUM(F$9:F$1000) -> 0 | G4: 479530.2554 | H4: 0 | I4: 479530.2554 | J4: 0 | K4: 448056 | L4: 0 | M4: 358160 | N4: =IF(F4<>0, IF(J4/F4*100=0, "-", J4/F4*100), " ") ->  | O4: =IF(G4<>0, IF(K4/G4*100=0, "-", K4/G4*100), " ") -> 93.43644013 | P4: =IF(H4<>0, IF(L4/H4*100=0, "-", L4/H4*100), " ") ->  | Q4: =IF(I4<>0, IF(M4/I4*100=0, "-", M4/I4*100), " ") -> 74.68976064
A6: Structure administrative du pays | D6: Mise en oeuvre de la CP | E6: Date | F6: Population ciblée pour T2 | J6: Population traitée | N6: Couverture du Programme (%)
A7: Pays | B7: Région/Département | C7: District | F7: EAPréS | G7: EAS | H7: Adultes | I7: Total | J7: EAPréS | K7: EAS | L7: Adultes | M7: Total | N7: EAPréS | O7: EAS | P7: Adultes | Q7: Total
A9: =IF(COUNTRY_INFO!A9=0," ",COUNTRY_INFO!A9) -> République Centrafricaine | B9: =IF(COUNTRY_INFO!B9=0," ",COUNTRY_INFO!B9) -> RS N° 1 | C9: =IF(COUNTRY_INFO!C9=0," ",COUNTRY_INFO!C9) -> BEGOUA | D9: =IF(OR(COUNTRY_INFO!$U$9:$U$1000="T2 (PZQ)",COUNTRY_INFO!$V$9:$V$1000="T2 (PZQ)"), "T2 (PZQ)", " ") -> T2 (PZQ) | G9: 38126.93312 | I9: =SUM(F9:H9) -> 38126.93312 | K9: 9790 | M9: 9790 | N9: =IF(F9<>0, IF(J9/F9*100=0, "-", J9/F9*100), " ") ->  | O9: 25.67738656 | Q9: 25.67738656 | R9: 38126.93312
A10: =IF(COUNTRY_INFO!A10=0," ",COUNTRY_INFO!A10) -> République Centrafricaine | B10: =IF(COUNTRY_INFO!B10=0," ",COUNTRY_INFO!B10) -> RS N° 1 | C10: =IF(COUNTRY_INFO!C10=0," ",COUNTRY_INFO!C10) -> BIMBO | D10: =IF(OR(COUNTRY_INFO!$U$9:$U$1000="T2 (PZQ)",COUNTRY_INFO!$V$9:$V$1000="T2 (PZQ)"), "T2 (PZQ)", " ") -> T2 (PZQ) | G10: 39363 | I10: =SUM(F10:H10) -> 39363 | K10: 72614 | M10: 0 | N10: =IF(F10<>0, IF(J10/F10*100=0, "-", J10/F10*100), " ") ->  | O10: =IF(G10<>0, IF(K10/G10*100=0, "-", K10/G10*100), " ") -> 184.4727282 | P10: =IF(H10<>0, IF(L10/H10*100=0, "-", L10/H10*100), " ") ->  | Q10: =IF(I10<>0, IF(M10/I10*100=0, "-", M10/I10*100), " ") -> - | R10: 39363.02124
A11: =IF(COUNTRY_INFO!A11=0," ",COUNTRY_INFO!A11) -> République Centrafricaine | B11: =IF(COUNTRY_INFO!B11=0," ",COUNTRY_INFO!B11) -> RS N° 1 | C11: =IF(COUNTRY_INFO!C11=0," ",COUNTRY_INFO!C11) -> BOSSEMBELE | D11: =IF(OR(COUNTRY_INFO!$U$9:$U$1000="T2 (PZQ)",COUNTRY_INFO!$V$9:$V$1000="T2 (PZQ)"), "T2 (PZQ)", " ") -> T2 (PZQ) | G11: 32253.98298 | I11: 32253.98298 | K11: 5496 | M11: 5496 | O11: 17.039756 | Q11: 17.039756 | R11: 32253.98298
A12: =IF(COUNTRY_INFO!A12=0," ",COUNTRY_INFO!A12) -> République Centrafricaine | B12: =IF(COUNTRY_INFO!B12=0," ",COUNTRY_INFO!B12) -> RS N° 1 | C12: =IF(COUNTRY_INFO!C12=0," ",COUNTRY_INFO!C12) -> BODA | D12: =IF(OR(COUNTRY_INFO!$U$9:$U$1000="T2 (PZQ)",COUNTRY_INFO!$V$9:$V$1000="T2 (PZQ)"), "T2 (PZQ)", " ") -> T2 (PZQ) | G12: 26843.91339 | I12: 26843.91339 | K12: 23157 | M12: 23157 | O12: 86.2653655 | Q12: 86.2653655 | R12: 26843.91339
A13: =IF(COUNTRY_INFO!A13=0," ",COUNTRY_INFO!A13) -> République Centrafricaine | B13: =IF(COUNTRY_INFO!B13=0," ",COUNTRY_INFO!B13) -> RS N° 1 | C13: =IF(COUNTRY_INFO!C13=0," ",COUNTRY_INFO!C13) -> MBAIKI | D13: =IF(OR(COUNTRY_INFO!$U$9:$U$1000="T2 (PZQ)",COUNTRY_INFO!$V$9:$V$1000="T2 (PZQ)"), "T2 (PZQ)", " ") -> T2 (PZQ) | G13: 49105.6104 | I13: 49105.6104 | K13: 57473 | M13: 64201 | O13: 117.0395797 | Q13: 130.7406618 | R13: 49105.6104
A14: =IF(COUNTRY_INFO!A14=0," ",COUNTRY_INFO!A14) -> République Centrafricaine | B14: =IF(COUNTRY_INFO!B14=0," ",COUNTRY_INFO!B14) -> RS N° 2 | C14: =IF(COUNTRY_INFO!C14=0," ",COUNTRY_INFO!C14) -> BERBERATI | D14: =IF(OR(COUNTRY_INFO!$U$9:$U$1000="T2 (PZQ)",COUNTRY_INFO!$V$9:$V$1000="T2 (PZQ)"), "T2 (PZQ)", " ") ->  | I14: 0
A15: =IF(COUNTRY_INFO!A15=0," ",COUNTRY_INFO!A15) -> République Centrafricaine | B15: =IF(COUNTRY_INFO!B15=0," ",COUNTRY_INFO!B15) -> RS N° 2 | C15: =IF(COUNTRY_INFO!C15=0," ",COUNTRY_INFO!C15) -> CARNOT-GADZI | D15: =IF(OR(COUNTRY_INFO!$U$9:$U$1000="T2 (PZQ)",COUNTRY_INFO!$V$9:$V$1000="T2 (PZQ)"), "T2 (PZQ)", " ") -> T2 (PZQ) | G15: 45173.8369 | I15: 45173.8369 | K15: 24010 | O15: 53.15023395 | Q15: - | R15: 45173.8369
A16: =IF(COUNTRY_INFO!A16=0," ",COUNTRY_INFO!A16) -> République Centrafricaine | B16: =IF(COUNTRY_INFO!B16=0," ",COUNTRY_INFO!B16) -> RS N° 2 | C16: =IF(COUNTRY_INFO!C16=0," ",COUNTRY_INFO!C16) -> GAMBOULA | D16: =IF(OR(COUNTRY_INFO!$U$9:$U$1000="T2 (PZQ)",COUNTRY_INFO!$V$9:$V$1000="T2 (PZQ)"), "T2 (PZQ)", " ") ->  | I16: 0
A17: =IF(COUNTRY_INFO!A17=0," ",COUNTRY_INFO!A17) -> République Centrafricaine | B17: =IF(COUNTRY_INFO!B17=0," ",COUNTRY_INFO!B17) -> RS N° 2 | C17: =IF(COUNTRY_INFO!C17=0," ",COUNTRY_INFO!C17) -> BABOUA-ABBA | D17: =IF(OR(COUNTRY_INFO!$U$9:$U$1000="T2 (PZQ)",COUNTRY_INFO!$V$9:$V$1000="T2 (PZQ)"), "T2 (PZQ)", " ") ->  | I17: 0
A18: =IF(COUNTRY_INFO!A18=0," ",COUNTRY_INFO!A18) -> République Centrafricaine | B18: =IF(COUNTRY_INFO!B18=0," ",COUNTRY_INFO!B18) -> RS N° 2 | C18: =IF(COUNTRY_INFO!C18=0," ",COUNTRY_INFO!C18) -> BOUAR-BAORO | D18: =IF(OR(COUNTRY_INFO!$U$9:$U$1000="T2 (PZQ)",COUNTRY_INFO!$V$9:$V$1000="T2 (PZQ)"), "T2 (PZQ)", " ") ->  | I18: 0
A19: =IF(COUNTRY_INFO!A19=0," ",COUNTRY_INFO!A19) -> République Centrafricaine | B19: =IF(COUNTRY_INFO!B19=0," ",COUNTRY_INFO!B19) -> RS N° 2 | C19: =IF(COUNTRY_INFO!C19=0," ",COUNTRY_INFO!C19) -> SANGHA-MBAERE | D19: =IF(OR(COUNTRY_INFO!$U$9:$U$1000="T2 (PZQ)",COUNTRY_INFO!$V$9:$V$1000="T2 (PZQ)"), "T2 (PZQ)", " ") ->  | I19: 0
A20: =IF(COUNTRY_INFO!A20=0," ",COUNTRY_INFO!A20) -> République Centrafricaine | B20: =IF(COUNTRY_INFO!B20=0," ",COUNTRY_INFO!B20) -> RS N° 3 | C20: =IF(COUNTRY_INFO!C20=0," ",COUNTRY_INFO!C20) -> BATANGAFO | D20: =IF(OR(COUNTRY_INFO!$U$9:$U$1000="T2 (PZQ)",COUNTRY_INFO!$V$9:$V$1000="T2 (PZQ)"), "T2 (PZQ)", " ") ->  | I20: 0
A21: =IF(COUNTRY_INFO!A21=0," ",COUNTRY_INFO!A21) -> République Centrafricaine | B21: =IF(COUNTRY_INFO!B21=0," ",COUNTRY_INFO!B21) -> RS N° 3 | C21: =IF(COUNTRY_INFO!C21=0," ",COUNTRY_INFO!C21) -> BOUCA | D21: =IF(OR(COUNTRY_INFO!$U$9:$U$1000="T2 (PZQ)",COUNTRY_INFO!$V$9:$V$1000="T2 (PZQ)"), "T2 (PZQ)", " ") ->  | I21: 0
A22: =IF(COUNTRY_INFO!A22=0," ",COUNTRY_INFO!A22) -> République Centrafricaine | B22: =IF(COUNTRY_INFO!B22=0," ",COUNTRY_INFO!B22) -> RS N° 3 | C22: =IF(COUNTRY_INFO!C22=0," ",COUNTRY_INFO!C22) -> BOSSANGOA | D22: =IF(OR(COUNTRY_INFO!$U$9:$U$1000="T2 (PZQ)",COUNTRY_INFO!$V$9:$V$1000="T2 (PZQ)"), "T2 (PZQ)", " ") ->  | I22: 0
A23: =IF(COUNTRY_INFO!A23=0," ",COUNTRY_INFO!A23) -> République Centrafricaine | B23: =IF(COUNTRY_INFO!B23=0," ",COUNTRY_INFO!B23) -> RS N° 3 | C23: =IF(COUNTRY_INFO!C23=0," ",COUNTRY_INFO!C23) -> NANGA-BOGUILA | D23: =IF(OR(COUNTRY_INFO!$U$9:$U$1000="T2 (PZQ)",COUNTRY_INFO!$V$9:$V$1000="T2 (PZQ)"), "T2 (PZQ)", " ") ->  | I23: 0
A24: =IF(COUNTRY_INFO!A24=0," ",COUNTRY_INFO!A24) -> République Centrafricaine | B24: =IF(COUNTRY_INFO!B24=0," ",COUNTRY_INFO!B24) -> RS N° 3 | C24: =IF(COUNTRY_INFO!C24=0," ",COUNTRY_INFO!C24) -> BOCARANGA-KOUI | D24: =IF(OR(COUNTRY_INFO!$U$9:$U$1000="T2 (PZQ)",COUNTRY_INFO!$V$9:$V$1000="T2 (PZQ)"), "T2 (PZQ)", " ") ->  | I24: 0
A25: =IF(COUNTRY_INFO!A25=0," ",COUNTRY_INFO!A25) -> République Centrafricaine | B25: =IF(COUNTRY_INFO!B25=0," ",COUNTRY_INFO!B25) -> RS N° 3 | C25: =IF(COUNTRY_INFO!C25=0," ",COUNTRY_INFO!C25) -> BOZOUM-BOSSEMPTELE | D25: =IF(OR(COUNTRY_INFO!$U$9:$U$1000="T2 (PZQ)",COUNTRY_INFO!$V$9:$V$1000="T2 (PZQ)"), "T2 (PZQ)", " ") ->  | I25: 0
A26: =IF(COUNTRY_INFO!A26=0," ",COUNTRY_INFO!A26) -> République Centrafricaine | B26: =IF(COUNTRY_INFO!B26=0," ",COUNTRY_INFO!B26) -> RS N° 3 | C26: =IF(COUNTRY_INFO!C26=0," ",COUNTRY_INFO!C26) -> NGAOUNDAYE | D26: =IF(OR(COUNTRY_INFO!$U$9:$U$1000="T2 (PZQ)",COUNTRY_INFO!$V$9:$V$1000="T2 (PZQ)"), "T2 (PZQ)", " ") ->  | I26: 0
A27: =IF(COUNTRY_INFO!A27=0," ",COUNTRY_INFO!A27) -> République Centrafricaine | B27: =IF(COUNTRY_INFO!B27=0," ",COUNTRY_INFO!B27) -> RS N° 3 | C27: =IF(COUNTRY_INFO!C27=0," ",COUNTRY_INFO!C27) -> PAOUA | D27: =IF(OR(COUNTRY_INFO!$U$9:$U$1000="T2 (PZQ)",COUNTRY_INFO!$V$9:$V$1000="T2 (PZQ)"), "T2 (PZQ)", " ") ->  | I27: 0
A28: =IF(COUNTRY_INFO!A28=0," ",COUNTRY_INFO!A28) -> République Centrafricaine | B28: =IF(COUNTRY_INFO!B28=0," ",COUNTRY_INFO!B28) -> RS N° 4 | C28: =IF(COUNTRY_INFO!C28=0," ",COUNTRY_INFO!C28) -> KEMO | D28: =IF(OR(COUNTRY_INFO!$U$9:$U$1000="T2 (PZQ)",COUNTRY_INFO!$V$9:$V$1000="T2 (PZQ)"), "T2 (PZQ)", " ") -> T2 (PZQ) | G28: 36431 | H28: 0 | I28: 36431 | K28: 55876 | M28: 55876 | O28: 153.374873 | Q28: 153.374873
A29: =IF(COUNTRY_INFO!A29=0," ",COUNTRY_INFO!A29) -> République Centrafricaine | B29: =IF(COUNTRY_INFO!B29=0," ",COUNTRY_INFO!B29) -> RS N° 4 | C29: =IF(COUNTRY_INFO!C29=0," ",COUNTRY_INFO!C29) -> NANA-GRIBIZI | D29: =IF(OR(COUNTRY_INFO!$U$9:$U$1000="T2 (PZQ)",COUNTRY_INFO!$V$9:$V$1000="T2 (PZQ)"), "T2 (PZQ)", " ") ->  | I29: 0
A30: =IF(COUNTRY_INFO!A30=0," ",COUNTRY_INFO!A30) -> République Centrafricaine | B30: =IF(COUNTRY_INFO!B30=0," ",COUNTRY_INFO!B30) -> RS N° 4 | C30: =IF(COUNTRY_INFO!C30=0," ",COUNTRY_INFO!C30) -> BAMBARI | D30: =IF(OR(COUNTRY_INFO!$U$9:$U$1000="T2 (PZQ)",COUNTRY_INFO!$V$9:$V$1000="T2 (PZQ)"), "T2 (PZQ)", " ") -> T2 (PZQ) | G30: 51363 | H30: 0 | I30: 51363 | K30: 64969 | M30: 64969 | O30: 126.4898857 | Q30: 126.4898857
A31: =IF(COUNTRY_INFO!A31=0," ",COUNTRY_INFO!A31) -> République Centrafricaine | B31: =IF(COUNTRY_INFO!B31=0," ",COUNTRY_INFO!B31) -> RS N° 4 | C31: =IF(COUNTRY_INFO!C31=0," ",COUNTRY_INFO!C31) -> KOUANGO-GRIMARI | D31: =IF(OR(COUNTRY_INFO!$U$9:$U$1000="T2 (PZQ)",COUNTRY_INFO!$V$9:$V$1000="T2 (PZQ)"), "T2 (PZQ)", " ") -> T2 (PZQ) | G31: 33764.63705 | I31: 33764.63705 | K31: 17930 | M31: 17930 | O31: 53.10289572 | Q31: 53.10289572
A32: =IF(COUNTRY_INFO!A32=0," ",COUNTRY_INFO!A32) -> République Centrafricaine | B32: =IF(COUNTRY_INFO!B32=0," ",COUNTRY_INFO!B32) -> RS N° 5 | C32: =IF(COUNTRY_INFO!C32=0," ",COUNTRY_INFO!C32) -> BAMINGUI-BANGORAN | D32: =IF(OR(COUNTRY_INFO!$U$9:$U$1000="T2 (PZQ)",COUNTRY_INFO!$V$9:$V$1000="T2 (PZQ)"), "T2 (PZQ)", " ") ->  | I32: 0
A33: =IF(COUNTRY_INFO!A33=0," ",COUNTRY_INFO!A33) -> République Centrafricaine | B33: =IF(COUNTRY_INFO!B33=0," ",COUNTRY_INFO!B33) -> RS N° 5 | C33: =IF(COUNTRY_INFO!C33=0," ",COUNTRY_INFO!C33) -> HAUTE-KOTTO | D33: =IF(OR(COUNTRY_INFO!$U$9:$U$1000="T2 (PZQ)",COUNTRY_INFO!$V$9:$V$1000="T2 (PZQ)"), "T2 (PZQ)", " ") ->  | I33: 0
A34: =IF(COUNTRY_INFO!A34=0," ",COUNTRY_INFO!A34) -> République Centrafricaine | B34: =IF(COUNTRY_INFO!B34=0," ",COUNTRY_INFO!B34) -> RS N° 5 | C34: =IF(COUNTRY_INFO!C34=0," ",COUNTRY_INFO!C34) -> VAKAGA | D34: =IF(OR(COUNTRY_INFO!$U$9:$U$1000="T2 (PZQ)",COUNTRY_INFO!$V$9:$V$1000="T2 (PZQ)"), "T2 (PZQ)", " ") ->  | I34: 0
A35: =IF(COUNTRY_INFO!A35=0," ",COUNTRY_INFO!A35) -> République Centrafricaine | B35: =IF(COUNTRY_INFO!B35=0," ",COUNTRY_INFO!B35) -> RS N° 6 | C35: =IF(COUNTRY_INFO!C35=0," ",COUNTRY_INFO!C35) -> ALINDAO MINGALA | D35: =IF(OR(COUNTRY_INFO!$U$9:$U$1000="T2 (PZQ)",COUNTRY_INFO!$V$9:$V$1000="T2 (PZQ)"), "T2 (PZQ)", " ") -> T2 (PZQ) | G35: 28275.94339 | I35: 28275.94339 | K35: 22816 | M35: 22816 | O35: 80.69049965 | Q35: 80.69049965
A36: =IF(COUNTRY_INFO!A36=0," ",COUNTRY_INFO!A36) -> République Centrafricaine | B36: =IF(COUNTRY_INFO!B36=0," ",COUNTRY_INFO!B36) -> RS N° 6 | C36: =IF(COUNTRY_INFO!C36=0," ",COUNTRY_INFO!C36) -> KEMBE SATEMA | D36: =IF(OR(COUNTRY_INFO!$U$9:$U$1000="T2 (PZQ)",COUNTRY_INFO!$V$9:$V$1000="T2 (PZQ)"), "T2 (PZQ)", " ") -> T2 (PZQ) | G36: 18585.86496 | I36: 18585.86496 | K36: 25950 | M36: 25950 | O36: 139.6222347 | Q36: 139.6222347
A37: =IF(COUNTRY_INFO!A37=0," ",COUNTRY_INFO!A37) -> République Centrafricaine | B37: =IF(COUNTRY_INFO!B37=0," ",COUNTRY_INFO!B37) -> RS N° 6 | C37: =IF(COUNTRY_INFO!C37=0," ",COUNTRY_INFO!C37) -> MOBAYE-ZANGBA | D37: =IF(OR(COUNTRY_INFO!$U$9:$U$1000="T2 (PZQ)",COUNTRY_INFO!$V$9:$V$1000="T2 (PZQ)"), "T2 (PZQ)", " ") -> T2 (PZQ) | G37: 29787 | H37: 0 | I37: 29787 | K37: 42608 | M37: 42608 | O37: 143.0422668 | Q37: 143.0422668
A38: =IF(COUNTRY_INFO!A38=0," ",COUNTRY_INFO!A38) -> République Centrafricaine | B38: =IF(COUNTRY_INFO!B38=0," ",COUNTRY_INFO!B38) -> RS N° 6 | C38: =IF(COUNTRY_INFO!C38=0," ",COUNTRY_INFO!C38) -> BANGASSOU | D38: =IF(OR(COUNTRY_INFO!$U$9:$U$1000="T2 (PZQ)",COUNTRY_INFO!$V$9:$V$1000="T2 (PZQ)"), "T2 (PZQ)", " ") -> T2 (PZQ) | G38: 30862.53325 | I38: 30862.53325 | K38: 2956 | M38: 2956 | O38: 9.577956469 | Q38: 9.577956469
A39: =IF(COUNTRY_INFO!A39=0," ",COUNTRY_INFO!A39) -> République Centrafricaine | B39: =IF(COUNTRY_INFO!B39=0," ",COUNTRY_INFO!B39) -> RS N° 6 | C39: =IF(COUNTRY_INFO!C39=0," ",COUNTRY_INFO!C39) -> OUANGO-GAMBO | D39: =IF(OR(COUNTRY_INFO!$U$9:$U$1000="T2 (PZQ)",COUNTRY_INFO!$V$9:$V$1000="T2 (PZQ)"), "T2 (PZQ)", " ") -> T2 (PZQ) | G39: 19593 | I39: 19593 | K39: 22411 | M39: 22411 | O39: 114.3826877 | Q39: 114.3826877
A40: =IF(COUNTRY_INFO!A40=0," ",COUNTRY_INFO!A40) -> République Centrafricaine | B40: =IF(COUNTRY_INFO!B40=0," ",COUNTRY_INFO!B40) -> RS N° 6 | C40: =IF(COUNTRY_INFO!C40=0," ",COUNTRY_INFO!C40) -> HAUT-MBOMOU | D40: =IF(OR(COUNTRY_INFO!$U$9:$U$1000="T2 (PZQ)",COUNTRY_INFO!$V$9:$V$1000="T2 (PZQ)"), "T2 (PZQ)", " ") ->  | I40: 0
A41: =IF(COUNTRY_INFO!A41=0," ",COUNTRY_INFO!A41) -> République Centrafricaine | B41: =IF(COUNTRY_INFO!B41=0," ",COUNTRY_INFO!B41) -> RS N° 7 | C41: =IF(COUNTRY_INFO!C41=0," ",COUNTRY_INFO!C41) -> BANGUI I (lakouanga) | D41: =IF(OR(COUNTRY_INFO!$U$9:$U$1000="T2 (PZQ)",COUNTRY_INFO!$V$9:$V$1000="T2 (PZQ)"), "T2 (PZQ)", " ") ->  | I41: 0
A42: =IF(COUNTRY_INFO!A42=0," ",COUNTRY_INFO!A42) -> République Centrafricaine | B42: =IF(COUNTRY_INFO!B42=0," ",COUNTRY_INFO!B42) -> RS N° 7 | C42: =IF(COUNTRY_INFO!C42=0," ",COUNTRY_INFO!C42) -> BANGUI II (Castors) | D42: =IF(OR(COUNTRY_INFO!$U$9:$U$1000="T2 (PZQ)",COUNTRY_INFO!$V$9:$V$1000="T2 (PZQ)"), "T2 (PZQ)", " ") ->  | I42: 0
A43: =IF(COUNTRY_INFO!A43=0," ",COUNTRY_INFO!A43) -> République Centrafricaine | B43: =IF(COUNTRY_INFO!B43=0," ",COUNTRY_INFO!B43) -> RS N° 7 | C43: =IF(COUNTRY_INFO!C43=0," ",COUNTRY_INFO!C43) -> BANGUI III (Bédé-Combattant) | D43: =IF(OR(COUNTRY_INFO!$U$9:$U$1000="T2 (PZQ)",COUNTRY_INFO!$V$9:$V$1000="T2 (PZQ)"), "T2 (PZQ)", " ") ->  | I43: 0

Sheet T3_R1
A1: T 3 - Albendazole (ALB) ou Mebendazole (MBD) - Tournée 1
A2: Structure administrative, population nécessitant une chimioprévention par groupe d'âge, population traitée par groupe d'âge et couverture
A4: TOTAL | G4: =SUM(G$9:G$1000) -> 0 | H4: 0 | I4: 0 | J4: 0 | K4: 0 | L4: 0 | M4: 0 | N4: 0 | O4: =IF(G4<>0, IF(K4/G4*100=0, "-", K4/G4*100), " ") ->  | P4: =IF(H4<>0, IF(L4/H4*100=0, "-", L4/H4*100), " ") ->  | Q4: =IF(I4<>0, IF(M4/I4*100=0, "-", M4/I4*100), " ") ->  | R4: =IF(J4<>0, IF(N4/J4*100=0, "-", N4/J4*100), " ") -> 
A6: Structure administrative du pays | D6: Mise en oeuvre de la CP | E6: Médica-ment | F6: Date | G6: Population ciblée pour T3 | K6: Population traitée | O6: Couverture du Programme (%)
A7: Pays | B7: Région/Département | C7: District | G7: EAPréS | H7: EAS | I7: Adultes | J7: Total | K7: EAPréS | L7: EAS | M7: Adultes | N7: Total | O7: EAPréS | P7: EAS | Q7: Adultes | R7: Total
A9: =IF(COUNTRY_INFO!A9=0," ",COUNTRY_INFO!A9) -> République Centrafricaine | B9: =IF(COUNTRY_INFO!B9=0," ",COUNTRY_INFO!B9) -> RS N° 1 | C9: =IF(COUNTRY_INFO!C9=0," ",COUNTRY_INFO!C9) -> BEGOUA | D9: =IF(OR(COUNTRY_INFO!$U$9:$U$1000="T3 (ALB/MBD)",COUNTRY_INFO!$V$9:$V$1000="T3 (ALB/MBD)"), "T3 (ALB/MBD)", " ") ->  | J9: =SUM(G9:I9) -> 0 | N9: =SUM(K9:M9) -> 0 | O9: =IF(G9<>0, IF(K9/G9*100=0, "-", K9/G9*100), " ") -> 
A10: =IF(COUNTRY_INFO!A10=0," ",COUNTRY_INFO!A10) -> République Centrafricaine | B10: =IF(COUNTRY_INFO!B10=0," ",COUNTRY_INFO!B10) -> RS N° 1 | C10: =IF(COUNTRY_INFO!C10=0," ",COUNTRY_INFO!C10) -> BIMBO | D10: =IF(OR(COUNTRY_INFO!$U$9:$U$1000="T3 (ALB/MBD)",COUNTRY_INFO!$V$9:$V$1000="T3 (ALB/MBD)"), "T3 (ALB/MBD)", " ") ->  | J10: =SUM(G10:I10) -> 0 | N10: =SUM(K10:M10) -> 0 | O10: =IF(G10<>0, IF(K10/G10*100=0, "-", K10/G10*100), " ") ->  | P10: =IF(H10<>0, IF(L10/H10*100=0, "-", L10/H10*100), " ") ->  | Q10: =IF(I10<>0, IF(M10/I10*100=0, "-", M10/I10*100), " ") ->  | R10: =IF(J10<>0, IF(N10/J10*100=0, "-", N10/J10*100), " ") -> 
A11: =IF(COUNTRY_INFO!A11=0," ",COUNTRY_INFO!A11) -> République Centrafricaine | B11: =IF(COUNTRY_INFO!B11=0," ",COUNTRY_INFO!B11) -> RS N° 1 | C11: =IF(COUNTRY_INFO!C11=0," ",COUNTRY_INFO!C11) -> BOSSEMBELE | D11: =IF(OR(COUNTRY_INFO!$U$9:$U$1000="T3 (ALB/MBD)",COUNTRY_INFO!$V$9:$V$1000="T3 (ALB/MBD)"), "T3 (ALB/MBD)", " ") ->  | J11: 0 | N11: 0
A12: =IF(COUNTRY_INFO!A12=0," ",COUNTRY_INFO!A12) -> République Centrafricaine | B12: =IF(COUNTRY_INFO!B12=0," ",COUNTRY_INFO!B12) -> RS N° 1 | C12: =IF(COUNTRY_INFO!C12=0," ",COUNTRY_INFO!C12) -> BODA | D12: =IF(OR(COUNTRY_INFO!$U$9:$U$1000="T3 (ALB/MBD)",COUNTRY_INFO!$V$9:$V$1000="T3 (ALB/MBD)"), "T3 (ALB/MBD)", " ") ->  | J12: 0 | N12: 0
A13: =IF(COUNTRY_INFO!A13=0," ",COUNTRY_INFO!A13) -> République Centrafricaine | B13: =IF(COUNTRY_INFO!B13=0," ",COUNTRY_INFO!B13) -> RS N° 1 | C13: =IF(COUNTRY_INFO!C13=0," ",COUNTRY_INFO!C13) -> MBAIKI | D13: =IF(OR(COUNTRY_INFO!$U$9:$U$1000="T3 (ALB/MBD)",COUNTRY_INFO!$V$9:$V$1000="T3 (ALB/MBD)"), "T3 (ALB/MBD)", " ") ->  | J13: 0 | N13: 0
A14: =IF(COUNTRY_INFO!A14=0," ",COUNTRY_INFO!A14) -> République Centrafricaine | B14: =IF(COUNTRY_INFO!B14=0," ",COUNTRY_INFO!B14) -> RS N° 2 | C14: =IF(COUNTRY_INFO!C14=0," ",COUNTRY_INFO!C14) -> BERBERATI | D14: =IF(OR(COUNTRY_INFO!$U$9:$U$1000="T3 (ALB/MBD)",COUNTRY_INFO!$V$9:$V$1000="T3 (ALB/MBD)"), "T3 (ALB/MBD)", " ") ->  | J14: 0 | N14: 0
A15: =IF(COUNTRY_INFO!A15=0," ",COUNTRY_INFO!A15) -> République Centrafricaine | B15: =IF(COUNTRY_INFO!B15=0," ",COUNTRY_INFO!B15) -> RS N° 2 | C15: =IF(COUNTRY_INFO!C15=0," ",COUNTRY_INFO!C15) -> CARNOT-GADZI | D15: =IF(OR(COUNTRY_INFO!$U$9:$U$1000="T3 (ALB/MBD)",COUNTRY_INFO!$V$9:$V$1000="T3 (ALB/MBD)"), "T3 (ALB/MBD)", " ") ->  | J15: 0 | N15: 0
A16: =IF(COUNTRY_INFO!A16=0," ",COUNTRY_INFO!A16) -> République Centrafricaine | B16: =IF(COUNTRY_INFO!B16=0," ",COUNTRY_INFO!B16) -> RS N° 2 | C16: =IF(COUNTRY_INFO!C16=0," ",COUNTRY_INFO!C16) -> GAMBOULA | D16: =IF(OR(COUNTRY_INFO!$U$9:$U$1000="T3 (ALB/MBD)",COUNTRY_INFO!$V$9:$V$1000="T3 (ALB/MBD)"), "T3 (ALB/MBD)", " ") ->  | J16: 0 | N16: 0
A17: =IF(COUNTRY_INFO!A17=0," ",COUNTRY_INFO!A17) -> République Centrafricaine | B17: =IF(COUNTRY_INFO!B17=0," ",COUNTRY_INFO!B17) -> RS N° 2 | C17: =IF(COUNTRY_INFO!C17=0," ",COUNTRY_INFO!C17) -> BABOUA-ABBA | D17: =IF(OR(COUNTRY_INFO!$U$9:$U$1000="T3 (ALB/MBD)",COUNTRY_INFO!$V$9:$V$1000="T3 (ALB/MBD)"), "T3 (ALB/MBD)", " ") ->  | J17: 0 | N17: 0
A18: =IF(COUNTRY_INFO!A18=0," ",COUNTRY_INFO!A18) -> République Centrafricaine | B18: =IF(COUNTRY_INFO!B18=0," ",COUNTRY_INFO!B18) -> RS N° 2 | C18: =IF(COUNTRY_INFO!C18=0," ",COUNTRY_INFO!C18) -> BOUAR-BAORO | D18: =IF(OR(COUNTRY_INFO!$U$9:$U$1000="T3 (ALB/MBD)",COUNTRY_INFO!$V$9:$V$1000="T3 (ALB/MBD)"), "T3 (ALB/MBD)", " ") ->  | J18: 0 | N18: 0
A19: =IF(COUNTRY_INFO!A19=0," ",COUNTRY_INFO!A19) -> République Centrafricaine | B19: =IF(COUNTRY_INFO!B19=0," ",COUNTRY_INFO!B19) -> RS N° 2 | C19: =IF(COUNTRY_INFO!C19=0," ",COUNTRY_INFO!C19) -> SANGHA-MBAERE | D19: =IF(OR(COUNTRY_INFO!$U$9:$U$1000="T3 (ALB/MBD)",COUNTRY_INFO!$V$9:$V$1000="T3 (ALB/MBD)"), "T3 (ALB/MBD)", " ") ->  | J19: 0 | N19: 0
A20: =IF(COUNTRY_INFO!A20=0," ",COUNTRY_INFO!A20) -> République Centrafricaine | B20: =IF(COUNTRY_INFO!B20=0," ",COUNTRY_INFO!B20) -> RS N° 3 | C20: =IF(COUNTRY_INFO!C20=0," ",COUNTRY_INFO!C20) -> BATANGAFO | D20: =IF(OR(COUNTRY_INFO!$U$9:$U$1000="T3 (ALB/MBD)",COUNTRY_INFO!$V$9:$V$1000="T3 (ALB/MBD)"), "T3 (ALB/MBD)", " ") ->  | J20: 0 | N20: 0
A21: =IF(COUNTRY_INFO!A21=0," ",COUNTRY_INFO!A21) -> République Centrafricaine | B21: =IF(COUNTRY_INFO!B21=0," ",COUNTRY_INFO!B21) -> RS N° 3 | C21: =IF(COUNTRY_INFO!C21=0," ",COUNTRY_INFO!C21) -> BOUCA | D21: =IF(OR(COUNTRY_INFO!$U$9:$U$1000="T3 (ALB/MBD)",COUNTRY_INFO!$V$9:$V$1000="T3 (ALB/MBD)"), "T3 (ALB/MBD)", " ") ->  | J21: 0 | N21: 0
A22: =IF(COUNTRY_INFO!A22=0," ",COUNTRY_INFO!A22) -> République Centrafricaine | B22: =IF(COUNTRY_INFO!B22=0," ",COUNTRY_INFO!B22) -> RS N° 3 | C22: =IF(COUNTRY_INFO!C22=0," ",COUNTRY_INFO!C22) -> BOSSANGOA | D22: =IF(OR(COUNTRY_INFO!$U$9:$U$1000="T3 (ALB/MBD)",COUNTRY_INFO!$V$9:$V$1000="T3 (ALB/MBD)"), "T3 (ALB/MBD)", " ") ->  | J22: 0 | N22: 0
A23: =IF(COUNTRY_INFO!A23=0," ",COUNTRY_INFO!A23) -> République Centrafricaine | B23: =IF(COUNTRY_INFO!B23=0," ",COUNTRY_INFO!B23) -> RS N° 3 | C23: =IF(COUNTRY_INFO!C23=0," ",COUNTRY_INFO!C23) -> NANGA-BOGUILA | D23: =IF(OR(COUNTRY_INFO!$U$9:$U$1000="T3 (ALB/MBD)",COUNTRY_INFO!$V$9:$V$1000="T3 (ALB/MBD)"), "T3 (ALB/MBD)", " ") ->  | J23: 0 | N23: 0
A24: =IF(COUNTRY_INFO!A24=0," ",COUNTRY_INFO!A24) -> République Centrafricaine | B24: =IF(COUNTRY_INFO!B24=0," ",COUNTRY_INFO!B24) -> RS N° 3 | C24: =IF(COUNTRY_INFO!C24=0," ",COUNTRY_INFO!C24) -> BOCARANGA-KOUI | D24: =IF(OR(COUNTRY_INFO!$U$9:$U$1000="T3 (ALB/MBD)",COUNTRY_INFO!$V$9:$V$1000="T3 (ALB/MBD)"), "T3 (ALB/MBD)", " ") ->  | J24: 0 | N24: 0
A25: =IF(COUNTRY_INFO!A25=0," ",COUNTRY_INFO!A25) -> République Centrafricaine | B25: =IF(COUNTRY_INFO!B25=0," ",COUNTRY_INFO!B25) -> RS N° 3 | C25: =IF(COUNTRY_INFO!C25=0," ",COUNTRY_INFO!C25) -> BOZOUM-BOSSEMPTELE | D25: =IF(OR(COUNTRY_INFO!$U$9:$U$1000="T3 (ALB/MBD)",COUNTRY_INFO!$V$9:$V$1000="T3 (ALB/MBD)"), "T3 (ALB/MBD)", " ") ->  | J25: 0 | N25: 0
A26: =IF(COUNTRY_INFO!A26=0," ",COUNTRY_INFO!A26) -> République Centrafricaine | B26: =IF(COUNTRY_INFO!B26=0," ",COUNTRY_INFO!B26) -> RS N° 3 | C26: =IF(COUNTRY_INFO!C26=0," ",COUNTRY_INFO!C26) -> NGAOUNDAYE | D26: =IF(OR(COUNTRY_INFO!$U$9:$U$1000="T3 (ALB/MBD)",COUNTRY_INFO!$V$9:$V$1000="T3 (ALB/MBD)"), "T3 (ALB/MBD)", " ") ->  | J26: 0 | N26: 0
A27: =IF(COUNTRY_INFO!A27=0," ",COUNTRY_INFO!A27) -> République Centrafricaine | B27: =IF(COUNTRY_INFO!B27=0," ",COUNTRY_INFO!B27) -> RS N° 3 | C27: =IF(COUNTRY_INFO!C27=0," ",COUNTRY_INFO!C27) -> PAOUA | D27: =IF(OR(COUNTRY_INFO!$U$9:$U$1000="T3 (ALB/MBD)",COUNTRY_INFO!$V$9:$V$1000="T3 (ALB/MBD)"), "T3 (ALB/MBD)", " ") ->  | J27: 0 | N27: 0
A28: =IF(COUNTRY_INFO!A28=0," ",COUNTRY_INFO!A28) -> République Centrafricaine | B28: =IF(COUNTRY_INFO!B28=0," ",COUNTRY_INFO!B28) -> RS N° 4 | C28: =IF(COUNTRY_INFO!C28=0," ",COUNTRY_INFO!C28) -> KEMO | D28: =IF(OR(COUNTRY_INFO!$U$9:$U$1000="T3 (ALB/MBD)",COUNTRY_INFO!$V$9:$V$1000="T3 (ALB/MBD)"), "T3 (ALB/MBD)", " ") ->  | J28: 0 | N28: 0
A29: =IF(COUNTRY_INFO!A29=0," ",COUNTRY_INFO!A29) -> République Centrafricaine | B29: =IF(COUNTRY_INFO!B29=0," ",COUNTRY_INFO!B29) -> RS N° 4 | C29: =IF(COUNTRY_INFO!C29=0," ",COUNTRY_INFO!C29) -> NANA-GRIBIZI | D29: =IF(OR(COUNTRY_INFO!$U$9:$U$1000="T3 (ALB/MBD)",COUNTRY_INFO!$V$9:$V$1000="T3 (ALB/MBD)"), "T3 (ALB/MBD)", " ") ->  | J29: 0 | N29: 0
A30: =IF(COUNTRY_INFO!A30=0," ",COUNTRY_INFO!A30) -> République Centrafricaine | B30: =IF(COUNTRY_INFO!B30=0," ",COUNTRY_INFO!B30) -> RS N° 4 | C30: =IF(COUNTRY_INFO!C30=0," ",COUNTRY_INFO!C30) -> BAMBARI | D30: =IF(OR(COUNTRY_INFO!$U$9:$U$1000="T3 (ALB/MBD)",COUNTRY_INFO!$V$9:$V$1000="T3 (ALB/MBD)"), "T3 (ALB/MBD)", " ") ->  | J30: 0 | N30: 0
A31: =IF(COUNTRY_INFO!A31=0," ",COUNTRY_INFO!A31) -> République Centrafricaine | B31: =IF(COUNTRY_INFO!B31=0," ",COUNTRY_INFO!B31) -> RS N° 4 | C31: =IF(COUNTRY_INFO!C31=0," ",COUNTRY_INFO!C31) -> KOUANGO-GRIMARI | D31: =IF(OR(COUNTRY_INFO!$U$9:$U$1000="T3 (ALB/MBD)",COUNTRY_INFO!$V$9:$V$1000="T3 (ALB/MBD)"), "T3 (ALB/MBD)", " ") ->  | J31: 0 | N31: 0
A32: =IF(COUNTRY_INFO!A32=0," ",COUNTRY_INFO!A32) -> République Centrafricaine | B32: =IF(COUNTRY_INFO!B32=0," ",COUNTRY_INFO!B32) -> RS N° 5 | C32: =IF(COUNTRY_INFO!C32=0," ",COUNTRY_INFO!C32) -> BAMINGUI-BANGORAN | D32: =IF(OR(COUNTRY_INFO!$U$9:$U$1000="T3 (ALB/MBD)",COUNTRY_INFO!$V$9:$V$1000="T3 (ALB/MBD)"), "T3 (ALB/MBD)", " ") ->  | J32: 0 | N32: 0
A33: =IF(COUNTRY_INFO!A33=0," ",COUNTRY_INFO!A33) -> République Centrafricaine | B33: =IF(COUNTRY_INFO!B33=0," ",COUNTRY_INFO!B33) -> RS N° 5 | C33: =IF(COUNTRY_INFO!C33=0," ",COUNTRY_INFO!C33) -> HAUTE-KOTTO | D33: =IF(OR(COUNTRY_INFO!$U$9:$U$1000="T3 (ALB/MBD)",COUNTRY_INFO!$V$9:$V$1000="T3 (ALB/MBD)"), "T3 (ALB/MBD)", " ") ->  | J33: 0 | N33: 0
A34: =IF(COUNTRY_INFO!A34=0," ",COUNTRY_INFO!A34) -> République Centrafricaine | B34: =IF(COUNTRY_INFO!B34=0," ",COUNTRY_INFO!B34) -> RS N° 5 | C34: =IF(COUNTRY_INFO!C34=0," ",COUNTRY_INFO!C34) -> VAKAGA | D34: =IF(OR(COUNTRY_INFO!$U$9:$U$1000="T3 (ALB/MBD)",COUNTRY_INFO!$V$9:$V$1000="T3 (ALB/MBD)"), "T3 (ALB/MBD)", " ") ->  | J34: 0 | N34: 0
A35: =IF(COUNTRY_INFO!A35=0," ",COUNTRY_INFO!A35) -> République Centrafricaine | B35: =IF(COUNTRY_INFO!B35=0," ",COUNTRY_INFO!B35) -> RS N° 6 | C35: =IF(COUNTRY_INFO!C35=0," ",COUNTRY_INFO!C35) -> ALINDAO MINGALA | D35: =IF(OR(COUNTRY_INFO!$U$9:$U$1000="T3 (ALB/MBD)",COUNTRY_INFO!$V$9:$V$1000="T3 (ALB/MBD)"), "T3 (ALB/MBD)", " ") ->  | J35: 0 | N35: 0
A36: =IF(COUNTRY_INFO!A36=0," ",COUNTRY_INFO!A36) -> République Centrafricaine | B36: =IF(COUNTRY_INFO!B36=0," ",COUNTRY_INFO!B36) -> RS N° 6 | C36: =IF(COUNTRY_INFO!C36=0," ",COUNTRY_INFO!C36) -> KEMBE SATEMA | D36: =IF(OR(COUNTRY_INFO!$U$9:$U$1000="T3 (ALB/MBD)",COUNTRY_INFO!$V$9:$V$1000="T3 (ALB/MBD)"), "T3 (ALB/MBD)", " ") ->  | J36: 0 | N36: 0
A37: =IF(COUNTRY_INFO!A37=0," ",COUNTRY_INFO!A37) -> République Centrafricaine | B37: =IF(COUNTRY_INFO!B37=0," ",COUNTRY_INFO!B37) -> RS N° 6 | C37: =IF(COUNTRY_INFO!C37=0," ",COUNTRY_INFO!C37) -> MOBAYE-ZANGBA | D37: =IF(OR(COUNTRY_INFO!$U$9:$U$1000="T3 (ALB/MBD)",COUNTRY_INFO!$V$9:$V$1000="T3 (ALB/MBD)"), "T3 (ALB/MBD)", " ") ->  | J37: 0 | N37: 0
A38: =IF(COUNTRY_INFO!A38=0," ",COUNTRY_INFO!A38) -> République Centrafricaine | B38: =IF(COUNTRY_INFO!B38=0," ",COUNTRY_INFO!B38) -> RS N° 6 | C38: =IF(COUNTRY_INFO!C38=0," ",COUNTRY_INFO!C38) -> BANGASSOU | D38: =IF(OR(COUNTRY_INFO!$U$9:$U$1000="T3 (ALB/MBD)",COUNTRY_INFO!$V$9:$V$1000="T3 (ALB/MBD)"), "T3 (ALB/MBD)", " ") ->  | J38: 0 | N38: 0
A39: =IF(COUNTRY_INFO!A39=0," ",COUNTRY_INFO!A39) -> République Centrafricaine | B39: =IF(COUNTRY_INFO!B39=0," ",COUNTRY_INFO!B39) -> RS N° 6 | C39: =IF(COUNTRY_INFO!C39=0," ",COUNTRY_INFO!C39) -> OUANGO-GAMBO | D39: =IF(OR(COUNTRY_INFO!$U$9:$U$1000="T3 (ALB/MBD)",COUNTRY_INFO!$V$9:$V$1000="T3 (ALB/MBD)"), "T3 (ALB/MBD)", " ") ->  | J39: 0 | N39: 0
A40: =IF(COUNTRY_INFO!A40=0," ",COUNTRY_INFO!A40) -> République Centrafricaine | B40: =IF(COUNTRY_INFO!B40=0," ",COUNTRY_INFO!B40) -> RS N° 6 | C40: =IF(COUNTRY_INFO!C40=0," ",COUNTRY_INFO!C40) -> HAUT-MBOMOU | D40: =IF(OR(COUNTRY_INFO!$U$9:$U$1000="T3 (ALB/MBD)",COUNTRY_INFO!$V$9:$V$1000="T3 (ALB/MBD)"), "T3 (ALB/MBD)", " ") ->  | J40: 0 | N40: 0
A41: =IF(COUNTRY_INFO!A41=0," ",COUNTRY_INFO!A41) -> République Centrafricaine | B41: =IF(COUNTRY_INFO!B41=0," ",COUNTRY_INFO!B41) -> RS N° 7 | C41: =IF(COUNTRY_INFO!C41=0," ",COUNTRY_INFO!C41) -> BANGUI I (lakouanga) | D41: =IF(OR(COUNTRY_INFO!$U$9:$U$1000="T3 (ALB/MBD)",COUNTRY_INFO!$V$9:$V$1000="T3 (ALB/MBD)"), "T3 (ALB/MBD)", " ") ->  | J41: 0 | N41: 0
A42: =IF(COUNTRY_INFO!A42=0," ",COUNTRY_INFO!A42) -> République Centrafricaine | B42: =IF(COUNTRY_INFO!B42=0," ",COUNTRY_INFO!B42) -> RS N° 7 | C42: =IF(COUNTRY_INFO!C42=0," ",COUNTRY_INFO!C42) -> BANGUI II (Castors) | D42: =IF(OR(COUNTRY_INFO!$U$9:$U$1000="T3 (ALB/MBD)",COUNTRY_INFO!$V$9:$V$1000="T3 (ALB/MBD)"), "T3 (ALB/MBD)", " ") ->  | J42: 0 | N42: 0
A43: =IF(COUNTRY_INFO!A43=0," ",COUNTRY_INFO!A43) -> République Centrafricaine | B43: =IF(COUNTRY_INFO!B43=0," ",COUNTRY_INFO!B43) -> RS N° 7 | C43: =IF(COUNTRY_INFO!C43=0," ",COUNTRY_INFO!C43) -> BANGUI III (Bédé-Combattant) | D43: =IF(OR(COUNTRY_INFO!$U$9:$U$1000="T3 (ALB/MBD)",COUNTRY_INFO!$V$9:$V$1000="T3 (ALB/MBD)"), "T3 (ALB/MBD)", " ") ->  | J43: 0 | N43: 0

Sheet T3_R2
A1: T 3 - Albendazole (ALB) ou Mebendazole (MBD) - Tournée 2
A2: Structure administrative, population nécessitant une chimioprévention par groupe d'âge, population traitée par groupe d'âge et couverture
A4: TOTAL | G4: =SUM(G$9:G$1000) -> 0 | H4: 0 | I4: 0 | J4: 0 | K4: 0 | L4: 0 | M4: 0 | N4: 0 | O4: =IF(G4<>0, IF(K4/G4*100=0, "-", K4/G4*100), " ") ->  | P4: =IF(H4<>0, IF(L4/H4*100=0, "-", L4/H4*100), " ") ->  | Q4: =IF(I4<>0, IF(M4/I4*100=0, "-", M4/I4*100), " ") ->  | R4: =IF(J4<>0, IF(N4/J4*100=0, "-", N4/J4*100), " ") -> 
A6: Structure administrative du pays | D6: Mise en oeuvre de la CP | E6: Médica-ment | F6: Date | G6: Population ciblée pour T3 | K6: Population traitée | O6: Couverture du Programme (%)
A7: Pays | B7: Région/Département | C7: District | G7: EAPréS | H7: EAS | I7: Adultes | J7: Total | K7: EAPréS | L7: EAS | M7: Adultes | N7: Total | O7: EAPréS | P7: EAS | Q7: Adultes | R7: Total
A9: =IF(COUNTRY_INFO!A9=0," ",COUNTRY_INFO!A9) -> République Centrafricaine | B9: =IF(COUNTRY_INFO!B9=0," ",COUNTRY_INFO!B9) -> RS N° 1 | C9: =IF(COUNTRY_INFO!C9=0," ",COUNTRY_INFO!C9) -> BEGOUA | D9: =IF(AND(COUNTRY_INFO!$U$9:$U$1000="T3 (ALB/MBD)",COUNTRY_INFO!$V$9:$V$1000="T3 (ALB/MBD)"), "T3 (ALB/MBD)", " ") ->  | J9: =SUM(G9:I9) -> 0 | N9: =SUM(K9:M9) -> 0 | O9: =IF(G9<>0, IF(K9/G9*100=0, "-", K9/G9*100), " ") -> 
A10: =IF(COUNTRY_INFO!A10=0," ",COUNTRY_INFO!A10) -> République Centrafricaine | B10: =IF(COUNTRY_INFO!B10=0," ",COUNTRY_INFO!B10) -> RS N° 1 | C10: =IF(COUNTRY_INFO!C10=0," ",COUNTRY_INFO!C10) -> BIMBO | D10: =IF(AND(COUNTRY_INFO!$U$9:$U$1000="T3 (ALB/MBD)",COUNTRY_INFO!$V$9:$V$1000="T3 (ALB/MBD)"), "T3 (ALB/MBD)", " ") ->  | J10: =SUM(G10:I10) -> 0 | N10: =SUM(K10:M10) -> 0 | O10: =IF(G10<>0, IF(K10/G10*100=0, "-", K10/G10*100), " ") ->  | P10: =IF(H10<>0, IF(L10/H10*100=0, "-", L10/H10*100), " ") ->  | Q10: =IF(I10<>0, IF(M10/I10*100=0, "-", M10/I10*100), " ") ->  | R10: =IF(J10<>0, IF(N10/J10*100=0, "-", N10/J10*100), " ") -> 
A11: =IF(COUNTRY_INFO!A11=0," ",COUNTRY_INFO!A11) -> République Centrafricaine | B11: =IF(COUNTRY_INFO!B11=0," ",COUNTRY_INFO!B11) -> RS N° 1 | C11: =IF(COUNTRY_INFO!C11=0," ",COUNTRY_INFO!C11) -> BOSSEMBELE | D11: =IF(AND(COUNTRY_INFO!$U$9:$U$1000="T3 (ALB/MBD)",COUNTRY_INFO!$V$9:$V$1000="T3 (ALB/MBD)"), "T3 (ALB/MBD)", " ") ->  | J11: 0 | N11: 0
A12: =IF(COUNTRY_INFO!A12=0," ",COUNTRY_INFO!A12) -> République Centrafricaine | B12: =IF(COUNTRY_INFO!B12=0," ",COUNTRY_INFO!B12) -> RS N° 1 | C12: =IF(COUNTRY_INFO!C12=0," ",COUNTRY_INFO!C12) -> BODA | D12: =IF(AND(COUNTRY_INFO!$U$9:$U$1000="T3 (ALB/MBD)",COUNTRY_INFO!$V$9:$V$1000="T3 (ALB/MBD)"), "T3 (ALB/MBD)", " ") ->  | J12: 0 | N12: 0
A13: =IF(COUNTRY_INFO!A13=0," ",COUNTRY_INFO!A13) -> République Centrafricaine | B13: =IF(COUNTRY_INFO!B13=0," ",COUNTRY_INFO!B13) -> RS N° 1 | C13: =IF(COUNTRY_INFO!C13=0," ",COUNTRY_INFO!C13) -> MBAIKI | D13: =IF(AND(COUNTRY_INFO!$U$9:$U$1000="T3 (ALB/MBD)",COUNTRY_INFO!$V$9:$V$1000="T3 (ALB/MBD)"), "T3 (ALB/MBD)", " ") ->  | J13: 0 | N13: 0
A14: =IF(COUNTRY_INFO!A14=0," ",COUNTRY_INFO!A14) -> République Centrafricaine | B14: =IF(COUNTRY_INFO!B14=0," ",COUNTRY_INFO!B14) -> RS N° 2 | C14: =IF(COUNTRY_INFO!C14=0," ",COUNTRY_INFO!C14) -> BERBERATI | D14: =IF(AND(COUNTRY_INFO!$U$9:$U$1000="T3 (ALB/MBD)",COUNTRY_INFO!$V$9:$V$1000="T3 (ALB/MBD)"), "T3 (ALB/MBD)", " ") ->  | J14: 0 | N14: 0
A15: =IF(COUNTRY_INFO!A15=0," ",COUNTRY_INFO!A15) -> République Centrafricaine | B15: =IF(COUNTRY_INFO!B15=0," ",COUNTRY_INFO!B15) -> RS N° 2 | C15: =IF(COUNTRY_INFO!C15=0," ",COUNTRY_INFO!C15) -> CARNOT-GADZI | D15: =IF(AND(COUNTRY_INFO!$U$9:$U$1000="T3 (ALB/MBD)",COUNTRY_INFO!$V$9:$V$1000="T3 (ALB/MBD)"), "T3 (ALB/MBD)", " ") ->  | J15: 0 | N15: 0
A16: =IF(COUNTRY_INFO!A16=0," ",COUNTRY_INFO!A16) -> République Centrafricaine | B16: =IF(COUNTRY_INFO!B16=0," ",COUNTRY_INFO!B16) -> RS N° 2 | C16: =IF(COUNTRY_INFO!C16=0," ",COUNTRY_INFO!C16) -> GAMBOULA | D16: =IF(AND(COUNTRY_INFO!$U$9:$U$1000="T3 (ALB/MBD)",COUNTRY_INFO!$V$9:$V$1000="T3 (ALB/MBD)"), "T3 (ALB/MBD)", " ") ->  | J16: 0 | N16: 0
A17: =IF(COUNTRY_INFO!A17=0," ",COUNTRY_INFO!A17) -> République Centrafricaine | B17: =IF(COUNTRY_INFO!B17=0," ",COUNTRY_INFO!B17) -> RS N° 2 | C17: =IF(COUNTRY_INFO!C17=0," ",COUNTRY_INFO!C17) -> BABOUA-ABBA | D17: =IF(AND(COUNTRY_INFO!$U$9:$U$1000="T3 (ALB/MBD)",COUNTRY_INFO!$V$9:$V$1000="T3 (ALB/MBD)"), "T3 (ALB/MBD)", " ") ->  | J17: 0 | N17: 0
A18: =IF(COUNTRY_INFO!A18=0," ",COUNTRY_INFO!A18) -> République Centrafricaine | B18: =IF(COUNTRY_INFO!B18=0," ",COUNTRY_INFO!B18) -> RS N° 2 | C18: =IF(COUNTRY_INFO!C18=0," ",COUNTRY_INFO!C18) -> BOUAR-BAORO | D18: =IF(AND(COUNTRY_INFO!$U$9:$U$1000="T3 (ALB/MBD)",COUNTRY_INFO!$V$9:$V$1000="T3 (ALB/MBD)"), "T3 (ALB/MBD)", " ") ->  | J18: 0 | N18: 0
A19: =IF(COUNTRY_INFO!A19=0," ",COUNTRY_INFO!A19) -> République Centrafricaine | B19: =IF(COUNTRY_INFO!B19=0," ",COUNTRY_INFO!B19) -> RS N° 2 | C19: =IF(COUNTRY_INFO!C19=0," ",COUNTRY_INFO!C19) -> SANGHA-MBAERE | D19: =IF(AND(COUNTRY_INFO!$U$9:$U$1000="T3 (ALB/MBD)",COUNTRY_INFO!$V$9:$V$1000="T3 (ALB/MBD)"), "T3 (ALB/MBD)", " ") ->  | J19: 0 | N19: 0
A20: =IF(COUNTRY_INFO!A20=0," ",COUNTRY_INFO!A20) -> République Centrafricaine | B20: =IF(COUNTRY_INFO!B20=0," ",COUNTRY_INFO!B20) -> RS N° 3 | C20: =IF(COUNTRY_INFO!C20=0," ",COUNTRY_INFO!C20) -> BATANGAFO | D20: =IF(AND(COUNTRY_INFO!$U$9:$U$1000="T3 (ALB/MBD)",COUNTRY_INFO!$V$9:$V$1000="T3 (ALB/MBD)"), "T3 (ALB/MBD)", " ") ->  | J20: 0 | N20: 0
A21: =IF(COUNTRY_INFO!A21=0," ",COUNTRY_INFO!A21) -> République Centrafricaine | B21: =IF(COUNTRY_INFO!B21=0," ",COUNTRY_INFO!B21) -> RS N° 3 | C21: =IF(COUNTRY_INFO!C21=0," ",COUNTRY_INFO!C21) -> BOUCA | D21: =IF(AND(COUNTRY_INFO!$U$9:$U$1000="T3 (ALB/MBD)",COUNTRY_INFO!$V$9:$V$1000="T3 (ALB/MBD)"), "T3 (ALB/MBD)", " ") ->  | J21: 0 | N21: 0
A22: =IF(COUNTRY_INFO!A22=0," ",COUNTRY_INFO!A22) -> République Centrafricaine | B22: =IF(COUNTRY_INFO!B22=0," ",COUNTRY_INFO!B22) -> RS N° 3 | C22: =IF(COUNTRY_INFO!C22=0," ",COUNTRY_INFO!C22) -> BOSSANGOA | D22: =IF(AND(COUNTRY_INFO!$U$9:$U$1000="T3 (ALB/MBD)",COUNTRY_INFO!$V$9:$V$1000="T3 (ALB/MBD)"), "T3 (ALB/MBD)", " ") ->  | J22: 0 | N22: 0
A23: =IF(COUNTRY_INFO!A23=0," ",COUNTRY_INFO!A23) -> République Centrafricaine | B23: =IF(COUNTRY_INFO!B23=0," ",COUNTRY_INFO!B23) -> RS N° 3 | C23: =IF(COUNTRY_INFO!C23=0," ",COUNTRY_INFO!C23) -> NANGA-BOGUILA | D23: =IF(AND(COUNTRY_INFO!$U$9:$U$1000="T3 (ALB/MBD)",COUNTRY_INFO!$V$9:$V$1000="T3 (ALB/MBD)"), "T3 (ALB/MBD)", " ") ->  | J23: 0 | N23: 0
A24: =IF(COUNTRY_INFO!A24=0," ",COUNTRY_INFO!A24) -> République Centrafricaine | B24: =IF(COUNTRY_INFO!B24=0," ",COUNTRY_INFO!B24) -> RS N° 3 | C24: =IF(COUNTRY_INFO!C24=0," ",COUNTRY_INFO!C24) -> BOCARANGA-KOUI | D24: =IF(AND(COUNTRY_INFO!$U$9:$U$1000="T3 (ALB/MBD)",COUNTRY_INFO!$V$9:$V$1000="T3 (ALB/MBD)"), "T3 (ALB/MBD)", " ") ->  | J24: 0 | N24: 0
A25: =IF(COUNTRY_INFO!A25=0," ",COUNTRY_INFO!A25) -> République Centrafricaine | B25: =IF(COUNTRY_INFO!B25=0," ",COUNTRY_INFO!B25) -> RS N° 3 | C25: =IF(COUNTRY_INFO!C25=0," ",COUNTRY_INFO!C25) -> BOZOUM-BOSSEMPTELE | D25: =IF(AND(COUNTRY_INFO!$U$9:$U$1000="T3 (ALB/MBD)",COUNTRY_INFO!$V$9:$V$1000="T3 (ALB/MBD)"), "T3 (ALB/MBD)", " ") ->  | J25: 0 | N25: 0
A26: =IF(COUNTRY_INFO!A26=0," ",COUNTRY_INFO!A26) -> République Centrafricaine | B26: =IF(COUNTRY_INFO!B26=0," ",COUNTRY_INFO!B26) -> RS N° 3 | C26: =IF(COUNTRY_INFO!C26=0," ",COUNTRY_INFO!C26) -> NGAOUNDAYE | D26: =IF(AND(COUNTRY_INFO!$U$9:$U$1000="T3 (ALB/MBD)",COUNTRY_INFO!$V$9:$V$1000="T3 (ALB/MBD)"), "T3 (ALB/MBD)", " ") ->  | J26: 0 | N26: 0
A27: =IF(COUNTRY_INFO!A27=0," ",COUNTRY_INFO!A27) -> République Centrafricaine | B27: =IF(COUNTRY_INFO!B27=0," ",COUNTRY_INFO!B27) -> RS N° 3 | C27: =IF(COUNTRY_INFO!C27=0," ",COUNTRY_INFO!C27) -> PAOUA | D27: =IF(AND(COUNTRY_INFO!$U$9:$U$1000="T3 (ALB/MBD)",COUNTRY_INFO!$V$9:$V$1000="T3 (ALB/MBD)"), "T3 (ALB/MBD)", " ") ->  | J27: 0 | N27: 0
A28: =IF(COUNTRY_INFO!A28=0," ",COUNTRY_INFO!A28) -> République Centrafricaine | B28: =IF(COUNTRY_INFO!B28=0," ",COUNTRY_INFO!B28) -> RS N° 4 | C28: =IF(COUNTRY_INFO!C28=0," ",COUNTRY_INFO!C28) -> KEMO | D28: =IF(AND(COUNTRY_INFO!$U$9:$U$1000="T3 (ALB/MBD)",COUNTRY_INFO!$V$9:$V$1000="T3 (ALB/MBD)"), "T3 (ALB/MBD)", " ") ->  | J28: 0 | N28: 0
A29: =IF(COUNTRY_INFO!A29=0," ",COUNTRY_INFO!A29) -> République Centrafricaine | B29: =IF(COUNTRY_INFO!B29=0," ",COUNTRY_INFO!B29) -> RS N° 4 | C29: =IF(COUNTRY_INFO!C29=0," ",COUNTRY_INFO!C29) -> NANA-GRIBIZI | D29: =IF(AND(COUNTRY_INFO!$U$9:$U$1000="T3 (ALB/MBD)",COUNTRY_INFO!$V$9:$V$1000="T3 (ALB/MBD)"), "T3 (ALB/MBD)", " ") ->  | J29: 0 | N29: 0
A30: =IF(COUNTRY_INFO!A30=0," ",COUNTRY_INFO!A30) -> République Centrafricaine | B30: =IF(COUNTRY_INFO!B30=0," ",COUNTRY_INFO!B30) -> RS N° 4 | C30: =IF(COUNTRY_INFO!C30=0," ",COUNTRY_INFO!C30) -> BAMBARI | D30: =IF(AND(COUNTRY_INFO!$U$9:$U$1000="T3 (ALB/MBD)",COUNTRY_INFO!$V$9:$V$1000="T3 (ALB/MBD)"), "T3 (ALB/MBD)", " ") ->  | J30: 0 | N30: 0
A31: =IF(COUNTRY_INFO!A31=0," ",COUNTRY_INFO!A31) -> République Centrafricaine | B31: =IF(COUNTRY_INFO!B31=0," ",COUNTRY_INFO!B31) -> RS N° 4 | C31: =IF(COUNTRY_INFO!C31=0," ",COUNTRY_INFO!C31) -> KOUANGO-GRIMARI | D31: =IF(AND(COUNTRY_INFO!$U$9:$U$1000="T3 (ALB/MBD)",COUNTRY_INFO!$V$9:$V$1000="T3 (ALB/MBD)"), "T3 (ALB/MBD)", " ") ->  | J31: 0 | N31: 0
A32: =IF(COUNTRY_INFO!A32=0," ",COUNTRY_INFO!A32) -> République Centrafricaine | B32: =IF(COUNTRY_INFO!B32=0," ",COUNTRY_INFO!B32) -> RS N° 5 | C32: =IF(COUNTRY_INFO!C32=0," ",COUNTRY_INFO!C32) -> BAMINGUI-BANGORAN | D32: =IF(AND(COUNTRY_INFO!$U$9:$U$1000="T3 (ALB/MBD)",COUNTRY_INFO!$V$9:$V$1000="T3 (ALB/MBD)"), "T3 (ALB/MBD)", " ") ->  | J32: 0 | N32: 0
A33: =IF(COUNTRY_INFO!A33=0," ",COUNTRY_INFO!A33) -> République Centrafricaine | B33: =IF(COUNTRY_INFO!B33=0," ",COUNTRY_INFO!B33) -> RS N° 5 | C33: =IF(COUNTRY_INFO!C33=0," ",COUNTRY_INFO!C33) -> HAUTE-KOTTO | D33: =IF(AND(COUNTRY_INFO!$U$9:$U$1000="T3 (ALB/MBD)",COUNTRY_INFO!$V$9:$V$1000="T3 (ALB/MBD)"), "T3 (ALB/MBD)", " ") ->  | J33: 0 | N33: 0
A34: =IF(COUNTRY_INFO!A34=0," ",COUNTRY_INFO!A34) -> République Centrafricaine | B34: =IF(COUNTRY_INFO!B34=0," ",COUNTRY_INFO!B34) -> RS N° 5 | C34: =IF(COUNTRY_INFO!C34=0," ",COUNTRY_INFO!C34) -> VAKAGA | D34: =IF(AND(COUNTRY_INFO!$U$9:$U$1000="T3 (ALB/MBD)",COUNTRY_INFO!$V$9:$V$1000="T3 (ALB/MBD)"), "T3 (ALB/MBD)", " ") ->  | J34: 0 | N34: 0
A35: =IF(COUNTRY_INFO!A35=0," ",COUNTRY_INFO!A35) -> République Centrafricaine | B35: =IF(COUNTRY_INFO!B35=0," ",COUNTRY_INFO!B35) -> RS N° 6 | C35: =IF(COUNTRY_INFO!C35=0," ",COUNTRY_INFO!C35) -> ALINDAO MINGALA | D35: =IF(AND(COUNTRY_INFO!$U$9:$U$1000="T3 (ALB/MBD)",COUNTRY_INFO!$V$9:$V$1000="T3 (ALB/MBD)"), "T3 (ALB/MBD)", " ") ->  | J35: 0 | N35: 0
A36: =IF(COUNTRY_INFO!A36=0," ",COUNTRY_INFO!A36) -> République Centrafricaine | B36: =IF(COUNTRY_INFO!B36=0," ",COUNTRY_INFO!B36) -> RS N° 6 | C36: =IF(COUNTRY_INFO!C36=0," ",COUNTRY_INFO!C36) -> KEMBE SATEMA | D36: =IF(AND(COUNTRY_INFO!$U$9:$U$1000="T3 (ALB/MBD)",COUNTRY_INFO!$V$9:$V$1000="T3 (ALB/MBD)"), "T3 (ALB/MBD)", " ") ->  | J36: 0 | N36: 0
A37: =IF(COUNTRY_INFO!A37=0," ",COUNTRY_INFO!A37) -> République Centrafricaine | B37: =IF(COUNTRY_INFO!B37=0," ",COUNTRY_INFO!B37) -> RS N° 6 | C37: =IF(COUNTRY_INFO!C37=0," ",COUNTRY_INFO!C37) -> MOBAYE-ZANGBA | D37: =IF(AND(COUNTRY_INFO!$U$9:$U$1000="T3 (ALB/MBD)",COUNTRY_INFO!$V$9:$V$1000="T3 (ALB/MBD)"), "T3 (ALB/MBD)", " ") ->  | J37: 0 | N37: 0
A38: =IF(COUNTRY_INFO!A38=0," ",COUNTRY_INFO!A38) -> République Centrafricaine | B38: =IF(COUNTRY_INFO!B38=0," ",COUNTRY_INFO!B38) -> RS N° 6 | C38: =IF(COUNTRY_INFO!C38=0," ",COUNTRY_INFO!C38) -> BANGASSOU | D38: =IF(AND(COUNTRY_INFO!$U$9:$U$1000="T3 (ALB/MBD)",COUNTRY_INFO!$V$9:$V$1000="T3 (ALB/MBD)"), "T3 (ALB/MBD)", " ") ->  | J38: 0 | N38: 0
A39: =IF(COUNTRY_INFO!A39=0," ",COUNTRY_INFO!A39) -> République Centrafricaine | B39: =IF(COUNTRY_INFO!B39=0," ",COUNTRY_INFO!B39) -> RS N° 6 | C39: =IF(COUNTRY_INFO!C39=0," ",COUNTRY_INFO!C39) -> OUANGO-GAMBO | D39: =IF(AND(COUNTRY_INFO!$U$9:$U$1000="T3 (ALB/MBD)",COUNTRY_INFO!$V$9:$V$1000="T3 (ALB/MBD)"), "T3 (ALB/MBD)", " ") ->  | J39: 0 | N39: 0
A40: =IF(COUNTRY_INFO!A40=0," ",COUNTRY_INFO!A40) -> République Centrafricaine | B40: =IF(COUNTRY_INFO!B40=0," ",COUNTRY_INFO!B40) -> RS N° 6 | C40: =IF(COUNTRY_INFO!C40=0," ",COUNTRY_INFO!C40) -> HAUT-MBOMOU | D40: =IF(AND(COUNTRY_INFO!$U$9:$U$1000="T3 (ALB/MBD)",COUNTRY_INFO!$V$9:$V$1000="T3 (ALB/MBD)"), "T3 (ALB/MBD)", " ") ->  | J40: 0 | N40: 0
A41: =IF(COUNTRY_INFO!A41=0," ",COUNTRY_INFO!A41) -> République Centrafricaine | B41: =IF(COUNTRY_INFO!B41=0," ",COUNTRY_INFO!B41) -> RS N° 7 | C41: =IF(COUNTRY_INFO!C41=0," ",COUNTRY_INFO!C41) -> BANGUI I (lakouanga) | D41: =IF(AND(COUNTRY_INFO!$U$9:$U$1000="T3 (ALB/MBD)",COUNTRY_INFO!$V$9:$V$1000="T3 (ALB/MBD)"), "T3 (ALB/MBD)", " ") ->  | J41: 0 | N41: 0
A42: =IF(COUNTRY_INFO!A42=0," ",COUNTRY_INFO!A42) -> République Centrafricaine | B42: =IF(COUNTRY_INFO!B42=0," ",COUNTRY_INFO!B42) -> RS N° 7 | C42: =IF(COUNTRY_INFO!C42=0," ",COUNTRY_INFO!C42) -> BANGUI II (Castors) | D42: =IF(AND(COUNTRY_INFO!$U$9:$U$1000="T3 (ALB/MBD)",COUNTRY_INFO!$V$9:$V$1000="T3 (ALB/MBD)"), "T3 (ALB/MBD)", " ") ->  | J42: 0 | N42: 0
A43: =IF(COUNTRY_INFO!A43=0," ",COUNTRY_INFO!A43) -> République Centrafricaine | B43: =IF(COUNTRY_INFO!B43=0," ",COUNTRY_INFO!B43) -> RS N° 7 | C43: =IF(COUNTRY_INFO!C43=0," ",COUNTRY_INFO!C43) -> BANGUI III (Bédé-Combattant) | D43: =IF(AND(COUNTRY_INFO!$U$9:$U$1000="T3 (ALB/MBD)",COUNTRY_INFO!$V$9:$V$1000="T3 (ALB/MBD)"), "T3 (ALB/MBD)", " ") ->  | J43: 0 | N43: 0

Sheet DISTRICT
A1: Nombre d'individus traités
A2: Structure administrative, population traitée par groupe d'âge et sexe
A4: TOTAL | D4: =SUM(D$9:D$1000) -> 4442824.765 | E4: =SUM(E$9:E$1000) -> 0 | F4: =SUM(F$9:F$1000) -> 0 | G4: =SUM(G$9:G$1000) -> 1776275 | H4: =SUM(H$9:H$1000) -> 1776275 | I4: =IF(D4>0, IF(H4/D4*100<>0, H4/D4*100, "-"),0) -> 39.9807576 | J4: =SUM(J$9:J$1000) -> 2606166.866 | K4: =SUM(K$9:K$1000) -> 0 | L4: =SUM(L$9:L$1000) -> 0 | M4: =SUM(M$9:M$1000) -> 1727295 | N4: =SUM(N$9:N$1000) -> 1709991.145 | O4: =IF(J4>0, IF(N4/J4*100<>0, N4/J4*100, "-"),0) -> 65.61326396 | P4: =SUM(P$9:P$1000) -> 996622 | Q4: =SUM(Q$9:Q$1000) -> 0 | R4: =SUM(R$9:R$1000) -> 0 | S4: =SUM(S$9:S$1000) -> 1776275 | T4: =SUM(T$9:T$1000) -> 0 | V4: 479750 | X4: =SUM(X$9:X$1000) -> 479750 | Y4: =IF(P4>0, IF(X4/P4*100<>0, X4/P4*100, "-"),0) -> 48.13760884 | Z4: =SUM(Z$9:Z$1000) -> 479531.5108 | AA4: 0 | AB4: 0 | AC4: 448056 | AD4: 177959.31 | AF4: 0 | AH4: 177959.31 | AI4: =IF(Z4>0, IF(AH4/Z4*100<>0, AH4/Z4*100, "-"),0) -> 37.11107737
A6: Structure administrative du pays | D6: Population nécessitant la CP pour FL | E6: Population traitée pour la filariose lymphatique | J6: Population nécessitant la CP pour ONCHO | K6: Population traitée pour l'onchocercose | P6: Population nécessitant la CP pour STH | Q6: Population traitée pour les géohelminthiases | Z6: Population nécessitant la CP pour SCH | AA6: Population traitée pour la schistosomiase | AP6: =SUM(AP9:AP1000) -> 155498.8693 | AQ6: 613552.8041 | AR6: 1008521.933 | AS6: 2665251.159 | AT6: =SUM(AT9:AT1000) -> 4442824.765 | AU6: =COUNTIF(AU9:AU1000,"Y") -> 17 | AV6: =SUM(AV9:AV1000) -> 0 | AW6: 858395.597 | AX6: 1862190.403 | AY6: =SUM(AY9:AY1000) -> 2720586 | AZ6: 0 | BA6: 858395.597 | BB6: 1862190.403 | BC6: 2703282.145 | BD6: =IF(AT6<>0,BC6/AT6,0) -> 0.6084602226
A7: Pays | B7: Région/Département | C7: District | E7: Masculine | F7: Féminine | G7: Total traité | H7: Total traité ayant besoin de CP | I7: (%) | K7: Masculine | L7: Féminine | M7: Total traité | N7: Total traité ayant besoin de CP | O7: (%) | Q7: Masculine | R7: Féminine | S7: Total traité | T7: EAPréS traité ayant besoin de CP | U7: EAPréS (%) | V7: EAS traité ayant besoin de CP | W7: EAS (%) | X7: Total traité ayant besoin de CP | Y7: (%) | AA7: Masculine | AB7: Féminine | AC7: Total traité | AD7: EAS traité ayant besoin de CP | AE7: EAS (%) | AF7: Adultes traité ayant besoin de CP | AG7: Adultes (%) | AH7: Total traité ayant besoin de CP | AI7: (%) | AK7: LF | AL7: ONCHO | AM7: STH | AN7: SCH-SAC | AO7: SCH_Adults | AP7: <1 | AQ7: PreSAC | AR7: SAC | AS7: Adults | AT7: Total | AU7: Dis | AV7: PreSAC | AW7: SAC | AX7: Adults | AY7: Total | AZ7: PreSAC | BA7: SAC | BB7: Adults | BC7: Total | BD7: Coverage
A9: =IF(COUNTRY_INFO!A9=0," ",COUNTRY_INFO!A9) -> République Centrafricaine | B9: =IF(COUNTRY_INFO!B9=0," ",COUNTRY_INFO!B9) -> RS N° 1 | C9: =IF(COUNTRY_INFO!C9=0," ",COUNTRY_INFO!C9) -> BEGOUA | D9: =COUNTRY_INFO!M9 -> 167960.0578 | G9: =MAX('MDA1'!M9,'MDA4'!U9) -> 131474 | H9: =IF(AND(COUNTRY_INFO!H9>0,COUNTRY_INFO!H9<4),IF(D9>MAX('MDA1'!M9,'MDA4'!U9),MAX('MDA1'!M9,'MDA4'!U9),D9),0) -> 131474 | I9: =IF(AND(COUNTRY_INFO!H9>0,COUNTRY_INFO!H9<4), IF(G9/D9*100<>0, IF(G9/D9*100>100,100,G9/D9*100), "-"),0) -> 78.27694378 | J9: =COUNTRY_INFO!N9 -> Inconnu | M9: =MAX('MDA1'!M9,MAX('MDA3'!I9,'MDA3'!L9)+MAX('MDA3'!J9,'MDA3'!M9)) -> 0 | N9: =IF(AND(COUNTRY_INFO!I9>0,COUNTRY_INFO!I9<4),IF(J9>MAX('MDA1'!M9,MAX('MDA3'!I9,'MDA3'!L9)+MAX('MDA3'!J9,'MDA3'!M9)),MAX('MDA1'!M9,MAX('MDA3'!I9,'MDA3'!L9)+MAX('MDA3'!J9,'MDA3'!M9)),J9),0) -> 0 | O9: =IF(AND(COUNTRY_INFO!I9>0,COUNTRY_INFO!I9<4), IF(M9/J9*100<>0, IF(M9/J9*100>100,100,M9/J9*100), "-"),0) -> 0 | P9: =COUNTRY_INFO!O9 -> 61322 | S9: =SUM(MAX('MDA4'!R9, 'T1'!L9, MAX(T3_R1!K9, T3_R2!K9)), MAX('MDA1'!K9, 'MDA4'!S9, 'T1'!M9, MAX(T3_R1!L9, T3_R2!L9)), MAX('MDA1'!L9, 'MDA4'!T9, 'T1'!N9, MAX(T3_R1!M9, T3_R2!M9))) -> 131474 | T9: =IF(AND(COUNTRY_INFO!J9>1,COUNTRY_INFO!J9<4),IF(COUNTRY_INFO!E9>MAX('MDA4'!R9,'T1'!L9,MAX(T3_R1!K9,T3_R2!K9)),MAX('MDA4'!R9,'T1'!L9,MAX(T3_R1!K9,T3_R2!K9)),COUNTRY_INFO!E9),0) -> 0 | U9: =IF(AND(COUNTRY_INFO!J9>1,COUNTRY_INFO!J9<4), IF(T9/COUNTRY_INFO!E9*100<>0, IF(T9/COUNTRY_INFO!E9*100>100,100,T9/COUNTRY_INFO!E9*100), "-"),0) -> - | V9: =IF(AND(COUNTRY_INFO!J9>1,COUNTRY_INFO!J9<4),IF(COUNTRY_INFO!F9>MAX('MDA1'!K9,'MDA4'!S9,'T1'!M9,MAX(T3_R1!L9,T3_R2!L9)),MAX('MDA1'!K9,'MDA4'!S9,'T1'!M9,MAX(T3_R1!L9,T3_R2!L9)),COUNTRY_INFO!F9),0) -> 38127 | W9: =IF(AND(COUNTRY_INFO!J9>1,COUNTRY_INFO!J9<4), IF(V9/COUNTRY_INFO!F9*100<>0, IF(V9/COUNTRY_INFO!F9*100>100,100,V9/COUNTRY_INFO!F9*100), "-"),0) -> 100 | X9: =SUM(T9,V9) -> 38127 | Y9: =IF(AND(COUNTRY_INFO!J9>1,COUNTRY_INFO!J9<4), IF(S9/P9*100<>0, IF(X9/P9*100>100,100,X9/P9*100), "-"),0) -> 62.17507583 | Z9: =COUNTRY_INFO!P9 -> 38126.93312 | AC9: =MAX('T1'!L9,'T2'!J9)+MAX('T1'!M9,'T2'!K9)+MAX('T1'!N9,'T2'!L9) -> 9790 | AD9: =IF(COUNTRY_INFO!K9=1,IF(COUNTRY_INFO!F9*0.33>MAX('T1'!M9,'T2'!K9),MAX('T1'!M9,'T2'!K9),COUNTRY_INFO!F9*0.33),IF(COUNTRY_INFO!K9=2,IF(COUNTRY_INFO!F9*0.5>MAX('T1'!M9,'T2'!K9),MAX('T1'!M9,'T2'!K9),COUNTRY_INFO!F9*0.5),IF(COUNTRY_INFO!K9=3,IF(COUNTRY_INFO!F9>MAX('T1'!M9,'T2'!K9),MAX('T1'!M9,'T2'!K9),COUNTRY_INFO!F9),0))) -> 9790 | AE9: =IF(AND(COUNTRY_INFO!K9>0,COUNTRY_INFO!K9<4),IF(Z9>0,IF(COUNTRY_INFO!K9=1, AD9/(COUNTRY_INFO!F9*0.33)*100, IF(COUNTRY_INFO!K9=2, AD9/(COUNTRY_INFO!F9*0.5)*100, IF(COUNTRY_INFO!K9=3, AD9/COUNTRY_INFO!F9*100))),"-"),0) -> 77.81012581 | AF9: =IF(COUNTRY_INFO!K9=2,IF(COUNTRY_INFO!G9*0.2>MAX('T1'!N9,'T2'!L9),MAX('T1'!N9,'T2'!L9),COUNTRY_INFO!G9*0.2),IF(COUNTRY_INFO!K9=3,IF(COUNTRY_INFO!G9>MAX('T1'!N9,'T2'!L9),MAX('T1'!N9,'T2'!L9),COUNTRY_INFO!G9),0)) -> 0 | AG9: =IF(AND(COUNTRY_INFO!K9>0,COUNTRY_INFO!K9<4),IF(Z9>0,IF(COUNTRY_INFO!K9=1, 0, IF(COUNTRY_INFO!K9=2, AF9/(COUNTRY_INFO!G9*0.2)*100, IF(COUNTRY_INFO!K9=3, AF9/COUNTRY_INFO!G9*100))),"-"),0) -> 0 | AH9: =SUM(AD9,AF9) -> 9790 | AI9: =IF(AND(COUNTRY_INFO!K9>0,COUNTRY_INFO!K9<4), IF(AC9/Z9*100<>0, IF(AH9/Z9*100>100,100,AH9/Z9*100), "-"),0) -> 25.67738656 | AK9: =IF(AND(D9<>0, D9<>"Inconnu",D9<>"Interrompu",D9<>"Non requis"),D9/COUNTRY_INFO!D9, 0) -> 1 | AL9: =IF(AND(J9<>0,J9<>"Inconnu",J9<>"Interrompu",J9<>"Non requis"),J9/COUNTRY_INFO!D9, 0) -> 0 | AM9: =IF(AND(P9<>0,P9<>"Inconnu",P9<>"Non requis"),P9/(COUNTRY_INFO!E9+COUNTRY_INFO!F9), 0) -> 1 | AN9: =IF(AND(Z9<>0,Z9<>"Inconnu",Z9<>"Non requis"),IF(COUNTRY_INFO!K9=1,1,IF(COUNTRY_INFO!K9=2,0.5*COUNTRY_INFO!F9/(0.5*COUNTRY_INFO!F9+0.2*COUNTRY_INFO!G9),IF(COUNTRY_INFO!K9=3,COUNTRY_INFO!F9/(COUNTRY_INFO!F9+COUNTRY_INFO!G9)))),0) -> 1 | AO9: =IF(AND(Z9<>0,Z9<>"Inconnu",Z9<>"Non requis"),IF(COUNTRY_INFO!K9=1,0,IF(COUNTRY_INFO!K9=2,0.2*COUNTRY_INFO!G9/(0.5*COUNTRY_INFO!F9+0.2*COUNTRY_INFO!G9),IF(COUNTRY_INFO!K9=3,COUNTRY_INFO!G9/(COUNTRY_INFO!F9+COUNTRY_INFO!G9)))),0) -> 0 | AP9: =MAX(COUNTRY_INFO!D9*AK9*PROFILE!$G$7,COUNTRY_INFO!D9*AL9*PROFILE!$G$7) -> 5878.602119 | AQ9: =MAX(COUNTRY_INFO!D9*AK9*PROFILE!$G$8,COUNTRY_INFO!D9*AL9*PROFILE!$G$8,COUNTRY_INFO!D9*AM9*PROFILE!$G$8) -> 23195.23499 | AR9: =MAX(COUNTRY_INFO!D9*AK9*PROFILE!$G$9,COUNTRY_INFO!D9*AL9*PROFILE!$G$9,COUNTRY_INFO!D9*AM9*PROFILE!$G$9,IF(AND(DISTRICT!Z9<>"Inconnu",Z9<>"Non requis"),COUNTRY_INFO!P9*DISTRICT!AN9,0)) -> 38126.96001 | AS9: =MAX(COUNTRY_INFO!D9*AK9*PROFILE!$G$10,COUNTRY_INFO!D9*AL9*PROFILE!$G$10,IF(AND(DISTRICT!Z9<>"Inconnu",Z9<>"Non requis"),COUNTRY_INFO!P9*DISTRICT!AO9,0)) -> 100759.2607 | AT9: =SUM(AP9:AS9) -> 167960.0578 | AU9: =IF(COUNTIFS(AK9:AN9,">0")=0,0, IF(COUNTIFS(AK9:AN9,">0")<=IF(AND(OR(D9>=0,D9="Non requis",D9="Inconnu",D9="Interrompu"),D9>0,H9>0),1,0)+IF(AND(OR(J9>=0,J9="Non requis",J9="Inconnu",J9="Interrompu"),J9>0,N9>0),1,0)+IF(AND(OR(P9>=0,P9="Non requis",P9="Inconnu"),P9>0,X9>0),1,0)+IF(AND(OR(Z9>=0,Z9="Non requis",Z9="Inconnu"),Z9>0,AH9>0),1,0),"Y",0)) -> Y | AV9: =MAX('MDA4'!R9,'T1'!L9,'T2'!J9,T3_R1!K9,T3_R2!K9) -> 0 | AW9: =MAX('MDA1'!K9,'MDA4'!S9,'MDA3'!I9,'MDA3'!L9,'T1'!M9,'T2'!K9,T3_R1!L9,T3_R2!L9) -> 48232 | AX9: =MAX('MDA1'!L9,'MDA4'!T9,'MDA3'!J9,'MDA3'!M9,'T1'!N9,'T2'!L9,T3_R1!M9,T3_R2!M9) -> 83242 | AY9: =SUM(AV9:AX9) -> 131474 | AZ9: =MAX('MDA4'!R9,T9) -> 0 | BA9: =MAX('MDA1'!K9,'MDA4'!S9,'MDA3'!I9,'MDA3'!L9,V9,AD9) -> 48232 | BB9: =MAX('MDA1'!L9,'MDA4'!T9,'MDA3'!J9,'MDA3'!M9,AF9) -> 83242 | BC9: =IF(AT9<SUM(AZ9:BB9), AT9,SUM(AZ9:BB9)) -> 131474 | BD9: =IF(AT9<>0,BC9/AT9*100,0) -> 78.27694378
A10: =IF(COUNTRY_INFO!A10=0," ",COUNTRY_INFO!A10) -> République Centrafricaine | B10: =IF(COUNTRY_INFO!B10=0," ",COUNTRY_INFO!B10) -> RS N° 1 | C10: =IF(COUNTRY_INFO!C10=0," ",COUNTRY_INFO!C10) -> BIMBO | D10: =COUNTRY_INFO!M10 -> 173405.3799 | G10: =MAX('MDA1'!M10,'MDA4'!U10) -> 136552 | H10: =IF(AND(COUNTRY_INFO!H10>0,COUNTRY_INFO!H10<4),IF(D10>MAX('MDA1'!M10,'MDA4'!U10),MAX('MDA1'!M10,'MDA4'!U10),D10),0) -> 136552 | I10: =IF(AND(COUNTRY_INFO!H10>0,COUNTRY_INFO!H10<4), IF(G10/D10*100<>0, IF(G10/D10*100>100,100,G10/D10*100), "-"),0) -> 78.74726844 | J10: =COUNTRY_INFO!N10 -> Inconnu | M10: =MAX('MDA1'!M10,MAX('MDA3'!I10,'MDA3'!L10)+MAX('MDA3'!J10,'MDA3'!M10)) -> 0 | N10: =IF(AND(COUNTRY_INFO!I10>0,COUNTRY_INFO!I10<4),IF(J10>MAX('MDA1'!M10,MAX('MDA3'!I10,'MDA3'!L10)+MAX('MDA3'!J10,'MDA3'!M10)),MAX('MDA1'!M10,MAX('MDA3'!I10,'MDA3'!L10)+MAX('MDA3'!J10,'MDA3'!M10)),J10),0) -> 0 | O10: =IF(AND(COUNTRY_INFO!I10>0,COUNTRY_INFO!I10<4), IF(M10/J10*100<>0, IF(M10/J10*100>100,100,M10/J10*100), "-"),0) -> 0 | P10: =COUNTRY_INFO!O10 -> 63310 | S10: =SUM(MAX('MDA4'!R10, 'T1'!L10, MAX(T3_R1!K10, T3_R2!K10)), MAX('MDA1'!K10, 'MDA4'!S10, 'T1'!M10, MAX(T3_R1!L10, T3_R2!L10)), MAX('MDA1'!L10, 'MDA4'!T10, 'T1'!N10, MAX(T3_R1!M10, T3_R2!M10))) -> 136552 | T10: =IF(AND(COUNTRY_INFO!J10>1,COUNTRY_INFO!J10<4),IF(COUNTRY_INFO!E10>MAX('MDA4'!R10,'T1'!L10,MAX(T3_R1!K10,T3_R2!K10)),MAX('MDA4'!R10,'T1'!L10,MAX(T3_R1!K10,T3_R2!K10)),COUNTRY_INFO!E10),0) -> 0 | U10: =IF(AND(COUNTRY_INFO!J10>1,COUNTRY_INFO!J10<4), IF(T10/COUNTRY_INFO!E10*100<>0, IF(T10/COUNTRY_INFO!E10*100>100,100,T10/COUNTRY_INFO!E10*100), "-"),0) -> - | V10: =IF(AND(COUNTRY_INFO!J10>1,COUNTRY_INFO!J10<4),IF(COUNTRY_INFO!F10>MAX('MDA1'!K10,'MDA4'!S10,'T1'!M10,MAX(T3_R1!L10,T3_R2!L10)),MAX('MDA1'!K10,'MDA4'!S10,'T1'!M10,MAX(T3_R1!L10,T3_R2!L10)),COUNTRY_INFO!F10),0) -> 39363 | W10: =IF(AND(COUNTRY_INFO!J10>1,COUNTRY_INFO!J10<4), IF(V10/COUNTRY_INFO!F10*100<>0, IF(V10/COUNTRY_INFO!F10*100>100,100,V10/COUNTRY_INFO!F10*100), "-"),0) -> 100 | X10: =SUM(T10,V10) -> 39363 | Y10: =IF(AND(COUNTRY_INFO!J10>1,COUNTRY_INFO!J10<4), IF(S10/P10*100<>0, IF(X10/P10*100>100,100,X10/P10*100), "-"),0) -> 62.17501185 | Z10: =COUNTRY_INFO!P10 -> 39363.02124 | AC10: =MAX('T1'!L10,'T2'!J10)+MAX('T1'!M10,'T2'!K10)+MAX('T1'!N10,'T2'!L10) -> 72614 | AD10: =IF(COUNTRY_INFO!K10=1,IF(COUNTRY_INFO!F10*0.33>MAX('T1'!M10,'T2'!K10),MAX('T1'!M10,'T2'!K10),COUNTRY_INFO!F10*0.33),IF(COUNTRY_INFO!K10=2,IF(COUNTRY_INFO!F10*0.5>MAX('T1'!M10,'T2'!K10),MAX('T1'!M10,'T2'!K10),COUNTRY_INFO!F10*0.5),IF(COUNTRY_INFO!K10=3,IF(COUNTRY_INFO!F10>MAX('T1'!M10,'T2'!K10),MAX('T1'!M10,'T2'!K10),COUNTRY_INFO!F10),0))) -> 12989.79 | AE10: =IF(AND(COUNTRY_INFO!K10>0,COUNTRY_INFO!K10<4),IF(Z10>0,IF(COUNTRY_INFO!K10=1, AD10/(COUNTRY_INFO!F10*0.33)*100, IF(COUNTRY_INFO!K10=2, AD10/(COUNTRY_INFO!F10*0.5)*100, IF(COUNTRY_INFO!K10=3, AD10/COUNTRY_INFO!F10*100))),"-"),0) -> 100 | AF10: =IF(COUNTRY_INFO!K10=2,IF(COUNTRY_INFO!G10*0.2>MAX('T1'!N10,'T2'!L10),MAX('T1'!N10,'T2'!L10),COUNTRY_INFO!G10*0.2),IF(COUNTRY_INFO!K10=3,IF(COUNTRY_INFO!G10>MAX('T1'!N10,'T2'!L10),MAX('T1'!N10,'T2'!L10),COUNTRY_INFO!G10),0)) -> 0 | AG10: =IF(AND(COUNTRY_INFO!K10>0,COUNTRY_INFO!K10<4),IF(Z10>0,IF(COUNTRY_INFO!K10=1, 0, IF(COUNTRY_INFO!K10=2, AF10/(COUNTRY_INFO!G10*0.2)*100, IF(COUNTRY_INFO!K10=3, AF10/COUNTRY_INFO!G10*100))),"-"),0) -> 0 | AH10: =SUM(AD10,AF10) -> 12989.79 | AI10: =IF(AND(COUNTRY_INFO!K10>0,COUNTRY_INFO!K10<4), IF(AC10/Z10*100<>0, IF(AH10/Z10*100>100,100,AH10/Z10*100), "-"),0) -> 32.99998219 | AK10: =IF(AND(D10<>0, D10<>"Inconnu",D10<>"Interrompu",D10<>"Non requis"),D10/COUNTRY_INFO!D10, 0) -> 1 | AL10: =IF(AND(J10<>0,J10<>"Inconnu",J10<>"Interrompu",J10<>"Non requis"),J10/COUNTRY_INFO!D10, 0) -> 0 | AM10: =IF(AND(P10<>0,P10<>"Inconnu",P10<>"Non requis"),P10/(COUNTRY_INFO!E10+COUNTRY_INFO!F10), 0) -> 1 | AN10: =IF(AND(Z10<>0,Z10<>"Inconnu",Z10<>"Non requis"),IF(COUNTRY_INFO!K10=1,1,IF(COUNTRY_INFO!K10=2,0.5*COUNTRY_INFO!F10/(0.5*COUNTRY_INFO!F10+0.2*COUNTRY_INFO!G10),IF(COUNTRY_INFO!K10=3,COUNTRY_INFO!F10/(COUNTRY_INFO!F10+COUNTRY_INFO!G10)))),0) -> 1 | AO10: =IF(AND(Z10<>0,Z10<>"Inconnu",Z10<>"Non requis"),IF(COUNTRY_INFO!K10=1,0,IF(COUNTRY_INFO!K10=2,0.2*COUNTRY_INFO!G10/(0.5*COUNTRY_INFO!F10+0.2*COUNTRY_INFO!G10),IF(COUNTRY_INFO!K10=3,COUNTRY_INFO!G10/(COUNTRY_INFO!F10+COUNTRY_INFO!G10)))),0) -> 0 | AP10: =MAX(COUNTRY_INFO!D10*AK10*PROFILE!$G$7,COUNTRY_INFO!D10*AL10*PROFILE!$G$7) -> 6069.188396 | AQ10: =MAX(COUNTRY_INFO!D10*AK10*PROFILE!$G$8,COUNTRY_INFO!D10*AL10*PROFILE!$G$8,COUNTRY_INFO!D10*AM10*PROFILE!$G$8) -> 23947.23238 | AR10: =MAX(COUNTRY_INFO!D10*AK10*PROFILE!$G$9,COUNTRY_INFO!D10*AL10*PROFILE!$G$9,COUNTRY_INFO!D10*AM10*PROFILE!$G$9,IF(AND(DISTRICT!Z10<>"Inconnu",Z10<>"Non requis"),COUNTRY_INFO!P10*DISTRICT!AN10,0)) -> 39363.049 | AS10: =MAX(COUNTRY_INFO!D10*AK10*PROFILE!$G$10,COUNTRY_INFO!D10*AL10*PROFILE!$G$10,IF(AND(DISTRICT!Z10<>"Inconnu",Z10<>"Non requis"),COUNTRY_INFO!P10*DISTRICT!AO10,0)) -> 104025.9101 | AT10: =SUM(AP10:AS10) -> 173405.3799 | AU10: Y | AV10: =MAX('MDA4'!R10,'T1'!L10,'T2'!J10,T3_R1!K10,T3_R2!K10) -> 0 | AW10: =MAX('MDA1'!K10,'MDA4'!S10,'MDA3'!I10,'MDA3'!L10,'T1'!M10,'T2'!K10,T3_R1!L10,T3_R2!L10) -> 72614 | AX10: =MAX('MDA1'!L10,'MDA4'!T10,'MDA3'!J10,'MDA3'!M10,'T1'!N10,'T2'!L10,T3_R1!M10,T3_R2!M10) -> 63938 | AY10: =SUM(AV10:AX10) -> 136552 | AZ10: =MAX('MDA4'!R10,T10) -> 0 | BA10: =MAX('MDA1'!K10,'MDA4'!S10,'MDA3'!I10,'MDA3'!L10,V10,AD10) -> 72614 | BB10: =MAX('MDA1'!L10,'MDA4'!T10,'MDA3'!J10,'MDA3'!M10,AF10) -> 63938 | BC10: 136552 | BD10: 78.74726844
A11: =IF(COUNTRY_INFO!A11=0," ",COUNTRY_INFO!A11) -> République Centrafricaine | B11: =IF(COUNTRY_INFO!B11=0," ",COUNTRY_INFO!B11) -> RS N° 1 | C11: =IF(COUNTRY_INFO!C11=0," ",COUNTRY_INFO!C11) -> BOSSEMBELE | D11: =COUNTRY_INFO!M11 -> 142088.0307 | G11: =MAX('MDA1'!M11,'MDA4'!U11) -> 89825 | H11: =IF(AND(COUNTRY_INFO!H11>0,COUNTRY_INFO!H11<4),IF(D11>MAX('MDA1'!M11,'MDA4'!U11),MAX('MDA1'!M11,'MDA4'!U11),D11),0) -> 89825 | I11: =IF(AND(COUNTRY_INFO!H11>0,COUNTRY_INFO!H11<4), IF(G11/D11*100<>0, IF(G11/D11*100>100,100,G11/D11*100), "-"),0) -> 63.21785131 | J11: =COUNTRY_INFO!N11 -> Inconnu | M11: =MAX('MDA1'!M11,MAX('MDA3'!I11,'MDA3'!L11)+MAX('MDA3'!J11,'MDA3'!M11)) -> 0 | N11: =IF(AND(COUNTRY_INFO!I11>0,COUNTRY_INFO!I11<4),IF(J11>MAX('MDA1'!M11,MAX('MDA3'!I11,'MDA3'!L11)+MAX('MDA3'!J11,'MDA3'!M11)),MAX('MDA1'!M11,MAX('MDA3'!I11,'MDA3'!L11)+MAX('MDA3'!J11,'MDA3'!M11)),J11),0) -> 0 | O11: =IF(AND(COUNTRY_INFO!I11>0,COUNTRY_INFO!I11<4), IF(M11/J11*100<>0, IF(M11/J11*100>100,100,M11/J11*100), "-"),0) -> 0 | P11: =COUNTRY_INFO!O11 -> 51876 | S11: =SUM(MAX('MDA4'!R11, 'T1'!L11, MAX(T3_R1!K11, T3_R2!K11)), MAX('MDA1'!K11, 'MDA4'!S11, 'T1'!M11, MAX(T3_R1!L11, T3_R2!L11)), MAX('MDA1'!L11, 'MDA4'!T11, 'T1'!N11, MAX(T3_R1!M11, T3_R2!M11))) -> 89825 | T11: =IF(AND(COUNTRY_INFO!J11>1,COUNTRY_INFO!J11<4),IF(COUNTRY_INFO!E11>MAX('MDA4'!R11,'T1'!L11,MAX(T3_R1!K11,T3_R2!K11)),MAX('MDA4'!R11,'T1'!L11,MAX(T3_R1!K11,T3_R2!K11)),COUNTRY_INFO!E11),0) -> 0 | U11: =IF(AND(COUNTRY_INFO!J11>1,COUNTRY_INFO!J11<4), IF(T11/COUNTRY_INFO!E11*100<>0, IF(T11/COUNTRY_INFO!E11*100>100,100,T11/COUNTRY_INFO!E11*100), "-"),0) -> - | V11: =IF(AND(COUNTRY_INFO!J11>1,COUNTRY_INFO!J11<4),IF(COUNTRY_INFO!F11>MAX('MDA1'!K11,'MDA4'!S11,'T1'!M11,MAX(T3_R1!L11,T3_R2!L11)),MAX('MDA1'!K11,'MDA4'!S11,'T1'!M11,MAX(T3_R1!L11,T3_R2!L11)),COUNTRY_INFO!F11),0) -> 32254 | W11: =IF(AND(COUNTRY_INFO!J11>1,COUNTRY_INFO!J11<4), IF(V11/COUNTRY_INFO!F11*100<>0, IF(V11/COUNTRY_INFO!F11*100>100,100,V11/COUNTRY_INFO!F11*100), "-"),0) -> 100 | X11: 32254 | Y11: =IF(AND(COUNTRY_INFO!J11>1,COUNTRY_INFO!J11<4), IF(S11/P11*100<>0, IF(X11/P11*100>100,100,X11/P11*100), "-"),0) -> 62.17518698 | Z11: =COUNTRY_INFO!P11 -> 32253.98298 | AC11: =MAX('T1'!L11,'T2'!J11)+MAX('T1'!M11,'T2'!K11)+MAX('T1'!N11,'T2'!L11) -> 5496 | AD11: =IF(COUNTRY_INFO!K11=1,IF(COUNTRY_INFO!F11*0.33>MAX('T1'!M11,'T2'!K11),MAX('T1'!M11,'T2'!K11),COUNTRY_INFO!F11*0.33),IF(COUNTRY_INFO!K11=2,IF(COUNTRY_INFO!F11*0.5>MAX('T1'!M11,'T2'!K11),MAX('T1'!M11,'T2'!K11),COUNTRY_INFO!F11*0.5),IF(COUNTRY_INFO!K11=3,IF(COUNTRY_INFO!F11>MAX('T1'!M11,'T2'!K11),MAX('T1'!M11,'T2'!K11),COUNTRY_INFO!F11),0))) -> 5496 | AE11: =IF(AND(COUNTRY_INFO!K11>0,COUNTRY_INFO!K11<4),IF(Z11>0,IF(COUNTRY_INFO!K11=1, AD11/(COUNTRY_INFO!F11*0.33)*100, IF(COUNTRY_INFO!K11=2, AD11/(COUNTRY_INFO!F11*0.5)*100, IF(COUNTRY_INFO!K11=3, AD11/COUNTRY_INFO!F11*100))),"-"),0) -> 51.63559699 | AF11: =IF(COUNTRY_INFO!K11=2,IF(COUNTRY_INFO!G11*0.2>MAX('T1'!N11,'T2'!L11),MAX('T1'!N11,'T2'!L11),COUNTRY_INFO!G11*0.2),IF(COUNTRY_INFO!K11=3,IF(COUNTRY_INFO!G11>MAX('T1'!N11,'T2'!L11),MAX('T1'!N11,'T2'!L11),COUNTRY_INFO!G11),0)) -> 0 | AG11: =IF(AND(COUNTRY_INFO!K11>0,COUNTRY_INFO!K11<4),IF(Z11>0,IF(COUNTRY_INFO!K11=1, 0, IF(COUNTRY_INFO!K11=2, AF11/(COUNTRY_INFO!G11*0.2)*100, IF(COUNTRY_INFO!K11=3, AF11/COUNTRY_INFO!G11*100))),"-"),0) -> 0 | AH11: 5496 | AI11: =IF(AND(COUNTRY_INFO!K11>0,COUNTRY_INFO!K11<4), IF(AC11/Z11*100<>0, IF(AH11/Z11*100>100,100,AH11/Z11*100), "-"),0) -> 17.039756 | AK11: =IF(AND(D11<>0, D11<>"Inconnu",D11<>"Interrompu",D11<>"Non requis"),D11/COUNTRY_INFO!D11, 0) -> 1 | AL11: =IF(AND(J11<>0,J11<>"Inconnu",J11<>"Interrompu",J11<>"Non requis"),J11/COUNTRY_INFO!D11, 0) -> 0 | AM11: =IF(AND(P11<>0,P11<>"Inconnu",P11<>"Non requis"),P11/(COUNTRY_INFO!E11+COUNTRY_INFO!F11), 0) -> 1 | AN11: =IF(AND(Z11<>0,Z11<>"Inconnu",Z11<>"Non requis"),IF(COUNTRY_INFO!K11=1,1,IF(COUNTRY_INFO!K11=2,0.5*COUNTRY_INFO!F11/(0.5*COUNTRY_INFO!F11+0.2*COUNTRY_INFO!G11),IF(COUNTRY_INFO!K11=3,COUNTRY_INFO!F11/(COUNTRY_INFO!F11+COUNTRY_INFO!G11)))),0) -> 1 | AO11: =IF(AND(Z11<>0,Z11<>"Inconnu",Z11<>"Non requis"),IF(COUNTRY_INFO!K11=1,0,IF(COUNTRY_INFO!K11=2,0.2*COUNTRY_INFO!G11/(0.5*COUNTRY_INFO!F11+0.2*COUNTRY_INFO!G11),IF(COUNTRY_INFO!K11=3,COUNTRY_INFO!G11/(COUNTRY_INFO!F11+COUNTRY_INFO!G11)))),0) -> 0 | AP11: =MAX(COUNTRY_INFO!D11*AK11*PROFILE!$G$7,COUNTRY_INFO!D11*AL11*PROFILE!$G$7) -> 4973.081157 | AQ11: =MAX(COUNTRY_INFO!D11*AK11*PROFILE!$G$8,COUNTRY_INFO!D11*AL11*PROFILE!$G$8,COUNTRY_INFO!D11*AM11*PROFILE!$G$8) -> 19622.3156 | AR11: =MAX(COUNTRY_INFO!D11*AK11*PROFILE!$G$9,COUNTRY_INFO!D11*AL11*PROFILE!$G$9,COUNTRY_INFO!D11*AM11*PROFILE!$G$9,IF(AND(DISTRICT!Z11<>"Inconnu",Z11<>"Non requis"),COUNTRY_INFO!P11*DISTRICT!AN11,0)) -> 32254.00573 | AS11: =MAX(COUNTRY_INFO!D11*AK11*PROFILE!$G$10,COUNTRY_INFO!D11*AL11*PROFILE!$G$10,IF(AND(DISTRICT!Z11<>"Inconnu",Z11<>"Non requis"),COUNTRY_INFO!P11*DISTRICT!AO11,0)) -> 85238.62826 | AT11: 142088.0307 | AU11: Y | AV11: =MAX('MDA4'!R11,'T1'!L11,'T2'!J11,T3_R1!K11,T3_R2!K11) -> 0 | AW11: =MAX('MDA1'!K11,'MDA4'!S11,'MDA3'!I11,'MDA3'!L11,'T1'!M11,'T2'!K11,T3_R1!L11,T3_R2!L11) -> 37613 | AX11: =MAX('MDA1'!L11,'MDA4'!T11,'MDA3'!J11,'MDA3'!M11,'T1'!N11,'T2'!L11,T3_R1!M11,T3_R2!M11) -> 52212 | AY11: 89825 | AZ11: =MAX('MDA4'!R11,T11) -> 0 | BA11: =MAX('MDA1'!K11,'MDA4'!S11,'MDA3'!I11,'MDA3'!L11,V11,AD11) -> 37613 | BB11: =MAX('MDA1'!L11,'MDA4'!T11,'MDA3'!J11,'MDA3'!M11,AF11) -> 52212 | BC11: 89825 | BD11: 63.21785131
A12: =IF(COUNTRY_INFO!A12=0," ",COUNTRY_INFO!A12) -> République Centrafricaine | B12: =IF(COUNTRY_INFO!B12=0," ",COUNTRY_INFO!B12) -> RS N° 1 | C12: =IF(COUNTRY_INFO!C12=0," ",COUNTRY_INFO!C12) -> BODA | D12: =COUNTRY_INFO!M12 -> 118255.1251 | G12: =MAX('MDA1'!M12,'MDA4'!U12) -> 58643 | H12: =IF(AND(COUNTRY_INFO!H12>0,COUNTRY_INFO!H12<4),IF(D12>MAX('MDA1'!M12,'MDA4'!U12),MAX('MDA1'!M12,'MDA4'!U12),D12),0) -> 58643 | I12: =IF(AND(COUNTRY_INFO!H12>0,COUNTRY_INFO!H12<4), IF(G12/D12*100<>0, IF(G12/D12*100>100,100,G12/D12*100), "-"),0) -> 49.59023972 | J12: =COUNTRY_INFO!N12 -> Inconnu | M12: =MAX('MDA1'!M12,MAX('MDA3'!I12,'MDA3'!L12)+MAX('MDA3'!J12,'MDA3'!M12)) -> 0 | N12: =IF(AND(COUNTRY_INFO!I12>0,COUNTRY_INFO!I12<4),IF(J12>MAX('MDA1'!M12,MAX('MDA3'!I12,'MDA3'!L12)+MAX('MDA3'!J12,'MDA3'!M12)),MAX('MDA1'!M12,MAX('MDA3'!I12,'MDA3'!L12)+MAX('MDA3'!J12,'MDA3'!M12)),J12),0) -> 0 | O12: =IF(AND(COUNTRY_INFO!I12>0,COUNTRY_INFO!I12<4), IF(M12/J12*100<>0, IF(M12/J12*100>100,100,M12/J12*100), "-"),0) -> 0 | P12: =COUNTRY_INFO!O12 -> 43175 | S12: =SUM(MAX('MDA4'!R12, 'T1'!L12, MAX(T3_R1!K12, T3_R2!K12)), MAX('MDA1'!K12, 'MDA4'!S12, 'T1'!M12, MAX(T3_R1!L12, T3_R2!L12)), MAX('MDA1'!L12, 'MDA4'!T12, 'T1'!N12, MAX(T3_R1!M12, T3_R2!M12))) -> 58643 | T12: =IF(AND(COUNTRY_INFO!J12>1,COUNTRY_INFO!J12<4),IF(COUNTRY_INFO!E12>MAX('MDA4'!R12,'T1'!L12,MAX(T3_R1!K12,T3_R2!K12)),MAX('MDA4'!R12,'T1'!L12,MAX(T3_R1!K12,T3_R2!K12)),COUNTRY_INFO!E12),0) -> 0 | U12: =IF(AND(COUNTRY_INFO!J12>1,COUNTRY_INFO!J12<4), IF(T12/COUNTRY_INFO!E12*100<>0, IF(T12/COUNTRY_INFO!E12*100>100,100,T12/COUNTRY_INFO!E12*100), "-"),0) -> - | V12: =IF(AND(COUNTRY_INFO!J12>1,COUNTRY_INFO!J12<4),IF(COUNTRY_INFO!F12>MAX('MDA1'!K12,'MDA4'!S12,'T1'!M12,MAX(T3_R1!L12,T3_R2!L12)),MAX('MDA1'!K12,'MDA4'!S12,'T1'!M12,MAX(T3_R1!L12,T3_R2!L12)),COUNTRY_INFO!F12),0) -> 26844 | W12: =IF(AND(COUNTRY_INFO!J12>1,COUNTRY_INFO!J12<4), IF(V12/COUNTRY_INFO!F12*100<>0, IF(V12/COUNTRY_INFO!F12*100>100,100,V12/COUNTRY_INFO!F12*100), "-"),0) -> 100 | X12: 26844 | Y12: =IF(AND(COUNTRY_INFO!J12>1,COUNTRY_INFO!J12<4), IF(S12/P12*100<>0, IF(X12/P12*100>100,100,X12/P12*100), "-"),0) -> 62.17486972 | Z12: =COUNTRY_INFO!P12 -> 26843.91339 | AC12: =MAX('T1'!L12,'T2'!J12)+MAX('T1'!M12,'T2'!K12)+MAX('T1'!N12,'T2'!L12) -> 23157 | AD12: =IF(COUNTRY_INFO!K12=1,IF(COUNTRY_INFO!F12*0.33>MAX('T1'!M12,'T2'!K12),MAX('T1'!M12,'T2'!K12),COUNTRY_INFO!F12*0.33),IF(COUNTRY_INFO!K12=2,IF(COUNTRY_INFO!F12*0.5>MAX('T1'!M12,'T2'!K12),MAX('T1'!M12,'T2'!K12),COUNTRY_INFO!F12*0.5),IF(COUNTRY_INFO!K12=3,IF(COUNTRY_INFO!F12>MAX('T1'!M12,'T2'!K12),MAX('T1'!M12,'T2'!K12),COUNTRY_INFO!F12),0))) -> 8858.52 | AE12: =IF(AND(COUNTRY_INFO!K12>0,COUNTRY_INFO!K12<4),IF(Z12>0,IF(COUNTRY_INFO!K12=1, AD12/(COUNTRY_INFO!F12*0.33)*100, IF(COUNTRY_INFO!K12=2, AD12/(COUNTRY_INFO!F12*0.5)*100, IF(COUNTRY_INFO!K12=3, AD12/COUNTRY_INFO!F12*100))),"-"),0) -> 100 | AF12: =IF(COUNTRY_INFO!K12=2,IF(COUNTRY_INFO!G12*0.2>MAX('T1'!N12,'T2'!L12),MAX('T1'!N12,'T2'!L12),COUNTRY_INFO!G12*0.2),IF(COUNTRY_INFO!K12=3,IF(COUNTRY_INFO!G12>MAX('T1'!N12,'T2'!L12),MAX('T1'!N12,'T2'!L12),COUNTRY_INFO!G12),0)) -> 0 | AG12: =IF(AND(COUNTRY_INFO!K12>0,COUNTRY_INFO!K12<4),IF(Z12>0,IF(COUNTRY_INFO!K12=1, 0, IF(COUNTRY_INFO!K12=2, AF12/(COUNTRY_INFO!G12*0.2)*100, IF(COUNTRY_INFO!K12=3, AF12/COUNTRY_INFO!G12*100))),"-"),0) -> 0 | AH12: 8858.52 | AI12: =IF(AND(COUNTRY_INFO!K12>0,COUNTRY_INFO!K12<4), IF(AC12/Z12*100<>0, IF(AH12/Z12*100>100,100,AH12/Z12*100), "-"),0) -> 33.00010647 | AK12: =IF(AND(D12<>0, D12<>"Inconnu",D12<>"Interrompu",D12<>"Non requis"),D12/COUNTRY_INFO!D12, 0) -> 1 | AL12: =IF(AND(J12<>0,J12<>"Inconnu",J12<>"Interrompu",J12<>"Non requis"),J12/COUNTRY_INFO!D12, 0) -> 0 | AM12: =IF(AND(P12<>0,P12<>"Inconnu",P12<>"Non requis"),P12/(COUNTRY_INFO!E12+COUNTRY_INFO!F12), 0) -> 1 | AN12: =IF(AND(Z12<>0,Z12<>"Inconnu",Z12<>"Non requis"),IF(COUNTRY_INFO!K12=1,1,IF(COUNTRY_INFO!K12=2,0.5*COUNTRY_INFO!F12/(0.5*COUNTRY_INFO!F12+0.2*COUNTRY_INFO!G12),IF(COUNTRY_INFO!K12=3,COUNTRY_INFO!F12/(COUNTRY_INFO!F12+COUNTRY_INFO!G12)))),0) -> 1 | AO12: =IF(AND(Z12<>0,Z12<>"Inconnu",Z12<>"Non requis"),IF(COUNTRY_INFO!K12=1,0,IF(COUNTRY_INFO!K12=2,0.2*COUNTRY_INFO!G12/(0.5*COUNTRY_INFO!F12+0.2*COUNTRY_INFO!G12),IF(COUNTRY_INFO!K12=3,COUNTRY_INFO!G12/(COUNTRY_INFO!F12+COUNTRY_INFO!G12)))),0) -> 0 | AP12: =MAX(COUNTRY_INFO!D12*AK12*PROFILE!$G$7,COUNTRY_INFO!D12*AL12*PROFILE!$G$7) -> 4138.929445 | AQ12: =MAX(COUNTRY_INFO!D12*AK12*PROFILE!$G$8,COUNTRY_INFO!D12*AL12*PROFILE!$G$8,COUNTRY_INFO!D12*AM12*PROFILE!$G$8) -> 16330.99828 | AR12: =MAX(COUNTRY_INFO!D12*AK12*PROFILE!$G$9,COUNTRY_INFO!D12*AL12*PROFILE!$G$9,COUNTRY_INFO!D12*AM12*PROFILE!$G$9,IF(AND(DISTRICT!Z12<>"Inconnu",Z12<>"Non requis"),COUNTRY_INFO!P12*DISTRICT!AN12,0)) -> 26843.93232 | AS12: =MAX(COUNTRY_INFO!D12*AK12*PROFILE!$G$10,COUNTRY_INFO!D12*AL12*PROFILE!$G$10,IF(AND(DISTRICT!Z12<>"Inconnu",Z12<>"Non requis"),COUNTRY_INFO!P12*DISTRICT!AO12,0)) -> 70941.26502 | AT12: 118255.1251 | AU12: Y | AV12: =MAX('MDA4'!R12,'T1'!L12,'T2'!J12,T3_R1!K12,T3_R2!K12) -> 0 | AW12: =MAX('MDA1'!K12,'MDA4'!S12,'MDA3'!I12,'MDA3'!L12,'T1'!M12,'T2'!K12,T3_R1!L12,T3_R2!L12) -> 26844 | AX12: =MAX('MDA1'!L12,'MDA4'!T12,'MDA3'!J12,'MDA3'!M12,'T1'!N12,'T2'!L12,T3_R1!M12,T3_R2!M12) -> 31799 | AY12: 58643 | AZ12: =MAX('MDA4'!R12,T12) -> 0 | BA12: =MAX('MDA1'!K12,'MDA4'!S12,'MDA3'!I12,'MDA3'!L12,V12,AD12) -> 26844 | BB12: =MAX('MDA1'!L12,'MDA4'!T12,'MDA3'!J12,'MDA3'!M12,AF12) -> 31799 | BC12: 58643 | BD12: 49.59023972
A13: =IF(COUNTRY_INFO!A13=0," ",COUNTRY_INFO!A13) -> République Centrafricaine | B13: =IF(COUNTRY_INFO!B13=0," ",COUNTRY_INFO!B13) -> RS N° 1 | C13: =IF(COUNTRY_INFO!C13=0," ",COUNTRY_INFO!C13) -> MBAIKI | D13: =COUNTRY_INFO!M13 -> 216324.2749 | G13: =MAX('MDA1'!M13,'MDA4'!U13) -> 144165 | H13: =IF(AND(COUNTRY_INFO!H13>0,COUNTRY_INFO!H13<4),IF(D13>MAX('MDA1'!M13,'MDA4'!U13),MAX('MDA1'!M13,'MDA4'!U13),D13),0) -> 144165 | I13: =IF(AND(COUNTRY_INFO!H13>0,COUNTRY_INFO!H13<4), IF(G13/D13*100<>0, IF(G13/D13*100>100,100,G13/D13*100), "-"),0) -> 66.64300624 | J13: =COUNTRY_INFO!N13 -> Inconnu | M13: =MAX('MDA1'!M13,MAX('MDA3'!I13,'MDA3'!L13)+MAX('MDA3'!J13,'MDA3'!M13)) -> 0 | N13: =IF(AND(COUNTRY_INFO!I13>0,COUNTRY_INFO!I13<4),IF(J13>MAX('MDA1'!M13,MAX('MDA3'!I13,'MDA3'!L13)+MAX('MDA3'!J13,'MDA3'!M13)),MAX('MDA1'!M13,MAX('MDA3'!I13,'MDA3'!L13)+MAX('MDA3'!J13,'MDA3'!M13)),J13),0) -> 0 | O13: =IF(AND(COUNTRY_INFO!I13>0,COUNTRY_INFO!I13<4), IF(M13/J13*100<>0, IF(M13/J13*100>100,100,M13/J13*100), "-"),0) -> 0 | P13: =COUNTRY_INFO!O13 -> 78980 | S13: =SUM(MAX('MDA4'!R13, 'T1'!L13, MAX(T3_R1!K13, T3_R2!K13)), MAX('MDA1'!K13, 'MDA4'!S13, 'T1'!M13, MAX(T3_R1!L13, T3_R2!L13)), MAX('MDA1'!L13, 'MDA4'!T13, 'T1'!N13, MAX(T3_R1!M13, T3_R2!M13))) -> 144165 | T13: =IF(AND(COUNTRY_INFO!J13>1,COUNTRY_INFO!J13<4),IF(COUNTRY_INFO!E13>MAX('MDA4'!R13,'T1'!L13,MAX(T3_R1!K13,T3_R2!K13)),MAX('MDA4'!R13,'T1'!L13,MAX(T3_R1!K13,T3_R2!K13)),COUNTRY_INFO!E13),0) -> 0 | U13: =IF(AND(COUNTRY_INFO!J13>1,COUNTRY_INFO!J13<4), IF(T13/COUNTRY_INFO!E13*100<>0, IF(T13/COUNTRY_INFO!E13*100>100,100,T13/COUNTRY_INFO!E13*100), "-"),0) -> - | V13: =IF(AND(COUNTRY_INFO!J13>1,COUNTRY_INFO!J13<4),IF(COUNTRY_INFO!F13>MAX('MDA1'!K13,'MDA4'!S13,'T1'!M13,MAX(T3_R1!L13,T3_R2!L13)),MAX('MDA1'!K13,'MDA4'!S13,'T1'!M13,MAX(T3_R1!L13,T3_R2!L13)),COUNTRY_INFO!F13),0) -> 49106 | W13: =IF(AND(COUNTRY_INFO!J13>1,COUNTRY_INFO!J13<4), IF(V13/COUNTRY_INFO!F13*100<>0, IF(V13/COUNTRY_INFO!F13*100>100,100,V13/COUNTRY_INFO!F13*100), "-"),0) -> 100 | X13: 49106 | Y13: =IF(AND(COUNTRY_INFO!J13>1,COUNTRY_INFO!J13<4), IF(S13/P13*100<>0, IF(X13/P13*100>100,100,X13/P13*100), "-"),0) -> 62.17523424 | Z13: =COUNTRY_INFO!P13 -> 49105.6104 | AC13: =MAX('T1'!L13,'T2'!J13)+MAX('T1'!M13,'T2'!K13)+MAX('T1'!N13,'T2'!L13) -> 57473 | AD13: =IF(COUNTRY_INFO!K13=1,IF(COUNTRY_INFO!F13*0.33>MAX('T1'!M13,'T2'!K13),MAX('T1'!M13,'T2'!K13),COUNTRY_INFO!F13*0.33),IF(COUNTRY_INFO!K13=2,IF(COUNTRY_INFO!F13*0.5>MAX('T1'!M13,'T2'!K13),MAX('T1'!M13,'T2'!K13),COUNTRY_INFO!F13*0.5),IF(COUNTRY_INFO!K13=3,IF(COUNTRY_INFO!F13>MAX('T1'!M13,'T2'!K13),MAX('T1'!M13,'T2'!K13),COUNTRY_INFO!F13),0))) -> 16204.98 | AE13: =IF(AND(COUNTRY_INFO!K13>0,COUNTRY_INFO!K13<4),IF(Z13>0,IF(COUNTRY_INFO!K13=1, AD13/(COUNTRY_INFO!F13*0.33)*100, IF(COUNTRY_INFO!K13=2, AD13/(COUNTRY_INFO!F13*0.5)*100, IF(COUNTRY_INFO!K13=3, AD13/COUNTRY_INFO!F13*100))),"-"),0) -> 100 | AF13: =IF(COUNTRY_INFO!K13=2,IF(COUNTRY_INFO!G13*0.2>MAX('T1'!N13,'T2'!L13),MAX('T1'!N13,'T2'!L13),COUNTRY_INFO!G13*0.2),IF(COUNTRY_INFO!K13=3,IF(COUNTRY_INFO!G13>MAX('T1'!N13,'T2'!L13),MAX('T1'!N13,'T2'!L13),COUNTRY_INFO!G13),0)) -> 0 | AG13: =IF(AND(COUNTRY_INFO!K13>0,COUNTRY_INFO!K13<4),IF(Z13>0,IF(COUNTRY_INFO!K13=1, 0, IF(COUNTRY_INFO!K13=2, AF13/(COUNTRY_INFO!G13*0.2)*100, IF(COUNTRY_INFO!K13=3, AF13/COUNTRY_INFO!G13*100))),"-"),0) -> 0 | AH13: 16204.98 | AI13: =IF(AND(COUNTRY_INFO!K13>0,COUNTRY_INFO!K13<4), IF(AC13/Z13*100<>0, IF(AH13/Z13*100>100,100,AH13/Z13*100), "-"),0) -> 33.00026182 | AK13: =IF(AND(D13<>0, D13<>"Inconnu",D13<>"Interrompu",D13<>"Non requis"),D13/COUNTRY_INFO!D13, 0) -> 1 | AL13: =IF(AND(J13<>0,J13<>"Inconnu",J13<>"Interrompu",J13<>"Non requis"),J13/COUNTRY_INFO!D13, 0) -> 0 | AM13: =IF(AND(P13<>0,P13<>"Inconnu",P13<>"Non requis"),P13/(COUNTRY_INFO!E13+COUNTRY_INFO!F13), 0) -> 1 | AN13: =IF(AND(Z13<>0,Z13<>"Inconnu",Z13<>"Non requis"),IF(COUNTRY_INFO!K13=1,1,IF(COUNTRY_INFO!K13=2,0.5*COUNTRY_INFO!F13/(0.5*COUNTRY_INFO!F13+0.2*COUNTRY_INFO!G13),IF(COUNTRY_INFO!K13=3,COUNTRY_INFO!F13/(COUNTRY_INFO!F13+COUNTRY_INFO!G13)))),0) -> 1 | AO13: =IF(AND(Z13<>0,Z13<>"Inconnu",Z13<>"Non requis"),IF(COUNTRY_INFO!K13=1,0,IF(COUNTRY_INFO!K13=2,0.2*COUNTRY_INFO!G13/(0.5*COUNTRY_INFO!F13+0.2*COUNTRY_INFO!G13),IF(COUNTRY_INFO!K13=3,COUNTRY_INFO!G13/(COUNTRY_INFO!F13+COUNTRY_INFO!G13)))),0) -> 0 | AP13: =MAX(COUNTRY_INFO!D13*AK13*PROFILE!$G$7,COUNTRY_INFO!D13*AL13*PROFILE!$G$7) -> 7571.349745 | AQ13: =MAX(COUNTRY_INFO!D13*AK13*PROFILE!$G$8,COUNTRY_INFO!D13*AL13*PROFILE!$G$8,COUNTRY_INFO!D13*AM13*PROFILE!$G$8) -> 29874.31926 | AR13: =MAX(COUNTRY_INFO!D13*AK13*PROFILE!$G$9,COUNTRY_INFO!D13*AL13*PROFILE!$G$9,COUNTRY_INFO!D13*AM13*PROFILE!$G$9,IF(AND(DISTRICT!Z13<>"Inconnu",Z13<>"Non requis"),COUNTRY_INFO!P13*DISTRICT!AN13,0)) -> 49105.64503 | AS13: =MAX(COUNTRY_INFO!D13*AK13*PROFILE!$G$10,COUNTRY_INFO!D13*AL13*PROFILE!$G$10,IF(AND(DISTRICT!Z13<>"Inconnu",Z13<>"Non requis"),COUNTRY_INFO!P13*DISTRICT!AO13,0)) -> 129772.9608 | AT13: 216324.2749 | AU13: Y | AV13: =MAX('MDA4'!R13,'T1'!L13,'T2'!J13,T3_R1!K13,T3_R2!K13) -> 0 | AW13: =MAX('MDA1'!K13,'MDA4'!S13,'MDA3'!I13,'MDA3'!L13,'T1'!M13,'T2'!K13,T3_R1!L13,T3_R2!L13) -> 64116 | AX13: =MAX('MDA1'!L13,'MDA4'!T13,'MDA3'!J13,'MDA3'!M13,'T1'!N13,'T2'!L13,T3_R1!M13,T3_R2!M13) -> 80049 | AY13: 144165 | AZ13: =MAX('MDA4'!R13,T13) -> 0 | BA13: =MAX('MDA1'!K13,'MDA4'!S13,'MDA3'!I13,'MDA3'!L13,V13,AD13) -> 64116 | BB13: =MAX('MDA1'!L13,'MDA4'!T13,'MDA3'!J13,'MDA3'!M13,AF13) -> 80049 | BC13: 144165 | BD13: 66.64300624
A14: =IF(COUNTRY_INFO!A14=0," ",COUNTRY_INFO!A14) -> République Centrafricaine | B14: =IF(COUNTRY_INFO!B14=0," ",COUNTRY_INFO!B14) -> RS N° 2 | C14: =IF(COUNTRY_INFO!C14=0," ",COUNTRY_INFO!C14) -> BERBERATI | D14: =COUNTRY_INFO!M14 -> 185274.1046 | G14: =MAX('MDA1'!M14,'MDA4'!U14) -> 105901 | H14: =IF(AND(COUNTRY_INFO!H14>0,COUNTRY_INFO!H14<4),IF(D14>MAX('MDA1'!M14,'MDA4'!U14),MAX('MDA1'!M14,'MDA4'!U14),D14),0) -> 105901 | I14: =IF(AND(COUNTRY_INFO!H14>0,COUNTRY_INFO!H14<4), IF(G14/D14*100<>0, IF(G14/D14*100>100,100,G14/D14*100), "-"),0) -> 57.15909421 | J14: =COUNTRY_INFO!N14 -> Inconnu | M14: =MAX('MDA1'!M14,MAX('MDA3'!I14,'MDA3'!L14)+MAX('MDA3'!J14,'MDA3'!M14)) -> 0 | N14: =IF(AND(COUNTRY_INFO!I14>0,COUNTRY_INFO!I14<4),IF(J14>MAX('MDA1'!M14,MAX('MDA3'!I14,'MDA3'!L14)+MAX('MDA3'!J14,'MDA3'!M14)),MAX('MDA1'!M14,MAX('MDA3'!I14,'MDA3'!L14)+MAX('MDA3'!J14,'MDA3'!M14)),J14),0) -> 0 | O14: =IF(AND(COUNTRY_INFO!I14>0,COUNTRY_INFO!I14<4), IF(M14/J14*100<>0, IF(M14/J14*100>100,100,M14/J14*100), "-"),0) -> 0 | P14: =COUNTRY_INFO!O14 -> 67643 | S14: =SUM(MAX('MDA4'!R14, 'T1'!L14, MAX(T3_R1!K14, T3_R2!K14)), MAX('MDA1'!K14, 'MDA4'!S14, 'T1'!M14, MAX(T3_R1!L14, T3_R2!L14)), MAX('MDA1'!L14, 'MDA4'!T14, 'T1'!N14, MAX(T3_R1!M14, T3_R2!M14))) -> 105901 | T14: =IF(AND(COUNTRY_INFO!J14>1,COUNTRY_INFO!J14<4),IF(COUNTRY_INFO!E14>MAX('MDA4'!R14,'T1'!L14,MAX(T3_R1!K14,T3_R2!K14)),MAX('MDA4'!R14,'T1'!L14,MAX(T3_R1!K14,T3_R2!K14)),COUNTRY_INFO!E14),0) -> 0 | U14: =IF(AND(COUNTRY_INFO!J14>1,COUNTRY_INFO!J14<4), IF(T14/COUNTRY_INFO!E14*100<>0, IF(T14/COUNTRY_INFO!E14*100>100,100,T14/COUNTRY_INFO!E14*100), "-"),0) -> - | V14: =IF(AND(COUNTRY_INFO!J14>1,COUNTRY_INFO!J14<4),IF(COUNTRY_INFO!F14>MAX('MDA1'!K14,'MDA4'!S14,'T1'!M14,MAX(T3_R1!L14,T3_R2!L14)),MAX('MDA1'!K14,'MDA4'!S14,'T1'!M14,MAX(T3_R1!L14,T3_R2!L14)),COUNTRY_INFO!F14),0) -> 29197 | W14: =IF(AND(COUNTRY_INFO!J14>1,COUNTRY_INFO!J14<4), IF(V14/COUNTRY_INFO!F14*100<>0, IF(V14/COUNTRY_INFO!F14*100>100,100,V14/COUNTRY_INFO!F14*100), "-"),0) -> 69.42245048 | X14: 29197 | Y14: =IF(AND(COUNTRY_INFO!J14>1,COUNTRY_INFO!J14<4), IF(S14/P14*100<>0, IF(X14/P14*100>100,100,X14/P14*100), "-"),0) -> 43.16337241 | Z14: =COUNTRY_INFO!P14 -> 0 | AC14: =MAX('T1'!L14,'T2'!J14)+MAX('T1'!M14,'T2'!K14)+MAX('T1'!N14,'T2'!L14) -> 0 | AD14: =IF(COUNTRY_INFO!K14=1,IF(COUNTRY_INFO!F14*0.33>MAX('T1'!M14,'T2'!K14),MAX('T1'!M14,'T2'!K14),COUNTRY_INFO!F14*0.33),IF(COUNTRY_INFO!K14=2,IF(COUNTRY_INFO!F14*0.5>MAX('T1'!M14,'T2'!K14),MAX('T1'!M14,'T2'!K14),COUNTRY_INFO!F14*0.5),IF(COUNTRY_INFO!K14=3,IF(COUNTRY_INFO!F14>MAX('T1'!M14,'T2'!K14),MAX('T1'!M14,'T2'!K14),COUNTRY_INFO!F14),0))) -> 0 | AE14: =IF(AND(COUNTRY_INFO!K14>0,COUNTRY_INFO!K14<4),IF(Z14>0,IF(COUNTRY_INFO!K14=1, AD14/(COUNTRY_INFO!F14*0.33)*100, IF(COUNTRY_INFO!K14=2, AD14/(COUNTRY_INFO!F14*0.5)*100, IF(COUNTRY_INFO!K14=3, AD14/COUNTRY_INFO!F14*100))),"-"),0) -> 0 | AF14: =IF(COUNTRY_INFO!K14=2,IF(COUNTRY_INFO!G14*0.2>MAX('T1'!N14,'T2'!L14),MAX('T1'!N14,'T2'!L14),COUNTRY_INFO!G14*0.2),IF(COUNTRY_INFO!K14=3,IF(COUNTRY_INFO!G14>MAX('T1'!N14,'T2'!L14),MAX('T1'!N14,'T2'!L14),COUNTRY_INFO!G14),0)) -> 0 | AG14: =IF(AND(COUNTRY_INFO!K14>0,COUNTRY_INFO!K14<4),IF(Z14>0,IF(COUNTRY_INFO!K14=1, 0, IF(COUNTRY_INFO!K14=2, AF14/(COUNTRY_INFO!G14*0.2)*100, IF(COUNTRY_INFO!K14=3, AF14/COUNTRY_INFO!G14*100))),"-"),0) -> 0 | AH14: 0 | AI14: =IF(AND(COUNTRY_INFO!K14>0,COUNTRY_INFO!K14<4), IF(AC14/Z14*100<>0, IF(AH14/Z14*100>100,100,AH14/Z14*100), "-"),0) -> 0 | AK14: =IF(AND(D14<>0, D14<>"Inconnu",D14<>"Interrompu",D14<>"Non requis"),D14/COUNTRY_INFO!D14, 0) -> 1 | AL14: =IF(AND(J14<>0,J14<>"Inconnu",J14<>"Interrompu",J14<>"Non requis"),J14/COUNTRY_INFO!D14, 0) -> 0 | AM14: =IF(AND(P14<>0,P14<>"Inconnu",P14<>"Non requis"),P14/(COUNTRY_INFO!E14+COUNTRY_INFO!F14), 0) -> 1 | AN14: =IF(AND(Z14<>0,Z14<>"Inconnu",Z14<>"Non requis"),IF(COUNTRY_INFO!K14=1,1,IF(COUNTRY_INFO!K14=2,0.5*COUNTRY_INFO!F14/(0.5*COUNTRY_INFO!F14+0.2*COUNTRY_INFO!G14),IF(COUNTRY_INFO!K14=3,COUNTRY_INFO!F14/(COUNTRY_INFO!F14+COUNTRY_INFO!G14)))),0) -> 0 | AO14: =IF(AND(Z14<>0,Z14<>"Inconnu",Z14<>"Non requis"),IF(COUNTRY_INFO!K14=1,0,IF(COUNTRY_INFO!K14=2,0.2*COUNTRY_INFO!G14/(0.5*COUNTRY_INFO!F14+0.2*COUNTRY_INFO!G14),IF(COUNTRY_INFO!K14=3,COUNTRY_INFO!G14/(COUNTRY_INFO!F14+COUNTRY_INFO!G14)))),0) -> 0 | AP14: =MAX(COUNTRY_INFO!D14*AK14*PROFILE!$G$7,COUNTRY_INFO!D14*AL14*PROFILE!$G$7) -> 6484.593768 | AQ14: =MAX(COUNTRY_INFO!D14*AK14*PROFILE!$G$8,COUNTRY_INFO!D14*AL14*PROFILE!$G$8,COUNTRY_INFO!D14*AM14*PROFILE!$G$8) -> 25586.2998 | AR14: =MAX(COUNTRY_INFO!D14*AK14*PROFILE!$G$9,COUNTRY_INFO!D14*AL14*PROFILE!$G$9,COUNTRY_INFO!D14*AM14*PROFILE!$G$9,IF(AND(DISTRICT!Z14<>"Inconnu",Z14<>"Non requis"),COUNTRY_INFO!P14*DISTRICT!AN14,0)) -> 42057.25141 | AS14: =MAX(COUNTRY_INFO!D14*AK14*PROFILE!$G$10,COUNTRY_INFO!D14*AL14*PROFILE!$G$10,IF(AND(DISTRICT!Z14<>"Inconnu",Z14<>"Non requis"),COUNTRY_INFO!P14*DISTRICT!AO14,0)) -> 111145.9596 | AT14: 185274.1046 | AU14: Y | AV14: =MAX('MDA4'!R14,'T1'!L14,'T2'!J14,T3_R1!K14,T3_R2!K14) -> 0 | AW14: =MAX('MDA1'!K14,'MDA4'!S14,'MDA3'!I14,'MDA3'!L14,'T1'!M14,'T2'!K14,T3_R1!L14,T3_R2!L14) -> 29197 | AX14: =MAX('MDA1'!L14,'MDA4'!T14,'MDA3'!J14,'MDA3'!M14,'T1'!N14,'T2'!L14,T3_R1!M14,T3_R2!M14) -> 76704 | AY14: 105901 | AZ14: =MAX('MDA4'!R14,T14) -> 0 | BA14: =MAX('MDA1'!K14,'MDA4'!S14,'MDA3'!I14,'MDA3'!L14,V14,AD14) -> 29197 | BB14: =MAX('MDA1'!L14,'MDA4'!T14,'MDA3'!J14,'MDA3'!M14,AF14) -> 76704 | BC14: 105901 | BD14: 57.15909421
A15: =IF(COUNTRY_INFO!A15=0," ",COUNTRY_INFO!A15) -> République Centrafricaine | B15: =IF(COUNTRY_INFO!B15=0," ",COUNTRY_INFO!B15) -> RS N° 2 | C15: =IF(COUNTRY_INFO!C15=0," ",COUNTRY_INFO!C15) -> CARNOT-GADZI | D15: =COUNTRY_INFO!M15 -> 199003.6868 | G15: =MAX('MDA1'!M15,'MDA4'!U15) -> 161419 | H15: =IF(AND(COUNTRY_INFO!H15>0,COUNTRY_INFO!H15<4),IF(D15>MAX('MDA1'!M15,'MDA4'!U15),MAX('MDA1'!M15,'MDA4'!U15),D15),0) -> 161419 | I15: =IF(AND(COUNTRY_INFO!H15>0,COUNTRY_INFO!H15<4), IF(G15/D15*100<>0, IF(G15/D15*100>100,100,G15/D15*100), "-"),0) -> 81.11357262 | J15: =COUNTRY_INFO!N15 -> Inconnu | M15: =MAX('MDA1'!M15,MAX('MDA3'!I15,'MDA3'!L15)+MAX('MDA3'!J15,'MDA3'!M15)) -> 0 | N15: =IF(AND(COUNTRY_INFO!I15>0,COUNTRY_INFO!I15<4),IF(J15>MAX('MDA1'!M15,MAX('MDA3'!I15,'MDA3'!L15)+MAX('MDA3'!J15,'MDA3'!M15)),MAX('MDA1'!M15,MAX('MDA3'!I15,'MDA3'!L15)+MAX('MDA3'!J15,'MDA3'!M15)),J15),0) -> 0 | O15: =IF(AND(COUNTRY_INFO!I15>0,COUNTRY_INFO!I15<4), IF(M15/J15*100<>0, IF(M15/J15*100>100,100,M15/J15*100), "-"),0) -> 0 | P15: =COUNTRY_INFO!O15 -> 72656 | S15: =SUM(MAX('MDA4'!R15, 'T1'!L15, MAX(T3_R1!K15, T3_R2!K15)), MAX('MDA1'!K15, 'MDA4'!S15, 'T1'!M15, MAX(T3_R1!L15, T3_R2!L15)), MAX('MDA1'!L15, 'MDA4'!T15, 'T1'!N15, MAX(T3_R1!M15, T3_R2!M15))) -> 161419 | T15: =IF(AND(COUNTRY_INFO!J15>1,COUNTRY_INFO!J15<4),IF(COUNTRY_INFO!E15>MAX('MDA4'!R15,'T1'!L15,MAX(T3_R1!K15,T3_R2!K15)),MAX('MDA4'!R15,'T1'!L15,MAX(T3_R1!K15,T3_R2!K15)),COUNTRY_INFO!E15),0) -> 0 | U15: =IF(AND(COUNTRY_INFO!J15>1,COUNTRY_INFO!J15<4), IF(T15/COUNTRY_INFO!E15*100<>0, IF(T15/COUNTRY_INFO!E15*100>100,100,T15/COUNTRY_INFO!E15*100), "-"),0) -> - | V15: =IF(AND(COUNTRY_INFO!J15>1,COUNTRY_INFO!J15<4),IF(COUNTRY_INFO!F15>MAX('MDA1'!K15,'MDA4'!S15,'T1'!M15,MAX(T3_R1!L15,T3_R2!L15)),MAX('MDA1'!K15,'MDA4'!S15,'T1'!M15,MAX(T3_R1!L15,T3_R2!L15)),COUNTRY_INFO!F15),0) -> 24010 | W15: =IF(AND(COUNTRY_INFO!J15>1,COUNTRY_INFO!J15<4), IF(V15/COUNTRY_INFO!F15*100<>0, IF(V15/COUNTRY_INFO!F15*100>100,100,V15/COUNTRY_INFO!F15*100), "-"),0) -> 53.15004206 | X15: 24010 | Y15: =IF(AND(COUNTRY_INFO!J15>1,COUNTRY_INFO!J15<4), IF(S15/P15*100<>0, IF(X15/P15*100>100,100,X15/P15*100), "-"),0) -> 33.04613521 | Z15: =COUNTRY_INFO!P15 -> 45173.8369 | AC15: =MAX('T1'!L15,'T2'!J15)+MAX('T1'!M15,'T2'!K15)+MAX('T1'!N15,'T2'!L15) -> 24010 | AD15: =IF(COUNTRY_INFO!K15=1,IF(COUNTRY_INFO!F15*0.33>MAX('T1'!M15,'T2'!K15),MAX('T1'!M15,'T2'!K15),COUNTRY_INFO!F15*0.33),IF(COUNTRY_INFO!K15=2,IF(COUNTRY_INFO!F15*0.5>MAX('T1'!M15,'T2'!K15),MAX('T1'!M15,'T2'!K15),COUNTRY_INFO!F15*0.5),IF(COUNTRY_INFO!K15=3,IF(COUNTRY_INFO!F15>MAX('T1'!M15,'T2'!K15),MAX('T1'!M15,'T2'!K15),COUNTRY_INFO!F15),0))) -> 14907.42 | AE15: =IF(AND(COUNTRY_INFO!K15>0,COUNTRY_INFO!K15<4),IF(Z15>0,IF(COUNTRY_INFO!K15=1, AD15/(COUNTRY_INFO!F15*0.33)*100, IF(COUNTRY_INFO!K15=2, AD15/(COUNTRY_INFO!F15*0.5)*100, IF(COUNTRY_INFO!K15=3, AD15/COUNTRY_INFO!F15*100))),"-"),0) -> 100 | AF15: =IF(COUNTRY_INFO!K15=2,IF(COUNTRY_INFO!G15*0.2>MAX('T1'!N15,'T2'!L15),MAX('T1'!N15,'T2'!L15),COUNTRY_INFO!G15*0.2),IF(COUNTRY_INFO!K15=3,IF(COUNTRY_INFO!G15>MAX('T1'!N15,'T2'!L15),MAX('T1'!N15,'T2'!L15),COUNTRY_INFO!G15),0)) -> 0 | AG15: =IF(AND(COUNTRY_INFO!K15>0,COUNTRY_INFO!K15<4),IF(Z15>0,IF(COUNTRY_INFO!K15=1, 0, IF(COUNTRY_INFO!K15=2, AF15/(COUNTRY_INFO!G15*0.2)*100, IF(COUNTRY_INFO!K15=3, AF15/COUNTRY_INFO!G15*100))),"-"),0) -> 0 | AH15: 14907.42 | AI15: =IF(AND(COUNTRY_INFO!K15>0,COUNTRY_INFO!K15<4), IF(AC15/Z15*100<>0, IF(AH15/Z15*100>100,100,AH15/Z15*100), "-"),0) -> 33.00011914 | AK15: =IF(AND(D15<>0, D15<>"Inconnu",D15<>"Interrompu",D15<>"Non requis"),D15/COUNTRY_INFO!D15, 0) -> 1 | AL15: =IF(AND(J15<>0,J15<>"Inconnu",J15<>"Interrompu",J15<>"Non requis"),J15/COUNTRY_INFO!D15, 0) -> 0 | AM15: =IF(AND(P15<>0,P15<>"Inconnu",P15<>"Non requis"),P15/(COUNTRY_INFO!E15+COUNTRY_INFO!F15), 0) -> 1 | AN15: =IF(AND(Z15<>0,Z15<>"Inconnu",Z15<>"Non requis"),IF(COUNTRY_INFO!K15=1,1,IF(COUNTRY_INFO!K15=2,0.5*COUNTRY_INFO!F15/(0.5*COUNTRY_INFO!F15+0.2*COUNTRY_INFO!G15),IF(COUNTRY_INFO!K15=3,COUNTRY_INFO!F15/(COUNTRY_INFO!F15+COUNTRY_INFO!G15)))),0) -> 1 | AO15: =IF(AND(Z15<>0,Z15<>"Inconnu",Z15<>"Non requis"),IF(COUNTRY_INFO!K15=1,0,IF(COUNTRY_INFO!K15=2,0.2*COUNTRY_INFO!G15/(0.5*COUNTRY_INFO!F15+0.2*COUNTRY_INFO!G15),IF(COUNTRY_INFO!K15=3,COUNTRY_INFO!G15/(COUNTRY_INFO!F15+COUNTRY_INFO!G15)))),0) -> 0 | AP15: =MAX(COUNTRY_INFO!D15*AK15*PROFILE!$G$7,COUNTRY_INFO!D15*AL15*PROFILE!$G$7) -> 6965.129152 | AQ15: =MAX(COUNTRY_INFO!D15*AK15*PROFILE!$G$8,COUNTRY_INFO!D15*AL15*PROFILE!$G$8,COUNTRY_INFO!D15*AM15*PROFILE!$G$8) -> 27482.3511 | AR15: =MAX(COUNTRY_INFO!D15*AK15*PROFILE!$G$9,COUNTRY_INFO!D15*AL15*PROFILE!$G$9,COUNTRY_INFO!D15*AM15*PROFILE!$G$9,IF(AND(DISTRICT!Z15<>"Inconnu",Z15<>"Non requis"),COUNTRY_INFO!P15*DISTRICT!AN15,0)) -> 45173.86877 | AS15: =MAX(COUNTRY_INFO!D15*AK15*PROFILE!$G$10,COUNTRY_INFO!D15*AL15*PROFILE!$G$10,IF(AND(DISTRICT!Z15<>"Inconnu",Z15<>"Non requis"),COUNTRY_INFO!P15*DISTRICT!AO15,0)) -> 119382.3378 | AT15: 199003.6868 | AU15: Y | AV15: =MAX('MDA4'!R15,'T1'!L15,'T2'!J15,T3_R1!K15,T3_R2!K15) -> 0 | AW15: =MAX('MDA1'!K15,'MDA4'!S15,'MDA3'!I15,'MDA3'!L15,'T1'!M15,'T2'!K15,T3_R1!L15,T3_R2!L15) -> 24010 | AX15: =MAX('MDA1'!L15,'MDA4'!T15,'MDA3'!J15,'MDA3'!M15,'T1'!N15,'T2'!L15,T3_R1!M15,T3_R2!M15) -> 137409 | AY15: 161419 | AZ15: =MAX('MDA4'!R15,T15) -> 0 | BA15: =MAX('MDA1'!K15,'MDA4'!S15,'MDA3'!I15,'MDA3'!L15,V15,AD15) -> 24010 | BB15: =MAX('MDA1'!L15,'MDA4'!T15,'MDA3'!J15,'MDA3'!M15,AF15) -> 137409 | BC15: 161419 | BD15: 81.11357262
A16: =IF(COUNTRY_INFO!A16=0," ",COUNTRY_INFO!A16) -> République Centrafricaine | B16: =IF(COUNTRY_INFO!B16=0," ",COUNTRY_INFO!B16) -> RS N° 2 | C16: =IF(COUNTRY_INFO!C16=0," ",COUNTRY_INFO!C16) -> GAMBOULA | D16: =COUNTRY_INFO!M16 -> 110112.7645 | G16: =MAX('MDA1'!M16,'MDA4'!U16) -> 38039 | H16: =IF(AND(COUNTRY_INFO!H16>0,COUNTRY_INFO!H16<4),IF(D16>MAX('MDA1'!M16,'MDA4'!U16),MAX('MDA1'!M16,'MDA4'!U16),D16),0) -> 38039 | I16: =IF(AND(COUNTRY_INFO!H16>0,COUNTRY_INFO!H16<4), IF(G16/D16*100<>0, IF(G16/D16*100>100,100,G16/D16*100), "-"),0) -> 34.54549539 | J16: =COUNTRY_INFO!N16 -> Inconnu | M16: =MAX('MDA1'!M16,MAX('MDA3'!I16,'MDA3'!L16)+MAX('MDA3'!J16,'MDA3'!M16)) -> 0 | N16: =IF(AND(COUNTRY_INFO!I16>0,COUNTRY_INFO!I16<4),IF(J16>MAX('MDA1'!M16,MAX('MDA3'!I16,'MDA3'!L16)+MAX('MDA3'!J16,'MDA3'!M16)),MAX('MDA1'!M16,MAX('MDA3'!I16,'MDA3'!L16)+MAX('MDA3'!J16,'MDA3'!M16)),J16),0) -> 0 | O16: =IF(AND(COUNTRY_INFO!I16>0,COUNTRY_INFO!I16<4), IF(M16/J16*100<>0, IF(M16/J16*100>100,100,M16/J16*100), "-"),0) -> 0 | P16: =COUNTRY_INFO!O16 -> 40203 | S16: =SUM(MAX('MDA4'!R16, 'T1'!L16, MAX(T3_R1!K16, T3_R2!K16)), MAX('MDA1'!K16, 'MDA4'!S16, 'T1'!M16, MAX(T3_R1!L16, T3_R2!L16)), MAX('MDA1'!L16, 'MDA4'!T16, 'T1'!N16, MAX(T3_R1!M16, T3_R2!M16))) -> 38039 | T16: =IF(AND(COUNTRY_INFO!J16>1,COUNTRY_INFO!J16<4),IF(COUNTRY_INFO!E16>MAX('MDA4'!R16,'T1'!L16,MAX(T3_R1!K16,T3_R2!K16)),MAX('MDA4'!R16,'T1'!L16,MAX(T3_R1!K16,T3_R2!K16)),COUNTRY_INFO!E16),0) -> 0 | U16: =IF(AND(COUNTRY_INFO!J16>1,COUNTRY_INFO!J16<4), IF(T16/COUNTRY_INFO!E16*100<>0, IF(T16/COUNTRY_INFO!E16*100>100,100,T16/COUNTRY_INFO!E16*100), "-"),0) -> - | V16: =IF(AND(COUNTRY_INFO!J16>1,COUNTRY_INFO!J16<4),IF(COUNTRY_INFO!F16>MAX('MDA1'!K16,'MDA4'!S16,'T1'!M16,MAX(T3_R1!L16,T3_R2!L16)),MAX('MDA1'!K16,'MDA4'!S16,'T1'!M16,MAX(T3_R1!L16,T3_R2!L16)),COUNTRY_INFO!F16),0) -> 7788 | W16: =IF(AND(COUNTRY_INFO!J16>1,COUNTRY_INFO!J16<4), IF(V16/COUNTRY_INFO!F16*100<>0, IF(V16/COUNTRY_INFO!F16*100>100,100,V16/COUNTRY_INFO!F16*100), "-"),0) -> 31.15698512 | X16: 7788 | Y16: =IF(AND(COUNTRY_INFO!J16>1,COUNTRY_INFO!J16<4), IF(S16/P16*100<>0, IF(X16/P16*100>100,100,X16/P16*100), "-"),0) -> 19.37168868 | Z16: =COUNTRY_INFO!P16 -> 0 | AC16: =MAX('T1'!L16,'T2'!J16)+MAX('T1'!M16,'T2'!K16)+MAX('T1'!N16,'T2'!L16) -> 0 | AD16: =IF(COUNTRY_INFO!K16=1,IF(COUNTRY_INFO!F16*0.33>MAX('T1'!M16,'T2'!K16),MAX('T1'!M16,'T2'!K16),COUNTRY_INFO!F16*0.33),IF(COUNTRY_INFO!K16=2,IF(COUNTRY_INFO!F16*0.5>MAX('T1'!M16,'T2'!K16),MAX('T1'!M16,'T2'!K16),COUNTRY_INFO!F16*0.5),IF(COUNTRY_INFO!K16=3,IF(COUNTRY_INFO!F16>MAX('T1'!M16,'T2'!K16),MAX('T1'!M16,'T2'!K16),COUNTRY_INFO!F16),0))) -> 0 | AE16: =IF(AND(COUNTRY_INFO!K16>0,COUNTRY_INFO!K16<4),IF(Z16>0,IF(COUNTRY_INFO!K16=1, AD16/(COUNTRY_INFO!F16*0.33)*100, IF(COUNTRY_INFO!K16=2, AD16/(COUNTRY_INFO!F16*0.5)*100, IF(COUNTRY_INFO!K16=3, AD16/COUNTRY_INFO!F16*100))),"-"),0) -> 0 | AF16: =IF(COUNTRY_INFO!K16=2,IF(COUNTRY_INFO!G16*0.2>MAX('T1'!N16,'T2'!L16),MAX('T1'!N16,'T2'!L16),COUNTRY_INFO!G16*0.2),IF(COUNTRY_INFO!K16=3,IF(COUNTRY_INFO!G16>MAX('T1'!N16,'T2'!L16),MAX('T1'!N16,'T2'!L16),COUNTRY_INFO!G16),0)) -> 0 | AG16: =IF(AND(COUNTRY_INFO!K16>0,COUNTRY_INFO!K16<4),IF(Z16>0,IF(COUNTRY_INFO!K16=1, 0, IF(COUNTRY_INFO!K16=2, AF16/(COUNTRY_INFO!G16*0.2)*100, IF(COUNTRY_INFO!K16=3, AF16/COUNTRY_INFO!G16*100))),"-"),0) -> 0 | AH16: 0 | AI16: =IF(AND(COUNTRY_INFO!K16>0,COUNTRY_INFO!K16<4), IF(AC16/Z16*100<>0, IF(AH16/Z16*100>100,100,AH16/Z16*100), "-"),0) -> 0 | AK16: =IF(AND(D16<>0, D16<>"Inconnu",D16<>"Interrompu",D16<>"Non requis"),D16/COUNTRY_INFO!D16, 0) -> 1 | AL16: =IF(AND(J16<>0,J16<>"Inconnu",J16<>"Interrompu",J16<>"Non requis"),J16/COUNTRY_INFO!D16, 0) -> 0 | AM16: =IF(AND(P16<>0,P16<>"Inconnu",P16<>"Non requis"),P16/(COUNTRY_INFO!E16+COUNTRY_INFO!F16), 0) -> 1 | AN16: =IF(AND(Z16<>0,Z16<>"Inconnu",Z16<>"Non requis"),IF(COUNTRY_INFO!K16=1,1,IF(COUNTRY_INFO!K16=2,0.5*COUNTRY_INFO!F16/(0.5*COUNTRY_INFO!F16+0.2*COUNTRY_INFO!G16),IF(COUNTRY_INFO!K16=3,COUNTRY_INFO!F16/(COUNTRY_INFO!F16+COUNTRY_INFO!G16)))),0) -> 0 | AO16: =IF(AND(Z16<>0,Z16<>"Inconnu",Z16<>"Non requis"),IF(COUNTRY_INFO!K16=1,0,IF(COUNTRY_INFO!K16=2,0.2*COUNTRY_INFO!G16/(0.5*COUNTRY_INFO!F16+0.2*COUNTRY_INFO!G16),IF(COUNTRY_INFO!K16=3,COUNTRY_INFO!G16/(COUNTRY_INFO!F16+COUNTRY_INFO!G16)))),0) -> 0 | AP16: =MAX(COUNTRY_INFO!D16*AK16*PROFILE!$G$7,COUNTRY_INFO!D16*AL16*PROFILE!$G$7) -> 3853.946822 | AQ16: =MAX(COUNTRY_INFO!D16*AK16*PROFILE!$G$8,COUNTRY_INFO!D16*AL16*PROFILE!$G$8,COUNTRY_INFO!D16*AM16*PROFILE!$G$8) -> 15206.54066 | AR16: =MAX(COUNTRY_INFO!D16*AK16*PROFILE!$G$9,COUNTRY_INFO!D16*AL16*PROFILE!$G$9,COUNTRY_INFO!D16*AM16*PROFILE!$G$9,IF(AND(DISTRICT!Z16<>"Inconnu",Z16<>"Non requis"),COUNTRY_INFO!P16*DISTRICT!AN16,0)) -> 24995.61518 | AS16: =MAX(COUNTRY_INFO!D16*AK16*PROFILE!$G$10,COUNTRY_INFO!D16*AL16*PROFILE!$G$10,IF(AND(DISTRICT!Z16<>"Inconnu",Z16<>"Non requis"),COUNTRY_INFO!P16*DISTRICT!AO16,0)) -> 66056.66187 | AT16: 110112.7645 | AU16: Y | AV16: =MAX('MDA4'!R16,'T1'!L16,'T2'!J16,T3_R1!K16,T3_R2!K16) -> 0 | AW16: =MAX('MDA1'!K16,'MDA4'!S16,'MDA3'!I16,'MDA3'!L16,'T1'!M16,'T2'!K16,T3_R1!L16,T3_R2!L16) -> 7788 | AX16: =MAX('MDA1'!L16,'MDA4'!T16,'MDA3'!J16,'MDA3'!M16,'T1'!N16,'T2'!L16,T3_R1!M16,T3_R2!M16) -> 30251 | AY16: 38039 | AZ16: =MAX('MDA4'!R16,T16) -> 0 | BA16: =MAX('MDA1'!K16,'MDA4'!S16,'MDA3'!I16,'MDA3'!L16,V16,AD16) -> 7788 | BB16: =MAX('MDA1'!L16,'MDA4'!T16,'MDA3'!J16,'MDA3'!M16,AF16) -> 30251 | BC16: 38039 | BD16: 34.54549539
A17: =IF(COUNTRY_INFO!A17=0," ",COUNTRY_INFO!A17) -> République Centrafricaine | B17: =IF(COUNTRY_INFO!B17=0," ",COUNTRY_INFO!B17) -> RS N° 2 | C17: =IF(COUNTRY_INFO!C17=0," ",COUNTRY_INFO!C17) -> BABOUA-ABBA | D17: =COUNTRY_INFO!M17 -> 102588 | G17: =MAX('MDA1'!M17,'MDA4'!U17) -> 0 | H17: =IF(AND(COUNTRY_INFO!H17>0,COUNTRY_INFO!H17<4),IF(D17>MAX('MDA1'!M17,'MDA4'!U17),MAX('MDA1'!M17,'MDA4'!U17),D17),0) -> 0 | I17: =IF(AND(COUNTRY_INFO!H17>0,COUNTRY_INFO!H17<4), IF(G17/D17*100<>0, IF(G17/D17*100>100,100,G17/D17*100), "-"),0) -> - | J17: =COUNTRY_INFO!N17 -> Inconnu | M17: =MAX('MDA1'!M17,MAX('MDA3'!I17,'MDA3'!L17)+MAX('MDA3'!J17,'MDA3'!M17)) -> 0 | N17: =IF(AND(COUNTRY_INFO!I17>0,COUNTRY_INFO!I17<4),IF(J17>MAX('MDA1'!M17,MAX('MDA3'!I17,'MDA3'!L17)+MAX('MDA3'!J17,'MDA3'!M17)),MAX('MDA1'!M17,MAX('MDA3'!I17,'MDA3'!L17)+MAX('MDA3'!J17,'MDA3'!M17)),J17),0) -> 0 | O17: =IF(AND(COUNTRY_INFO!I17>0,COUNTRY_INFO!I17<4), IF(M17/J17*100<>0, IF(M17/J17*100>100,100,M17/J17*100), "-"),0) -> 0 | P17: =COUNTRY_INFO!O17 -> 37454 | S17: =SUM(MAX('MDA4'!R17, 'T1'!L17, MAX(T3_R1!K17, T3_R2!K17)), MAX('MDA1'!K17, 'MDA4'!S17, 'T1'!M17, MAX(T3_R1!L17, T3_R2!L17)), MAX('MDA1'!L17, 'MDA4'!T17, 'T1'!N17, MAX(T3_R1!M17, T3_R2!M17))) -> 0 | T17: =IF(AND(COUNTRY_INFO!J17>1,COUNTRY_INFO!J17<4),IF(COUNTRY_INFO!E17>MAX('MDA4'!R17,'T1'!L17,MAX(T3_R1!K17,T3_R2!K17)),MAX('MDA4'!R17,'T1'!L17,MAX(T3_R1!K17,T3_R2!K17)),COUNTRY_INFO!E17),0) -> 0 | U17: =IF(AND(COUNTRY_INFO!J17>1,COUNTRY_INFO!J17<4), IF(T17/COUNTRY_INFO!E17*100<>0, IF(T17/COUNTRY_INFO!E17*100>100,100,T17/COUNTRY_INFO!E17*100), "-"),0) -> - | V17: =IF(AND(COUNTRY_INFO!J17>1,COUNTRY_INFO!J17<4),IF(COUNTRY_INFO!F17>MAX('MDA1'!K17,'MDA4'!S17,'T1'!M17,MAX(T3_R1!L17,T3_R2!L17)),MAX('MDA1'!K17,'MDA4'!S17,'T1'!M17,MAX(T3_R1!L17,T3_R2!L17)),COUNTRY_INFO!F17),0) -> 0 | W17: =IF(AND(COUNTRY_INFO!J17>1,COUNTRY_INFO!J17<4), IF(V17/COUNTRY_INFO!F17*100<>0, IF(V17/COUNTRY_INFO!F17*100>100,100,V17/COUNTRY_INFO!F17*100), "-"),0) -> - | X17: 0 | Y17: =IF(AND(COUNTRY_INFO!J17>1,COUNTRY_INFO!J17<4), IF(S17/P17*100<>0, IF(X17/P17*100>100,100,X17/P17*100), "-"),0) -> - | Z17: =COUNTRY_INFO!P17 -> 0 | AC17: =MAX('T1'!L17,'T2'!J17)+MAX('T1'!M17,'T2'!K17)+MAX('T1'!N17,'T2'!L17) -> 0 | AD17: =IF(COUNTRY_INFO!K17=1,IF(COUNTRY_INFO!F17*0.33>MAX('T1'!M17,'T2'!K17),MAX('T1'!M17,'T2'!K17),COUNTRY_INFO!F17*0.33),IF(COUNTRY_INFO!K17=2,IF(COUNTRY_INFO!F17*0.5>MAX('T1'!M17,'T2'!K17),MAX('T1'!M17,'T2'!K17),COUNTRY_INFO!F17*0.5),IF(COUNTRY_INFO!K17=3,IF(COUNTRY_INFO!F17>MAX('T1'!M17,'T2'!K17),MAX('T1'!M17,'T2'!K17),COUNTRY_INFO!F17),0))) -> 0 | AE17: =IF(AND(COUNTRY_INFO!K17>0,COUNTRY_INFO!K17<4),IF(Z17>0,IF(COUNTRY_INFO!K17=1, AD17/(COUNTRY_INFO!F17*0.33)*100, IF(COUNTRY_INFO!K17=2, AD17/(COUNTRY_INFO!F17*0.5)*100, IF(COUNTRY_INFO!K17=3, AD17/COUNTRY_INFO!F17*100))),"-"),0) -> - | AF17: =IF(COUNTRY_INFO!K17=2,IF(COUNTRY_INFO!G17*0.2>MAX('T1'!N17,'T2'!L17),MAX('T1'!N17,'T2'!L17),COUNTRY_INFO!G17*0.2),IF(COUNTRY_INFO!K17=3,IF(COUNTRY_INFO!G17>MAX('T1'!N17,'T2'!L17),MAX('T1'!N17,'T2'!L17),COUNTRY_INFO!G17),0)) -> 0 | AG17: =IF(AND(COUNTRY_INFO!K17>0,COUNTRY_INFO!K17<4),IF(Z17>0,IF(COUNTRY_INFO!K17=1, 0, IF(COUNTRY_INFO!K17=2, AF17/(COUNTRY_INFO!G17*0.2)*100, IF(COUNTRY_INFO!K17=3, AF17/COUNTRY_INFO!G17*100))),"-"),0) -> - | AH17: 0 | AI17: =IF(AND(COUNTRY_INFO!K17>0,COUNTRY_INFO!K17<4), IF(AC17/Z17*100<>0, IF(AH17/Z17*100>100,100,AH17/Z17*100), "-"),0) ->  | AK17: =IF(AND(D17<>0, D17<>"Inconnu",D17<>"Interrompu",D17<>"Non requis"),D17/COUNTRY_INFO!D17, 0) -> 1 | AL17: =IF(AND(J17<>0,J17<>"Inconnu",J17<>"Interrompu",J17<>"Non requis"),J17/COUNTRY_INFO!D17, 0) -> 0 | AM17: =IF(AND(P17<>0,P17<>"Inconnu",P17<>"Non requis"),P17/(COUNTRY_INFO!E17+COUNTRY_INFO!F17), 0) -> 1 | AN17: =IF(AND(Z17<>0,Z17<>"Inconnu",Z17<>"Non requis"),IF(COUNTRY_INFO!K17=1,1,IF(COUNTRY_INFO!K17=2,0.5*COUNTRY_INFO!F17/(0.5*COUNTRY_INFO!F17+0.2*COUNTRY_INFO!G17),IF(COUNTRY_INFO!K17=3,COUNTRY_INFO!F17/(COUNTRY_INFO!F17+COUNTRY_INFO!G17)))),0) -> 0 | AO17: =IF(AND(Z17<>0,Z17<>"Inconnu",Z17<>"Non requis"),IF(COUNTRY_INFO!K17=1,0,IF(COUNTRY_INFO!K17=2,0.2*COUNTRY_INFO!G17/(0.5*COUNTRY_INFO!F17+0.2*COUNTRY_INFO!G17),IF(COUNTRY_INFO!K17=3,COUNTRY_INFO!G17/(COUNTRY_INFO!F17+COUNTRY_INFO!G17)))),0) -> 0 | AP17: =MAX(COUNTRY_INFO!D17*AK17*PROFILE!$G$7,COUNTRY_INFO!D17*AL17*PROFILE!$G$7) -> 3590.580059 | AQ17: =MAX(COUNTRY_INFO!D17*AK17*PROFILE!$G$8,COUNTRY_INFO!D17*AL17*PROFILE!$G$8,COUNTRY_INFO!D17*AM17*PROFILE!$G$8) -> 14167.37288 | AR17: =MAX(COUNTRY_INFO!D17*AK17*PROFILE!$G$9,COUNTRY_INFO!D17*AL17*PROFILE!$G$9,COUNTRY_INFO!D17*AM17*PROFILE!$G$9,IF(AND(DISTRICT!Z17<>"Inconnu",Z17<>"Non requis"),COUNTRY_INFO!P17*DISTRICT!AN17,0)) -> 23287.49242 | AS17: =MAX(COUNTRY_INFO!D17*AK17*PROFILE!$G$10,COUNTRY_INFO!D17*AL17*PROFILE!$G$10,IF(AND(DISTRICT!Z17<>"Inconnu",Z17<>"Non requis"),COUNTRY_INFO!P17*DISTRICT!AO17,0)) -> 61542.55464 | AT17: 102588 | AU17: 0 | AV17: =MAX('MDA4'!R17,'T1'!L17,'T2'!J17,T3_R1!K17,T3_R2!K17) -> 0 | AW17: =MAX('MDA1'!K17,'MDA4'!S17,'MDA3'!I17,'MDA3'!L17,'T1'!M17,'T2'!K17,T3_R1!L17,T3_R2!L17) -> 0 | AX17: =MAX('MDA1'!L17,'MDA4'!T17,'MDA3'!J17,'MDA3'!M17,'T1'!N17,'T2'!L17,T3_R1!M17,T3_R2!M17) -> 0 | AY17: 0 | AZ17: =MAX('MDA4'!R17,T17) -> 0 | BA17: =MAX('MDA1'!K17,'MDA4'!S17,'MDA3'!I17,'MDA3'!L17,V17,AD17) -> 0 | BB17: =MAX('MDA1'!L17,'MDA4'!T17,'MDA3'!J17,'MDA3'!M17,AF17) -> 0 | BC17: 0 | BD17: 0
A18: =IF(COUNTRY_INFO!A18=0," ",COUNTRY_INFO!A18) -> République Centrafricaine | B18: =IF(COUNTRY_INFO!B18=0," ",COUNTRY_INFO!B18) -> RS N° 2 | C18: =IF(COUNTRY_INFO!C18=0," ",COUNTRY_INFO!C18) -> BOUAR-BAORO | D18: =COUNTRY_INFO!M18 -> 213891 | G18: =MAX('MDA1'!M18,'MDA4'!U18) -> 0 | H18: =IF(AND(COUNTRY_INFO!H18>0,COUNTRY_INFO!H18<4),IF(D18>MAX('MDA1'!M18,'MDA4'!U18),MAX('MDA1'!M18,'MDA4'!U18),D18),0) -> 0 | I18: =IF(AND(COUNTRY_INFO!H18>0,COUNTRY_INFO!H18<4), IF(G18/D18*100<>0, IF(G18/D18*100>100,100,G18/D18*100), "-"),0) -> - | J18: =COUNTRY_INFO!N18 -> Inconnu | M18: =MAX('MDA1'!M18,MAX('MDA3'!I18,'MDA3'!L18)+MAX('MDA3'!J18,'MDA3'!M18)) -> 0 | N18: =IF(AND(COUNTRY_INFO!I18>0,COUNTRY_INFO!I18<4),IF(J18>MAX('MDA1'!M18,MAX('MDA3'!I18,'MDA3'!L18)+MAX('MDA3'!J18,'MDA3'!M18)),MAX('MDA1'!M18,MAX('MDA3'!I18,'MDA3'!L18)+MAX('MDA3'!J18,'MDA3'!M18)),J18),0) -> 0 | O18: =IF(AND(COUNTRY_INFO!I18>0,COUNTRY_INFO!I18<4), IF(M18/J18*100<>0, IF(M18/J18*100>100,100,M18/J18*100), "-"),0) -> 0 | P18: =COUNTRY_INFO!O18 -> 0 | S18: =SUM(MAX('MDA4'!R18, 'T1'!L18, MAX(T3_R1!K18, T3_R2!K18)), MAX('MDA1'!K18, 'MDA4'!S18, 'T1'!M18, MAX(T3_R1!L18, T3_R2!L18)), MAX('MDA1'!L18, 'MDA4'!T18, 'T1'!N18, MAX(T3_R1!M18, T3_R2!M18))) -> 0 | T18: =IF(AND(COUNTRY_INFO!J18>1,COUNTRY_INFO!J18<4),IF(COUNTRY_INFO!E18>MAX('MDA4'!R18,'T1'!L18,MAX(T3_R1!K18,T3_R2!K18)),MAX('MDA4'!R18,'T1'!L18,MAX(T3_R1!K18,T3_R2!K18)),COUNTRY_INFO!E18),0) -> 0 | U18: =IF(AND(COUNTRY_INFO!J18>1,COUNTRY_INFO!J18<4), IF(T18/COUNTRY_INFO!E18*100<>0, IF(T18/COUNTRY_INFO!E18*100>100,100,T18/COUNTRY_INFO!E18*100), "-"),0) -> 0 | V18: =IF(AND(COUNTRY_INFO!J18>1,COUNTRY_INFO!J18<4),IF(COUNTRY_INFO!F18>MAX('MDA1'!K18,'MDA4'!S18,'T1'!M18,MAX(T3_R1!L18,T3_R2!L18)),MAX('MDA1'!K18,'MDA4'!S18,'T1'!M18,MAX(T3_R1!L18,T3_R2!L18)),COUNTRY_INFO!F18),0) -> 0 | W18: =IF(AND(COUNTRY_INFO!J18>1,COUNTRY_INFO!J18<4), IF(V18/COUNTRY_INFO!F18*100<>0, IF(V18/COUNTRY_INFO!F18*100>100,100,V18/COUNTRY_INFO!F18*100), "-"),0) -> 0 | X18: 0 | Y18: =IF(AND(COUNTRY_INFO!J18>1,COUNTRY_INFO!J18<4), IF(S18/P18*100<>0, IF(X18/P18*100>100,100,X18/P18*100), "-"),0) -> 0 | Z18: =COUNTRY_INFO!P18 -> 0 | AC18: =MAX('T1'!L18,'T2'!J18)+MAX('T1'!M18,'T2'!K18)+MAX('T1'!N18,'T2'!L18) -> 0 | AD18: =IF(COUNTRY_INFO!K18=1,IF(COUNTRY_INFO!F18*0.33>MAX('T1'!M18,'T2'!K18),MAX('T1'!M18,'T2'!K18),COUNTRY_INFO!F18*0.33),IF(COUNTRY_INFO!K18=2,IF(COUNTRY_INFO!F18*0.5>MAX('T1'!M18,'T2'!K18),MAX('T1'!M18,'T2'!K18),COUNTRY_INFO!F18*0.5),IF(COUNTRY_INFO!K18=3,IF(COUNTRY_INFO!F18>MAX('T1'!M18,'T2'!K18),MAX('T1'!M18,'T2'!K18),COUNTRY_INFO!F18),0))) -> 0 | AE18: =IF(AND(COUNTRY_INFO!K18>0,COUNTRY_INFO!K18<4),IF(Z18>0,IF(COUNTRY_INFO!K18=1, AD18/(COUNTRY_INFO!F18*0.33)*100, IF(COUNTRY_INFO!K18=2, AD18/(COUNTRY_INFO!F18*0.5)*100, IF(COUNTRY_INFO!K18=3, AD18/COUNTRY_INFO!F18*100))),"-"),0) -> - | AF18: =IF(COUNTRY_INFO!K18=2,IF(COUNTRY_INFO!G18*0.2>MAX('T1'!N18,'T2'!L18),MAX('T1'!N18,'T2'!L18),COUNTRY_INFO!G18*0.2),IF(COUNTRY_INFO!K18=3,IF(COUNTRY_INFO!G18>MAX('T1'!N18,'T2'!L18),MAX('T1'!N18,'T2'!L18),COUNTRY_INFO!G18),0)) -> 0 | AG18: =IF(AND(COUNTRY_INFO!K18>0,COUNTRY_INFO!K18<4),IF(Z18>0,IF(COUNTRY_INFO!K18=1, 0, IF(COUNTRY_INFO!K18=2, AF18/(COUNTRY_INFO!G18*0.2)*100, IF(COUNTRY_INFO!K18=3, AF18/COUNTRY_INFO!G18*100))),"-"),0) -> - | AH18: 0 | AI18: =IF(AND(COUNTRY_INFO!K18>0,COUNTRY_INFO!K18<4), IF(AC18/Z18*100<>0, IF(AH18/Z18*100>100,100,AH18/Z18*100), "-"),0) ->  | AK18: =IF(AND(D18<>0, D18<>"Inconnu",D18<>"Interrompu",D18<>"Non requis"),D18/COUNTRY_INFO!D18, 0) -> 1 | AL18: =IF(AND(J18<>0,J18<>"Inconnu",J18<>"Interrompu",J18<>"Non requis"),J18/COUNTRY_INFO!D18, 0) -> 0 | AM18: =IF(AND(P18<>0,P18<>"Inconnu",P18<>"Non requis"),P18/(COUNTRY_INFO!E18+COUNTRY_INFO!F18), 0) -> 0 | AN18: =IF(AND(Z18<>0,Z18<>"Inconnu",Z18<>"Non requis"),IF(COUNTRY_INFO!K18=1,1,IF(COUNTRY_INFO!K18=2,0.5*COUNTRY_INFO!F18/(0.5*COUNTRY_INFO!F18+0.2*COUNTRY_INFO!G18),IF(COUNTRY_INFO!K18=3,COUNTRY_INFO!F18/(COUNTRY_INFO!F18+COUNTRY_INFO!G18)))),0) -> 0 | AO18: =IF(AND(Z18<>0,Z18<>"Inconnu",Z18<>"Non requis"),IF(COUNTRY_INFO!K18=1,0,IF(COUNTRY_INFO!K18=2,0.2*COUNTRY_INFO!G18/(0.5*COUNTRY_INFO!F18+0.2*COUNTRY_INFO!G18),IF(COUNTRY_INFO!K18=3,COUNTRY_INFO!G18/(COUNTRY_INFO!F18+COUNTRY_INFO!G18)))),0) -> 0 | AP18: =MAX(COUNTRY_INFO!D18*AK18*PROFILE!$G$7,COUNTRY_INFO!D18*AL18*PROFILE!$G$7) -> 7486.185123 | AQ18: =MAX(COUNTRY_INFO!D18*AK18*PROFILE!$G$8,COUNTRY_INFO!D18*AL18*PROFILE!$G$8,COUNTRY_INFO!D18*AM18*PROFILE!$G$8) -> 29538.28471 | AR18: =MAX(COUNTRY_INFO!D18*AK18*PROFILE!$G$9,COUNTRY_INFO!D18*AL18*PROFILE!$G$9,COUNTRY_INFO!D18*AM18*PROFILE!$G$9,IF(AND(DISTRICT!Z18<>"Inconnu",Z18<>"Non requis"),COUNTRY_INFO!P18*DISTRICT!AN18,0)) -> 48553.29124 | AS18: =MAX(COUNTRY_INFO!D18*AK18*PROFILE!$G$10,COUNTRY_INFO!D18*AL18*PROFILE!$G$10,IF(AND(DISTRICT!Z18<>"Inconnu",Z18<>"Non requis"),COUNTRY_INFO!P18*DISTRICT!AO18,0)) -> 128313.2389 | AT18: 213891 | AU18: 0 | AV18: =MAX('MDA4'!R18,'T1'!L18,'T2'!J18,T3_R1!K18,T3_R2!K18) -> 0 | AW18: =MAX('MDA1'!K18,'MDA4'!S18,'MDA3'!I18,'MDA3'!L18,'T1'!M18,'T2'!K18,T3_R1!L18,T3_R2!L18) -> 0 | AX18: =MAX('MDA1'!L18,'MDA4'!T18,'MDA3'!J18,'MDA3'!M18,'T1'!N18,'T2'!L18,T3_R1!M18,T3_R2!M18) -> 0 | AY18: 0 | AZ18: =MAX('MDA4'!R18,T18) -> 0 | BA18: =MAX('MDA1'!K18,'MDA4'!S18,'MDA3'!I18,'MDA3'!L18,V18,AD18) -> 0 | BB18: =MAX('MDA1'!L18,'MDA4'!T18,'MDA3'!J18,'MDA3'!M18,AF18) -> 0 | BC18: 0 | BD18: 0
A19: =IF(COUNTRY_INFO!A19=0," ",COUNTRY_INFO!A19) -> République Centrafricaine | B19: =IF(COUNTRY_INFO!B19=0," ",COUNTRY_INFO!B19) -> RS N° 2 | C19: =IF(COUNTRY_INFO!C19=0," ",COUNTRY_INFO!C19) -> SANGHA-MBAERE | D19: =COUNTRY_INFO!M19 -> 136981.4741 | G19: =MAX('MDA1'!M19,'MDA4'!U19) -> 127273 | H19: =IF(AND(COUNTRY_INFO!H19>0,COUNTRY_INFO!H19<4),IF(D19>MAX('MDA1'!M19,'MDA4'!U19),MAX('MDA1'!M19,'MDA4'!U19),D19),0) -> 127273 | I19: =IF(AND(COUNTRY_INFO!H19>0,COUNTRY_INFO!H19<4), IF(G19/D19*100<>0, IF(G19/D19*100>100,100,G19/D19*100), "-"),0) -> 92.91256413 | J19: =COUNTRY_INFO!N19 -> Inconnu | M19: =MAX('MDA1'!M19,MAX('MDA3'!I19,'MDA3'!L19)+MAX('MDA3'!J19,'MDA3'!M19)) -> 0 | N19: =IF(AND(COUNTRY_INFO!I19>0,COUNTRY_INFO!I19<4),IF(J19>MAX('MDA1'!M19,MAX('MDA3'!I19,'MDA3'!L19)+MAX('MDA3'!J19,'MDA3'!M19)),MAX('MDA1'!M19,MAX('MDA3'!I19,'MDA3'!L19)+MAX('MDA3'!J19,'MDA3'!M19)),J19),0) -> 0 | O19: =IF(AND(COUNTRY_INFO!I19>0,COUNTRY_INFO!I19<4), IF(M19/J19*100<>0, IF(M19/J19*100>100,100,M19/J19*100), "-"),0) -> 0 | P19: =COUNTRY_INFO!O19 -> 50012 | S19: =SUM(MAX('MDA4'!R19, 'T1'!L19, MAX(T3_R1!K19, T3_R2!K19)), MAX('MDA1'!K19, 'MDA4'!S19, 'T1'!M19, MAX(T3_R1!L19, T3_R2!L19)), MAX('MDA1'!L19, 'MDA4'!T19, 'T1'!N19, MAX(T3_R1!M19, T3_R2!M19))) -> 127273 | T19: =IF(AND(COUNTRY_INFO!J19>1,COUNTRY_INFO!J19<4),IF(COUNTRY_INFO!E19>MAX('MDA4'!R19,'T1'!L19,MAX(T3_R1!K19,T3_R2!K19)),MAX('MDA4'!R19,'T1'!L19,MAX(T3_R1!K19,T3_R2!K19)),COUNTRY_INFO!E19),0) -> 0 | U19: =IF(AND(COUNTRY_INFO!J19>1,COUNTRY_INFO!J19<4), IF(T19/COUNTRY_INFO!E19*100<>0, IF(T19/COUNTRY_INFO!E19*100>100,100,T19/COUNTRY_INFO!E19*100), "-"),0) -> - | V19: =IF(AND(COUNTRY_INFO!J19>1,COUNTRY_INFO!J19<4),IF(COUNTRY_INFO!F19>MAX('MDA1'!K19,'MDA4'!S19,'T1'!M19,MAX(T3_R1!L19,T3_R2!L19)),MAX('MDA1'!K19,'MDA4'!S19,'T1'!M19,MAX(T3_R1!L19,T3_R2!L19)),COUNTRY_INFO!F19),0) -> 31095 | W19: =IF(AND(COUNTRY_INFO!J19>1,COUNTRY_INFO!J19<4), IF(V19/COUNTRY_INFO!F19*100<>0, IF(V19/COUNTRY_INFO!F19*100>100,100,V19/COUNTRY_INFO!F19*100), "-"),0) -> 100 | X19: 31095 | Y19: =IF(AND(COUNTRY_INFO!J19>1,COUNTRY_INFO!J19<4), IF(S19/P19*100<>0, IF(X19/P19*100>100,100,X19/P19*100), "-"),0) -> 62.17507798 | Z19: =COUNTRY_INFO!P19 -> 0 | AC19: =MAX('T1'!L19,'T2'!J19)+MAX('T1'!M19,'T2'!K19)+MAX('T1'!N19,'T2'!L19) -> 0 | AD19: =IF(COUNTRY_INFO!K19=1,IF(COUNTRY_INFO!F19*0.33>MAX('T1'!M19,'T2'!K19),MAX('T1'!M19,'T2'!K19),COUNTRY_INFO!F19*0.33),IF(COUNTRY_INFO!K19=2,IF(COUNTRY_INFO!F19*0.5>MAX('T1'!M19,'T2'!K19),MAX('T1'!M19,'T2'!K19),COUNTRY_INFO!F19*0.5),IF(COUNTRY_INFO!K19=3,IF(COUNTRY_INFO!F19>MAX('T1'!M19,'T2'!K19),MAX('T1'!M19,'T2'!K19),COUNTRY_INFO!F19),0))) -> 0 | AE19: =IF(AND(COUNTRY_INFO!K19>0,COUNTRY_INFO!K19<4),IF(Z19>0,IF(COUNTRY_INFO!K19=1, AD19/(COUNTRY_INFO!F19*0.33)*100, IF(COUNTRY_INFO!K19=2, AD19/(COUNTRY_INFO!F19*0.5)*100, IF(COUNTRY_INFO!K19=3, AD19/COUNTRY_INFO!F19*100))),"-"),0) -> 0 | AF19: =IF(COUNTRY_INFO!K19=2,IF(COUNTRY_INFO!G19*0.2>MAX('T1'!N19,'T2'!L19),MAX('T1'!N19,'T2'!L19),COUNTRY_INFO!G19*0.2),IF(COUNTRY_INFO!K19=3,IF(COUNTRY_INFO!G19>MAX('T1'!N19,'T2'!L19),MAX('T1'!N19,'T2'!L19),COUNTRY_INFO!G19),0)) -> 0 | AG19: =IF(AND(COUNTRY_INFO!K19>0,COUNTRY_INFO!K19<4),IF(Z19>0,IF(COUNTRY_INFO!K19=1, 0, IF(COUNTRY_INFO!K19=2, AF19/(COUNTRY_INFO!G19*0.2)*100, IF(COUNTRY_INFO!K19=3, AF19/COUNTRY_INFO!G19*100))),"-"),0) -> 0 | AH19: 0 | AI19: =IF(AND(COUNTRY_INFO!K19>0,COUNTRY_INFO!K19<4), IF(AC19/Z19*100<>0, IF(AH19/Z19*100>100,100,AH19/Z19*100), "-"),0) -> 0 | AK19: =IF(AND(D19<>0, D19<>"Inconnu",D19<>"Interrompu",D19<>"Non requis"),D19/COUNTRY_INFO!D19, 0) -> 1 | AL19: =IF(AND(J19<>0,J19<>"Inconnu",J19<>"Interrompu",J19<>"Non requis"),J19/COUNTRY_INFO!D19, 0) -> 0 | AM19: =IF(AND(P19<>0,P19<>"Inconnu",P19<>"Non requis"),P19/(COUNTRY_INFO!E19+COUNTRY_INFO!F19), 0) -> 1 | AN19: =IF(AND(Z19<>0,Z19<>"Inconnu",Z19<>"Non requis"),IF(COUNTRY_INFO!K19=1,1,IF(COUNTRY_INFO!K19=2,0.5*COUNTRY_INFO!F19/(0.5*COUNTRY_INFO!F19+0.2*COUNTRY_INFO!G19),IF(COUNTRY_INFO!K19=3,COUNTRY_INFO!F19/(COUNTRY_INFO!F19+COUNTRY_INFO!G19)))),0) -> 0 | AO19: =IF(AND(Z19<>0,Z19<>"Inconnu",Z19<>"Non requis"),IF(COUNTRY_INFO!K19=1,0,IF(COUNTRY_INFO!K19=2,0.2*COUNTRY_INFO!G19/(0.5*COUNTRY_INFO!F19+0.2*COUNTRY_INFO!G19),IF(COUNTRY_INFO!K19=3,COUNTRY_INFO!G19/(COUNTRY_INFO!F19+COUNTRY_INFO!G19)))),0) -> 0 | AP19: =MAX(COUNTRY_INFO!D19*AK19*PROFILE!$G$7,COUNTRY_INFO!D19*AL19*PROFILE!$G$7) -> 4794.351673 | AQ19: =MAX(COUNTRY_INFO!D19*AK19*PROFILE!$G$8,COUNTRY_INFO!D19*AL19*PROFILE!$G$8,COUNTRY_INFO!D19*AM19*PROFILE!$G$8) -> 18917.10162 | AR19: =MAX(COUNTRY_INFO!D19*AK19*PROFILE!$G$9,COUNTRY_INFO!D19*AL19*PROFILE!$G$9,COUNTRY_INFO!D19*AM19*PROFILE!$G$9,IF(AND(DISTRICT!Z19<>"Inconnu",Z19<>"Non requis"),COUNTRY_INFO!P19*DISTRICT!AN19,0)) -> 31094.81656 | AS19: =MAX(COUNTRY_INFO!D19*AK19*PROFILE!$G$10,COUNTRY_INFO!D19*AL19*PROFILE!$G$10,IF(AND(DISTRICT!Z19<>"Inconnu",Z19<>"Non requis"),COUNTRY_INFO!P19*DISTRICT!AO19,0)) -> 82175.20428 | AT19: 136981.4741 | AU19: Y | AV19: =MAX('MDA4'!R19,'T1'!L19,'T2'!J19,T3_R1!K19,T3_R2!K19) -> 0 | AW19: =MAX('MDA1'!K19,'MDA4'!S19,'MDA3'!I19,'MDA3'!L19,'T1'!M19,'T2'!K19,T3_R1!L19,T3_R2!L19) -> 46736 | AX19: =MAX('MDA1'!L19,'MDA4'!T19,'MDA3'!J19,'MDA3'!M19,'T1'!N19,'T2'!L19,T3_R1!M19,T3_R2!M19) -> 80537 | AY19: 127273 | AZ19: =MAX('MDA4'!R19,T19) -> 0 | BA19: =MAX('MDA1'!K19,'MDA4'!S19,'MDA3'!I19,'MDA3'!L19,V19,AD19) -> 46736 | BB19: =MAX('MDA1'!L19,'MDA4'!T19,'MDA3'!J19,'MDA3'!M19,AF19) -> 80537 | BC19: 127273 | BD19: 92.91256413
A20: =IF(COUNTRY_INFO!A20=0," ",COUNTRY_INFO!A20) -> République Centrafricaine | B20: =IF(COUNTRY_INFO!B20=0," ",COUNTRY_INFO!B20) -> RS N° 3 | C20: =IF(COUNTRY_INFO!C20=0," ",COUNTRY_INFO!C20) -> BATANGAFO | D20: =COUNTRY_INFO!M20 -> 139738.1471 | G20: =MAX('MDA1'!M20,'MDA4'!U20) -> 0 | H20: =IF(AND(COUNTRY_INFO!H20>0,COUNTRY_INFO!H20<4),IF(D20>MAX('MDA1'!M20,'MDA4'!U20),MAX('MDA1'!M20,'MDA4'!U20),D20),0) -> 0 | I20: =IF(AND(COUNTRY_INFO!H20>0,COUNTRY_INFO!H20<4), IF(G20/D20*100<>0, IF(G20/D20*100>100,100,G20/D20*100), "-"),0) -> - | J20: =COUNTRY_INFO!N20 -> 139738.1471 | M20: =MAX('MDA1'!M20,MAX('MDA3'!I20,'MDA3'!L20)+MAX('MDA3'!J20,'MDA3'!M20)) -> 152747 | N20: =IF(AND(COUNTRY_INFO!I20>0,COUNTRY_INFO!I20<4),IF(J20>MAX('MDA1'!M20,MAX('MDA3'!I20,'MDA3'!L20)+MAX('MDA3'!J20,'MDA3'!M20)),MAX('MDA1'!M20,MAX('MDA3'!I20,'MDA3'!L20)+MAX('MDA3'!J20,'MDA3'!M20)),J20),0) -> 139738.1471 | O20: =IF(AND(COUNTRY_INFO!I20>0,COUNTRY_INFO!I20<4), IF(M20/J20*100<>0, IF(M20/J20*100>100,100,M20/J20*100), "-"),0) -> 100 | P20: =COUNTRY_INFO!O20 -> 0 | S20: =SUM(MAX('MDA4'!R20, 'T1'!L20, MAX(T3_R1!K20, T3_R2!K20)), MAX('MDA1'!K20, 'MDA4'!S20, 'T1'!M20, MAX(T3_R1!L20, T3_R2!L20)), MAX('MDA1'!L20, 'MDA4'!T20, 'T1'!N20, MAX(T3_R1!M20, T3_R2!M20))) -> 0 | T20: =IF(AND(COUNTRY_INFO!J20>1,COUNTRY_INFO!J20<4),IF(COUNTRY_INFO!E20>MAX('MDA4'!R20,'T1'!L20,MAX(T3_R1!K20,T3_R2!K20)),MAX('MDA4'!R20,'T1'!L20,MAX(T3_R1!K20,T3_R2!K20)),COUNTRY_INFO!E20),0) -> 0 | U20: =IF(AND(COUNTRY_INFO!J20>1,COUNTRY_INFO!J20<4), IF(T20/COUNTRY_INFO!E20*100<>0, IF(T20/COUNTRY_INFO!E20*100>100,100,T20/COUNTRY_INFO!E20*100), "-"),0) -> 0 | V20: =IF(AND(COUNTRY_INFO!J20>1,COUNTRY_INFO!J20<4),IF(COUNTRY_INFO!F20>MAX('MDA1'!K20,'MDA4'!S20,'T1'!M20,MAX(T3_R1!L20,T3_R2!L20)),MAX('MDA1'!K20,'MDA4'!S20,'T1'!M20,MAX(T3_R1!L20,T3_R2!L20)),COUNTRY_INFO!F20),0) -> 0 | W20: =IF(AND(COUNTRY_INFO!J20>1,COUNTRY_INFO!J20<4), IF(V20/COUNTRY_INFO!F20*100<>0, IF(V20/COUNTRY_INFO!F20*100>100,100,V20/COUNTRY_INFO!F20*100), "-"),0) -> 0 | X20: 0 | Y20: =IF(AND(COUNTRY_INFO!J20>1,COUNTRY_INFO!J20<4), IF(S20/P20*100<>0, IF(X20/P20*100>100,100,X20/P20*100), "-"),0) -> 0 | Z20: =COUNTRY_INFO!P20 -> 0 | AC20: =MAX('T1'!L20,'T2'!J20)+MAX('T1'!M20,'T2'!K20)+MAX('T1'!N20,'T2'!L20) -> 0 | AD20: =IF(COUNTRY_INFO!K20=1,IF(COUNTRY_INFO!F20*0.33>MAX('T1'!M20,'T2'!K20),MAX('T1'!M20,'T2'!K20),COUNTRY_INFO!F20*0.33),IF(COUNTRY_INFO!K20=2,IF(COUNTRY_INFO!F20*0.5>MAX('T1'!M20,'T2'!K20),MAX('T1'!M20,'T2'!K20),COUNTRY_INFO!F20*0.5),IF(COUNTRY_INFO!K20=3,IF(COUNTRY_INFO!F20>MAX('T1'!M20,'T2'!K20),MAX('T1'!M20,'T2'!K20),COUNTRY_INFO!F20),0))) -> 0 | AE20: =IF(AND(COUNTRY_INFO!K20>0,COUNTRY_INFO!K20<4),IF(Z20>0,IF(COUNTRY_INFO!K20=1, AD20/(COUNTRY_INFO!F20*0.33)*100, IF(COUNTRY_INFO!K20=2, AD20/(COUNTRY_INFO!F20*0.5)*100, IF(COUNTRY_INFO!K20=3, AD20/COUNTRY_INFO!F20*100))),"-"),0) -> 0 | AF20: =IF(COUNTRY_INFO!K20=2,IF(COUNTRY_INFO!G20*0.2>MAX('T1'!N20,'T2'!L20),MAX('T1'!N20,'T2'!L20),COUNTRY_INFO!G20*0.2),IF(COUNTRY_INFO!K20=3,IF(COUNTRY_INFO!G20>MAX('T1'!N20,'T2'!L20),MAX('T1'!N20,'T2'!L20),COUNTRY_INFO!G20),0)) -> 0 | AG20: =IF(AND(COUNTRY_INFO!K20>0,COUNTRY_INFO!K20<4),IF(Z20>0,IF(COUNTRY_INFO!K20=1, 0, IF(COUNTRY_INFO!K20=2, AF20/(COUNTRY_INFO!G20*0.2)*100, IF(COUNTRY_INFO!K20=3, AF20/COUNTRY_INFO!G20*100))),"-"),0) -> 0 | AH20: 0 | AI20: =IF(AND(COUNTRY_INFO!K20>0,COUNTRY_INFO!K20<4), IF(AC20/Z20*100<>0, IF(AH20/Z20*100>100,100,AH20/Z20*100), "-"),0) -> 0 | AK20: =IF(AND(D20<>0, D20<>"Inconnu",D20<>"Interrompu",D20<>"Non requis"),D20/COUNTRY_INFO!D20, 0) -> 1 | AL20: =IF(AND(J20<>0,J20<>"Inconnu",J20<>"Interrompu",J20<>"Non requis"),J20/COUNTRY_INFO!D20, 0) -> 1 | AM20: =IF(AND(P20<>0,P20<>"Inconnu",P20<>"Non requis"),P20/(COUNTRY_INFO!E20+COUNTRY_INFO!F20), 0) -> 0 | AN20: =IF(AND(Z20<>0,Z20<>"Inconnu",Z20<>"Non requis"),IF(COUNTRY_INFO!K20=1,1,IF(COUNTRY_INFO!K20=2,0.5*COUNTRY_INFO!F20/(0.5*COUNTRY_INFO!F20+0.2*COUNTRY_INFO!G20),IF(COUNTRY_INFO!K20=3,COUNTRY_INFO!F20/(COUNTRY_INFO!F20+COUNTRY_INFO!G20)))),0) -> 0 | AO20: =IF(AND(Z20<>0,Z20<>"Inconnu",Z20<>"Non requis"),IF(COUNTRY_INFO!K20=1,0,IF(COUNTRY_INFO!K20=2,0.2*COUNTRY_INFO!G20/(0.5*COUNTRY_INFO!F20+0.2*COUNTRY_INFO!G20),IF(COUNTRY_INFO!K20=3,COUNTRY_INFO!G20/(COUNTRY_INFO!F20+COUNTRY_INFO!G20)))),0) -> 0 | AP20: =MAX(COUNTRY_INFO!D20*AK20*PROFILE!$G$7,COUNTRY_INFO!D20*AL20*PROFILE!$G$7) -> 4890.835227 | AQ20: =MAX(COUNTRY_INFO!D20*AK20*PROFILE!$G$8,COUNTRY_INFO!D20*AL20*PROFILE!$G$8,COUNTRY_INFO!D20*AM20*PROFILE!$G$8) -> 19297.79735 | AR20: =MAX(COUNTRY_INFO!D20*AK20*PROFILE!$G$9,COUNTRY_INFO!D20*AL20*PROFILE!$G$9,COUNTRY_INFO!D20*AM20*PROFILE!$G$9,IF(AND(DISTRICT!Z20<>"Inconnu",Z20<>"Non requis"),COUNTRY_INFO!P20*DISTRICT!AN20,0)) -> 31720.58175 | AS20: =MAX(COUNTRY_INFO!D20*AK20*PROFILE!$G$10,COUNTRY_INFO!D20*AL20*PROFILE!$G$10,IF(AND(DISTRICT!Z20<>"Inconnu",Z20<>"Non requis"),COUNTRY_INFO!P20*DISTRICT!AO20,0)) -> 83828.93273 | AT20: 139738.1471 | AU20: 0 | AV20: =MAX('MDA4'!R20,'T1'!L20,'T2'!J20,T3_R1!K20,T3_R2!K20) -> 0 | AW20: =MAX('MDA1'!K20,'MDA4'!S20,'MDA3'!I20,'MDA3'!L20,'T1'!M20,'T2'!K20,T3_R1!L20,T3_R2!L20) -> 34673.569 | AX20: =MAX('MDA1'!L20,'MDA4'!T20,'MDA3'!J20,'MDA3'!M20,'T1'!N20,'T2'!L20,T3_R1!M20,T3_R2!M20) -> 118073.431 | AY20: 152747 | AZ20: =MAX('MDA4'!R20,T20) -> 0 | BA20: =MAX('MDA1'!K20,'MDA4'!S20,'MDA3'!I20,'MDA3'!L20,V20,AD20) -> 34673.569 | BB20: =MAX('MDA1'!L20,'MDA4'!T20,'MDA3'!J20,'MDA3'!M20,AF20) -> 118073.431 | BC20: 139738.1471 | BD20: 100
A21: =IF(COUNTRY_INFO!A21=0," ",COUNTRY_INFO!A21) -> République Centrafricaine | B21: =IF(COUNTRY_INFO!B21=0," ",COUNTRY_INFO!B21) -> RS N° 3 | C21: =IF(COUNTRY_INFO!C21=0," ",COUNTRY_INFO!C21) -> BOUCA | D21: =COUNTRY_INFO!M21 -> 75852.60196 | G21: =MAX('MDA1'!M21,'MDA4'!U21) -> 0 | H21: =IF(AND(COUNTRY_INFO!H21>0,COUNTRY_INFO!H21<4),IF(D21>MAX('MDA1'!M21,'MDA4'!U21),MAX('MDA1'!M21,'MDA4'!U21),D21),0) -> 0 | I21: =IF(AND(COUNTRY_INFO!H21>0,COUNTRY_INFO!H21<4), IF(G21/D21*100<>0, IF(G21/D21*100>100,100,G21/D21*100), "-"),0) -> - | J21: =COUNTRY_INFO!N21 -> 75852.60196 | M21: =MAX('MDA1'!M21,MAX('MDA3'!I21,'MDA3'!L21)+MAX('MDA3'!J21,'MDA3'!M21)) -> 49193 | N21: =IF(AND(COUNTRY_INFO!I21>0,COUNTRY_INFO!I21<4),IF(J21>MAX('MDA1'!M21,MAX('MDA3'!I21,'MDA3'!L21)+MAX('MDA3'!J21,'MDA3'!M21)),MAX('MDA1'!M21,MAX('MDA3'!I21,'MDA3'!L21)+MAX('MDA3'!J21,'MDA3'!M21)),J21),0) -> 49193 | O21: =IF(AND(COUNTRY_INFO!I21>0,COUNTRY_INFO!I21<4), IF(M21/J21*100<>0, IF(M21/J21*100>100,100,M21/J21*100), "-"),0) -> 64.85341139 | P21: =COUNTRY_INFO!O21 -> 0 | S21: =SUM(MAX('MDA4'!R21, 'T1'!L21, MAX(T3_R1!K21, T3_R2!K21)), MAX('MDA1'!K21, 'MDA4'!S21, 'T1'!M21, MAX(T3_R1!L21, T3_R2!L21)), MAX('MDA1'!L21, 'MDA4'!T21, 'T1'!N21, MAX(T3_R1!M21, T3_R2!M21))) -> 0 | T21: =IF(AND(COUNTRY_INFO!J21>1,COUNTRY_INFO!J21<4),IF(COUNTRY_INFO!E21>MAX('MDA4'!R21,'T1'!L21,MAX(T3_R1!K21,T3_R2!K21)),MAX('MDA4'!R21,'T1'!L21,MAX(T3_R1!K21,T3_R2!K21)),COUNTRY_INFO!E21),0) -> 0 | U21: =IF(AND(COUNTRY_INFO!J21>1,COUNTRY_INFO!J21<4), IF(T21/COUNTRY_INFO!E21*100<>0, IF(T21/COUNTRY_INFO!E21*100>100,100,T21/COUNTRY_INFO!E21*100), "-"),0) -> 0 | V21: =IF(AND(COUNTRY_INFO!J21>1,COUNTRY_INFO!J21<4),IF(COUNTRY_INFO!F21>MAX('MDA1'!K21,'MDA4'!S21,'T1'!M21,MAX(T3_R1!L21,T3_R2!L21)),MAX('MDA1'!K21,'MDA4'!S21,'T1'!M21,MAX(T3_R1!L21,T3_R2!L21)),COUNTRY_INFO!F21),0) -> 0 | W21: =IF(AND(COUNTRY_INFO!J21>1,COUNTRY_INFO!J21<4), IF(V21/COUNTRY_INFO!F21*100<>0, IF(V21/COUNTRY_INFO!F21*100>100,100,V21/COUNTRY_INFO!F21*100), "-"),0) -> 0 | X21: 0 | Y21: =IF(AND(COUNTRY_INFO!J21>1,COUNTRY_INFO!J21<4), IF(S21/P21*100<>0, IF(X21/P21*100>100,100,X21/P21*100), "-"),0) -> 0 | Z21: =COUNTRY_INFO!P21 -> 0 | AC21: =MAX('T1'!L21,'T2'!J21)+MAX('T1'!M21,'T2'!K21)+MAX('T1'!N21,'T2'!L21) -> 0 | AD21: =IF(COUNTRY_INFO!K21=1,IF(COUNTRY_INFO!F21*0.33>MAX('T1'!M21,'T2'!K21),MAX('T1'!M21,'T2'!K21),COUNTRY_INFO!F21*0.33),IF(COUNTRY_INFO!K21=2,IF(COUNTRY_INFO!F21*0.5>MAX('T1'!M21,'T2'!K21),MAX('T1'!M21,'T2'!K21),COUNTRY_INFO!F21*0.5),IF(COUNTRY_INFO!K21=3,IF(COUNTRY_INFO!F21>MAX('T1'!M21,'T2'!K21),MAX('T1'!M21,'T2'!K21),COUNTRY_INFO!F21),0))) -> 0 | AE21: =IF(AND(COUNTRY_INFO!K21>0,COUNTRY_INFO!K21<4),IF(Z21>0,IF(COUNTRY_INFO!K21=1, AD21/(COUNTRY_INFO!F21*0.33)*100, IF(COUNTRY_INFO!K21=2, AD21/(COUNTRY_INFO!F21*0.5)*100, IF(COUNTRY_INFO!K21=3, AD21/COUNTRY_INFO!F21*100))),"-"),0) -> - | AF21: =IF(COUNTRY_INFO!K21=2,IF(COUNTRY_INFO!G21*0.2>MAX('T1'!N21,'T2'!L21),MAX('T1'!N21,'T2'!L21),COUNTRY_INFO!G21*0.2),IF(COUNTRY_INFO!K21=3,IF(COUNTRY_INFO!G21>MAX('T1'!N21,'T2'!L21),MAX('T1'!N21,'T2'!L21),COUNTRY_INFO!G21),0)) -> 0 | AG21: =IF(AND(COUNTRY_INFO!K21>0,COUNTRY_INFO!K21<4),IF(Z21>0,IF(COUNTRY_INFO!K21=1, 0, IF(COUNTRY_INFO!K21=2, AF21/(COUNTRY_INFO!G21*0.2)*100, IF(COUNTRY_INFO!K21=3, AF21/COUNTRY_INFO!G21*100))),"-"),0) -> - | AH21: 0 | AI21: =IF(AND(COUNTRY_INFO!K21>0,COUNTRY_INFO!K21<4), IF(AC21/Z21*100<>0, IF(AH21/Z21*100>100,100,AH21/Z21*100), "-"),0) ->  | AK21: =IF(AND(D21<>0, D21<>"Inconnu",D21<>"Interrompu",D21<>"Non requis"),D21/COUNTRY_INFO!D21, 0) -> 1 | AL21: =IF(AND(J21<>0,J21<>"Inconnu",J21<>"Interrompu",J21<>"Non requis"),J21/COUNTRY_INFO!D21, 0) -> 1 | AM21: =IF(AND(P21<>0,P21<>"Inconnu",P21<>"Non requis"),P21/(COUNTRY_INFO!E21+COUNTRY_INFO!F21), 0) -> 0 | AN21: =IF(AND(Z21<>0,Z21<>"Inconnu",Z21<>"Non requis"),IF(COUNTRY_INFO!K21=1,1,IF(COUNTRY_INFO!K21=2,0.5*COUNTRY_INFO!F21/(0.5*COUNTRY_INFO!F21+0.2*COUNTRY_INFO!G21),IF(COUNTRY_INFO!K21=3,COUNTRY_INFO!F21/(COUNTRY_INFO!F21+COUNTRY_INFO!G21)))),0) -> 0 | AO21: =IF(AND(Z21<>0,Z21<>"Inconnu",Z21<>"Non requis"),IF(COUNTRY_INFO!K21=1,0,IF(COUNTRY_INFO!K21=2,0.2*COUNTRY_INFO!G21/(0.5*COUNTRY_INFO!F21+0.2*COUNTRY_INFO!G21),IF(COUNTRY_INFO!K21=3,COUNTRY_INFO!G21/(COUNTRY_INFO!F21+COUNTRY_INFO!G21)))),0) -> 0 | AP21: =MAX(COUNTRY_INFO!D21*AK21*PROFILE!$G$7,COUNTRY_INFO!D21*AL21*PROFILE!$G$7) -> 2654.841112 | AQ21: =MAX(COUNTRY_INFO!D21*AK21*PROFILE!$G$8,COUNTRY_INFO!D21*AL21*PROFILE!$G$8,COUNTRY_INFO!D21*AM21*PROFILE!$G$8) -> 10475.22221 | AR21: =MAX(COUNTRY_INFO!D21*AK21*PROFILE!$G$9,COUNTRY_INFO!D21*AL21*PROFILE!$G$9,COUNTRY_INFO!D21*AM21*PROFILE!$G$9,IF(AND(DISTRICT!Z21<>"Inconnu",Z21<>"Non requis"),COUNTRY_INFO!P21*DISTRICT!AN21,0)) -> 17218.55279 | AS21: =MAX(COUNTRY_INFO!D21*AK21*PROFILE!$G$10,COUNTRY_INFO!D21*AL21*PROFILE!$G$10,IF(AND(DISTRICT!Z21<>"Inconnu",Z21<>"Non requis"),COUNTRY_INFO!P21*DISTRICT!AO21,0)) -> 45503.98586 | AT21: 75852.60196 | AU21: 0 | AV21: =MAX('MDA4'!R21,'T1'!L21,'T2'!J21,T3_R1!K21,T3_R2!K21) -> 0 | AW21: =MAX('MDA1'!K21,'MDA4'!S21,'MDA3'!I21,'MDA3'!L21,'T1'!M21,'T2'!K21,T3_R1!L21,T3_R2!L21) -> 11166.811 | AX21: =MAX('MDA1'!L21,'MDA4'!T21,'MDA3'!J21,'MDA3'!M21,'T1'!N21,'T2'!L21,T3_R1!M21,T3_R2!M21) -> 38026.189 | AY21: 49193 | AZ21: =MAX('MDA4'!R21,T21) -> 0 | BA21: =MAX('MDA1'!K21,'MDA4'!S21,'MDA3'!I21,'MDA3'!L21,V21,AD21) -> 11166.811 | BB21: =MAX('MDA1'!L21,'MDA4'!T21,'MDA3'!J21,'MDA3'!M21,AF21) -> 38026.189 | BC21: 49193 | BD21: 64.85341139
A22: =IF(COUNTRY_INFO!A22=0," ",COUNTRY_INFO!A22) -> République Centrafricaine | B22: =IF(COUNTRY_INFO!B22=0," ",COUNTRY_INFO!B22) -> RS N° 3 | C22: =IF(COUNTRY_INFO!C22=0," ",COUNTRY_INFO!C22) -> BOSSANGOA | D22: =COUNTRY_INFO!M22 -> 169950.0611 | G22: =MAX('MDA1'!M22,'MDA4'!U22) -> 0 | H22: =IF(AND(COUNTRY_INFO!H22>0,COUNTRY_INFO!H22<4),IF(D22>MAX('MDA1'!M22,'MDA4'!U22),MAX('MDA1'!M22,'MDA4'!U22),D22),0) -> 0 | I22: =IF(AND(COUNTRY_INFO!H22>0,COUNTRY_INFO!H22<4), IF(G22/D22*100<>0, IF(G22/D22*100>100,100,G22/D22*100), "-"),0) -> - | J22: =COUNTRY_INFO!N22 -> 169950.0611 | M22: =MAX('MDA1'!M22,MAX('MDA3'!I22,'MDA3'!L22)+MAX('MDA3'!J22,'MDA3'!M22)) -> 86723 | N22: =IF(AND(COUNTRY_INFO!I22>0,COUNTRY_INFO!I22<4),IF(J22>MAX('MDA1'!M22,MAX('MDA3'!I22,'MDA3'!L22)+MAX('MDA3'!J22,'MDA3'!M22)),MAX('MDA1'!M22,MAX('MDA3'!I22,'MDA3'!L22)+MAX('MDA3'!J22,'MDA3'!M22)),J22),0) -> 86723 | O22: =IF(AND(COUNTRY_INFO!I22>0,COUNTRY_INFO!I22<4), IF(M22/J22*100<>0, IF(M22/J22*100>100,100,M22/J22*100), "-"),0) -> 51.02851945 | P22: =COUNTRY_INFO!O22 -> 0 | S22: =SUM(MAX('MDA4'!R22, 'T1'!L22, MAX(T3_R1!K22, T3_R2!K22)), MAX('MDA1'!K22, 'MDA4'!S22, 'T1'!M22, MAX(T3_R1!L22, T3_R2!L22)), MAX('MDA1'!L22, 'MDA4'!T22, 'T1'!N22, MAX(T3_R1!M22, T3_R2!M22))) -> 0 | T22: =IF(AND(COUNTRY_INFO!J22>1,COUNTRY_INFO!J22<4),IF(COUNTRY_INFO!E22>MAX('MDA4'!R22,'T1'!L22,MAX(T3_R1!K22,T3_R2!K22)),MAX('MDA4'!R22,'T1'!L22,MAX(T3_R1!K22,T3_R2!K22)),COUNTRY_INFO!E22),0) -> 0 | U22: =IF(AND(COUNTRY_INFO!J22>1,COUNTRY_INFO!J22<4), IF(T22/COUNTRY_INFO!E22*100<>0, IF(T22/COUNTRY_INFO!E22*100>100,100,T22/COUNTRY_INFO!E22*100), "-"),0) -> 0 | V22: =IF(AND(COUNTRY_INFO!J22>1,COUNTRY_INFO!J22<4),IF(COUNTRY_INFO!F22>MAX('MDA1'!K22,'MDA4'!S22,'T1'!M22,MAX(T3_R1!L22,T3_R2!L22)),MAX('MDA1'!K22,'MDA4'!S22,'T1'!M22,MAX(T3_R1!L22,T3_R2!L22)),COUNTRY_INFO!F22),0) -> 0 | W22: =IF(AND(COUNTRY_INFO!J22>1,COUNTRY_INFO!J22<4), IF(V22/COUNTRY_INFO!F22*100<>0, IF(V22/COUNTRY_INFO!F22*100>100,100,V22/COUNTRY_INFO!F22*100), "-"),0) -> 0 | X22: 0 | Y22: =IF(AND(COUNTRY_INFO!J22>1,COUNTRY_INFO!J22<4), IF(S22/P22*100<>0, IF(X22/P22*100>100,100,X22/P22*100), "-"),0) -> 0 | Z22: =COUNTRY_INFO!P22 -> 0 | AC22: =MAX('T1'!L22,'T2'!J22)+MAX('T1'!M22,'T2'!K22)+MAX('T1'!N22,'T2'!L22) -> 0 | AD22: =IF(COUNTRY_INFO!K22=1,IF(COUNTRY_INFO!F22*0.33>MAX('T1'!M22,'T2'!K22),MAX('T1'!M22,'T2'!K22),COUNTRY_INFO!F22*0.33),IF(COUNTRY_INFO!K22=2,IF(COUNTRY_INFO!F22*0.5>MAX('T1'!M22,'T2'!K22),MAX('T1'!M22,'T2'!K22),COUNTRY_INFO!F22*0.5),IF(COUNTRY_INFO!K22=3,IF(COUNTRY_INFO!F22>MAX('T1'!M22,'T2'!K22),MAX('T1'!M22,'T2'!K22),COUNTRY_INFO!F22),0))) -> 0 | AE22: =IF(AND(COUNTRY_INFO!K22>0,COUNTRY_INFO!K22<4),IF(Z22>0,IF(COUNTRY_INFO!K22=1, AD22/(COUNTRY_INFO!F22*0.33)*100, IF(COUNTRY_INFO!K22=2, AD22/(COUNTRY_INFO!F22*0.5)*100, IF(COUNTRY_INFO!K22=3, AD22/COUNTRY_INFO!F22*100))),"-"),0) -> - | AF22: =IF(COUNTRY_INFO!K22=2,IF(COUNTRY_INFO!G22*0.2>MAX('T1'!N22,'T2'!L22),MAX('T1'!N22,'T2'!L22),COUNTRY_INFO!G22*0.2),IF(COUNTRY_INFO!K22=3,IF(COUNTRY_INFO!G22>MAX('T1'!N22,'T2'!L22),MAX('T1'!N22,'T2'!L22),COUNTRY_INFO!G22),0)) -> 0 | AG22: =IF(AND(COUNTRY_INFO!K22>0,COUNTRY_INFO!K22<4),IF(Z22>0,IF(COUNTRY_INFO!K22=1, 0, IF(COUNTRY_INFO!K22=2, AF22/(COUNTRY_INFO!G22*0.2)*100, IF(COUNTRY_INFO!K22=3, AF22/COUNTRY_INFO!G22*100))),"-"),0) -> - | AH22: 0 | AI22: =IF(AND(COUNTRY_INFO!K22>0,COUNTRY_INFO!K22<4), IF(AC22/Z22*100<>0, IF(AH22/Z22*100>100,100,AH22/Z22*100), "-"),0) ->  | AK22: =IF(AND(D22<>0, D22<>"Inconnu",D22<>"Interrompu",D22<>"Non requis"),D22/COUNTRY_INFO!D22, 0) -> 1 | AL22: =IF(AND(J22<>0,J22<>"Inconnu",J22<>"Interrompu",J22<>"Non requis"),J22/COUNTRY_INFO!D22, 0) -> 1 | AM22: =IF(AND(P22<>0,P22<>"Inconnu",P22<>"Non requis"),P22/(COUNTRY_INFO!E22+COUNTRY_INFO!F22), 0) -> 0 | AN22: =IF(AND(Z22<>0,Z22<>"Inconnu",Z22<>"Non requis"),IF(COUNTRY_INFO!K22=1,1,IF(COUNTRY_INFO!K22=2,0.5*COUNTRY_INFO!F22/(0.5*COUNTRY_INFO!F22+0.2*COUNTRY_INFO!G22),IF(COUNTRY_INFO!K22=3,COUNTRY_INFO!F22/(COUNTRY_INFO!F22+COUNTRY_INFO!G22)))),0) -> 0 | AO22: =IF(AND(Z22<>0,Z22<>"Inconnu",Z22<>"Non requis"),IF(COUNTRY_INFO!K22=1,0,IF(COUNTRY_INFO!K22=2,0.2*COUNTRY_INFO!G22/(0.5*COUNTRY_INFO!F22+0.2*COUNTRY_INFO!G22),IF(COUNTRY_INFO!K22=3,COUNTRY_INFO!G22/(COUNTRY_INFO!F22+COUNTRY_INFO!G22)))),0) -> 0 | AP22: =MAX(COUNTRY_INFO!D22*AK22*PROFILE!$G$7,COUNTRY_INFO!D22*AL22*PROFILE!$G$7) -> 5948.252237 | AQ22: =MAX(COUNTRY_INFO!D22*AK22*PROFILE!$G$8,COUNTRY_INFO!D22*AL22*PROFILE!$G$8,COUNTRY_INFO!D22*AM22*PROFILE!$G$8) -> 23470.05387 | AR22: =MAX(COUNTRY_INFO!D22*AK22*PROFILE!$G$9,COUNTRY_INFO!D22*AL22*PROFILE!$G$9,COUNTRY_INFO!D22*AM22*PROFILE!$G$9,IF(AND(DISTRICT!Z22<>"Inconnu",Z22<>"Non requis"),COUNTRY_INFO!P22*DISTRICT!AN22,0)) -> 38578.69109 | AS22: =MAX(COUNTRY_INFO!D22*AK22*PROFILE!$G$10,COUNTRY_INFO!D22*AL22*PROFILE!$G$10,IF(AND(DISTRICT!Z22<>"Inconnu",Z22<>"Non requis"),COUNTRY_INFO!P22*DISTRICT!AO22,0)) -> 101953.0639 | AT22: 169950.0611 | AU22: 0 | AV22: =MAX('MDA4'!R22,'T1'!L22,'T2'!J22,T3_R1!K22,T3_R2!K22) -> 0 | AW22: =MAX('MDA1'!K22,'MDA4'!S22,'MDA3'!I22,'MDA3'!L22,'T1'!M22,'T2'!K22,T3_R1!L22,T3_R2!L22) -> 19686.121 | AX22: =MAX('MDA1'!L22,'MDA4'!T22,'MDA3'!J22,'MDA3'!M22,'T1'!N22,'T2'!L22,T3_R1!M22,T3_R2!M22) -> 67036.879 | AY22: 86723 | AZ22: =MAX('MDA4'!R22,T22) -> 0 | BA22: =MAX('MDA1'!K22,'MDA4'!S22,'MDA3'!I22,'MDA3'!L22,V22,AD22) -> 19686.121 | BB22: =MAX('MDA1'!L22,'MDA4'!T22,'MDA3'!J22,'MDA3'!M22,AF22) -> 67036.879 | BC22: 86723 | BD22: 51.02851945
A23: =IF(COUNTRY_INFO!A23=0," ",COUNTRY_INFO!A23) -> République Centrafricaine | B23: =IF(COUNTRY_INFO!B23=0," ",COUNTRY_INFO!B23) -> RS N° 3 | C23: =IF(COUNTRY_INFO!C23=0," ",COUNTRY_INFO!C23) -> NANGA-BOGUILA | D23: =COUNTRY_INFO!M23 -> 114847.0009 | G23: =MAX('MDA1'!M23,'MDA4'!U23) -> 0 | H23: =IF(AND(COUNTRY_INFO!H23>0,COUNTRY_INFO!H23<4),IF(D23>MAX('MDA1'!M23,'MDA4'!U23),MAX('MDA1'!M23,'MDA4'!U23),D23),0) -> 0 | I23: =IF(AND(COUNTRY_INFO!H23>0,COUNTRY_INFO!H23<4), IF(G23/D23*100<>0, IF(G23/D23*100>100,100,G23/D23*100), "-"),0) -> - | J23: =COUNTRY_INFO!N23 -> 114847.0009 | M23: =MAX('MDA1'!M23,MAX('MDA3'!I23,'MDA3'!L23)+MAX('MDA3'!J23,'MDA3'!M23)) -> 109275 | N23: =IF(AND(COUNTRY_INFO!I23>0,COUNTRY_INFO!I23<4),IF(J23>MAX('MDA1'!M23,MAX('MDA3'!I23,'MDA3'!L23)+MAX('MDA3'!J23,'MDA3'!M23)),MAX('MDA1'!M23,MAX('MDA3'!I23,'MDA3'!L23)+MAX('MDA3'!J23,'MDA3'!M23)),J23),0) -> 109275 | O23: =IF(AND(COUNTRY_INFO!I23>0,COUNTRY_INFO!I23<4), IF(M23/J23*100<>0, IF(M23/J23*100>100,100,M23/J23*100), "-"),0) -> 95.14832701 | P23: =COUNTRY_INFO!O23 -> 0 | S23: =SUM(MAX('MDA4'!R23, 'T1'!L23, MAX(T3_R1!K23, T3_R2!K23)), MAX('MDA1'!K23, 'MDA4'!S23, 'T1'!M23, MAX(T3_R1!L23, T3_R2!L23)), MAX('MDA1'!L23, 'MDA4'!T23, 'T1'!N23, MAX(T3_R1!M23, T3_R2!M23))) -> 0 | T23: =IF(AND(COUNTRY_INFO!J23>1,COUNTRY_INFO!J23<4),IF(COUNTRY_INFO!E23>MAX('MDA4'!R23,'T1'!L23,MAX(T3_R1!K23,T3_R2!K23)),MAX('MDA4'!R23,'T1'!L23,MAX(T3_R1!K23,T3_R2!K23)),COUNTRY_INFO!E23),0) -> 0 | U23: =IF(AND(COUNTRY_INFO!J23>1,COUNTRY_INFO!J23<4), IF(T23/COUNTRY_INFO!E23*100<>0, IF(T23/COUNTRY_INFO!E23*100>100,100,T23/COUNTRY_INFO!E23*100), "-"),0) -> 0 | V23: =IF(AND(COUNTRY_INFO!J23>1,COUNTRY_INFO!J23<4),IF(COUNTRY_INFO!F23>MAX('MDA1'!K23,'MDA4'!S23,'T1'!M23,MAX(T3_R1!L23,T3_R2!L23)),MAX('MDA1'!K23,'MDA4'!S23,'T1'!M23,MAX(T3_R1!L23,T3_R2!L23)),COUNTRY_INFO!F23),0) -> 0 | W23: =IF(AND(COUNTRY_INFO!J23>1,COUNTRY_INFO!J23<4), IF(V23/COUNTRY_INFO!F23*100<>0, IF(V23/COUNTRY_INFO!F23*100>100,100,V23/COUNTRY_INFO!F23*100), "-"),0) -> 0 | X23: 0 | Y23: =IF(AND(COUNTRY_INFO!J23>1,COUNTRY_INFO!J23<4), IF(S23/P23*100<>0, IF(X23/P23*100>100,100,X23/P23*100), "-"),0) -> 0 | Z23: =COUNTRY_INFO!P23 -> 0 | AC23: =MAX('T1'!L23,'T2'!J23)+MAX('T1'!M23,'T2'!K23)+MAX('T1'!N23,'T2'!L23) -> 0 | AD23: =IF(COUNTRY_INFO!K23=1,IF(COUNTRY_INFO!F23*0.33>MAX('T1'!M23,'T2'!K23),MAX('T1'!M23,'T2'!K23),COUNTRY_INFO!F23*0.33),IF(COUNTRY_INFO!K23=2,IF(COUNTRY_INFO!F23*0.5>MAX('T1'!M23,'T2'!K23),MAX('T1'!M23,'T2'!K23),COUNTRY_INFO!F23*0.5),IF(COUNTRY_INFO!K23=3,IF(COUNTRY_INFO!F23>MAX('T1'!M23,'T2'!K23),MAX('T1'!M23,'T2'!K23),COUNTRY_INFO!F23),0))) -> 0 | AE23: =IF(AND(COUNTRY_INFO!K23>0,COUNTRY_INFO!K23<4),IF(Z23>0,IF(COUNTRY_INFO!K23=1, AD23/(COUNTRY_INFO!F23*0.33)*100, IF(COUNTRY_INFO!K23=2, AD23/(COUNTRY_INFO!F23*0.5)*100, IF(COUNTRY_INFO!K23=3, AD23/COUNTRY_INFO!F23*100))),"-"),0) -> - | AF23: =IF(COUNTRY_INFO!K23=2,IF(COUNTRY_INFO!G23*0.2>MAX('T1'!N23,'T2'!L23),MAX('T1'!N23,'T2'!L23),COUNTRY_INFO!G23*0.2),IF(COUNTRY_INFO!K23=3,IF(COUNTRY_INFO!G23>MAX('T1'!N23,'T2'!L23),MAX('T1'!N23,'T2'!L23),COUNTRY_INFO!G23),0)) -> 0 | AG23: =IF(AND(COUNTRY_INFO!K23>0,COUNTRY_INFO!K23<4),IF(Z23>0,IF(COUNTRY_INFO!K23=1, 0, IF(COUNTRY_INFO!K23=2, AF23/(COUNTRY_INFO!G23*0.2)*100, IF(COUNTRY_INFO!K23=3, AF23/COUNTRY_INFO!G23*100))),"-"),0) -> - | AH23: 0 | AI23: =IF(AND(COUNTRY_INFO!K23>0,COUNTRY_INFO!K23<4), IF(AC23/Z23*100<>0, IF(AH23/Z23*100>100,100,AH23/Z23*100), "-"),0) ->  | AK23: =IF(AND(D23<>0, D23<>"Inconnu",D23<>"Interrompu",D23<>"Non requis"),D23/COUNTRY_INFO!D23, 0) -> 1 | AL23: =IF(AND(J23<>0,J23<>"Inconnu",J23<>"Interrompu",J23<>"Non requis"),J23/COUNTRY_INFO!D23, 0) -> 1 | AM23: =IF(AND(P23<>0,P23<>"Inconnu",P23<>"Non requis"),P23/(COUNTRY_INFO!E23+COUNTRY_INFO!F23), 0) -> 0 | AN23: =IF(AND(Z23<>0,Z23<>"Inconnu",Z23<>"Non requis"),IF(COUNTRY_INFO!K23=1,1,IF(COUNTRY_INFO!K23=2,0.5*COUNTRY_INFO!F23/(0.5*COUNTRY_INFO!F23+0.2*COUNTRY_INFO!G23),IF(COUNTRY_INFO!K23=3,COUNTRY_INFO!F23/(COUNTRY_INFO!F23+COUNTRY_INFO!G23)))),0) -> 0 | AO23: =IF(AND(Z23<>0,Z23<>"Inconnu",Z23<>"Non requis"),IF(COUNTRY_INFO!K23=1,0,IF(COUNTRY_INFO!K23=2,0.2*COUNTRY_INFO!G23/(0.5*COUNTRY_INFO!F23+0.2*COUNTRY_INFO!G23),IF(COUNTRY_INFO!K23=3,COUNTRY_INFO!G23/(COUNTRY_INFO!F23+COUNTRY_INFO!G23)))),0) -> 0 | AP23: =MAX(COUNTRY_INFO!D23*AK23*PROFILE!$G$7,COUNTRY_INFO!D23*AL23*PROFILE!$G$7) -> 4019.645098 | AQ23: =MAX(COUNTRY_INFO!D23*AK23*PROFILE!$G$8,COUNTRY_INFO!D23*AL23*PROFILE!$G$8,COUNTRY_INFO!D23*AM23*PROFILE!$G$8) -> 15860.33733 | AR23: =MAX(COUNTRY_INFO!D23*AK23*PROFILE!$G$9,COUNTRY_INFO!D23*AL23*PROFILE!$G$9,COUNTRY_INFO!D23*AM23*PROFILE!$G$9,IF(AND(DISTRICT!Z23<>"Inconnu",Z23<>"Non requis"),COUNTRY_INFO!P23*DISTRICT!AN23,0)) -> 26070.2876 | AS23: =MAX(COUNTRY_INFO!D23*AK23*PROFILE!$G$10,COUNTRY_INFO!D23*AL23*PROFILE!$G$10,IF(AND(DISTRICT!Z23<>"Inconnu",Z23<>"Non requis"),COUNTRY_INFO!P23*DISTRICT!AO23,0)) -> 68896.7309 | AT23: 114847.0009 | AU23: 0 | AV23: =MAX('MDA4'!R23,'T1'!L23,'T2'!J23,T3_R1!K23,T3_R2!K23) -> 0 | AW23: =MAX('MDA1'!K23,'MDA4'!S23,'MDA3'!I23,'MDA3'!L23,'T1'!M23,'T2'!K23,T3_R1!L23,T3_R2!L23) -> 24805.425 | AX23: =MAX('MDA1'!L23,'MDA4'!T23,'MDA3'!J23,'MDA3'!M23,'T1'!N23,'T2'!L23,T3_R1!M23,T3_R2!M23) -> 84469.575 | AY23: 109275 | AZ23: =MAX('MDA4'!R23,T23) -> 0 | BA23: =MAX('MDA1'!K23,'MDA4'!S23,'MDA3'!I23,'MDA3'!L23,V23,AD23) -> 24805.425 | BB23: =MAX('MDA1'!L23,'MDA4'!T23,'MDA3'!J23,'MDA3'!M23,AF23) -> 84469.575 | BC23: 109275 | BD23: 95.14832701
A24: =IF(COUNTRY_INFO!A24=0," ",COUNTRY_INFO!A24) -> République Centrafricaine | B24: =IF(COUNTRY_INFO!B24=0," ",COUNTRY_INFO!B24) -> RS N° 3 | C24: =IF(COUNTRY_INFO!C24=0," ",COUNTRY_INFO!C24) -> BOCARANGA-KOUI | D24: =COUNTRY_INFO!M24 -> 148990.8228 | G24: =MAX('MDA1'!M24,'MDA4'!U24) -> 0 | H24: =IF(AND(COUNTRY_INFO!H24>0,COUNTRY_INFO!H24<4),IF(D24>MAX('MDA1'!M24,'MDA4'!U24),MAX('MDA1'!M24,'MDA4'!U24),D24),0) -> 0 | I24: =IF(AND(COUNTRY_INFO!H24>0,COUNTRY_INFO!H24<4), IF(G24/D24*100<>0, IF(G24/D24*100>100,100,G24/D24*100), "-"),0) -> - | J24: =COUNTRY_INFO!N24 -> 148990.8228 | M24: =MAX('MDA1'!M24,MAX('MDA3'!I24,'MDA3'!L24)+MAX('MDA3'!J24,'MDA3'!M24)) -> 98191 | N24: =IF(AND(COUNTRY_INFO!I24>0,COUNTRY_INFO!I24<4),IF(J24>MAX('MDA1'!M24,MAX('MDA3'!I24,'MDA3'!L24)+MAX('MDA3'!J24,'MDA3'!M24)),MAX('MDA1'!M24,MAX('MDA3'!I24,'MDA3'!L24)+MAX('MDA3'!J24,'MDA3'!M24)),J24),0) -> 98191 | O24: =IF(AND(COUNTRY_INFO!I24>0,COUNTRY_INFO!I24<4), IF(M24/J24*100<>0, IF(M24/J24*100>100,100,M24/J24*100), "-"),0) -> 65.90405918 | P24: =COUNTRY_INFO!O24 -> 0 | S24: =SUM(MAX('MDA4'!R24, 'T1'!L24, MAX(T3_R1!K24, T3_R2!K24)), MAX('MDA1'!K24, 'MDA4'!S24, 'T1'!M24, MAX(T3_R1!L24, T3_R2!L24)), MAX('MDA1'!L24, 'MDA4'!T24, 'T1'!N24, MAX(T3_R1!M24, T3_R2!M24))) -> 0 | T24: =IF(AND(COUNTRY_INFO!J24>1,COUNTRY_INFO!J24<4),IF(COUNTRY_INFO!E24>MAX('MDA4'!R24,'T1'!L24,MAX(T3_R1!K24,T3_R2!K24)),MAX('MDA4'!R24,'T1'!L24,MAX(T3_R1!K24,T3_R2!K24)),COUNTRY_INFO!E24),0) -> 0 | U24: =IF(AND(COUNTRY_INFO!J24>1,COUNTRY_INFO!J24<4), IF(T24/COUNTRY_INFO!E24*100<>0, IF(T24/COUNTRY_INFO!E24*100>100,100,T24/COUNTRY_INFO!E24*100), "-"),0) -> 0 | V24: =IF(AND(COUNTRY_INFO!J24>1,COUNTRY_INFO!J24<4),IF(COUNTRY_INFO!F24>MAX('MDA1'!K24,'MDA4'!S24,'T1'!M24,MAX(T3_R1!L24,T3_R2!L24)),MAX('MDA1'!K24,'MDA4'!S24,'T1'!M24,MAX(T3_R1!L24,T3_R2!L24)),COUNTRY_INFO!F24),0) -> 0 | W24: =IF(AND(COUNTRY_INFO!J24>1,COUNTRY_INFO!J24<4), IF(V24/COUNTRY_INFO!F24*100<>0, IF(V24/COUNTRY_INFO!F24*100>100,100,V24/COUNTRY_INFO!F24*100), "-"),0) -> 0 | X24: 0 | Y24: =IF(AND(COUNTRY_INFO!J24>1,COUNTRY_INFO!J24<4), IF(S24/P24*100<>0, IF(X24/P24*100>100,100,X24/P24*100), "-"),0) -> 0 | Z24: =COUNTRY_INFO!P24 -> 0 | AC24: =MAX('T1'!L24,'T2'!J24)+MAX('T1'!M24,'T2'!K24)+MAX('T1'!N24,'T2'!L24) -> 0 | AD24: =IF(COUNTRY_INFO!K24=1,IF(COUNTRY_INFO!F24*0.33>MAX('T1'!M24,'T2'!K24),MAX('T1'!M24,'T2'!K24),COUNTRY_INFO!F24*0.33),IF(COUNTRY_INFO!K24=2,IF(COUNTRY_INFO!F24*0.5>MAX('T1'!M24,'T2'!K24),MAX('T1'!M24,'T2'!K24),COUNTRY_INFO!F24*0.5),IF(COUNTRY_INFO!K24=3,IF(COUNTRY_INFO!F24>MAX('T1'!M24,'T2'!K24),MAX('T1'!M24,'T2'!K24),COUNTRY_INFO!F24),0))) -> 0 | AE24: =IF(AND(COUNTRY_INFO!K24>0,COUNTRY_INFO!K24<4),IF(Z24>0,IF(COUNTRY_INFO!K24=1, AD24/(COUNTRY_INFO!F24*0.33)*100, IF(COUNTRY_INFO!K24=2, AD24/(COUNTRY_INFO!F24*0.5)*100, IF(COUNTRY_INFO!K24=3, AD24/COUNTRY_INFO!F24*100))),"-"),0) -> - | AF24: =IF(COUNTRY_INFO!K24=2,IF(COUNTRY_INFO!G24*0.2>MAX('T1'!N24,'T2'!L24),MAX('T1'!N24,'T2'!L24),COUNTRY_INFO!G24*0.2),IF(COUNTRY_INFO!K24=3,IF(COUNTRY_INFO!G24>MAX('T1'!N24,'T2'!L24),MAX('T1'!N24,'T2'!L24),COUNTRY_INFO!G24),0)) -> 0 | AG24: =IF(AND(COUNTRY_INFO!K24>0,COUNTRY_INFO!K24<4),IF(Z24>0,IF(COUNTRY_INFO!K24=1, 0, IF(COUNTRY_INFO!K24=2, AF24/(COUNTRY_INFO!G24*0.2)*100, IF(COUNTRY_INFO!K24=3, AF24/COUNTRY_INFO!G24*100))),"-"),0) -> - | AH24: 0 | AI24: =IF(AND(COUNTRY_INFO!K24>0,COUNTRY_INFO!K24<4), IF(AC24/Z24*100<>0, IF(AH24/Z24*100>100,100,AH24/Z24*100), "-"),0) ->  | AK24: =IF(AND(D24<>0, D24<>"Inconnu",D24<>"Interrompu",D24<>"Non requis"),D24/COUNTRY_INFO!D24, 0) -> 1 | AL24: =IF(AND(J24<>0,J24<>"Inconnu",J24<>"Interrompu",J24<>"Non requis"),J24/COUNTRY_INFO!D24, 0) -> 1 | AM24: =IF(AND(P24<>0,P24<>"Inconnu",P24<>"Non requis"),P24/(COUNTRY_INFO!E24+COUNTRY_INFO!F24), 0) -> 0 | AN24: =IF(AND(Z24<>0,Z24<>"Inconnu",Z24<>"Non requis"),IF(COUNTRY_INFO!K24=1,1,IF(COUNTRY_INFO!K24=2,0.5*COUNTRY_INFO!F24/(0.5*COUNTRY_INFO!F24+0.2*COUNTRY_INFO!G24),IF(COUNTRY_INFO!K24=3,COUNTRY_INFO!F24/(COUNTRY_INFO!F24+COUNTRY_INFO!G24)))),0) -> 0 | AO24: =IF(AND(Z24<>0,Z24<>"Inconnu",Z24<>"Non requis"),IF(COUNTRY_INFO!K24=1,0,IF(COUNTRY_INFO!K24=2,0.2*COUNTRY_INFO!G24/(0.5*COUNTRY_INFO!F24+0.2*COUNTRY_INFO!G24),IF(COUNTRY_INFO!K24=3,COUNTRY_INFO!G24/(COUNTRY_INFO!F24+COUNTRY_INFO!G24)))),0) -> 0 | AP24: =MAX(COUNTRY_INFO!D24*AK24*PROFILE!$G$7,COUNTRY_INFO!D24*AL24*PROFILE!$G$7) -> 5214.678882 | AQ24: =MAX(COUNTRY_INFO!D24*AK24*PROFILE!$G$8,COUNTRY_INFO!D24*AL24*PROFILE!$G$8,COUNTRY_INFO!D24*AM24*PROFILE!$G$8) -> 20575.58916 | AR24: =MAX(COUNTRY_INFO!D24*AK24*PROFILE!$G$9,COUNTRY_INFO!D24*AL24*PROFILE!$G$9,COUNTRY_INFO!D24*AM24*PROFILE!$G$9,IF(AND(DISTRICT!Z24<>"Inconnu",Z24<>"Non requis"),COUNTRY_INFO!P24*DISTRICT!AN24,0)) -> 33820.94062 | AS24: =MAX(COUNTRY_INFO!D24*AK24*PROFILE!$G$10,COUNTRY_INFO!D24*AL24*PROFILE!$G$10,IF(AND(DISTRICT!Z24<>"Inconnu",Z24<>"Non requis"),COUNTRY_INFO!P24*DISTRICT!AO24,0)) -> 89379.61409 | AT24: 148990.8228 | AU24: 0 | AV24: =MAX('MDA4'!R24,'T1'!L24,'T2'!J24,T3_R1!K24,T3_R2!K24) -> 0 | AW24: =MAX('MDA1'!K24,'MDA4'!S24,'MDA3'!I24,'MDA3'!L24,'T1'!M24,'T2'!K24,T3_R1!L24,T3_R2!L24) -> 22289.357 | AX24: =MAX('MDA1'!L24,'MDA4'!T24,'MDA3'!J24,'MDA3'!M24,'T1'!N24,'T2'!L24,T3_R1!M24,T3_R2!M24) -> 75901.643 | AY24: 98191 | AZ24: =MAX('MDA4'!R24,T24) -> 0 | BA24: =MAX('MDA1'!K24,'MDA4'!S24,'MDA3'!I24,'MDA3'!L24,V24,AD24) -> 22289.357 | BB24: =MAX('MDA1'!L24,'MDA4'!T24,'MDA3'!J24,'MDA3'!M24,AF24) -> 75901.643 | BC24: 98191 | BD24: 65.90405918
A25: =IF(COUNTRY_INFO!A25=0," ",COUNTRY_INFO!A25) -> République Centrafricaine | B25: =IF(COUNTRY_INFO!B25=0," ",COUNTRY_INFO!B25) -> RS N° 3 | C25: =IF(COUNTRY_INFO!C25=0," ",COUNTRY_INFO!C25) -> BOZOUM-BOSSEMPTELE | D25: =COUNTRY_INFO!M25 -> 97735.57789 | G25: =MAX('MDA1'!M25,'MDA4'!U25) -> 0 | H25: =IF(AND(COUNTRY_INFO!H25>0,COUNTRY_INFO!H25<4),IF(D25>MAX('MDA1'!M25,'MDA4'!U25),MAX('MDA1'!M25,'MDA4'!U25),D25),0) -> 0 | I25: =IF(AND(COUNTRY_INFO!H25>0,COUNTRY_INFO!H25<4), IF(G25/D25*100<>0, IF(G25/D25*100>100,100,G25/D25*100), "-"),0) -> - | J25: =COUNTRY_INFO!N25 -> 97735.57789 | M25: =MAX('MDA1'!M25,MAX('MDA3'!I25,'MDA3'!L25)+MAX('MDA3'!J25,'MDA3'!M25)) -> 33750 | N25: =IF(AND(COUNTRY_INFO!I25>0,COUNTRY_INFO!I25<4),IF(J25>MAX('MDA1'!M25,MAX('MDA3'!I25,'MDA3'!L25)+MAX('MDA3'!J25,'MDA3'!M25)),MAX('MDA1'!M25,MAX('MDA3'!I25,'MDA3'!L25)+MAX('MDA3'!J25,'MDA3'!M25)),J25),0) -> 33750 | O25: =IF(AND(COUNTRY_INFO!I25>0,COUNTRY_INFO!I25<4), IF(M25/J25*100<>0, IF(M25/J25*100>100,100,M25/J25*100), "-"),0) -> 34.53194909 | P25: =COUNTRY_INFO!O25 -> 0 | S25: =SUM(MAX('MDA4'!R25, 'T1'!L25, MAX(T3_R1!K25, T3_R2!K25)), MAX('MDA1'!K25, 'MDA4'!S25, 'T1'!M25, MAX(T3_R1!L25, T3_R2!L25)), MAX('MDA1'!L25, 'MDA4'!T25, 'T1'!N25, MAX(T3_R1!M25, T3_R2!M25))) -> 0 | T25: =IF(AND(COUNTRY_INFO!J25>1,COUNTRY_INFO!J25<4),IF(COUNTRY_INFO!E25>MAX('MDA4'!R25,'T1'!L25,MAX(T3_R1!K25,T3_R2!K25)),MAX('MDA4'!R25,'T1'!L25,MAX(T3_R1!K25,T3_R2!K25)),COUNTRY_INFO!E25),0) -> 0 | U25: =IF(AND(COUNTRY_INFO!J25>1,COUNTRY_INFO!J25<4), IF(T25/COUNTRY_INFO!E25*100<>0, IF(T25/COUNTRY_INFO!E25*100>100,100,T25/COUNTRY_INFO!E25*100), "-"),0) -> 0 | V25: =IF(AND(COUNTRY_INFO!J25>1,COUNTRY_INFO!J25<4),IF(COUNTRY_INFO!F25>MAX('MDA1'!K25,'MDA4'!S25,'T1'!M25,MAX(T3_R1!L25,T3_R2!L25)),MAX('MDA1'!K25,'MDA4'!S25,'T1'!M25,MAX(T3_R1!L25,T3_R2!L25)),COUNTRY_INFO!F25),0) -> 0 | W25: =IF(AND(COUNTRY_INFO!J25>1,COUNTRY_INFO!J25<4), IF(V25/COUNTRY_INFO!F25*100<>0, IF(V25/COUNTRY_INFO!F25*100>100,100,V25/COUNTRY_INFO!F25*100), "-"),0) -> 0 | X25: 0 | Y25: =IF(AND(COUNTRY_INFO!J25>1,COUNTRY_INFO!J25<4), IF(S25/P25*100<>0, IF(X25/P25*100>100,100,X25/P25*100), "-"),0) -> 0 | Z25: =COUNTRY_INFO!P25 -> 0 | AC25: =MAX('T1'!L25,'T2'!J25)+MAX('T1'!M25,'T2'!K25)+MAX('T1'!N25,'T2'!L25) -> 0 | AD25: =IF(COUNTRY_INFO!K25=1,IF(COUNTRY_INFO!F25*0.33>MAX('T1'!M25,'T2'!K25),MAX('T1'!M25,'T2'!K25),COUNTRY_INFO!F25*0.33),IF(COUNTRY_INFO!K25=2,IF(COUNTRY_INFO!F25*0.5>MAX('T1'!M25,'T2'!K25),MAX('T1'!M25,'T2'!K25),COUNTRY_INFO!F25*0.5),IF(COUNTRY_INFO!K25=3,IF(COUNTRY_INFO!F25>MAX('T1'!M25,'T2'!K25),MAX('T1'!M25,'T2'!K25),COUNTRY_INFO!F25),0))) -> 0 | AE25: =IF(AND(COUNTRY_INFO!K25>0,COUNTRY_INFO!K25<4),IF(Z25>0,IF(COUNTRY_INFO!K25=1, AD25/(COUNTRY_INFO!F25*0.33)*100, IF(COUNTRY_INFO!K25=2, AD25/(COUNTRY_INFO!F25*0.5)*100, IF(COUNTRY_INFO!K25=3, AD25/COUNTRY_INFO!F25*100))),"-"),0) -> - | AF25: =IF(COUNTRY_INFO!K25=2,IF(COUNTRY_INFO!G25*0.2>MAX('T1'!N25,'T2'!L25),MAX('T1'!N25,'T2'!L25),COUNTRY_INFO!G25*0.2),IF(COUNTRY_INFO!K25=3,IF(COUNTRY_INFO!G25>MAX('T1'!N25,'T2'!L25),MAX('T1'!N25,'T2'!L25),COUNTRY_INFO!G25),0)) -> 0 | AG25: =IF(AND(COUNTRY_INFO!K25>0,COUNTRY_INFO!K25<4),IF(Z25>0,IF(COUNTRY_INFO!K25=1, 0, IF(COUNTRY_INFO!K25=2, AF25/(COUNTRY_INFO!G25*0.2)*100, IF(COUNTRY_INFO!K25=3, AF25/COUNTRY_INFO!G25*100))),"-"),0) -> - | AH25: 0 | AI25: =IF(AND(COUNTRY_INFO!K25>0,COUNTRY_INFO!K25<4), IF(AC25/Z25*100<>0, IF(AH25/Z25*100>100,100,AH25/Z25*100), "-"),0) ->  | AK25: =IF(AND(D25<>0, D25<>"Inconnu",D25<>"Interrompu",D25<>"Non requis"),D25/COUNTRY_INFO!D25, 0) -> 1 | AL25: =IF(AND(J25<>0,J25<>"Inconnu",J25<>"Interrompu",J25<>"Non requis"),J25/COUNTRY_INFO!D25, 0) -> 1 | AM25: =IF(AND(P25<>0,P25<>"Inconnu",P25<>"Non requis"),P25/(COUNTRY_INFO!E25+COUNTRY_INFO!F25), 0) -> 0 | AN25: =IF(AND(Z25<>0,Z25<>"Inconnu",Z25<>"Non requis"),IF(COUNTRY_INFO!K25=1,1,IF(COUNTRY_INFO!K25=2,0.5*COUNTRY_INFO!F25/(0.5*COUNTRY_INFO!F25+0.2*COUNTRY_INFO!G25),IF(COUNTRY_INFO!K25=3,COUNTRY_INFO!F25/(COUNTRY_INFO!F25+COUNTRY_INFO!G25)))),0) -> 0 | AO25: =IF(AND(Z25<>0,Z25<>"Inconnu",Z25<>"Non requis"),IF(COUNTRY_INFO!K25=1,0,IF(COUNTRY_INFO!K25=2,0.2*COUNTRY_INFO!G25/(0.5*COUNTRY_INFO!F25+0.2*COUNTRY_INFO!G25),IF(COUNTRY_INFO!K25=3,COUNTRY_INFO!G25/(COUNTRY_INFO!F25+COUNTRY_INFO!G25)))),0) -> 0 | AP25: =MAX(COUNTRY_INFO!D25*AK25*PROFILE!$G$7,COUNTRY_INFO!D25*AL25*PROFILE!$G$7) -> 3420.745282 | AQ25: =MAX(COUNTRY_INFO!D25*AK25*PROFILE!$G$8,COUNTRY_INFO!D25*AL25*PROFILE!$G$8,COUNTRY_INFO!D25*AM25*PROFILE!$G$8) -> 13497.2548 | AR25: =MAX(COUNTRY_INFO!D25*AK25*PROFILE!$G$9,COUNTRY_INFO!D25*AL25*PROFILE!$G$9,COUNTRY_INFO!D25*AM25*PROFILE!$G$9,IF(AND(DISTRICT!Z25<>"Inconnu",Z25<>"Non requis"),COUNTRY_INFO!P25*DISTRICT!AN25,0)) -> 22185.99183 | AS25: =MAX(COUNTRY_INFO!D25*AK25*PROFILE!$G$10,COUNTRY_INFO!D25*AL25*PROFILE!$G$10,IF(AND(DISTRICT!Z25<>"Inconnu",Z25<>"Non requis"),COUNTRY_INFO!P25*DISTRICT!AO25,0)) -> 58631.58598 | AT25: 97735.57789 | AU25: 0 | AV25: =MAX('MDA4'!R25,'T1'!L25,'T2'!J25,T3_R1!K25,T3_R2!K25) -> 0 | AW25: =MAX('MDA1'!K25,'MDA4'!S25,'MDA3'!I25,'MDA3'!L25,'T1'!M25,'T2'!K25,T3_R1!L25,T3_R2!L25) -> 7661.25 | AX25: =MAX('MDA1'!L25,'MDA4'!T25,'MDA3'!J25,'MDA3'!M25,'T1'!N25,'T2'!L25,T3_R1!M25,T3_R2!M25) -> 26088.75 | AY25: 33750 | AZ25: =MAX('MDA4'!R25,T25) -> 0 | BA25: =MAX('MDA1'!K25,'MDA4'!S25,'MDA3'!I25,'MDA3'!L25,V25,AD25) -> 7661.25 | BB25: =MAX('MDA1'!L25,'MDA4'!T25,'MDA3'!J25,'MDA3'!M25,AF25) -> 26088.75 | BC25: 33750 | BD25: 34.53194909
A26: =IF(COUNTRY_INFO!A26=0," ",COUNTRY_INFO!A26) -> République Centrafricaine | B26: =IF(COUNTRY_INFO!B26=0," ",COUNTRY_INFO!B26) -> RS N° 3 | C26: =IF(COUNTRY_INFO!C26=0," ",COUNTRY_INFO!C26) -> NGAOUNDAYE | D26: =COUNTRY_INFO!M26 -> 120612.9982 | G26: =MAX('MDA1'!M26,'MDA4'!U26) -> 0 | H26: =IF(AND(COUNTRY_INFO!H26>0,COUNTRY_INFO!H26<4),IF(D26>MAX('MDA1'!M26,'MDA4'!U26),MAX('MDA1'!M26,'MDA4'!U26),D26),0) -> 0 | I26: =IF(AND(COUNTRY_INFO!H26>0,COUNTRY_INFO!H26<4), IF(G26/D26*100<>0, IF(G26/D26*100>100,100,G26/D26*100), "-"),0) -> - | J26: =COUNTRY_INFO!N26 -> 120612.9982 | M26: =MAX('MDA1'!M26,MAX('MDA3'!I26,'MDA3'!L26)+MAX('MDA3'!J26,'MDA3'!M26)) -> 124908 | N26: =IF(AND(COUNTRY_INFO!I26>0,COUNTRY_INFO!I26<4),IF(J26>MAX('MDA1'!M26,MAX('MDA3'!I26,'MDA3'!L26)+MAX('MDA3'!J26,'MDA3'!M26)),MAX('MDA1'!M26,MAX('MDA3'!I26,'MDA3'!L26)+MAX('MDA3'!J26,'MDA3'!M26)),J26),0) -> 120612.9982 | O26: =IF(AND(COUNTRY_INFO!I26>0,COUNTRY_INFO!I26<4), IF(M26/J26*100<>0, IF(M26/J26*100>100,100,M26/J26*100), "-"),0) -> 100 | P26: =COUNTRY_INFO!O26 -> 0 | S26: =SUM(MAX('MDA4'!R26, 'T1'!L26, MAX(T3_R1!K26, T3_R2!K26)), MAX('MDA1'!K26, 'MDA4'!S26, 'T1'!M26, MAX(T3_R1!L26, T3_R2!L26)), MAX('MDA1'!L26, 'MDA4'!T26, 'T1'!N26, MAX(T3_R1!M26, T3_R2!M26))) -> 0 | T26: =IF(AND(COUNTRY_INFO!J26>1,COUNTRY_INFO!J26<4),IF(COUNTRY_INFO!E26>MAX('MDA4'!R26,'T1'!L26,MAX(T3_R1!K26,T3_R2!K26)),MAX('MDA4'!R26,'T1'!L26,MAX(T3_R1!K26,T3_R2!K26)),COUNTRY_INFO!E26),0) -> 0 | U26: =IF(AND(COUNTRY_INFO!J26>1,COUNTRY_INFO!J26<4), IF(T26/COUNTRY_INFO!E26*100<>0, IF(T26/COUNTRY_INFO!E26*100>100,100,T26/COUNTRY_INFO!E26*100), "-"),0) -> 0 | V26: =IF(AND(COUNTRY_INFO!J26>1,COUNTRY_INFO!J26<4),IF(COUNTRY_INFO!F26>MAX('MDA1'!K26,'MDA4'!S26,'T1'!M26,MAX(T3_R1!L26,T3_R2!L26)),MAX('MDA1'!K26,'MDA4'!S26,'T1'!M26,MAX(T3_R1!L26,T3_R2!L26)),COUNTRY_INFO!F26),0) -> 0 | W26: =IF(AND(COUNTRY_INFO!J26>1,COUNTRY_INFO!J26<4), IF(V26/COUNTRY_INFO!F26*100<>0, IF(V26/COUNTRY_INFO!F26*100>100,100,V26/COUNTRY_INFO!F26*100), "-"),0) -> 0 | X26: 0 | Y26: =IF(AND(COUNTRY_INFO!J26>1,COUNTRY_INFO!J26<4), IF(S26/P26*100<>0, IF(X26/P26*100>100,100,X26/P26*100), "-"),0) -> 0 | Z26: =COUNTRY_INFO!P26 -> 0 | AC26: =MAX('T1'!L26,'T2'!J26)+MAX('T1'!M26,'T2'!K26)+MAX('T1'!N26,'T2'!L26) -> 0 | AD26: =IF(COUNTRY_INFO!K26=1,IF(COUNTRY_INFO!F26*0.33>MAX('T1'!M26,'T2'!K26),MAX('T1'!M26,'T2'!K26),COUNTRY_INFO!F26*0.33),IF(COUNTRY_INFO!K26=2,IF(COUNTRY_INFO!F26*0.5>MAX('T1'!M26,'T2'!K26),MAX('T1'!M26,'T2'!K26),COUNTRY_INFO!F26*0.5),IF(COUNTRY_INFO!K26=3,IF(COUNTRY_INFO!F26>MAX('T1'!M26,'T2'!K26),MAX('T1'!M26,'T2'!K26),COUNTRY_INFO!F26),0))) -> 0 | AE26: =IF(AND(COUNTRY_INFO!K26>0,COUNTRY_INFO!K26<4),IF(Z26>0,IF(COUNTRY_INFO!K26=1, AD26/(COUNTRY_INFO!F26*0.33)*100, IF(COUNTRY_INFO!K26=2, AD26/(COUNTRY_INFO!F26*0.5)*100, IF(COUNTRY_INFO!K26=3, AD26/COUNTRY_INFO!F26*100))),"-"),0) -> 0 | AF26: =IF(COUNTRY_INFO!K26=2,IF(COUNTRY_INFO!G26*0.2>MAX('T1'!N26,'T2'!L26),MAX('T1'!N26,'T2'!L26),COUNTRY_INFO!G26*0.2),IF(COUNTRY_INFO!K26=3,IF(COUNTRY_INFO!G26>MAX('T1'!N26,'T2'!L26),MAX('T1'!N26,'T2'!L26),COUNTRY_INFO!G26),0)) -> 0 | AG26: =IF(AND(COUNTRY_INFO!K26>0,COUNTRY_INFO!K26<4),IF(Z26>0,IF(COUNTRY_INFO!K26=1, 0, IF(COUNTRY_INFO!K26=2, AF26/(COUNTRY_INFO!G26*0.2)*100, IF(COUNTRY_INFO!K26=3, AF26/COUNTRY_INFO!G26*100))),"-"),0) -> 0 | AH26: 0 | AI26: =IF(AND(COUNTRY_INFO!K26>0,COUNTRY_INFO!K26<4), IF(AC26/Z26*100<>0, IF(AH26/Z26*100>100,100,AH26/Z26*100), "-"),0) -> 0 | AK26: =IF(AND(D26<>0, D26<>"Inconnu",D26<>"Interrompu",D26<>"Non requis"),D26/COUNTRY_INFO!D26, 0) -> 1 | AL26: =IF(AND(J26<>0,J26<>"Inconnu",J26<>"Interrompu",J26<>"Non requis"),J26/COUNTRY_INFO!D26, 0) -> 1 | AM26: =IF(AND(P26<>0,P26<>"Inconnu",P26<>"Non requis"),P26/(COUNTRY_INFO!E26+COUNTRY_INFO!F26), 0) -> 0 | AN26: =IF(AND(Z26<>0,Z26<>"Inconnu",Z26<>"Non requis"),IF(COUNTRY_INFO!K26=1,1,IF(COUNTRY_INFO!K26=2,0.5*COUNTRY_INFO!F26/(0.5*COUNTRY_INFO!F26+0.2*COUNTRY_INFO!G26),IF(COUNTRY_INFO!K26=3,COUNTRY_INFO!F26/(COUNTRY_INFO!F26+COUNTRY_INFO!G26)))),0) -> 0 | AO26: =IF(AND(Z26<>0,Z26<>"Inconnu",Z26<>"Non requis"),IF(COUNTRY_INFO!K26=1,0,IF(COUNTRY_INFO!K26=2,0.2*COUNTRY_INFO!G26/(0.5*COUNTRY_INFO!F26+0.2*COUNTRY_INFO!G26),IF(COUNTRY_INFO!K26=3,COUNTRY_INFO!G26/(COUNTRY_INFO!F26+COUNTRY_INFO!G26)))),0) -> 0 | AP26: =MAX(COUNTRY_INFO!D26*AK26*PROFILE!$G$7,COUNTRY_INFO!D26*AL26*PROFILE!$G$7) -> 4221.455004 | AQ26: =MAX(COUNTRY_INFO!D26*AK26*PROFILE!$G$8,COUNTRY_INFO!D26*AL26*PROFILE!$G$8,COUNTRY_INFO!D26*AM26*PROFILE!$G$8) -> 16656.61986 | AR26: =MAX(COUNTRY_INFO!D26*AK26*PROFILE!$G$9,COUNTRY_INFO!D26*AL26*PROFILE!$G$9,COUNTRY_INFO!D26*AM26*PROFILE!$G$9,IF(AND(DISTRICT!Z26<>"Inconnu",Z26<>"Non requis"),COUNTRY_INFO!P26*DISTRICT!AN26,0)) -> 27379.16989 | AS26: =MAX(COUNTRY_INFO!D26*AK26*PROFILE!$G$10,COUNTRY_INFO!D26*AL26*PROFILE!$G$10,IF(AND(DISTRICT!Z26<>"Inconnu",Z26<>"Non requis"),COUNTRY_INFO!P26*DISTRICT!AO26,0)) -> 72355.75339 | AT26: 120612.9982 | AU26: 0 | AV26: =MAX('MDA4'!R26,'T1'!L26,'T2'!J26,T3_R1!K26,T3_R2!K26) -> 0 | AW26: =MAX('MDA1'!K26,'MDA4'!S26,'MDA3'!I26,'MDA3'!L26,'T1'!M26,'T2'!K26,T3_R1!L26,T3_R2!L26) -> 28354.116 | AX26: =MAX('MDA1'!L26,'MDA4'!T26,'MDA3'!J26,'MDA3'!M26,'T1'!N26,'T2'!L26,T3_R1!M26,T3_R2!M26) -> 96553.884 | AY26: 124908 | AZ26: =MAX('MDA4'!R26,T26) -> 0 | BA26: =MAX('MDA1'!K26,'MDA4'!S26,'MDA3'!I26,'MDA3'!L26,V26,AD26) -> 28354.116 | BB26: =MAX('MDA1'!L26,'MDA4'!T26,'MDA3'!J26,'MDA3'!M26,AF26) -> 96553.884 | BC26: 120612.9982 | BD26: 100
A27: =IF(COUNTRY_INFO!A27=0," ",COUNTRY_INFO!A27) -> République Centrafricaine | B27: =IF(COUNTRY_INFO!B27=0," ",COUNTRY_INFO!B27) -> RS N° 3 | C27: =IF(COUNTRY_INFO!C27=0," ",COUNTRY_INFO!C27) -> PAOUA | D27: =COUNTRY_INFO!M27 -> 216107.5438 | G27: =MAX('MDA1'!M27,'MDA4'!U27) -> 0 | H27: =IF(AND(COUNTRY_INFO!H27>0,COUNTRY_INFO!H27<4),IF(D27>MAX('MDA1'!M27,'MDA4'!U27),MAX('MDA1'!M27,'MDA4'!U27),D27),0) -> 0 | I27: =IF(AND(COUNTRY_INFO!H27>0,COUNTRY_INFO!H27<4), IF(G27/D27*100<>0, IF(G27/D27*100>100,100,G27/D27*100), "-"),0) -> - | J27: =COUNTRY_INFO!N27 -> 216107.5438 | M27: =MAX('MDA1'!M27,MAX('MDA3'!I27,'MDA3'!L27)+MAX('MDA3'!J27,'MDA3'!M27)) -> 191448 | N27: =IF(AND(COUNTRY_INFO!I27>0,COUNTRY_INFO!I27<4),IF(J27>MAX('MDA1'!M27,MAX('MDA3'!I27,'MDA3'!L27)+MAX('MDA3'!J27,'MDA3'!M27)),MAX('MDA1'!M27,MAX('MDA3'!I27,'MDA3'!L27)+MAX('MDA3'!J27,'MDA3'!M27)),J27),0) -> 191448 | O27: =IF(AND(COUNTRY_INFO!I27>0,COUNTRY_INFO!I27<4), IF(M27/J27*100<>0, IF(M27/J27*100>100,100,M27/J27*100), "-"),0) -> 88.58922582 | P27: =COUNTRY_INFO!O27 -> 0 | S27: =SUM(MAX('MDA4'!R27, 'T1'!L27, MAX(T3_R1!K27, T3_R2!K27)), MAX('MDA1'!K27, 'MDA4'!S27, 'T1'!M27, MAX(T3_R1!L27, T3_R2!L27)), MAX('MDA1'!L27, 'MDA4'!T27, 'T1'!N27, MAX(T3_R1!M27, T3_R2!M27))) -> 0 | T27: =IF(AND(COUNTRY_INFO!J27>1,COUNTRY_INFO!J27<4),IF(COUNTRY_INFO!E27>MAX('MDA4'!R27,'T1'!L27,MAX(T3_R1!K27,T3_R2!K27)),MAX('MDA4'!R27,'T1'!L27,MAX(T3_R1!K27,T3_R2!K27)),COUNTRY_INFO!E27),0) -> 0 | U27: =IF(AND(COUNTRY_INFO!J27>1,COUNTRY_INFO!J27<4), IF(T27/COUNTRY_INFO!E27*100<>0, IF(T27/COUNTRY_INFO!E27*100>100,100,T27/COUNTRY_INFO!E27*100), "-"),0) -> 0 | V27: =IF(AND(COUNTRY_INFO!J27>1,COUNTRY_INFO!J27<4),IF(COUNTRY_INFO!F27>MAX('MDA1'!K27,'MDA4'!S27,'T1'!M27,MAX(T3_R1!L27,T3_R2!L27)),MAX('MDA1'!K27,'MDA4'!S27,'T1'!M27,MAX(T3_R1!L27,T3_R2!L27)),COUNTRY_INFO!F27),0) -> 0 | W27: =IF(AND(COUNTRY_INFO!J27>1,COUNTRY_INFO!J27<4), IF(V27/COUNTRY_INFO!F27*100<>0, IF(V27/COUNTRY_INFO!F27*100>100,100,V27/COUNTRY_INFO!F27*100), "-"),0) -> 0 | X27: 0 | Y27: =IF(AND(COUNTRY_INFO!J27>1,COUNTRY_INFO!J27<4), IF(S27/P27*100<>0, IF(X27/P27*100>100,100,X27/P27*100), "-"),0) -> 0 | Z27: =COUNTRY_INFO!P27 -> 0 | AC27: =MAX('T1'!L27,'T2'!J27)+MAX('T1'!M27,'T2'!K27)+MAX('T1'!N27,'T2'!L27) -> 0 | AD27: =IF(COUNTRY_INFO!K27=1,IF(COUNTRY_INFO!F27*0.33>MAX('T1'!M27,'T2'!K27),MAX('T1'!M27,'T2'!K27),COUNTRY_INFO!F27*0.33),IF(COUNTRY_INFO!K27=2,IF(COUNTRY_INFO!F27*0.5>MAX('T1'!M27,'T2'!K27),MAX('T1'!M27,'T2'!K27),COUNTRY_INFO!F27*0.5),IF(COUNTRY_INFO!K27=3,IF(COUNTRY_INFO!F27>MAX('T1'!M27,'T2'!K27),MAX('T1'!M27,'T2'!K27),COUNTRY_INFO!F27),0))) -> 0 | AE27: =IF(AND(COUNTRY_INFO!K27>0,COUNTRY_INFO!K27<4),IF(Z27>0,IF(COUNTRY_INFO!K27=1, AD27/(COUNTRY_INFO!F27*0.33)*100, IF(COUNTRY_INFO!K27=2, AD27/(COUNTRY_INFO!F27*0.5)*100, IF(COUNTRY_INFO!K27=3, AD27/COUNTRY_INFO!F27*100))),"-"),0) -> - | AF27: =IF(COUNTRY_INFO!K27=2,IF(COUNTRY_INFO!G27*0.2>MAX('T1'!N27,'T2'!L27),MAX('T1'!N27,'T2'!L27),COUNTRY_INFO!G27*0.2),IF(COUNTRY_INFO!K27=3,IF(COUNTRY_INFO!G27>MAX('T1'!N27,'T2'!L27),MAX('T1'!N27,'T2'!L27),COUNTRY_INFO!G27),0)) -> 0 | AG27: =IF(AND(COUNTRY_INFO!K27>0,COUNTRY_INFO!K27<4),IF(Z27>0,IF(COUNTRY_INFO!K27=1, 0, IF(COUNTRY_INFO!K27=2, AF27/(COUNTRY_INFO!G27*0.2)*100, IF(COUNTRY_INFO!K27=3, AF27/COUNTRY_INFO!G27*100))),"-"),0) -> - | AH27: 0 | AI27: =IF(AND(COUNTRY_INFO!K27>0,COUNTRY_INFO!K27<4), IF(AC27/Z27*100<>0, IF(AH27/Z27*100>100,100,AH27/Z27*100), "-"),0) ->  | AK27: =IF(AND(D27<>0, D27<>"Inconnu",D27<>"Interrompu",D27<>"Non requis"),D27/COUNTRY_INFO!D27, 0) -> 1 | AL27: =IF(AND(J27<>0,J27<>"Inconnu",J27<>"Interrompu",J27<>"Non requis"),J27/COUNTRY_INFO!D27, 0) -> 1 | AM27: =IF(AND(P27<>0,P27<>"Inconnu",P27<>"Non requis"),P27/(COUNTRY_INFO!E27+COUNTRY_INFO!F27), 0) -> 0 | AN27: =IF(AND(Z27<>0,Z27<>"Inconnu",Z27<>"Non requis"),IF(COUNTRY_INFO!K27=1,1,IF(COUNTRY_INFO!K27=2,0.5*COUNTRY_INFO!F27/(0.5*COUNTRY_INFO!F27+0.2*COUNTRY_INFO!G27),IF(COUNTRY_INFO!K27=3,COUNTRY_INFO!F27/(COUNTRY_INFO!F27+COUNTRY_INFO!G27)))),0) -> 0 | AO27: =IF(AND(Z27<>0,Z27<>"Inconnu",Z27<>"Non requis"),IF(COUNTRY_INFO!K27=1,0,IF(COUNTRY_INFO!K27=2,0.2*COUNTRY_INFO!G27/(0.5*COUNTRY_INFO!F27+0.2*COUNTRY_INFO!G27),IF(COUNTRY_INFO!K27=3,COUNTRY_INFO!G27/(COUNTRY_INFO!F27+COUNTRY_INFO!G27)))),0) -> 0 | AP27: =MAX(COUNTRY_INFO!D27*AK27*PROFILE!$G$7,COUNTRY_INFO!D27*AL27*PROFILE!$G$7) -> 7563.764157 | AQ27: =MAX(COUNTRY_INFO!D27*AK27*PROFILE!$G$8,COUNTRY_INFO!D27*AL27*PROFILE!$G$8,COUNTRY_INFO!D27*AM27*PROFILE!$G$8) -> 29844.38876 | AR27: =MAX(COUNTRY_INFO!D27*AK27*PROFILE!$G$9,COUNTRY_INFO!D27*AL27*PROFILE!$G$9,COUNTRY_INFO!D27*AM27*PROFILE!$G$9,IF(AND(DISTRICT!Z27<>"Inconnu",Z27<>"Non requis"),COUNTRY_INFO!P27*DISTRICT!AN27,0)) -> 49056.44705 | AS27: =MAX(COUNTRY_INFO!D27*AK27*PROFILE!$G$10,COUNTRY_INFO!D27*AL27*PROFILE!$G$10,IF(AND(DISTRICT!Z27<>"Inconnu",Z27<>"Non requis"),COUNTRY_INFO!P27*DISTRICT!AO27,0)) -> 129642.9438 | AT27: 216107.5438 | AU27: 0 | AV27: =MAX('MDA4'!R27,'T1'!L27,'T2'!J27,T3_R1!K27,T3_R2!K27) -> 0 | AW27: =MAX('MDA1'!K27,'MDA4'!S27,'MDA3'!I27,'MDA3'!L27,'T1'!M27,'T2'!K27,T3_R1!L27,T3_R2!L27) -> 43458.696 | AX27: =MAX('MDA1'!L27,'MDA4'!T27,'MDA3'!J27,'MDA3'!M27,'T1'!N27,'T2'!L27,T3_R1!M27,T3_R2!M27) -> 147989.304 | AY27: 191448 | AZ27: =MAX('MDA4'!R27,T27) -> 0 | BA27: =MAX('MDA1'!K27,'MDA4'!S27,'MDA3'!I27,'MDA3'!L27,V27,AD27) -> 43458.696 | BB27: =MAX('MDA1'!L27,'MDA4'!T27,'MDA3'!J27,'MDA3'!M27,AF27) -> 147989.304 | BC27: 191448 | BD27: 88.58922582
A28: =IF(COUNTRY_INFO!A28=0," ",COUNTRY_INFO!A28) -> République Centrafricaine | B28: =IF(COUNTRY_INFO!B28=0," ",COUNTRY_INFO!B28) -> RS N° 4 | C28: =IF(COUNTRY_INFO!C28=0," ",COUNTRY_INFO!C28) -> KEMO | D28: =COUNTRY_INFO!M28 -> 160489.7018 | G28: =MAX('MDA1'!M28,'MDA4'!U28) -> 151004 | H28: =IF(AND(COUNTRY_INFO!H28>0,COUNTRY_INFO!H28<4),IF(D28>MAX('MDA1'!M28,'MDA4'!U28),MAX('MDA1'!M28,'MDA4'!U28),D28),0) -> 151004 | I28: =IF(AND(COUNTRY_INFO!H28>0,COUNTRY_INFO!H28<4), IF(G28/D28*100<>0, IF(G28/D28*100>100,100,G28/D28*100), "-"),0) -> 94.08952619 | J28: =COUNTRY_INFO!N28 -> 160489.7018 | M28: =MAX('MDA1'!M28,MAX('MDA3'!I28,'MDA3'!L28)+MAX('MDA3'!J28,'MDA3'!M28)) -> 151004 | N28: =IF(AND(COUNTRY_INFO!I28>0,COUNTRY_INFO!I28<4),IF(J28>MAX('MDA1'!M28,MAX('MDA3'!I28,'MDA3'!L28)+MAX('MDA3'!J28,'MDA3'!M28)),MAX('MDA1'!M28,MAX('MDA3'!I28,'MDA3'!L28)+MAX('MDA3'!J28,'MDA3'!M28)),J28),0) -> 151004 | O28: =IF(AND(COUNTRY_INFO!I28>0,COUNTRY_INFO!I28<4), IF(M28/J28*100<>0, IF(M28/J28*100>100,100,M28/J28*100), "-"),0) -> 94.08952619 | P28: =COUNTRY_INFO!O28 -> 58595 | S28: =SUM(MAX('MDA4'!R28, 'T1'!L28, MAX(T3_R1!K28, T3_R2!K28)), MAX('MDA1'!K28, 'MDA4'!S28, 'T1'!M28, MAX(T3_R1!L28, T3_R2!L28)), MAX('MDA1'!L28, 'MDA4'!T28, 'T1'!N28, MAX(T3_R1!M28, T3_R2!M28))) -> 151004 | T28: =IF(AND(COUNTRY_INFO!J28>1,COUNTRY_INFO!J28<4),IF(COUNTRY_INFO!E28>MAX('MDA4'!R28,'T1'!L28,MAX(T3_R1!K28,T3_R2!K28)),MAX('MDA4'!R28,'T1'!L28,MAX(T3_R1!K28,T3_R2!K28)),COUNTRY_INFO!E28),0) -> 0 | U28: =IF(AND(COUNTRY_INFO!J28>1,COUNTRY_INFO!J28<4), IF(T28/COUNTRY_INFO!E28*100<>0, IF(T28/COUNTRY_INFO!E28*100>100,100,T28/COUNTRY_INFO!E28*100), "-"),0) -> - | V28: =IF(AND(COUNTRY_INFO!J28>1,COUNTRY_INFO!J28<4),IF(COUNTRY_INFO!F28>MAX('MDA1'!K28,'MDA4'!S28,'T1'!M28,MAX(T3_R1!L28,T3_R2!L28)),MAX('MDA1'!K28,'MDA4'!S28,'T1'!M28,MAX(T3_R1!L28,T3_R2!L28)),COUNTRY_INFO!F28),0) -> 36431 | W28: =IF(AND(COUNTRY_INFO!J28>1,COUNTRY_INFO!J28<4), IF(V28/COUNTRY_INFO!F28*100<>0, IF(V28/COUNTRY_INFO!F28*100>100,100,V28/COUNTRY_INFO!F28*100), "-"),0) -> 100 | X28: 36431 | Y28: =IF(AND(COUNTRY_INFO!J28>1,COUNTRY_INFO!J28<4), IF(S28/P28*100<>0, IF(X28/P28*100>100,100,X28/P28*100), "-"),0) -> 62.17424695 | Z28: =COUNTRY_INFO!P28 -> 36431.16231 | AC28: =MAX('T1'!L28,'T2'!J28)+MAX('T1'!M28,'T2'!K28)+MAX('T1'!N28,'T2'!L28) -> 55876 | AD28: =IF(COUNTRY_INFO!K28=1,IF(COUNTRY_INFO!F28*0.33>MAX('T1'!M28,'T2'!K28),MAX('T1'!M28,'T2'!K28),COUNTRY_INFO!F28*0.33),IF(COUNTRY_INFO!K28=2,IF(COUNTRY_INFO!F28*0.5>MAX('T1'!M28,'T2'!K28),MAX('T1'!M28,'T2'!K28),COUNTRY_INFO!F28*0.5),IF(COUNTRY_INFO!K28=3,IF(COUNTRY_INFO!F28>MAX('T1'!M28,'T2'!K28),MAX('T1'!M28,'T2'!K28),COUNTRY_INFO!F28),0))) -> 18215.5 | AE28: =IF(AND(COUNTRY_INFO!K28>0,COUNTRY_INFO!K28<4),IF(Z28>0,IF(COUNTRY_INFO!K28=1, AD28/(COUNTRY_INFO!F28*0.33)*100, IF(COUNTRY_INFO!K28=2, AD28/(COUNTRY_INFO!F28*0.5)*100, IF(COUNTRY_INFO!K28=3, AD28/COUNTRY_INFO!F28*100))),"-"),0) -> 100 | AF28: =IF(COUNTRY_INFO!K28=2,IF(COUNTRY_INFO!G28*0.2>MAX('T1'!N28,'T2'!L28),MAX('T1'!N28,'T2'!L28),COUNTRY_INFO!G28*0.2),IF(COUNTRY_INFO!K28=3,IF(COUNTRY_INFO!G28>MAX('T1'!N28,'T2'!L28),MAX('T1'!N28,'T2'!L28),COUNTRY_INFO!G28),0)) -> 0 | AG28: =IF(AND(COUNTRY_INFO!K28>0,COUNTRY_INFO!K28<4),IF(Z28>0,IF(COUNTRY_INFO!K28=1, 0, IF(COUNTRY_INFO!K28=2, AF28/(COUNTRY_INFO!G28*0.2)*100, IF(COUNTRY_INFO!K28=3, AF28/COUNTRY_INFO!G28*100))),"-"),0) -> 0 | AH28: 18215.5 | AI28: =IF(AND(COUNTRY_INFO!K28>0,COUNTRY_INFO!K28<4), IF(AC28/Z28*100<>0, IF(AH28/Z28*100>100,100,AH28/Z28*100), "-"),0) -> 49.99977724 | AK28: =IF(AND(D28<>0, D28<>"Inconnu",D28<>"Interrompu",D28<>"Non requis"),D28/COUNTRY_INFO!D28, 0) -> 1 | AL28: =IF(AND(J28<>0,J28<>"Inconnu",J28<>"Interrompu",J28<>"Non requis"),J28/COUNTRY_INFO!D28, 0) -> 1 | AM28: =IF(AND(P28<>0,P28<>"Inconnu",P28<>"Non requis"),P28/(COUNTRY_INFO!E28+COUNTRY_INFO!F28), 0) -> 1 | AN28: =IF(AND(Z28<>0,Z28<>"Inconnu",Z28<>"Non requis"),IF(COUNTRY_INFO!K28=1,1,IF(COUNTRY_INFO!K28=2,0.5*COUNTRY_INFO!F28/(0.5*COUNTRY_INFO!F28+0.2*COUNTRY_INFO!G28),IF(COUNTRY_INFO!K28=3,COUNTRY_INFO!F28/(COUNTRY_INFO!F28+COUNTRY_INFO!G28)))),0) -> 0.4861213042 | AO28: =IF(AND(Z28<>0,Z28<>"Inconnu",Z28<>"Non requis"),IF(COUNTRY_INFO!K28=1,0,IF(COUNTRY_INFO!K28=2,0.2*COUNTRY_INFO!G28/(0.5*COUNTRY_INFO!F28+0.2*COUNTRY_INFO!G28),IF(COUNTRY_INFO!K28=3,COUNTRY_INFO!G28/(COUNTRY_INFO!F28+COUNTRY_INFO!G28)))),0) -> 0.5138786958 | AP28: =MAX(COUNTRY_INFO!D28*AK28*PROFILE!$G$7,COUNTRY_INFO!D28*AL28*PROFILE!$G$7) -> 5617.139655 | AQ28: =MAX(COUNTRY_INFO!D28*AK28*PROFILE!$G$8,COUNTRY_INFO!D28*AL28*PROFILE!$G$8,COUNTRY_INFO!D28*AM28*PROFILE!$G$8) -> 22163.581 | AR28: =MAX(COUNTRY_INFO!D28*AK28*PROFILE!$G$9,COUNTRY_INFO!D28*AL28*PROFILE!$G$9,COUNTRY_INFO!D28*AM28*PROFILE!$G$9,IF(AND(DISTRICT!Z28<>"Inconnu",Z28<>"Non requis"),COUNTRY_INFO!P28*DISTRICT!AN28,0)) -> 36431.188 | AS28: =MAX(COUNTRY_INFO!D28*AK28*PROFILE!$G$10,COUNTRY_INFO!D28*AL28*PROFILE!$G$10,IF(AND(DISTRICT!Z28<>"Inconnu",Z28<>"Non requis"),COUNTRY_INFO!P28*DISTRICT!AO28,0)) -> 96277.79314 | AT28: 160489.7018 | AU28: Y | AV28: =MAX('MDA4'!R28,'T1'!L28,'T2'!J28,T3_R1!K28,T3_R2!K28) -> 0 | AW28: =MAX('MDA1'!K28,'MDA4'!S28,'MDA3'!I28,'MDA3'!L28,'T1'!M28,'T2'!K28,T3_R1!L28,T3_R2!L28) -> 55876 | AX28: =MAX('MDA1'!L28,'MDA4'!T28,'MDA3'!J28,'MDA3'!M28,'T1'!N28,'T2'!L28,T3_R1!M28,T3_R2!M28) -> 95128 | AY28: 151004 | AZ28: =MAX('MDA4'!R28,T28) -> 0 | BA28: =MAX('MDA1'!K28,'MDA4'!S28,'MDA3'!I28,'MDA3'!L28,V28,AD28) -> 55876 | BB28: =MAX('MDA1'!L28,'MDA4'!T28,'MDA3'!J28,'MDA3'!M28,AF28) -> 95128 | BC28: 151004 | BD28: 94.08952619
A29: =IF(COUNTRY_INFO!A29=0," ",COUNTRY_INFO!A29) -> République Centrafricaine | B29: =IF(COUNTRY_INFO!B29=0," ",COUNTRY_INFO!B29) -> RS N° 4 | C29: =IF(COUNTRY_INFO!C29=0," ",COUNTRY_INFO!C29) -> NANA-GRIBIZI | D29: =COUNTRY_INFO!M29 -> 159670.6292 | G29: =MAX('MDA1'!M29,'MDA4'!U29) -> 0 | H29: =IF(AND(COUNTRY_INFO!H29>0,COUNTRY_INFO!H29<4),IF(D29>MAX('MDA1'!M29,'MDA4'!U29),MAX('MDA1'!M29,'MDA4'!U29),D29),0) -> 0 | I29: =IF(AND(COUNTRY_INFO!H29>0,COUNTRY_INFO!H29<4), IF(G29/D29*100<>0, IF(G29/D29*100>100,100,G29/D29*100), "-"),0) -> - | J29: =COUNTRY_INFO!N29 -> 159670.6292 | M29: =MAX('MDA1'!M29,MAX('MDA3'!I29,'MDA3'!L29)+MAX('MDA3'!J29,'MDA3'!M29)) -> 61833 | N29: =IF(AND(COUNTRY_INFO!I29>0,COUNTRY_INFO!I29<4),IF(J29>MAX('MDA1'!M29,MAX('MDA3'!I29,'MDA3'!L29)+MAX('MDA3'!J29,'MDA3'!M29)),MAX('MDA1'!M29,MAX('MDA3'!I29,'MDA3'!L29)+MAX('MDA3'!J29,'MDA3'!M29)),J29),0) -> 61833 | O29: =IF(AND(COUNTRY_INFO!I29>0,COUNTRY_INFO!I29<4), IF(M29/J29*100<>0, IF(M29/J29*100>100,100,M29/J29*100), "-"),0) -> 38.72534374 | P29: =COUNTRY_INFO!O29 -> 58296 | S29: =SUM(MAX('MDA4'!R29, 'T1'!L29, MAX(T3_R1!K29, T3_R2!K29)), MAX('MDA1'!K29, 'MDA4'!S29, 'T1'!M29, MAX(T3_R1!L29, T3_R2!L29)), MAX('MDA1'!L29, 'MDA4'!T29, 'T1'!N29, MAX(T3_R1!M29, T3_R2!M29))) -> 0 | T29: =IF(AND(COUNTRY_INFO!J29>1,COUNTRY_INFO!J29<4),IF(COUNTRY_INFO!E29>MAX('MDA4'!R29,'T1'!L29,MAX(T3_R1!K29,T3_R2!K29)),MAX('MDA4'!R29,'T1'!L29,MAX(T3_R1!K29,T3_R2!K29)),COUNTRY_INFO!E29),0) -> 0 | U29: =IF(AND(COUNTRY_INFO!J29>1,COUNTRY_INFO!J29<4), IF(T29/COUNTRY_INFO!E29*100<>0, IF(T29/COUNTRY_INFO!E29*100>100,100,T29/COUNTRY_INFO!E29*100), "-"),0) -> - | V29: =IF(AND(COUNTRY_INFO!J29>1,COUNTRY_INFO!J29<4),IF(COUNTRY_INFO!F29>MAX('MDA1'!K29,'MDA4'!S29,'T1'!M29,MAX(T3_R1!L29,T3_R2!L29)),MAX('MDA1'!K29,'MDA4'!S29,'T1'!M29,MAX(T3_R1!L29,T3_R2!L29)),COUNTRY_INFO!F29),0) -> 0 | W29: =IF(AND(COUNTRY_INFO!J29>1,COUNTRY_INFO!J29<4), IF(V29/COUNTRY_INFO!F29*100<>0, IF(V29/COUNTRY_INFO!F29*100>100,100,V29/COUNTRY_INFO!F29*100), "-"),0) -> - | X29: 0 | Y29: =IF(AND(COUNTRY_INFO!J29>1,COUNTRY_INFO!J29<4), IF(S29/P29*100<>0, IF(X29/P29*100>100,100,X29/P29*100), "-"),0) -> - | Z29: =COUNTRY_INFO!P29 -> 0 | AC29: =MAX('T1'!L29,'T2'!J29)+MAX('T1'!M29,'T2'!K29)+MAX('T1'!N29,'T2'!L29) -> 0 | AD29: =IF(COUNTRY_INFO!K29=1,IF(COUNTRY_INFO!F29*0.33>MAX('T1'!M29,'T2'!K29),MAX('T1'!M29,'T2'!K29),COUNTRY_INFO!F29*0.33),IF(COUNTRY_INFO!K29=2,IF(COUNTRY_INFO!F29*0.5>MAX('T1'!M29,'T2'!K29),MAX('T1'!M29,'T2'!K29),COUNTRY_INFO!F29*0.5),IF(COUNTRY_INFO!K29=3,IF(COUNTRY_INFO!F29>MAX('T1'!M29,'T2'!K29),MAX('T1'!M29,'T2'!K29),COUNTRY_INFO!F29),0))) -> 0 | AE29: =IF(AND(COUNTRY_INFO!K29>0,COUNTRY_INFO!K29<4),IF(Z29>0,IF(COUNTRY_INFO!K29=1, AD29/(COUNTRY_INFO!F29*0.33)*100, IF(COUNTRY_INFO!K29=2, AD29/(COUNTRY_INFO!F29*0.5)*100, IF(COUNTRY_INFO!K29=3, AD29/COUNTRY_INFO!F29*100))),"-"),0) -> - | AF29: =IF(COUNTRY_INFO!K29=2,IF(COUNTRY_INFO!G29*0.2>MAX('T1'!N29,'T2'!L29),MAX('T1'!N29,'T2'!L29),COUNTRY_INFO!G29*0.2),IF(COUNTRY_INFO!K29=3,IF(COUNTRY_INFO!G29>MAX('T1'!N29,'T2'!L29),MAX('T1'!N29,'T2'!L29),COUNTRY_INFO!G29),0)) -> 0 | AG29: =IF(AND(COUNTRY_INFO!K29>0,COUNTRY_INFO!K29<4),IF(Z29>0,IF(COUNTRY_INFO!K29=1, 0, IF(COUNTRY_INFO!K29=2, AF29/(COUNTRY_INFO!G29*0.2)*100, IF(COUNTRY_INFO!K29=3, AF29/COUNTRY_INFO!G29*100))),"-"),0) -> - | AH29: 0 | AI29: =IF(AND(COUNTRY_INFO!K29>0,COUNTRY_INFO!K29<4), IF(AC29/Z29*100<>0, IF(AH29/Z29*100>100,100,AH29/Z29*100), "-"),0) ->  | AK29: =IF(AND(D29<>0, D29<>"Inconnu",D29<>"Interrompu",D29<>"Non requis"),D29/COUNTRY_INFO!D29, 0) -> 1 | AL29: =IF(AND(J29<>0,J29<>"Inconnu",J29<>"Interrompu",J29<>"Non requis"),J29/COUNTRY_INFO!D29, 0) -> 1 | AM29: =IF(AND(P29<>0,P29<>"Inconnu",P29<>"Non requis"),P29/(COUNTRY_INFO!E29+COUNTRY_INFO!F29), 0) -> 1 | AN29: =IF(AND(Z29<>0,Z29<>"Inconnu",Z29<>"Non requis"),IF(COUNTRY_INFO!K29=1,1,IF(COUNTRY_INFO!K29=2,0.5*COUNTRY_INFO!F29/(0.5*COUNTRY_INFO!F29+0.2*COUNTRY_INFO!G29),IF(COUNTRY_INFO!K29=3,COUNTRY_INFO!F29/(COUNTRY_INFO!F29+COUNTRY_INFO!G29)))),0) -> 0 | AO29: =IF(AND(Z29<>0,Z29<>"Inconnu",Z29<>"Non requis"),IF(COUNTRY_INFO!K29=1,0,IF(COUNTRY_INFO!K29=2,0.2*COUNTRY_INFO!G29/(0.5*COUNTRY_INFO!F29+0.2*COUNTRY_INFO!G29),IF(COUNTRY_INFO!K29=3,COUNTRY_INFO!G29/(COUNTRY_INFO!F29+COUNTRY_INFO!G29)))),0) -> 0 | AP29: =MAX(COUNTRY_INFO!D29*AK29*PROFILE!$G$7,COUNTRY_INFO!D29*AL29*PROFILE!$G$7) -> 5588.472113 | AQ29: =MAX(COUNTRY_INFO!D29*AK29*PROFILE!$G$8,COUNTRY_INFO!D29*AL29*PROFILE!$G$8,COUNTRY_INFO!D29*AM29*PROFILE!$G$8) -> 22050.46731 | AR29: =MAX(COUNTRY_INFO!D29*AK29*PROFILE!$G$9,COUNTRY_INFO!D29*AL29*PROFILE!$G$9,COUNTRY_INFO!D29*AM29*PROFILE!$G$9,IF(AND(DISTRICT!Z29<>"Inconnu",Z29<>"Non requis"),COUNTRY_INFO!P29*DISTRICT!AN29,0)) -> 36245.25839 | AS29: =MAX(COUNTRY_INFO!D29*AK29*PROFILE!$G$10,COUNTRY_INFO!D29*AL29*PROFILE!$G$10,IF(AND(DISTRICT!Z29<>"Inconnu",Z29<>"Non requis"),COUNTRY_INFO!P29*DISTRICT!AO29,0)) -> 95786.43137 | AT29: 159670.6292 | AU29: 0 | AV29: =MAX('MDA4'!R29,'T1'!L29,'T2'!J29,T3_R1!K29,T3_R2!K29) -> 0 | AW29: =MAX('MDA1'!K29,'MDA4'!S29,'MDA3'!I29,'MDA3'!L29,'T1'!M29,'T2'!K29,T3_R1!L29,T3_R2!L29) -> 14036.091 | AX29: =MAX('MDA1'!L29,'MDA4'!T29,'MDA3'!J29,'MDA3'!M29,'T1'!N29,'T2'!L29,T3_R1!M29,T3_R2!M29) -> 47796.909 | AY29: 61833 | AZ29: =MAX('MDA4'!R29,T29) -> 0 | BA29: =MAX('MDA1'!K29,'MDA4'!S29,'MDA3'!I29,'MDA3'!L29,V29,AD29) -> 14036.091 | BB29: =MAX('MDA1'!L29,'MDA4'!T29,'MDA3'!J29,'MDA3'!M29,AF29) -> 47796.909 | BC29: 61833 | BD29: 38.72534374
A30: =IF(COUNTRY_INFO!A30=0," ",COUNTRY_INFO!A30) -> République Centrafricaine | B30: =IF(COUNTRY_INFO!B30=0," ",COUNTRY_INFO!B30) -> RS N° 4 | C30: =IF(COUNTRY_INFO!C30=0," ",COUNTRY_INFO!C30) -> BAMBARI | D30: =COUNTRY_INFO!M30 -> 226269.8526 | G30: =MAX('MDA1'!M30,'MDA4'!U30) -> 154970 | H30: =IF(AND(COUNTRY_INFO!H30>0,COUNTRY_INFO!H30<4),IF(D30>MAX('MDA1'!M30,'MDA4'!U30),MAX('MDA1'!M30,'MDA4'!U30),D30),0) -> 154970 | I30: =IF(AND(COUNTRY_INFO!H30>0,COUNTRY_INFO!H30<4), IF(G30/D30*100<>0, IF(G30/D30*100>100,100,G30/D30*100), "-"),0) -> 68.48901796 | J30: =COUNTRY_INFO!N30 -> 226269.8526 | M30: =MAX('MDA1'!M30,MAX('MDA3'!I30,'MDA3'!L30)+MAX('MDA3'!J30,'MDA3'!M30)) -> 154970 | N30: =IF(AND(COUNTRY_INFO!I30>0,COUNTRY_INFO!I30<4),IF(J30>MAX('MDA1'!M30,MAX('MDA3'!I30,'MDA3'!L30)+MAX('MDA3'!J30,'MDA3'!M30)),MAX('MDA1'!M30,MAX('MDA3'!I30,'MDA3'!L30)+MAX('MDA3'!J30,'MDA3'!M30)),J30),0) -> 154970 | O30: =IF(AND(COUNTRY_INFO!I30>0,COUNTRY_INFO!I30<4), IF(M30/J30*100<>0, IF(M30/J30*100>100,100,M30/J30*100), "-"),0) -> 68.48901796 | P30: =COUNTRY_INFO!O30 -> 82611 | S30: =SUM(MAX('MDA4'!R30, 'T1'!L30, MAX(T3_R1!K30, T3_R2!K30)), MAX('MDA1'!K30, 'MDA4'!S30, 'T1'!M30, MAX(T3_R1!L30, T3_R2!L30)), MAX('MDA1'!L30, 'MDA4'!T30, 'T1'!N30, MAX(T3_R1!M30, T3_R2!M30))) -> 154970 | T30: =IF(AND(COUNTRY_INFO!J30>1,COUNTRY_INFO!J30<4),IF(COUNTRY_INFO!E30>MAX('MDA4'!R30,'T1'!L30,MAX(T3_R1!K30,T3_R2!K30)),MAX('MDA4'!R30,'T1'!L30,MAX(T3_R1!K30,T3_R2!K30)),COUNTRY_INFO!E30),0) -> 0 | U30: =IF(AND(COUNTRY_INFO!J30>1,COUNTRY_INFO!J30<4), IF(T30/COUNTRY_INFO!E30*100<>0, IF(T30/COUNTRY_INFO!E30*100>100,100,T30/COUNTRY_INFO!E30*100), "-"),0) -> - | V30: =IF(AND(COUNTRY_INFO!J30>1,COUNTRY_INFO!J30<4),IF(COUNTRY_INFO!F30>MAX('MDA1'!K30,'MDA4'!S30,'T1'!M30,MAX(T3_R1!L30,T3_R2!L30)),MAX('MDA1'!K30,'MDA4'!S30,'T1'!M30,MAX(T3_R1!L30,T3_R2!L30)),COUNTRY_INFO!F30),0) -> 51363 | W30: =IF(AND(COUNTRY_INFO!J30>1,COUNTRY_INFO!J30<4), IF(V30/COUNTRY_INFO!F30*100<>0, IF(V30/COUNTRY_INFO!F30*100>100,100,V30/COUNTRY_INFO!F30*100), "-"),0) -> 100 | X30: 51363 | Y30: =IF(AND(COUNTRY_INFO!J30>1,COUNTRY_INFO!J30<4), IF(S30/P30*100<>0, IF(X30/P30*100>100,100,X30/P30*100), "-"),0) -> 62.17452882 | Z30: =COUNTRY_INFO!P30 -> 51363.25654 | AC30: =MAX('T1'!L30,'T2'!J30)+MAX('T1'!M30,'T2'!K30)+MAX('T1'!N30,'T2'!L30) -> 64969 | AD30: =IF(COUNTRY_INFO!K30=1,IF(COUNTRY_INFO!F30*0.33>MAX('T1'!M30,'T2'!K30),MAX('T1'!M30,'T2'!K30),COUNTRY_INFO!F30*0.33),IF(COUNTRY_INFO!K30=2,IF(COUNTRY_INFO!F30*0.5>MAX('T1'!M30,'T2'!K30),MAX('T1'!M30,'T2'!K30),COUNTRY_INFO!F30*0.5),IF(COUNTRY_INFO!K30=3,IF(COUNTRY_INFO!F30>MAX('T1'!M30,'T2'!K30),MAX('T1'!M30,'T2'!K30),COUNTRY_INFO!F30),0))) -> 25681.5 | AE30: =IF(AND(COUNTRY_INFO!K30>0,COUNTRY_INFO!K30<4),IF(Z30>0,IF(COUNTRY_INFO!K30=1, AD30/(COUNTRY_INFO!F30*0.33)*100, IF(COUNTRY_INFO!K30=2, AD30/(COUNTRY_INFO!F30*0.5)*100, IF(COUNTRY_INFO!K30=3, AD30/COUNTRY_INFO!F30*100))),"-"),0) -> 100 | AF30: =IF(COUNTRY_INFO!K30=2,IF(COUNTRY_INFO!G30*0.2>MAX('T1'!N30,'T2'!L30),MAX('T1'!N30,'T2'!L30),COUNTRY_INFO!G30*0.2),IF(COUNTRY_INFO!K30=3,IF(COUNTRY_INFO!G30>MAX('T1'!N30,'T2'!L30),MAX('T1'!N30,'T2'!L30),COUNTRY_INFO!G30),0)) -> 0 | AG30: =IF(AND(COUNTRY_INFO!K30>0,COUNTRY_INFO!K30<4),IF(Z30>0,IF(COUNTRY_INFO!K30=1, 0, IF(COUNTRY_INFO!K30=2, AF30/(COUNTRY_INFO!G30*0.2)*100, IF(COUNTRY_INFO!K30=3, AF30/COUNTRY_INFO!G30*100))),"-"),0) -> 0 | AH30: 25681.5 | AI30: =IF(AND(COUNTRY_INFO!K30>0,COUNTRY_INFO!K30<4), IF(AC30/Z30*100<>0, IF(AH30/Z30*100>100,100,AH30/Z30*100), "-"),0) -> 49.99975027 | AK30: =IF(AND(D30<>0, D30<>"Inconnu",D30<>"Interrompu",D30<>"Non requis"),D30/COUNTRY_INFO!D30, 0) -> 1 | AL30: =IF(AND(J30<>0,J30<>"Inconnu",J30<>"Interrompu",J30<>"Non requis"),J30/COUNTRY_INFO!D30, 0) -> 1 | AM30: =IF(AND(P30<>0,P30<>"Inconnu",P30<>"Non requis"),P30/(COUNTRY_INFO!E30+COUNTRY_INFO!F30), 0) -> 1 | AN30: =IF(AND(Z30<>0,Z30<>"Inconnu",Z30<>"Non requis"),IF(COUNTRY_INFO!K30=1,1,IF(COUNTRY_INFO!K30=2,0.5*COUNTRY_INFO!F30/(0.5*COUNTRY_INFO!F30+0.2*COUNTRY_INFO!G30),IF(COUNTRY_INFO!K30=3,COUNTRY_INFO!F30/(COUNTRY_INFO!F30+COUNTRY_INFO!G30)))),0) -> 0.4861222844 | AO30: =IF(AND(Z30<>0,Z30<>"Inconnu",Z30<>"Non requis"),IF(COUNTRY_INFO!K30=1,0,IF(COUNTRY_INFO!K30=2,0.2*COUNTRY_INFO!G30/(0.5*COUNTRY_INFO!F30+0.2*COUNTRY_INFO!G30),IF(COUNTRY_INFO!K30=3,COUNTRY_INFO!G30/(COUNTRY_INFO!F30+COUNTRY_INFO!G30)))),0) -> 0.5138777156 | AP30: =MAX(COUNTRY_INFO!D30*AK30*PROFILE!$G$7,COUNTRY_INFO!D30*AL30*PROFILE!$G$7) -> 7919.444971 | AQ30: =MAX(COUNTRY_INFO!D30*AK30*PROFILE!$G$8,COUNTRY_INFO!D30*AL30*PROFILE!$G$8,COUNTRY_INFO!D30*AM30*PROFILE!$G$8) -> 31247.80064 | AR30: =MAX(COUNTRY_INFO!D30*AK30*PROFILE!$G$9,COUNTRY_INFO!D30*AL30*PROFILE!$G$9,COUNTRY_INFO!D30*AM30*PROFILE!$G$9,IF(AND(DISTRICT!Z30<>"Inconnu",Z30<>"Non requis"),COUNTRY_INFO!P30*DISTRICT!AN30,0)) -> 51363.29277 | AS30: =MAX(COUNTRY_INFO!D30*AK30*PROFILE!$G$10,COUNTRY_INFO!D30*AL30*PROFILE!$G$10,IF(AND(DISTRICT!Z30<>"Inconnu",Z30<>"Non requis"),COUNTRY_INFO!P30*DISTRICT!AO30,0)) -> 135739.3142 | AT30: 226269.8526 | AU30: Y | AV30: =MAX('MDA4'!R30,'T1'!L30,'T2'!J30,T3_R1!K30,T3_R2!K30) -> 0 | AW30: =MAX('MDA1'!K30,'MDA4'!S30,'MDA3'!I30,'MDA3'!L30,'T1'!M30,'T2'!K30,T3_R1!L30,T3_R2!L30) -> 64969 | AX30: =MAX('MDA1'!L30,'MDA4'!T30,'MDA3'!J30,'MDA3'!M30,'T1'!N30,'T2'!L30,T3_R1!M30,T3_R2!M30) -> 90001 | AY30: 154970 | AZ30: =MAX('MDA4'!R30,T30) -> 0 | BA30: =MAX('MDA1'!K30,'MDA4'!S30,'MDA3'!I30,'MDA3'!L30,V30,AD30) -> 64969 | BB30: =MAX('MDA1'!L30,'MDA4'!T30,'MDA3'!J30,'MDA3'!M30,AF30) -> 90001 | BC30: 154970 | BD30: 68.48901796
A31: =IF(COUNTRY_INFO!A31=0," ",COUNTRY_INFO!A31) -> République Centrafricaine | B31: =IF(COUNTRY_INFO!B31=0," ",COUNTRY_INFO!B31) -> RS N° 4 | C31: =IF(COUNTRY_INFO!C31=0," ",COUNTRY_INFO!C31) -> KOUANGO-GRIMARI | D31: =COUNTRY_INFO!M31 -> 148742.8945 | G31: =MAX('MDA1'!M31,'MDA4'!U31) -> 94376 | H31: =IF(AND(COUNTRY_INFO!H31>0,COUNTRY_INFO!H31<4),IF(D31>MAX('MDA1'!M31,'MDA4'!U31),MAX('MDA1'!M31,'MDA4'!U31),D31),0) -> 94376 | I31: =IF(AND(COUNTRY_INFO!H31>0,COUNTRY_INFO!H31<4), IF(G31/D31*100<>0, IF(G31/D31*100>100,100,G31/D31*100), "-"),0) -> 63.44908127 | J31: =COUNTRY_INFO!N31 -> 148742.8945 | M31: =MAX('MDA1'!M31,MAX('MDA3'!I31,'MDA3'!L31)+MAX('MDA3'!J31,'MDA3'!M31)) -> 94376 | N31: =IF(AND(COUNTRY_INFO!I31>0,COUNTRY_INFO!I31<4),IF(J31>MAX('MDA1'!M31,MAX('MDA3'!I31,'MDA3'!L31)+MAX('MDA3'!J31,'MDA3'!M31)),MAX('MDA1'!M31,MAX('MDA3'!I31,'MDA3'!L31)+MAX('MDA3'!J31,'MDA3'!M31)),J31),0) -> 94376 | O31: =IF(AND(COUNTRY_INFO!I31>0,COUNTRY_INFO!I31<4), IF(M31/J31*100<>0, IF(M31/J31*100>100,100,M31/J31*100), "-"),0) -> 63.44908127 | P31: =COUNTRY_INFO!O31 -> 54306 | S31: =SUM(MAX('MDA4'!R31, 'T1'!L31, MAX(T3_R1!K31, T3_R2!K31)), MAX('MDA1'!K31, 'MDA4'!S31, 'T1'!M31, MAX(T3_R1!L31, T3_R2!L31)), MAX('MDA1'!L31, 'MDA4'!T31, 'T1'!N31, MAX(T3_R1!M31, T3_R2!M31))) -> 94376 | T31: =IF(AND(COUNTRY_INFO!J31>1,COUNTRY_INFO!J31<4),IF(COUNTRY_INFO!E31>MAX('MDA4'!R31,'T1'!L31,MAX(T3_R1!K31,T3_R2!K31)),MAX('MDA4'!R31,'T1'!L31,MAX(T3_R1!K31,T3_R2!K31)),COUNTRY_INFO!E31),0) -> 0 | U31: =IF(AND(COUNTRY_INFO!J31>1,COUNTRY_INFO!J31<4), IF(T31/COUNTRY_INFO!E31*100<>0, IF(T31/COUNTRY_INFO!E31*100>100,100,T31/COUNTRY_INFO!E31*100), "-"),0) -> - | V31: =IF(AND(COUNTRY_INFO!J31>1,COUNTRY_INFO!J31<4),IF(COUNTRY_INFO!F31>MAX('MDA1'!K31,'MDA4'!S31,'T1'!M31,MAX(T3_R1!L31,T3_R2!L31)),MAX('MDA1'!K31,'MDA4'!S31,'T1'!M31,MAX(T3_R1!L31,T3_R2!L31)),COUNTRY_INFO!F31),0) -> 17930 | W31: =IF(AND(COUNTRY_INFO!J31>1,COUNTRY_INFO!J31<4), IF(V31/COUNTRY_INFO!F31*100<>0, IF(V31/COUNTRY_INFO!F31*100>100,100,V31/COUNTRY_INFO!F31*100), "-"),0) -> 53.10232489 | X31: 17930 | Y31: =IF(AND(COUNTRY_INFO!J31>1,COUNTRY_INFO!J31<4), IF(S31/P31*100<>0, IF(X31/P31*100>100,100,X31/P31*100), "-"),0) -> 33.01660958 | Z31: =COUNTRY_INFO!P31 -> 33764.63705 | AC31: =MAX('T1'!L31,'T2'!J31)+MAX('T1'!M31,'T2'!K31)+MAX('T1'!N31,'T2'!L31) -> 17930 | AD31: =IF(COUNTRY_INFO!K31=1,IF(COUNTRY_INFO!F31*0.33>MAX('T1'!M31,'T2'!K31),MAX('T1'!M31,'T2'!K31),COUNTRY_INFO!F31*0.33),IF(COUNTRY_INFO!K31=2,IF(COUNTRY_INFO!F31*0.5>MAX('T1'!M31,'T2'!K31),MAX('T1'!M31,'T2'!K31),COUNTRY_INFO!F31*0.5),IF(COUNTRY_INFO!K31=3,IF(COUNTRY_INFO!F31>MAX('T1'!M31,'T2'!K31),MAX('T1'!M31,'T2'!K31),COUNTRY_INFO!F31),0))) -> 11142.45 | AE31: =IF(AND(COUNTRY_INFO!K31>0,COUNTRY_INFO!K31<4),IF(Z31>0,IF(COUNTRY_INFO!K31=1, AD31/(COUNTRY_INFO!F31*0.33)*100, IF(COUNTRY_INFO!K31=2, AD31/(COUNTRY_INFO!F31*0.5)*100, IF(COUNTRY_INFO!K31=3, AD31/COUNTRY_INFO!F31*100))),"-"),0) -> 100 | AF31: =IF(COUNTRY_INFO!K31=2,IF(COUNTRY_INFO!G31*0.2>MAX('T1'!N31,'T2'!L31),MAX('T1'!N31,'T2'!L31),COUNTRY_INFO!G31*0.2),IF(COUNTRY_INFO!K31=3,IF(COUNTRY_INFO!G31>MAX('T1'!N31,'T2'!L31),MAX('T1'!N31,'T2'!L31),COUNTRY_INFO!G31),0)) -> 0 | AG31: =IF(AND(COUNTRY_INFO!K31>0,COUNTRY_INFO!K31<4),IF(Z31>0,IF(COUNTRY_INFO!K31=1, 0, IF(COUNTRY_INFO!K31=2, AF31/(COUNTRY_INFO!G31*0.2)*100, IF(COUNTRY_INFO!K31=3, AF31/COUNTRY_INFO!G31*100))),"-"),0) -> 0 | AH31: 11142.45 | AI31: =IF(AND(COUNTRY_INFO!K31>0,COUNTRY_INFO!K31<4), IF(AC31/Z31*100<>0, IF(AH31/Z31*100>100,100,AH31/Z31*100), "-"),0) -> 33.00035473 | AK31: =IF(AND(D31<>0, D31<>"Inconnu",D31<>"Interrompu",D31<>"Non requis"),D31/COUNTRY_INFO!D31, 0) -> 1 | AL31: =IF(AND(J31<>0,J31<>"Inconnu",J31<>"Interrompu",J31<>"Non requis"),J31/COUNTRY_INFO!D31, 0) -> 1 | AM31: =IF(AND(P31<>0,P31<>"Inconnu",P31<>"Non requis"),P31/(COUNTRY_INFO!E31+COUNTRY_INFO!F31), 0) -> 1 | AN31: =IF(AND(Z31<>0,Z31<>"Inconnu",Z31<>"Non requis"),IF(COUNTRY_INFO!K31=1,1,IF(COUNTRY_INFO!K31=2,0.5*COUNTRY_INFO!F31/(0.5*COUNTRY_INFO!F31+0.2*COUNTRY_INFO!G31),IF(COUNTRY_INFO!K31=3,COUNTRY_INFO!F31/(COUNTRY_INFO!F31+COUNTRY_INFO!G31)))),0) -> 1 | AO31: =IF(AND(Z31<>0,Z31<>"Inconnu",Z31<>"Non requis"),IF(COUNTRY_INFO!K31=1,0,IF(COUNTRY_INFO!K31=2,0.2*COUNTRY_INFO!G31/(0.5*COUNTRY_INFO!F31+0.2*COUNTRY_INFO!G31),IF(COUNTRY_INFO!K31=3,COUNTRY_INFO!G31/(COUNTRY_INFO!F31+COUNTRY_INFO!G31)))),0) -> 0 | AP31: =MAX(COUNTRY_INFO!D31*AK31*PROFILE!$G$7,COUNTRY_INFO!D31*AL31*PROFILE!$G$7) -> 5206.001392 | AQ31: =MAX(COUNTRY_INFO!D31*AK31*PROFILE!$G$8,COUNTRY_INFO!D31*AL31*PROFILE!$G$8,COUNTRY_INFO!D31*AM31*PROFILE!$G$8) -> 20541.35034 | AR31: =MAX(COUNTRY_INFO!D31*AK31*PROFILE!$G$9,COUNTRY_INFO!D31*AL31*PROFILE!$G$9,COUNTRY_INFO!D31*AM31*PROFILE!$G$9,IF(AND(DISTRICT!Z31<>"Inconnu",Z31<>"Non requis"),COUNTRY_INFO!P31*DISTRICT!AN31,0)) -> 33764.66086 | AS31: =MAX(COUNTRY_INFO!D31*AK31*PROFILE!$G$10,COUNTRY_INFO!D31*AL31*PROFILE!$G$10,IF(AND(DISTRICT!Z31<>"Inconnu",Z31<>"Non requis"),COUNTRY_INFO!P31*DISTRICT!AO31,0)) -> 89230.88189 | AT31: 148742.8945 | AU31: Y | AV31: =MAX('MDA4'!R31,'T1'!L31,'T2'!J31,T3_R1!K31,T3_R2!K31) -> 0 | AW31: =MAX('MDA1'!K31,'MDA4'!S31,'MDA3'!I31,'MDA3'!L31,'T1'!M31,'T2'!K31,T3_R1!L31,T3_R2!L31) -> 17930 | AX31: =MAX('MDA1'!L31,'MDA4'!T31,'MDA3'!J31,'MDA3'!M31,'T1'!N31,'T2'!L31,T3_R1!M31,T3_R2!M31) -> 76446 | AY31: 94376 | AZ31: =MAX('MDA4'!R31,T31) -> 0 | BA31: =MAX('MDA1'!K31,'MDA4'!S31,'MDA3'!I31,'MDA3'!L31,V31,AD31) -> 17930 | BB31: =MAX('MDA1'!L31,'MDA4'!T31,'MDA3'!J31,'MDA3'!M31,AF31) -> 76446 | BC31: 94376 | BD31: 63.44908127
A32: =IF(COUNTRY_INFO!A32=0," ",COUNTRY_INFO!A32) -> République Centrafricaine | B32: =IF(COUNTRY_INFO!B32=0," ",COUNTRY_INFO!B32) -> RS N° 5 | C32: =IF(COUNTRY_INFO!C32=0," ",COUNTRY_INFO!C32) -> BAMINGUI-BANGORAN | D32: =COUNTRY_INFO!M32 -> 58586.16108 | G32: =MAX('MDA1'!M32,'MDA4'!U32) -> 0 | H32: =IF(AND(COUNTRY_INFO!H32>0,COUNTRY_INFO!H32<4),IF(D32>MAX('MDA1'!M32,'MDA4'!U32),MAX('MDA1'!M32,'MDA4'!U32),D32),0) -> 0 | I32: =IF(AND(COUNTRY_INFO!H32>0,COUNTRY_INFO!H32<4), IF(G32/D32*100<>0, IF(G32/D32*100>100,100,G32/D32*100), "-"),0) -> - | J32: =COUNTRY_INFO!N32 -> 58586.16108 | M32: =MAX('MDA1'!M32,MAX('MDA3'!I32,'MDA3'!L32)+MAX('MDA3'!J32,'MDA3'!M32)) -> 36243 | N32: =IF(AND(COUNTRY_INFO!I32>0,COUNTRY_INFO!I32<4),IF(J32>MAX('MDA1'!M32,MAX('MDA3'!I32,'MDA3'!L32)+MAX('MDA3'!J32,'MDA3'!M32)),MAX('MDA1'!M32,MAX('MDA3'!I32,'MDA3'!L32)+MAX('MDA3'!J32,'MDA3'!M32)),J32),0) -> 36243 | O32: =IF(AND(COUNTRY_INFO!I32>0,COUNTRY_INFO!I32<4), IF(M32/J32*100<>0, IF(M32/J32*100>100,100,M32/J32*100), "-"),0) -> 61.86273231 | P32: =COUNTRY_INFO!O32 -> 21390 | S32: =SUM(MAX('MDA4'!R32, 'T1'!L32, MAX(T3_R1!K32, T3_R2!K32)), MAX('MDA1'!K32, 'MDA4'!S32, 'T1'!M32, MAX(T3_R1!L32, T3_R2!L32)), MAX('MDA1'!L32, 'MDA4'!T32, 'T1'!N32, MAX(T3_R1!M32, T3_R2!M32))) -> 0 | T32: =IF(AND(COUNTRY_INFO!J32>1,COUNTRY_INFO!J32<4),IF(COUNTRY_INFO!E32>MAX('MDA4'!R32,'T1'!L32,MAX(T3_R1!K32,T3_R2!K32)),MAX('MDA4'!R32,'T1'!L32,MAX(T3_R1!K32,T3_R2!K32)),COUNTRY_INFO!E32),0) -> 0 | U32: =IF(AND(COUNTRY_INFO!J32>1,COUNTRY_INFO!J32<4), IF(T32/COUNTRY_INFO!E32*100<>0, IF(T32/COUNTRY_INFO!E32*100>100,100,T32/COUNTRY_INFO!E32*100), "-"),0) -> - | V32: =IF(AND(COUNTRY_INFO!J32>1,COUNTRY_INFO!J32<4),IF(COUNTRY_INFO!F32>MAX('MDA1'!K32,'MDA4'!S32,'T1'!M32,MAX(T3_R1!L32,T3_R2!L32)),MAX('MDA1'!K32,'MDA4'!S32,'T1'!M32,MAX(T3_R1!L32,T3_R2!L32)),COUNTRY_INFO!F32),0) -> 0 | W32: =IF(AND(COUNTRY_INFO!J32>1,COUNTRY_INFO!J32<4), IF(V32/COUNTRY_INFO!F32*100<>0, IF(V32/COUNTRY_INFO!F32*100>100,100,V32/COUNTRY_INFO!F32*100), "-"),0) -> - | X32: 0 | Y32: =IF(AND(COUNTRY_INFO!J32>1,COUNTRY_INFO!J32<4), IF(S32/P32*100<>0, IF(X32/P32*100>100,100,X32/P32*100), "-"),0) -> - | Z32: =COUNTRY_INFO!P32 -> 0 | AC32: =MAX('T1'!L32,'T2'!J32)+MAX('T1'!M32,'T2'!K32)+MAX('T1'!N32,'T2'!L32) -> 0 | AD32: =IF(COUNTRY_INFO!K32=1,IF(COUNTRY_INFO!F32*0.33>MAX('T1'!M32,'T2'!K32),MAX('T1'!M32,'T2'!K32),COUNTRY_INFO!F32*0.33),IF(COUNTRY_INFO!K32=2,IF(COUNTRY_INFO!F32*0.5>MAX('T1'!M32,'T2'!K32),MAX('T1'!M32,'T2'!K32),COUNTRY_INFO!F32*0.5),IF(COUNTRY_INFO!K32=3,IF(COUNTRY_INFO!F32>MAX('T1'!M32,'T2'!K32),MAX('T1'!M32,'T2'!K32),COUNTRY_INFO!F32),0))) -> 0 | AE32: =IF(AND(COUNTRY_INFO!K32>0,COUNTRY_INFO!K32<4),IF(Z32>0,IF(COUNTRY_INFO!K32=1, AD32/(COUNTRY_INFO!F32*0.33)*100, IF(COUNTRY_INFO!K32=2, AD32/(COUNTRY_INFO!F32*0.5)*100, IF(COUNTRY_INFO!K32=3, AD32/COUNTRY_INFO!F32*100))),"-"),0) -> - | AF32: =IF(COUNTRY_INFO!K32=2,IF(COUNTRY_INFO!G32*0.2>MAX('T1'!N32,'T2'!L32),MAX('T1'!N32,'T2'!L32),COUNTRY_INFO!G32*0.2),IF(COUNTRY_INFO!K32=3,IF(COUNTRY_INFO!G32>MAX('T1'!N32,'T2'!L32),MAX('T1'!N32,'T2'!L32),COUNTRY_INFO!G32),0)) -> 0 | AG32: =IF(AND(COUNTRY_INFO!K32>0,COUNTRY_INFO!K32<4),IF(Z32>0,IF(COUNTRY_INFO!K32=1, 0, IF(COUNTRY_INFO!K32=2, AF32/(COUNTRY_INFO!G32*0.2)*100, IF(COUNTRY_INFO!K32=3, AF32/COUNTRY_INFO!G32*100))),"-"),0) -> - | AH32: 0 | AI32: =IF(AND(COUNTRY_INFO!K32>0,COUNTRY_INFO!K32<4), IF(AC32/Z32*100<>0, IF(AH32/Z32*100>100,100,AH32/Z32*100), "-"),0) ->  | AK32: =IF(AND(D32<>0, D32<>"Inconnu",D32<>"Interrompu",D32<>"Non requis"),D32/COUNTRY_INFO!D32, 0) -> 1 | AL32: =IF(AND(J32<>0,J32<>"Inconnu",J32<>"Interrompu",J32<>"Non requis"),J32/COUNTRY_INFO!D32, 0) -> 1 | AM32: =IF(AND(P32<>0,P32<>"Inconnu",P32<>"Non requis"),P32/(COUNTRY_INFO!E32+COUNTRY_INFO!F32), 0) -> 1 | AN32: =IF(AND(Z32<>0,Z32<>"Inconnu",Z32<>"Non requis"),IF(COUNTRY_INFO!K32=1,1,IF(COUNTRY_INFO!K32=2,0.5*COUNTRY_INFO!F32/(0.5*COUNTRY_INFO!F32+0.2*COUNTRY_INFO!G32),IF(COUNTRY_INFO!K32=3,COUNTRY_INFO!F32/(COUNTRY_INFO!F32+COUNTRY_INFO!G32)))),0) -> 0 | AO32: =IF(AND(Z32<>0,Z32<>"Inconnu",Z32<>"Non requis"),IF(COUNTRY_INFO!K32=1,0,IF(COUNTRY_INFO!K32=2,0.2*COUNTRY_INFO!G32/(0.5*COUNTRY_INFO!F32+0.2*COUNTRY_INFO!G32),IF(COUNTRY_INFO!K32=3,COUNTRY_INFO!G32/(COUNTRY_INFO!F32+COUNTRY_INFO!G32)))),0) -> 0 | AP32: =MAX(COUNTRY_INFO!D32*AK32*PROFILE!$G$7,COUNTRY_INFO!D32*AL32*PROFILE!$G$7) -> 2050.515671 | AQ32: =MAX(COUNTRY_INFO!D32*AK32*PROFILE!$G$8,COUNTRY_INFO!D32*AL32*PROFILE!$G$8,COUNTRY_INFO!D32*AM32*PROFILE!$G$8) -> 8090.731756 | AR32: =MAX(COUNTRY_INFO!D32*AK32*PROFILE!$G$9,COUNTRY_INFO!D32*AL32*PROFILE!$G$9,COUNTRY_INFO!D32*AM32*PROFILE!$G$9,IF(AND(DISTRICT!Z32<>"Inconnu",Z32<>"Non requis"),COUNTRY_INFO!P32*DISTRICT!AN32,0)) -> 13299.06794 | AS32: =MAX(COUNTRY_INFO!D32*AK32*PROFILE!$G$10,COUNTRY_INFO!D32*AL32*PROFILE!$G$10,IF(AND(DISTRICT!Z32<>"Inconnu",Z32<>"Non requis"),COUNTRY_INFO!P32*DISTRICT!AO32,0)) -> 35145.84571 | AT32: 58586.16108 | AU32: 0 | AV32: =MAX('MDA4'!R32,'T1'!L32,'T2'!J32,T3_R1!K32,T3_R2!K32) -> 0 | AW32: =MAX('MDA1'!K32,'MDA4'!S32,'MDA3'!I32,'MDA3'!L32,'T1'!M32,'T2'!K32,T3_R1!L32,T3_R2!L32) -> 8227.161 | AX32: =MAX('MDA1'!L32,'MDA4'!T32,'MDA3'!J32,'MDA3'!M32,'T1'!N32,'T2'!L32,T3_R1!M32,T3_R2!M32) -> 28015.839 | AY32: 36243 | AZ32: =MAX('MDA4'!R32,T32) -> 0 | BA32: =MAX('MDA1'!K32,'MDA4'!S32,'MDA3'!I32,'MDA3'!L32,V32,AD32) -> 8227.161 | BB32: =MAX('MDA1'!L32,'MDA4'!T32,'MDA3'!J32,'MDA3'!M32,AF32) -> 28015.839 | BC32: 36243 | BD32: 61.86273231
A33: =IF(COUNTRY_INFO!A33=0," ",COUNTRY_INFO!A33) -> République Centrafricaine | B33: =IF(COUNTRY_INFO!B33=0," ",COUNTRY_INFO!B33) -> RS N° 5 | C33: =IF(COUNTRY_INFO!C33=0," ",COUNTRY_INFO!C33) -> HAUTE-KOTTO | D33: =COUNTRY_INFO!M33 -> 122324 | G33: =MAX('MDA1'!M33,'MDA4'!U33) -> 0 | H33: =IF(AND(COUNTRY_INFO!H33>0,COUNTRY_INFO!H33<4),IF(D33>MAX('MDA1'!M33,'MDA4'!U33),MAX('MDA1'!M33,'MDA4'!U33),D33),0) -> 0 | I33: =IF(AND(COUNTRY_INFO!H33>0,COUNTRY_INFO!H33<4), IF(G33/D33*100<>0, IF(G33/D33*100>100,100,G33/D33*100), "-"),0) -> - | J33: =COUNTRY_INFO!N33 -> 122324 | M33: =MAX('MDA1'!M33,MAX('MDA3'!I33,'MDA3'!L33)+MAX('MDA3'!J33,'MDA3'!M33)) -> 0 | N33: =IF(AND(COUNTRY_INFO!I33>0,COUNTRY_INFO!I33<4),IF(J33>MAX('MDA1'!M33,MAX('MDA3'!I33,'MDA3'!L33)+MAX('MDA3'!J33,'MDA3'!M33)),MAX('MDA1'!M33,MAX('MDA3'!I33,'MDA3'!L33)+MAX('MDA3'!J33,'MDA3'!M33)),J33),0) -> 0 | O33: =IF(AND(COUNTRY_INFO!I33>0,COUNTRY_INFO!I33<4), IF(M33/J33*100<>0, IF(M33/J33*100>100,100,M33/J33*100), "-"),0) -> - | P33: =COUNTRY_INFO!O33 -> 0 | S33: =SUM(MAX('MDA4'!R33, 'T1'!L33, MAX(T3_R1!K33, T3_R2!K33)), MAX('MDA1'!K33, 'MDA4'!S33, 'T1'!M33, MAX(T3_R1!L33, T3_R2!L33)), MAX('MDA1'!L33, 'MDA4'!T33, 'T1'!N33, MAX(T3_R1!M33, T3_R2!M33))) -> 0 | T33: =IF(AND(COUNTRY_INFO!J33>1,COUNTRY_INFO!J33<4),IF(COUNTRY_INFO!E33>MAX('MDA4'!R33,'T1'!L33,MAX(T3_R1!K33,T3_R2!K33)),MAX('MDA4'!R33,'T1'!L33,MAX(T3_R1!K33,T3_R2!K33)),COUNTRY_INFO!E33),0) -> 0 | U33: =IF(AND(COUNTRY_INFO!J33>1,COUNTRY_INFO!J33<4), IF(T33/COUNTRY_INFO!E33*100<>0, IF(T33/COUNTRY_INFO!E33*100>100,100,T33/COUNTRY_INFO!E33*100), "-"),0) -> 0 | V33: =IF(AND(COUNTRY_INFO!J33>1,COUNTRY_INFO!J33<4),IF(COUNTRY_INFO!F33>MAX('MDA1'!K33,'MDA4'!S33,'T1'!M33,MAX(T3_R1!L33,T3_R2!L33)),MAX('MDA1'!K33,'MDA4'!S33,'T1'!M33,MAX(T3_R1!L33,T3_R2!L33)),COUNTRY_INFO!F33),0) -> 0 | W33: =IF(AND(COUNTRY_INFO!J33>1,COUNTRY_INFO!J33<4), IF(V33/COUNTRY_INFO!F33*100<>0, IF(V33/COUNTRY_INFO!F33*100>100,100,V33/COUNTRY_INFO!F33*100), "-"),0) -> 0 | X33: 0 | Y33: =IF(AND(COUNTRY_INFO!J33>1,COUNTRY_INFO!J33<4), IF(S33/P33*100<>0, IF(X33/P33*100>100,100,X33/P33*100), "-"),0) -> 0 | Z33: =COUNTRY_INFO!P33 -> 0 | AC33: =MAX('T1'!L33,'T2'!J33)+MAX('T1'!M33,'T2'!K33)+MAX('T1'!N33,'T2'!L33) -> 0 | AD33: =IF(COUNTRY_INFO!K33=1,IF(COUNTRY_INFO!F33*0.33>MAX('T1'!M33,'T2'!K33),MAX('T1'!M33,'T2'!K33),COUNTRY_INFO!F33*0.33),IF(COUNTRY_INFO!K33=2,IF(COUNTRY_INFO!F33*0.5>MAX('T1'!M33,'T2'!K33),MAX('T1'!M33,'T2'!K33),COUNTRY_INFO!F33*0.5),IF(COUNTRY_INFO!K33=3,IF(COUNTRY_INFO!F33>MAX('T1'!M33,'T2'!K33),MAX('T1'!M33,'T2'!K33),COUNTRY_INFO!F33),0))) -> 0 | AE33: =IF(AND(COUNTRY_INFO!K33>0,COUNTRY_INFO!K33<4),IF(Z33>0,IF(COUNTRY_INFO!K33=1, AD33/(COUNTRY_INFO!F33*0.33)*100, IF(COUNTRY_INFO!K33=2, AD33/(COUNTRY_INFO!F33*0.5)*100, IF(COUNTRY_INFO!K33=3, AD33/COUNTRY_INFO!F33*100))),"-"),0) -> - | AF33: =IF(COUNTRY_INFO!K33=2,IF(COUNTRY_INFO!G33*0.2>MAX('T1'!N33,'T2'!L33),MAX('T1'!N33,'T2'!L33),COUNTRY_INFO!G33*0.2),IF(COUNTRY_INFO!K33=3,IF(COUNTRY_INFO!G33>MAX('T1'!N33,'T2'!L33),MAX('T1'!N33,'T2'!L33),COUNTRY_INFO!G33),0)) -> 0 | AG33: =IF(AND(COUNTRY_INFO!K33>0,COUNTRY_INFO!K33<4),IF(Z33>0,IF(COUNTRY_INFO!K33=1, 0, IF(COUNTRY_INFO!K33=2, AF33/(COUNTRY_INFO!G33*0.2)*100, IF(COUNTRY_INFO!K33=3, AF33/COUNTRY_INFO!G33*100))),"-"),0) -> - | AH33: 0 | AI33: =IF(AND(COUNTRY_INFO!K33>0,COUNTRY_INFO!K33<4), IF(AC33/Z33*100<>0, IF(AH33/Z33*100>100,100,AH33/Z33*100), "-"),0) ->  | AK33: =IF(AND(D33<>0, D33<>"Inconnu",D33<>"Interrompu",D33<>"Non requis"),D33/COUNTRY_INFO!D33, 0) -> 1 | AL33: =IF(AND(J33<>0,J33<>"Inconnu",J33<>"Interrompu",J33<>"Non requis"),J33/COUNTRY_INFO!D33, 0) -> 1 | AM33: =IF(AND(P33<>0,P33<>"Inconnu",P33<>"Non requis"),P33/(COUNTRY_INFO!E33+COUNTRY_INFO!F33), 0) -> 0 | AN33: =IF(AND(Z33<>0,Z33<>"Inconnu",Z33<>"Non requis"),IF(COUNTRY_INFO!K33=1,1,IF(COUNTRY_INFO!K33=2,0.5*COUNTRY_INFO!F33/(0.5*COUNTRY_INFO!F33+0.2*COUNTRY_INFO!G33),IF(COUNTRY_INFO!K33=3,COUNTRY_INFO!F33/(COUNTRY_INFO!F33+COUNTRY_INFO!G33)))),0) -> 0 | AO33: =IF(AND(Z33<>0,Z33<>"Inconnu",Z33<>"Non requis"),IF(COUNTRY_INFO!K33=1,0,IF(COUNTRY_INFO!K33=2,0.2*COUNTRY_INFO!G33/(0.5*COUNTRY_INFO!F33+0.2*COUNTRY_INFO!G33),IF(COUNTRY_INFO!K33=3,COUNTRY_INFO!G33/(COUNTRY_INFO!F33+COUNTRY_INFO!G33)))),0) -> 0 | AP33: =MAX(COUNTRY_INFO!D33*AK33*PROFILE!$G$7,COUNTRY_INFO!D33*AL33*PROFILE!$G$7) -> 4281.34007 | AQ33: =MAX(COUNTRY_INFO!D33*AK33*PROFILE!$G$8,COUNTRY_INFO!D33*AL33*PROFILE!$G$8,COUNTRY_INFO!D33*AM33*PROFILE!$G$8) -> 16892.90872 | AR33: =MAX(COUNTRY_INFO!D33*AK33*PROFILE!$G$9,COUNTRY_INFO!D33*AL33*PROFILE!$G$9,COUNTRY_INFO!D33*AM33*PROFILE!$G$9,IF(AND(DISTRICT!Z33<>"Inconnu",Z33<>"Non requis"),COUNTRY_INFO!P33*DISTRICT!AN33,0)) -> 27767.56758 | AS33: =MAX(COUNTRY_INFO!D33*AK33*PROFILE!$G$10,COUNTRY_INFO!D33*AL33*PROFILE!$G$10,IF(AND(DISTRICT!Z33<>"Inconnu",Z33<>"Non requis"),COUNTRY_INFO!P33*DISTRICT!AO33,0)) -> 73382.18363 | AT33: 122324 | AU33: 0 | AV33: =MAX('MDA4'!R33,'T1'!L33,'T2'!J33,T3_R1!K33,T3_R2!K33) -> 0 | AW33: =MAX('MDA1'!K33,'MDA4'!S33,'MDA3'!I33,'MDA3'!L33,'T1'!M33,'T2'!K33,T3_R1!L33,T3_R2!L33) -> 0 | AX33: =MAX('MDA1'!L33,'MDA4'!T33,'MDA3'!J33,'MDA3'!M33,'T1'!N33,'T2'!L33,T3_R1!M33,T3_R2!M33) -> 0 | AY33: 0 | AZ33: =MAX('MDA4'!R33,T33) -> 0 | BA33: =MAX('MDA1'!K33,'MDA4'!S33,'MDA3'!I33,'MDA3'!L33,V33,AD33) -> 0 | BB33: =MAX('MDA1'!L33,'MDA4'!T33,'MDA3'!J33,'MDA3'!M33,AF33) -> 0 | BC33: 0 | BD33: 0
A34: =IF(COUNTRY_INFO!A34=0," ",COUNTRY_INFO!A34) -> République Centrafricaine | B34: =IF(COUNTRY_INFO!B34=0," ",COUNTRY_INFO!B34) -> RS N° 5 | C34: =IF(COUNTRY_INFO!C34=0," ",COUNTRY_INFO!C34) -> VAKAGA | D34: =COUNTRY_INFO!M34 -> 70774 | G34: =MAX('MDA1'!M34,'MDA4'!U34) -> 0 | H34: =IF(AND(COUNTRY_INFO!H34>0,COUNTRY_INFO!H34<4),IF(D34>MAX('MDA1'!M34,'MDA4'!U34),MAX('MDA1'!M34,'MDA4'!U34),D34),0) -> 0 | I34: =IF(AND(COUNTRY_INFO!H34>0,COUNTRY_INFO!H34<4), IF(G34/D34*100<>0, IF(G34/D34*100>100,100,G34/D34*100), "-"),0) -> - | J34: =COUNTRY_INFO!N34 -> Inconnu | M34: =MAX('MDA1'!M34,MAX('MDA3'!I34,'MDA3'!L34)+MAX('MDA3'!J34,'MDA3'!M34)) -> 0 | N34: =IF(AND(COUNTRY_INFO!I34>0,COUNTRY_INFO!I34<4),IF(J34>MAX('MDA1'!M34,MAX('MDA3'!I34,'MDA3'!L34)+MAX('MDA3'!J34,'MDA3'!M34)),MAX('MDA1'!M34,MAX('MDA3'!I34,'MDA3'!L34)+MAX('MDA3'!J34,'MDA3'!M34)),J34),0) -> 0 | O34: =IF(AND(COUNTRY_INFO!I34>0,COUNTRY_INFO!I34<4), IF(M34/J34*100<>0, IF(M34/J34*100>100,100,M34/J34*100), "-"),0) -> 0 | P34: =COUNTRY_INFO!O34 -> 0 | S34: =SUM(MAX('MDA4'!R34, 'T1'!L34, MAX(T3_R1!K34, T3_R2!K34)), MAX('MDA1'!K34, 'MDA4'!S34, 'T1'!M34, MAX(T3_R1!L34, T3_R2!L34)), MAX('MDA1'!L34, 'MDA4'!T34, 'T1'!N34, MAX(T3_R1!M34, T3_R2!M34))) -> 0 | T34: =IF(AND(COUNTRY_INFO!J34>1,COUNTRY_INFO!J34<4),IF(COUNTRY_INFO!E34>MAX('MDA4'!R34,'T1'!L34,MAX(T3_R1!K34,T3_R2!K34)),MAX('MDA4'!R34,'T1'!L34,MAX(T3_R1!K34,T3_R2!K34)),COUNTRY_INFO!E34),0) -> 0 | U34: =IF(AND(COUNTRY_INFO!J34>1,COUNTRY_INFO!J34<4), IF(T34/COUNTRY_INFO!E34*100<>0, IF(T34/COUNTRY_INFO!E34*100>100,100,T34/COUNTRY_INFO!E34*100), "-"),0) -> 0 | V34: =IF(AND(COUNTRY_INFO!J34>1,COUNTRY_INFO!J34<4),IF(COUNTRY_INFO!F34>MAX('MDA1'!K34,'MDA4'!S34,'T1'!M34,MAX(T3_R1!L34,T3_R2!L34)),MAX('MDA1'!K34,'MDA4'!S34,'T1'!M34,MAX(T3_R1!L34,T3_R2!L34)),COUNTRY_INFO!F34),0) -> 0 | W34: =IF(AND(COUNTRY_INFO!J34>1,COUNTRY_INFO!J34<4), IF(V34/COUNTRY_INFO!F34*100<>0, IF(V34/COUNTRY_INFO!F34*100>100,100,V34/COUNTRY_INFO!F34*100), "-"),0) -> 0 | X34: 0 | Y34: =IF(AND(COUNTRY_INFO!J34>1,COUNTRY_INFO!J34<4), IF(S34/P34*100<>0, IF(X34/P34*100>100,100,X34/P34*100), "-"),0) -> 0 | Z34: =COUNTRY_INFO!P34 -> 0 | AC34: =MAX('T1'!L34,'T2'!J34)+MAX('T1'!M34,'T2'!K34)+MAX('T1'!N34,'T2'!L34) -> 0 | AD34: =IF(COUNTRY_INFO!K34=1,IF(COUNTRY_INFO!F34*0.33>MAX('T1'!M34,'T2'!K34),MAX('T1'!M34,'T2'!K34),COUNTRY_INFO!F34*0.33),IF(COUNTRY_INFO!K34=2,IF(COUNTRY_INFO!F34*0.5>MAX('T1'!M34,'T2'!K34),MAX('T1'!M34,'T2'!K34),COUNTRY_INFO!F34*0.5),IF(COUNTRY_INFO!K34=3,IF(COUNTRY_INFO!F34>MAX('T1'!M34,'T2'!K34),MAX('T1'!M34,'T2'!K34),COUNTRY_INFO!F34),0))) -> 0 | AE34: =IF(AND(COUNTRY_INFO!K34>0,COUNTRY_INFO!K34<4),IF(Z34>0,IF(COUNTRY_INFO!K34=1, AD34/(COUNTRY_INFO!F34*0.33)*100, IF(COUNTRY_INFO!K34=2, AD34/(COUNTRY_INFO!F34*0.5)*100, IF(COUNTRY_INFO!K34=3, AD34/COUNTRY_INFO!F34*100))),"-"),0) -> - | AF34: =IF(COUNTRY_INFO!K34=2,IF(COUNTRY_INFO!G34*0.2>MAX('T1'!N34,'T2'!L34),MAX('T1'!N34,'T2'!L34),COUNTRY_INFO!G34*0.2),IF(COUNTRY_INFO!K34=3,IF(COUNTRY_INFO!G34>MAX('T1'!N34,'T2'!L34),MAX('T1'!N34,'T2'!L34),COUNTRY_INFO!G34),0)) -> 0 | AG34: =IF(AND(COUNTRY_INFO!K34>0,COUNTRY_INFO!K34<4),IF(Z34>0,IF(COUNTRY_INFO!K34=1, 0, IF(COUNTRY_INFO!K34=2, AF34/(COUNTRY_INFO!G34*0.2)*100, IF(COUNTRY_INFO!K34=3, AF34/COUNTRY_INFO!G34*100))),"-"),0) -> - | AH34: 0 | AI34: =IF(AND(COUNTRY_INFO!K34>0,COUNTRY_INFO!K34<4), IF(AC34/Z34*100<>0, IF(AH34/Z34*100>100,100,AH34/Z34*100), "-"),0) ->  | AK34: =IF(AND(D34<>0, D34<>"Inconnu",D34<>"Interrompu",D34<>"Non requis"),D34/COUNTRY_INFO!D34, 0) -> 1 | AL34: =IF(AND(J34<>0,J34<>"Inconnu",J34<>"Interrompu",J34<>"Non requis"),J34/COUNTRY_INFO!D34, 0) -> 0 | AM34: =IF(AND(P34<>0,P34<>"Inconnu",P34<>"Non requis"),P34/(COUNTRY_INFO!E34+COUNTRY_INFO!F34), 0) -> 0 | AN34: =IF(AND(Z34<>0,Z34<>"Inconnu",Z34<>"Non requis"),IF(COUNTRY_INFO!K34=1,1,IF(COUNTRY_INFO!K34=2,0.5*COUNTRY_INFO!F34/(0.5*COUNTRY_INFO!F34+0.2*COUNTRY_INFO!G34),IF(COUNTRY_INFO!K34=3,COUNTRY_INFO!F34/(COUNTRY_INFO!F34+COUNTRY_INFO!G34)))),0) -> 0 | AO34: =IF(AND(Z34<>0,Z34<>"Inconnu",Z34<>"Non requis"),IF(COUNTRY_INFO!K34=1,0,IF(COUNTRY_INFO!K34=2,0.2*COUNTRY_INFO!G34/(0.5*COUNTRY_INFO!F34+0.2*COUNTRY_INFO!G34),IF(COUNTRY_INFO!K34=3,COUNTRY_INFO!G34/(COUNTRY_INFO!F34+COUNTRY_INFO!G34)))),0) -> 0 | AP34: =MAX(COUNTRY_INFO!D34*AK34*PROFILE!$G$7,COUNTRY_INFO!D34*AL34*PROFILE!$G$7) -> 2477.090041 | AQ34: =MAX(COUNTRY_INFO!D34*AK34*PROFILE!$G$8,COUNTRY_INFO!D34*AL34*PROFILE!$G$8,COUNTRY_INFO!D34*AM34*PROFILE!$G$8) -> 9773.868755 | AR34: =MAX(COUNTRY_INFO!D34*AK34*PROFILE!$G$9,COUNTRY_INFO!D34*AL34*PROFILE!$G$9,COUNTRY_INFO!D34*AM34*PROFILE!$G$9,IF(AND(DISTRICT!Z34<>"Inconnu",Z34<>"Non requis"),COUNTRY_INFO!P34*DISTRICT!AN34,0)) -> 16065.70933 | AS34: =MAX(COUNTRY_INFO!D34*AK34*PROFILE!$G$10,COUNTRY_INFO!D34*AL34*PROFILE!$G$10,IF(AND(DISTRICT!Z34<>"Inconnu",Z34<>"Non requis"),COUNTRY_INFO!P34*DISTRICT!AO34,0)) -> 42457.33187 | AT34: 70774 | AU34: 0 | AV34: =MAX('MDA4'!R34,'T1'!L34,'T2'!J34,T3_R1!K34,T3_R2!K34) -> 0 | AW34: =MAX('MDA1'!K34,'MDA4'!S34,'MDA3'!I34,'MDA3'!L34,'T1'!M34,'T2'!K34,T3_R1!L34,T3_R2!L34) -> 0 | AX34: =MAX('MDA1'!L34,'MDA4'!T34,'MDA3'!J34,'MDA3'!M34,'T1'!N34,'T2'!L34,T3_R1!M34,T3_R2!M34) -> 0 | AY34: 0 | AZ34: =MAX('MDA4'!R34,T34) -> 0 | BA34: =MAX('MDA1'!K34,'MDA4'!S34,'MDA3'!I34,'MDA3'!L34,V34,AD34) -> 0 | BB34: =MAX('MDA1'!L34,'MDA4'!T34,'MDA3'!J34,'MDA3'!M34,AF34) -> 0 | BC34: 0 | BD34: 0
A35: =IF(COUNTRY_INFO!A35=0," ",COUNTRY_INFO!A35) -> République Centrafricaine | B35: =IF(COUNTRY_INFO!B35=0," ",COUNTRY_INFO!B35) -> RS N° 6 | C35: =IF(COUNTRY_INFO!C35=0," ",COUNTRY_INFO!C35) -> ALINDAO MINGALA | D35: =COUNTRY_INFO!M35 -> 124563.6273 | G35: =MAX('MDA1'!M35,'MDA4'!U35) -> 76059 | H35: =IF(AND(COUNTRY_INFO!H35>0,COUNTRY_INFO!H35<4),IF(D35>MAX('MDA1'!M35,'MDA4'!U35),MAX('MDA1'!M35,'MDA4'!U35),D35),0) -> 76059 | I35: =IF(AND(COUNTRY_INFO!H35>0,COUNTRY_INFO!H35<4), IF(G35/D35*100<>0, IF(G35/D35*100>100,100,G35/D35*100), "-"),0) -> 61.06036061 | J35: =COUNTRY_INFO!N35 -> 124563.6273 | M35: =MAX('MDA1'!M35,MAX('MDA3'!I35,'MDA3'!L35)+MAX('MDA3'!J35,'MDA3'!M35)) -> 76059 | N35: =IF(AND(COUNTRY_INFO!I35>0,COUNTRY_INFO!I35<4),IF(J35>MAX('MDA1'!M35,MAX('MDA3'!I35,'MDA3'!L35)+MAX('MDA3'!J35,'MDA3'!M35)),MAX('MDA1'!M35,MAX('MDA3'!I35,'MDA3'!L35)+MAX('MDA3'!J35,'MDA3'!M35)),J35),0) -> 76059 | O35: =IF(AND(COUNTRY_INFO!I35>0,COUNTRY_INFO!I35<4), IF(M35/J35*100<>0, IF(M35/J35*100>100,100,M35/J35*100), "-"),0) -> 61.06036061 | P35: =COUNTRY_INFO!O35 -> 45478 | S35: =SUM(MAX('MDA4'!R35, 'T1'!L35, MAX(T3_R1!K35, T3_R2!K35)), MAX('MDA1'!K35, 'MDA4'!S35, 'T1'!M35, MAX(T3_R1!L35, T3_R2!L35)), MAX('MDA1'!L35, 'MDA4'!T35, 'T1'!N35, MAX(T3_R1!M35, T3_R2!M35))) -> 76059 | T35: =IF(AND(COUNTRY_INFO!J35>1,COUNTRY_INFO!J35<4),IF(COUNTRY_INFO!E35>MAX('MDA4'!R35,'T1'!L35,MAX(T3_R1!K35,T3_R2!K35)),MAX('MDA4'!R35,'T1'!L35,MAX(T3_R1!K35,T3_R2!K35)),COUNTRY_INFO!E35),0) -> 0 | U35: =IF(AND(COUNTRY_INFO!J35>1,COUNTRY_INFO!J35<4), IF(T35/COUNTRY_INFO!E35*100<>0, IF(T35/COUNTRY_INFO!E35*100>100,100,T35/COUNTRY_INFO!E35*100), "-"),0) -> - | V35: =IF(AND(COUNTRY_INFO!J35>1,COUNTRY_INFO!J35<4),IF(COUNTRY_INFO!F35>MAX('MDA1'!K35,'MDA4'!S35,'T1'!M35,MAX(T3_R1!L35,T3_R2!L35)),MAX('MDA1'!K35,'MDA4'!S35,'T1'!M35,MAX(T3_R1!L35,T3_R2!L35)),COUNTRY_INFO!F35),0) -> 28276 | W35: =IF(AND(COUNTRY_INFO!J35>1,COUNTRY_INFO!J35<4), IF(V35/COUNTRY_INFO!F35*100<>0, IF(V35/COUNTRY_INFO!F35*100>100,100,V35/COUNTRY_INFO!F35*100), "-"),0) -> 100 | X35: 28276 | Y35: =IF(AND(COUNTRY_INFO!J35>1,COUNTRY_INFO!J35<4), IF(S35/P35*100<>0, IF(X35/P35*100>100,100,X35/P35*100), "-"),0) -> 62.17511764 | Z35: =COUNTRY_INFO!P35 -> 28275.94339 | AC35: =MAX('T1'!L35,'T2'!J35)+MAX('T1'!M35,'T2'!K35)+MAX('T1'!N35,'T2'!L35) -> 22816 | AD35: =IF(COUNTRY_INFO!K35=1,IF(COUNTRY_INFO!F35*0.33>MAX('T1'!M35,'T2'!K35),MAX('T1'!M35,'T2'!K35),COUNTRY_INFO!F35*0.33),IF(COUNTRY_INFO!K35=2,IF(COUNTRY_INFO!F35*0.5>MAX('T1'!M35,'T2'!K35),MAX('T1'!M35,'T2'!K35),COUNTRY_INFO!F35*0.5),IF(COUNTRY_INFO!K35=3,IF(COUNTRY_INFO!F35>MAX('T1'!M35,'T2'!K35),MAX('T1'!M35,'T2'!K35),COUNTRY_INFO!F35),0))) -> 9331.08 | AE35: =IF(AND(COUNTRY_INFO!K35>0,COUNTRY_INFO!K35<4),IF(Z35>0,IF(COUNTRY_INFO!K35=1, AD35/(COUNTRY_INFO!F35*0.33)*100, IF(COUNTRY_INFO!K35=2, AD35/(COUNTRY_INFO!F35*0.5)*100, IF(COUNTRY_INFO!K35=3, AD35/COUNTRY_INFO!F35*100))),"-"),0) -> 100 | AF35: =IF(COUNTRY_INFO!K35=2,IF(COUNTRY_INFO!G35*0.2>MAX('T1'!N35,'T2'!L35),MAX('T1'!N35,'T2'!L35),COUNTRY_INFO!G35*0.2),IF(COUNTRY_INFO!K35=3,IF(COUNTRY_INFO!G35>MAX('T1'!N35,'T2'!L35),MAX('T1'!N35,'T2'!L35),COUNTRY_INFO!G35),0)) -> 0 | AG35: =IF(AND(COUNTRY_INFO!K35>0,COUNTRY_INFO!K35<4),IF(Z35>0,IF(COUNTRY_INFO!K35=1, 0, IF(COUNTRY_INFO!K35=2, AF35/(COUNTRY_INFO!G35*0.2)*100, IF(COUNTRY_INFO!K35=3, AF35/COUNTRY_INFO!G35*100))),"-"),0) -> 0 | AH35: 9331.08 | AI35: =IF(AND(COUNTRY_INFO!K35>0,COUNTRY_INFO!K35<4), IF(AC35/Z35*100<>0, IF(AH35/Z35*100>100,100,AH35/Z35*100), "-"),0) -> 33.00006607 | AK35: =IF(AND(D35<>0, D35<>"Inconnu",D35<>"Interrompu",D35<>"Non requis"),D35/COUNTRY_INFO!D35, 0) -> 1 | AL35: =IF(AND(J35<>0,J35<>"Inconnu",J35<>"Interrompu",J35<>"Non requis"),J35/COUNTRY_INFO!D35, 0) -> 1 | AM35: =IF(AND(P35<>0,P35<>"Inconnu",P35<>"Non requis"),P35/(COUNTRY_INFO!E35+COUNTRY_INFO!F35), 0) -> 1 | AN35: =IF(AND(Z35<>0,Z35<>"Inconnu",Z35<>"Non requis"),IF(COUNTRY_INFO!K35=1,1,IF(COUNTRY_INFO!K35=2,0.5*COUNTRY_INFO!F35/(0.5*COUNTRY_INFO!F35+0.2*COUNTRY_INFO!G35),IF(COUNTRY_INFO!K35=3,COUNTRY_INFO!F35/(COUNTRY_INFO!F35+COUNTRY_INFO!G35)))),0) -> 1 | AO35: =IF(AND(Z35<>0,Z35<>"Inconnu",Z35<>"Non requis"),IF(COUNTRY_INFO!K35=1,0,IF(COUNTRY_INFO!K35=2,0.2*COUNTRY_INFO!G35/(0.5*COUNTRY_INFO!F35+0.2*COUNTRY_INFO!G35),IF(COUNTRY_INFO!K35=3,COUNTRY_INFO!G35/(COUNTRY_INFO!F35+COUNTRY_INFO!G35)))),0) -> 0 | AP35: =MAX(COUNTRY_INFO!D35*AK35*PROFILE!$G$7,COUNTRY_INFO!D35*AL35*PROFILE!$G$7) -> 4359.727026 | AQ35: =MAX(COUNTRY_INFO!D35*AK35*PROFILE!$G$8,COUNTRY_INFO!D35*AL35*PROFILE!$G$8,COUNTRY_INFO!D35*AM35*PROFILE!$G$8) -> 17202.20059 | AR35: =MAX(COUNTRY_INFO!D35*AK35*PROFILE!$G$9,COUNTRY_INFO!D35*AL35*PROFILE!$G$9,COUNTRY_INFO!D35*AM35*PROFILE!$G$9,IF(AND(DISTRICT!Z35<>"Inconnu",Z35<>"Non requis"),COUNTRY_INFO!P35*DISTRICT!AN35,0)) -> 28275.96333 | AS35: =MAX(COUNTRY_INFO!D35*AK35*PROFILE!$G$10,COUNTRY_INFO!D35*AL35*PROFILE!$G$10,IF(AND(DISTRICT!Z35<>"Inconnu",Z35<>"Non requis"),COUNTRY_INFO!P35*DISTRICT!AO35,0)) -> 74725.73632 | AT35: 124563.6273 | AU35: Y | AV35: =MAX('MDA4'!R35,'T1'!L35,'T2'!J35,T3_R1!K35,T3_R2!K35) -> 0 | AW35: =MAX('MDA1'!K35,'MDA4'!S35,'MDA3'!I35,'MDA3'!L35,'T1'!M35,'T2'!K35,T3_R1!L35,T3_R2!L35) -> 29971 | AX35: =MAX('MDA1'!L35,'MDA4'!T35,'MDA3'!J35,'MDA3'!M35,'T1'!N35,'T2'!L35,T3_R1!M35,T3_R2!M35) -> 46088 | AY35: 76059 | AZ35: =MAX('MDA4'!R35,T35) -> 0 | BA35: =MAX('MDA1'!K35,'MDA4'!S35,'MDA3'!I35,'MDA3'!L35,V35,AD35) -> 29971 | BB35: =MAX('MDA1'!L35,'MDA4'!T35,'MDA3'!J35,'MDA3'!M35,AF35) -> 46088 | BC35: 76059 | BD35: 61.06036061
A36: =IF(COUNTRY_INFO!A36=0," ",COUNTRY_INFO!A36) -> République Centrafricaine | B36: =IF(COUNTRY_INFO!B36=0," ",COUNTRY_INFO!B36) -> RS N° 6 | C36: =IF(COUNTRY_INFO!C36=0," ",COUNTRY_INFO!C36) -> KEMBE SATEMA | D36: =COUNTRY_INFO!M36 -> 81876.05709 | G36: =MAX('MDA1'!M36,'MDA4'!U36) -> 60698 | H36: =IF(AND(COUNTRY_INFO!H36>0,COUNTRY_INFO!H36<4),IF(D36>MAX('MDA1'!M36,'MDA4'!U36),MAX('MDA1'!M36,'MDA4'!U36),D36),0) -> 60698 | I36: =IF(AND(COUNTRY_INFO!H36>0,COUNTRY_INFO!H36<4), IF(G36/D36*100<>0, IF(G36/D36*100>100,100,G36/D36*100), "-"),0) -> 74.13400469 | J36: =COUNTRY_INFO!N36 -> 81876.05709 | M36: =MAX('MDA1'!M36,MAX('MDA3'!I36,'MDA3'!L36)+MAX('MDA3'!J36,'MDA3'!M36)) -> 60698 | N36: =IF(AND(COUNTRY_INFO!I36>0,COUNTRY_INFO!I36<4),IF(J36>MAX('MDA1'!M36,MAX('MDA3'!I36,'MDA3'!L36)+MAX('MDA3'!J36,'MDA3'!M36)),MAX('MDA1'!M36,MAX('MDA3'!I36,'MDA3'!L36)+MAX('MDA3'!J36,'MDA3'!M36)),J36),0) -> 60698 | O36: =IF(AND(COUNTRY_INFO!I36>0,COUNTRY_INFO!I36<4), IF(M36/J36*100<>0, IF(M36/J36*100>100,100,M36/J36*100), "-"),0) -> 74.13400469 | P36: =COUNTRY_INFO!O36 -> 29893 | S36: =SUM(MAX('MDA4'!R36, 'T1'!L36, MAX(T3_R1!K36, T3_R2!K36)), MAX('MDA1'!K36, 'MDA4'!S36, 'T1'!M36, MAX(T3_R1!L36, T3_R2!L36)), MAX('MDA1'!L36, 'MDA4'!T36, 'T1'!N36, MAX(T3_R1!M36, T3_R2!M36))) -> 60698 | T36: =IF(AND(COUNTRY_INFO!J36>1,COUNTRY_INFO!J36<4),IF(COUNTRY_INFO!E36>MAX('MDA4'!R36,'T1'!L36,MAX(T3_R1!K36,T3_R2!K36)),MAX('MDA4'!R36,'T1'!L36,MAX(T3_R1!K36,T3_R2!K36)),COUNTRY_INFO!E36),0) -> 0 | U36: =IF(AND(COUNTRY_INFO!J36>1,COUNTRY_INFO!J36<4), IF(T36/COUNTRY_INFO!E36*100<>0, IF(T36/COUNTRY_INFO!E36*100>100,100,T36/COUNTRY_INFO!E36*100), "-"),0) -> - | V36: =IF(AND(COUNTRY_INFO!J36>1,COUNTRY_INFO!J36<4),IF(COUNTRY_INFO!F36>MAX('MDA1'!K36,'MDA4'!S36,'T1'!M36,MAX(T3_R1!L36,T3_R2!L36)),MAX('MDA1'!K36,'MDA4'!S36,'T1'!M36,MAX(T3_R1!L36,T3_R2!L36)),COUNTRY_INFO!F36),0) -> 18586 | W36: =IF(AND(COUNTRY_INFO!J36>1,COUNTRY_INFO!J36<4), IF(V36/COUNTRY_INFO!F36*100<>0, IF(V36/COUNTRY_INFO!F36*100>100,100,V36/COUNTRY_INFO!F36*100), "-"),0) -> 100 | X36: 18586 | Y36: =IF(AND(COUNTRY_INFO!J36>1,COUNTRY_INFO!J36<4), IF(S36/P36*100<>0, IF(X36/P36*100>100,100,X36/P36*100), "-"),0) -> 62.17509116 | Z36: =COUNTRY_INFO!P36 -> 18585.86496 | AC36: =MAX('T1'!L36,'T2'!J36)+MAX('T1'!M36,'T2'!K36)+MAX('T1'!N36,'T2'!L36) -> 25950 | AD36: =IF(COUNTRY_INFO!K36=1,IF(COUNTRY_INFO!F36*0.33>MAX('T1'!M36,'T2'!K36),MAX('T1'!M36,'T2'!K36),COUNTRY_INFO!F36*0.33),IF(COUNTRY_INFO!K36=2,IF(COUNTRY_INFO!F36*0.5>MAX('T1'!M36,'T2'!K36),MAX('T1'!M36,'T2'!K36),COUNTRY_INFO!F36*0.5),IF(COUNTRY_INFO!K36=3,IF(COUNTRY_INFO!F36>MAX('T1'!M36,'T2'!K36),MAX('T1'!M36,'T2'!K36),COUNTRY_INFO!F36),0))) -> 6133.38 | AE36: =IF(AND(COUNTRY_INFO!K36>0,COUNTRY_INFO!K36<4),IF(Z36>0,IF(COUNTRY_INFO!K36=1, AD36/(COUNTRY_INFO!F36*0.33)*100, IF(COUNTRY_INFO!K36=2, AD36/(COUNTRY_INFO!F36*0.5)*100, IF(COUNTRY_INFO!K36=3, AD36/COUNTRY_INFO!F36*100))),"-"),0) -> 100 | AF36: =IF(COUNTRY_INFO!K36=2,IF(COUNTRY_INFO!G36*0.2>MAX('T1'!N36,'T2'!L36),MAX('T1'!N36,'T2'!L36),COUNTRY_INFO!G36*0.2),IF(COUNTRY_INFO!K36=3,IF(COUNTRY_INFO!G36>MAX('T1'!N36,'T2'!L36),MAX('T1'!N36,'T2'!L36),COUNTRY_INFO!G36),0)) -> 0 | AG36: =IF(AND(COUNTRY_INFO!K36>0,COUNTRY_INFO!K36<4),IF(Z36>0,IF(COUNTRY_INFO!K36=1, 0, IF(COUNTRY_INFO!K36=2, AF36/(COUNTRY_INFO!G36*0.2)*100, IF(COUNTRY_INFO!K36=3, AF36/COUNTRY_INFO!G36*100))),"-"),0) -> 0 | AH36: 6133.38 | AI36: =IF(AND(COUNTRY_INFO!K36>0,COUNTRY_INFO!K36<4), IF(AC36/Z36*100<>0, IF(AH36/Z36*100>100,100,AH36/Z36*100), "-"),0) -> 33.00023977 | AK36: =IF(AND(D36<>0, D36<>"Inconnu",D36<>"Interrompu",D36<>"Non requis"),D36/COUNTRY_INFO!D36, 0) -> 1 | AL36: =IF(AND(J36<>0,J36<>"Inconnu",J36<>"Interrompu",J36<>"Non requis"),J36/COUNTRY_INFO!D36, 0) -> 1 | AM36: =IF(AND(P36<>0,P36<>"Inconnu",P36<>"Non requis"),P36/(COUNTRY_INFO!E36+COUNTRY_INFO!F36), 0) -> 1 | AN36: =IF(AND(Z36<>0,Z36<>"Inconnu",Z36<>"Non requis"),IF(COUNTRY_INFO!K36=1,1,IF(COUNTRY_INFO!K36=2,0.5*COUNTRY_INFO!F36/(0.5*COUNTRY_INFO!F36+0.2*COUNTRY_INFO!G36),IF(COUNTRY_INFO!K36=3,COUNTRY_INFO!F36/(COUNTRY_INFO!F36+COUNTRY_INFO!G36)))),0) -> 1 | AO36: =IF(AND(Z36<>0,Z36<>"Inconnu",Z36<>"Non requis"),IF(COUNTRY_INFO!K36=1,0,IF(COUNTRY_INFO!K36=2,0.2*COUNTRY_INFO!G36/(0.5*COUNTRY_INFO!F36+0.2*COUNTRY_INFO!G36),IF(COUNTRY_INFO!K36=3,COUNTRY_INFO!G36/(COUNTRY_INFO!F36+COUNTRY_INFO!G36)))),0) -> 0 | AP36: =MAX(COUNTRY_INFO!D36*AK36*PROFILE!$G$7,COUNTRY_INFO!D36*AL36*PROFILE!$G$7) -> 2865.662045 | AQ36: =MAX(COUNTRY_INFO!D36*AK36*PROFILE!$G$8,COUNTRY_INFO!D36*AL36*PROFILE!$G$8,COUNTRY_INFO!D36*AM36*PROFILE!$G$8) -> 11307.0596 | AR36: =MAX(COUNTRY_INFO!D36*AK36*PROFILE!$G$9,COUNTRY_INFO!D36*AL36*PROFILE!$G$9,COUNTRY_INFO!D36*AM36*PROFILE!$G$9,IF(AND(DISTRICT!Z36<>"Inconnu",Z36<>"Non requis"),COUNTRY_INFO!P36*DISTRICT!AN36,0)) -> 18585.87807 | AS36: =MAX(COUNTRY_INFO!D36*AK36*PROFILE!$G$10,COUNTRY_INFO!D36*AL36*PROFILE!$G$10,IF(AND(DISTRICT!Z36<>"Inconnu",Z36<>"Non requis"),COUNTRY_INFO!P36*DISTRICT!AO36,0)) -> 49117.45738 | AT36: 81876.05709 | AU36: Y | AV36: =MAX('MDA4'!R36,'T1'!L36,'T2'!J36,T3_R1!K36,T3_R2!K36) -> 0 | AW36: =MAX('MDA1'!K36,'MDA4'!S36,'MDA3'!I36,'MDA3'!L36,'T1'!M36,'T2'!K36,T3_R1!L36,T3_R2!L36) -> 25950 | AX36: =MAX('MDA1'!L36,'MDA4'!T36,'MDA3'!J36,'MDA3'!M36,'T1'!N36,'T2'!L36,T3_R1!M36,T3_R2!M36) -> 34748 | AY36: 60698 | AZ36: =MAX('MDA4'!R36,T36) -> 0 | BA36: =MAX('MDA1'!K36,'MDA4'!S36,'MDA3'!I36,'MDA3'!L36,V36,AD36) -> 25950 | BB36: =MAX('MDA1'!L36,'MDA4'!T36,'MDA3'!J36,'MDA3'!M36,AF36) -> 34748 | BC36: 60698 | BD36: 74.13400469
A37: =IF(COUNTRY_INFO!A37=0," ",COUNTRY_INFO!A37) -> République Centrafricaine | B37: =IF(COUNTRY_INFO!B37=0," ",COUNTRY_INFO!B37) -> RS N° 6 | C37: =IF(COUNTRY_INFO!C37=0," ",COUNTRY_INFO!C37) -> MOBAYE-ZANGBA | D37: =COUNTRY_INFO!M37 -> 131222.3692 | G37: =MAX('MDA1'!M37,'MDA4'!U37) -> 104945 | H37: =IF(AND(COUNTRY_INFO!H37>0,COUNTRY_INFO!H37<4),IF(D37>MAX('MDA1'!M37,'MDA4'!U37),MAX('MDA1'!M37,'MDA4'!U37),D37),0) -> 104945 | I37: =IF(AND(COUNTRY_INFO!H37>0,COUNTRY_INFO!H37<4), IF(G37/D37*100<>0, IF(G37/D37*100>100,100,G37/D37*100), "-"),0) -> 79.97493158 | J37: =COUNTRY_INFO!N37 -> 131222.3692 | M37: =MAX('MDA1'!M37,MAX('MDA3'!I37,'MDA3'!L37)+MAX('MDA3'!J37,'MDA3'!M37)) -> 104945 | N37: =IF(AND(COUNTRY_INFO!I37>0,COUNTRY_INFO!I37<4),IF(J37>MAX('MDA1'!M37,MAX('MDA3'!I37,'MDA3'!L37)+MAX('MDA3'!J37,'MDA3'!M37)),MAX('MDA1'!M37,MAX('MDA3'!I37,'MDA3'!L37)+MAX('MDA3'!J37,'MDA3'!M37)),J37),0) -> 104945 | O37: =IF(AND(COUNTRY_INFO!I37>0,COUNTRY_INFO!I37<4), IF(M37/J37*100<>0, IF(M37/J37*100>100,100,M37/J37*100), "-"),0) -> 79.97493158 | P37: =COUNTRY_INFO!O37 -> 47909 | S37: =SUM(MAX('MDA4'!R37, 'T1'!L37, MAX(T3_R1!K37, T3_R2!K37)), MAX('MDA1'!K37, 'MDA4'!S37, 'T1'!M37, MAX(T3_R1!L37, T3_R2!L37)), MAX('MDA1'!L37, 'MDA4'!T37, 'T1'!N37, MAX(T3_R1!M37, T3_R2!M37))) -> 104945 | T37: =IF(AND(COUNTRY_INFO!J37>1,COUNTRY_INFO!J37<4),IF(COUNTRY_INFO!E37>MAX('MDA4'!R37,'T1'!L37,MAX(T3_R1!K37,T3_R2!K37)),MAX('MDA4'!R37,'T1'!L37,MAX(T3_R1!K37,T3_R2!K37)),COUNTRY_INFO!E37),0) -> 0 | U37: =IF(AND(COUNTRY_INFO!J37>1,COUNTRY_INFO!J37<4), IF(T37/COUNTRY_INFO!E37*100<>0, IF(T37/COUNTRY_INFO!E37*100>100,100,T37/COUNTRY_INFO!E37*100), "-"),0) -> - | V37: =IF(AND(COUNTRY_INFO!J37>1,COUNTRY_INFO!J37<4),IF(COUNTRY_INFO!F37>MAX('MDA1'!K37,'MDA4'!S37,'T1'!M37,MAX(T3_R1!L37,T3_R2!L37)),MAX('MDA1'!K37,'MDA4'!S37,'T1'!M37,MAX(T3_R1!L37,T3_R2!L37)),COUNTRY_INFO!F37),0) -> 29787 | W37: =IF(AND(COUNTRY_INFO!J37>1,COUNTRY_INFO!J37<4), IF(V37/COUNTRY_INFO!F37*100<>0, IF(V37/COUNTRY_INFO!F37*100>100,100,V37/COUNTRY_INFO!F37*100), "-"),0) -> 100 | X37: 29787 | Y37: =IF(AND(COUNTRY_INFO!J37>1,COUNTRY_INFO!J37<4), IF(S37/P37*100<>0, IF(X37/P37*100>100,100,X37/P37*100), "-"),0) -> 62.17412177 | Z37: =COUNTRY_INFO!P37 -> 29787.47781 | AC37: =MAX('T1'!L37,'T2'!J37)+MAX('T1'!M37,'T2'!K37)+MAX('T1'!N37,'T2'!L37) -> 42608 | AD37: =IF(COUNTRY_INFO!K37=1,IF(COUNTRY_INFO!F37*0.33>MAX('T1'!M37,'T2'!K37),MAX('T1'!M37,'T2'!K37),COUNTRY_INFO!F37*0.33),IF(COUNTRY_INFO!K37=2,IF(COUNTRY_INFO!F37*0.5>MAX('T1'!M37,'T2'!K37),MAX('T1'!M37,'T2'!K37),COUNTRY_INFO!F37*0.5),IF(COUNTRY_INFO!K37=3,IF(COUNTRY_INFO!F37>MAX('T1'!M37,'T2'!K37),MAX('T1'!M37,'T2'!K37),COUNTRY_INFO!F37),0))) -> 29787 | AE37: =IF(AND(COUNTRY_INFO!K37>0,COUNTRY_INFO!K37<4),IF(Z37>0,IF(COUNTRY_INFO!K37=1, AD37/(COUNTRY_INFO!F37*0.33)*100, IF(COUNTRY_INFO!K37=2, AD37/(COUNTRY_INFO!F37*0.5)*100, IF(COUNTRY_INFO!K37=3, AD37/COUNTRY_INFO!F37*100))),"-"),0) -> 100 | AF37: =IF(COUNTRY_INFO!K37=2,IF(COUNTRY_INFO!G37*0.2>MAX('T1'!N37,'T2'!L37),MAX('T1'!N37,'T2'!L37),COUNTRY_INFO!G37*0.2),IF(COUNTRY_INFO!K37=3,IF(COUNTRY_INFO!G37>MAX('T1'!N37,'T2'!L37),MAX('T1'!N37,'T2'!L37),COUNTRY_INFO!G37),0)) -> 0 | AG37: =IF(AND(COUNTRY_INFO!K37>0,COUNTRY_INFO!K37<4),IF(Z37>0,IF(COUNTRY_INFO!K37=1, 0, IF(COUNTRY_INFO!K37=2, AF37/(COUNTRY_INFO!G37*0.2)*100, IF(COUNTRY_INFO!K37=3, AF37/COUNTRY_INFO!G37*100))),"-"),0) -> 0 | AH37: 29787 | AI37: =IF(AND(COUNTRY_INFO!K37>0,COUNTRY_INFO!K37<4), IF(AC37/Z37*100<>0, IF(AH37/Z37*100>100,100,AH37/Z37*100), "-"),0) -> 99.99839593 | AK37: =IF(AND(D37<>0, D37<>"Inconnu",D37<>"Interrompu",D37<>"Non requis"),D37/COUNTRY_INFO!D37, 0) -> 1 | AL37: =IF(AND(J37<>0,J37<>"Inconnu",J37<>"Interrompu",J37<>"Non requis"),J37/COUNTRY_INFO!D37, 0) -> 1 | AM37: =IF(AND(P37<>0,P37<>"Inconnu",P37<>"Non requis"),P37/(COUNTRY_INFO!E37+COUNTRY_INFO!F37), 0) -> 1 | AN37: =IF(AND(Z37<>0,Z37<>"Inconnu",Z37<>"Non requis"),IF(COUNTRY_INFO!K37=1,1,IF(COUNTRY_INFO!K37=2,0.5*COUNTRY_INFO!F37/(0.5*COUNTRY_INFO!F37+0.2*COUNTRY_INFO!G37),IF(COUNTRY_INFO!K37=3,COUNTRY_INFO!F37/(COUNTRY_INFO!F37+COUNTRY_INFO!G37)))),0) -> 0.2745168514 | AO37: =IF(AND(Z37<>0,Z37<>"Inconnu",Z37<>"Non requis"),IF(COUNTRY_INFO!K37=1,0,IF(COUNTRY_INFO!K37=2,0.2*COUNTRY_INFO!G37/(0.5*COUNTRY_INFO!F37+0.2*COUNTRY_INFO!G37),IF(COUNTRY_INFO!K37=3,COUNTRY_INFO!G37/(COUNTRY_INFO!F37+COUNTRY_INFO!G37)))),0) -> 0.7254831486 | AP37: =MAX(COUNTRY_INFO!D37*AK37*PROFILE!$G$7,COUNTRY_INFO!D37*AL37*PROFILE!$G$7) -> 4592.782998 | AQ37: =MAX(COUNTRY_INFO!D37*AK37*PROFILE!$G$8,COUNTRY_INFO!D37*AL37*PROFILE!$G$8,COUNTRY_INFO!D37*AM37*PROFILE!$G$8) -> 18121.77091 | AR37: =MAX(COUNTRY_INFO!D37*AK37*PROFILE!$G$9,COUNTRY_INFO!D37*AL37*PROFILE!$G$9,COUNTRY_INFO!D37*AM37*PROFILE!$G$9,IF(AND(DISTRICT!Z37<>"Inconnu",Z37<>"Non requis"),COUNTRY_INFO!P37*DISTRICT!AN37,0)) -> 29787.49882 | AS37: =MAX(COUNTRY_INFO!D37*AK37*PROFILE!$G$10,COUNTRY_INFO!D37*AL37*PROFILE!$G$10,IF(AND(DISTRICT!Z37<>"Inconnu",Z37<>"Non requis"),COUNTRY_INFO!P37*DISTRICT!AO37,0)) -> 78720.31648 | AT37: 131222.3692 | AU37: Y | AV37: =MAX('MDA4'!R37,'T1'!L37,'T2'!J37,T3_R1!K37,T3_R2!K37) -> 0 | AW37: =MAX('MDA1'!K37,'MDA4'!S37,'MDA3'!I37,'MDA3'!L37,'T1'!M37,'T2'!K37,T3_R1!L37,T3_R2!L37) -> 42608 | AX37: =MAX('MDA1'!L37,'MDA4'!T37,'MDA3'!J37,'MDA3'!M37,'T1'!N37,'T2'!L37,T3_R1!M37,T3_R2!M37) -> 62337 | AY37: 104945 | AZ37: =MAX('MDA4'!R37,T37) -> 0 | BA37: =MAX('MDA1'!K37,'MDA4'!S37,'MDA3'!I37,'MDA3'!L37,V37,AD37) -> 42608 | BB37: =MAX('MDA1'!L37,'MDA4'!T37,'MDA3'!J37,'MDA3'!M37,AF37) -> 62337 | BC37: 104945 | BD37: 79.97493158
